Workbook

Sheet ST1. Study Design
A1: Supplementary Table 1. Study design, sample size, and data quality control for contributing genome-wide association study and Metabochip cohorts.
A2: GWAS DATA
A3: Study | C3: Study design | D3: Ancestry | E3: Region | F3: Total genotyped sample size (N) | G3: Sample QC | I3: Anthropometric assessment method | L3: Study References (PMID)
A4: Short name | B4: Full name | G4: Call rate* | H4: sample exclusion criteria | I4: BMI | J4: WHR | K4: WHR and BMI were assessed at the same time?
A5: AE | B5: Athero-Express Biobank Study | C5: Cohort-study | D5: European | E5: Utrecht, the Netherlands | F5: 690 | G5: ≥ 97% | H5: 1) heterozygosity (Ĥ) ± 3 standard deviations of the mean 2) ethnic outliers through Principal Component Analysis compared to HapMap 2 (r22) 3) related individuals and duplicates, π>0.20 4) missing body weight and height 5) gender-discrepancies | I5: Self-reported | J5: NA | K5: NA | L5: 15678794
A6: AGES | B6: Age, Gene/Environment Susceptibility-Reykjavik Study | C6: Population based | D6: European | E6: Iceland | F6: 3219 | G6: >99% | H6: 1) missing phenotypes 2) mismatch previous genotypes | I6: Measured | J6: NA | K6: NA | L6: 17351290
A7: ARIC | B7: Atherosclerosis Risk in Communities | C7: Population-based | D7: European | E7: USA-North America | F7: 9713 | G7: >90% | H7: 1) first-degree relatives 2) ancestry outliers 3) gender mismatch 4) identity issues 5) excessive heterozygosity 6) missing height or weight | I7: Measured | J7: Measured | K7: Yes | L7: 2646917
A8: ARIC | B8: Atherosclerosis Risk in Communities | C8: Population-based | D8: African American | E8: USA-North America | F8: 3207 | G8: >90% | H8: 1) first-degree relatives 2) ancestry outliers 3) gender mismatch 4) identity issues 5) excessive heterozygosity 6) missing height or weight | I8: Measured | J8: Measured | K8: Yes | L8: 2646917
A9: AUSTWIN | B9: Australian Twin-Family Studies | C9: Population-based | D9: European | E9: Australia | F9: 2166 | G9: 0.95 | H9: 1) mendelian errors 2) HWE p < 10-6 3) sample call rate 96% | I9: Self-reported | J9: NA | K9: NA | L9: 21529783
A10: BHS | B10: Busselton Health Study | C10: Population-based | D10: European | E10: Australia | F10: 1468 | G10: 0.97 | H10: 1) duplicates 2) sex check 3) ethnic outliers 4) relatedness | I10: Measured | J10: Measured | K10: Yes | L10: 15486340, 19643935
A11: BioMe (MSSM) | B11: The Charles Bronfman Institute for Personalized Medicine; BioMe Program | C11: EHR-linked clinical care cohort | D11: European American | E11: USA (New York City) | F11: 2026 | G11: ≥98% | H11: 1) sex mismatch 2) ancestry Outliers 3) related Individuals (inbreeding coefficient < -0.1 or > 0.3 for common variants (MAF>1%) 4) inbreeding coefficient < 0.4 or > 0.9 for rare variants (MAF<1%) | I11: Self-reported | J11: NA | K11: NA | L11: 25673413
A12: BioMe (MSSM) | B12: The Charles Bronfman Institute for Personalized Medicine; BioMe Program | C12: EHR-linked clinical care cohort | D12: African American | E12: USA (New York City) | F12: 3495 | G12: ≥98% | H12: 1) sex mismatch 2) ancestry Outliers 3) related Individuals (inbreeding coefficient < -0.1 or > 0.3 for common variants (MAF>1%) 4) inbreeding coefficient < 0.4 or > 0.9 for rare variants (MAF<1%) | I12: Self-reported | J12: NA | K12: NA | L12: 25673413
A13: BioMe (MSSM) | B13: The Charles Bronfman Institute for Personalized Medicine; BioMe Program | C13: EHR-linked clinical care cohort | D13: Hispanic / Latinos | E13: USA (New York City) | F13: 4711 | G13: ≥98% | H13: 1) sex mismatch 2) ancestry Outliers 3) related Individuals (inbreeding coefficient < -0.1 or > 0.3 for common variants (MAF>1%) 4) inbreeding coefficient < 0.4 or > 0.9 for rare variants (MAF<1%) | I13: Self-reported | J13: NA | K13: NA | L13: 25673413
A14: BLSA | B14: Baltimore Longitudinal Study of Aging | C14: Population-based | D14: European | E14: Italy | F14: 1230 | G14: 0.98 | H14: 1) Missing Phenotype 2) sex mismatch 3) ethnic outliers | I14: measured | J14: measured | K14: Yes | L14: NA
A15: British 1958 birth cohort (B58C) | B15: British 1958 birth cohort | C15: Population-based | D15: European | E15: UK | F15: 6481 | G15: ≥ 97% | H15: 1) Contamination 2) non-European identity 3) missing height or weight | I15: Measured | J15: Measured | K15: Yes | L15: 17255346
A16: CHS | B16: The Cardiovascular Health Study | C16: Population-based cohort | D16: European | E16: USA-North America | F16: 3271 | G16: >95% | H16: 1) baseline CHD, CHF, PAD, valvular heart disease, stroke, TIA 2) lack of available DNA 3) genotype discordant with known sex or prior genotyping | I16: Measured | J16: Measured | K16: Yes | L16: 1669507
A17: CLHNS | B17: Cebu Longitudinal Health and Nutrition Survey (Offspring) | C17: Population-based | D17: East Asian (Filipino) | E17: Philippines | F17: 1895 | G17: ≥97% | H17: 1) 1st-degree relatvies 2) missing phenotypes (age, weight, height, smoking) | I17: Measured | J17: Measured | K17: Yes | L17: 20507864
A18: COLAUS | B18: Cohorte Lausannoise | C18: Population-based | D18: European | E18: Switzerland | F18: 5435 | G18: 0.9 | H18: 1) PCA outliers | I18: Measured | J18: Measured | K18: Yes | L18: 22415877, 18366642
A19: CROATIA-Korcula | B19: The CROATIA study, Korcula Island cohort | C19: Population-based | D19: European | E19: Croatia | F19: 898 | G19: >97% | H19: 1) duplicates 2) gender mismatch 3) identity issues 4) excess heterozygousity | I19: Measured | J19: Measured | K19: Yes | L19: 18952825 19798445
A20: CROATIA-Vis | B20: The CROATIA study, Vis Island cohort | C20: Population-based | D20: European | E20: Croatia | F20: 924 | G20: >97% | H20: 1) duplicates 2) gender mismatch 3) identity issues 4) excess heterozygousity | I20: Measured | J20: Measured | K20: Yes | L20: 18952825, 19798445
A21: DESIR | B21: Data from an Epidemiological Study on the Insulin Resistance syndrome | C21: Case-control | D21: European | E21: France | F21: 731 | G21: ≥90% | H21: 1) low call rate (none) 2) ethnic outliers (n=15 dropped using STRUCTURE) | I21: Measured | J21: Measured | K21: Yes | L21: 8927780
A22: EGCUT | B22: Estonian Genome Center, University of Tartu | C22: Population-based | D22: European | E22: Estonia | F22: 2059 | G22: ≥98% | H22: 1) call-rate < 95% 2) related smaller than 2nd degree 3) duplicated samples 4) gender mismatch | I22: Measured | J22: Measured | K22: Yes | L22: 24518929
A23: EPIC-Norfolk | B23: EPIC (European Prospective Investigation into Cancer) Norfolk | C23: Population-based | D23: European | E23: England | F23: 2417 | G23: ≥94% | H23: 1) relatedness 2) ethnic outlier 3) missing height | I23: Measured | J23: Measured | K23: Yes | L23: 10466767
A24: ERF | B24: Erasmus Rucphen Family Study | C24: Family-based | D24: European | E24: Netherlands | F24: 3485 | G24: 0.95 | H24: 1) gender mismatch 2) ethnic outliers 3) sex mismatch 4) excess heterozygosity 5) duplicates | I24: Measured | J24: Measured | K24: Yes | L24: 15845033
A25: FamHS | B25: Family Heart Study | C25: Family-based | D25: European | E25: USA - North America | F25: 3869 | G25: 0.98 | H25: 1) To assess Mendelian errors, we ran LOKI on our family data and removed 5,035 SNPs with enough Mendelian errors to be considered outlier SNPs. We also removed 2 individuals who had an unacceptable number (greater than 600) of Mendelian errors, making them outliers as compared to the rest of the population | I25: Measured | J25: Measured | K25: Yes | L25: 8651220
A26: Fenland | B26: Fenland Study | C26: Population-based | D26: European | E26: UK | F26: 1500 | G26: 0.95 | H26: 1) sex-check 2) relatedness check 3) ethnic ancestry outlying 4) hetezygosity check | I26: Measured | J26: Measured | K26: Yes | L26: 20519560
A27: FramHS | B27: Framingham Heart Study | C27: Population-based | D27: European | E27: USA | F27: 8481 | G27: >97% | H27: 1) Heterozygosity ± 5 SD from the mean 2) Call rate < 97% 3) Excessive Mendelian errors | I27: Measured | J27: Measured | K27: Yes | L27: 14025561 1208363 17372189
A28: FUSION | B28: Finland-United States Investigation of NIDDM Genetics | C28: Case-control | D28: European | E28: Finland | F28: 2333 | G28: >99% | H28: 1) Missing phenotypes or age<18 2) Gender discrepancy or anomaly 3) Unexplained duplicate sample 4) Relateds | I28: Measured | J28: Measured | K28: Yes | L28: 17463248
A29: Gendian | B29: Genetics of Diabetic Nephropathy | C29: Cohort study of type 2 diabetes complications | D29: European | E29: Germany | F29: 1026 | G29: 0.95 | H29: 1) call-rate < 95% 2) related smaller than 2nd degree 3) duplicated samples 4) gender mismatch 5) non-european ethnicity | I29: Measured | J29: Measured | K29: Yes | L29: 16961167 21980298
A30: GS | B30: Generation Scotland | C30: Population-based | D30: European | E30: Scotland | F30: 9860 | G30: >97% | H30: 1) duplicates 2) gender mismatch 3) identity issues 4) excess heterozygousity | I30: Measured | J30: Measured | K30: Yes | L30: 22786799
A31: GENOA | B31: Genetic Epidemiology Network of Arteriopathy | C31: Cohort of sibships enriched for hypertension | D31: European-American | E31: USA- Rochester, MN | F31: 1509 | G31: ≥ 95% | H31: 1) Identical twins 2) sex mismatch 3) outliers (±6 SDs) on first 10 PCs from EIGENSTRAT | I31: Measured | J31: Measured | K31: Yes | L31: 11799070, 15121494
A32: GOOD | B32: Gothenburg Osteoporosis and Obesity Determinants Study | C32: Population-based | D32: European | E32: Sweden | F32: 941 | G32: >97% | H32: 1) heterozygosity > 33% 2) ethnic outliers 3) related individuals 4) duplicates | I32: Measured | J32: Measured | K32: Yes | L32: 22247082
A33: GOYA cases | B33: Genetics of Overweight Young Adults | C33: Population-based (case-cohort) | D33: European | E33: Denmark | F33: 671 cases, | G33: 0.95 | H33: 1) heterozygosity 2) duplicates 3) sex mismatch 4) non-caucasians | I33: Measured | J33: Measured | K33: Yes | L33: 18445669, 21935397
A34: GOYA controls | B34: Genetics of Overweight Young Adults | C34: Population-based (case-cohort) | D34: European | E34: Denmark | F34: 790 controls | G34: 0.95 | H34: 1) heterozygosity 2) duplicates 3) sex mismatch 4) non-caucasians | I34: Measured | J34: Measured | K34: Yes | L34: 18445669, 21935397
A35: HERITAGE Family Study | B35: Health, Risk Factors, Training and Genetics (HERITAGE) Family Study | C35: Baseline measurements of an exercise intervention | D35: European | E35: USA -North America | F35: 499 | G35: >99% | H35: None | I35: Measured | J35: Measured | K35: Yes | L35: 21183627
A36: HRS | B36: Health and Retirement Study | C36: Population-based | D36: European-American | E36: USA-North America | F36: 8652 | G36: >98% | H36: 1) duplicates 2) gender discrepancy 3) relatedness 4) ethnic outliers | I36: Measured | J36: NA | K36: NA | L36: 24671021
A37: HRS | B37: Health and Retirement Study | C37: Population-based | D37: African American | E37: USA-North America | F37: 1519 | G37: >98% | H37: 1) duplicates 2) gender discrepancy 3) relatedness 4) ethnic outliers | I37: Measured | J37: NA | K37: NA | L37: 24671021
A38: HYPERGENES | B38: HYPERGENES | C38: Case-Control | D38: European | E38: Europe | F38: 3916 | G38: >95% | H38: 1) first-degree and second-degree relatives 2) ancestry outliers 3) gender mismatch 4) identity issues 5) excessive heterozygosity 6) missing height or weight | I38: Measured | J38: Measured | K38: Yes | L38: 22184326
A39: InCHIANTI | B39: Invecchiare in Chianti | C39: Population-based | D39: European | E39: Italy | F39: 1231 | G39: 0.97 | H39: 1) missing Phenotype 2) sex mismatch 3) Heterozygosity > 0.3 | I39: Measured | J39: Measured | K39: Yes | L39: 11129752
A40: KORA3 | B40: Cooperative Health Research in the Region of Augsburg | C40: Population-based | D40: European | E40: Germany | F40: 1644 | G40: 0.93 | H40: 1) german passport 2) missing height | I40: Measured | J40: Measured | K40: Yes | L40: 16032513, 16032514
A41: KORA4 | B41: Cooperative Health Research in the Region of Augsburg | C41: Population-based | D41: European | E41: Germany | F41: 1814 | G41: 0.93 | H41: 1) german passport 2) missing height | I41: Measured | J41: Measured | K41: Yes | L41: 16032513, 16032514
A42: Lifelines | B42: Lifelines Cohort study | C42: Population-based | D42: European | E42: The Netherlands | F42: 9388 | G42: 0.95 | H42: 1) heterozygosity > 4SD from mean 2) duplicate and MZ samples 3) first-degree relatives 4) sex mismatch 5) non-caucasians | I42: Measured | J42: Measured | K42: Yes | L42: 18075776, 25502107, 26333164
A43: LOLIPOP_EW610 | B43: London Life Sciences Prospective Population Study | C43: Population-based | D43: European | E43: UK - Lodon | F43: 945 | G43: 0.95 | H43: 1) duplicates 2) gender discrepancy 3) contaminated samples 4) relatedness | I43: Measured | J43: Measured | K43: Yes | L43: 21909110
A44: LOLIPOP_IA317 | B44: London Life Sciences Prospective Population Study | C44: Population-based with some enrichment | D44: Indian Asian | E44: UK - Lodon | F44: 2694 | G44: 0.95 | H44: 1) duplicates 2) gender discrepancy 3) ethnic outliers 4) contaminated samples 5) relatedness 6) samples already in IA610 | I44: Measured | J44: Measured | K44: Yes | L44: 18454146
A45: LOLIPOP_IA610 | B45: London Life Sciences Prospective Population Study | C45: CHD case-control study | D45: Indian Asian | E45: UK - Lodon | F45: 7032 | G45: 0.95 | H45: 1) duplicates 2) gender discrepancy 3) ethnic outliers 4) contaminated samples 5) relatedness | I45: Measured | J45: Measured | K45: Yes | L45: 19820698
A46: LURIC | B46: Ludwigshafen Risk and Cardiovascular Health Study | C46: Case-control | D46: European | E46: Ludwigshafen, Germany | F46: 2984 | G46: ≥95% | H46: 1) related individuals 2) ambigous sex | I46: Measured | J46: Measured | K46: Yes | L46: 11258203
A47: MESA | B47: Multi-Ethnic Study of Atherosclerosis | C47: Population-based | D47: European | E47: USA-North America | F47: 2399 | G47: >95% | H47: 1) first-degree relatives 2) ancestry outliers 3) gender mismatch, 4) excessive heterozygosity 5) missing height or weight | I47: Measured | J47: Measured | K47: Yes | L47: 19075250
A48: MrOS Sweden | B48: Osteoporotic Fractures in Men (MrOS) Sweden | C48: Population-based | D48: European | E48: Sweden | F48: 962 | G48: >97% | H48: 1) exclusion based on IBD clustering 2) checked for duplicates 3) identical twins | I48: Measured | J48: NA | K48: NA | L48: 16598372
A49: NTR | B49: Netherlands Twin Register | C49: Population-based | D49: European | E49: Netherlands | F49: 3331 | G49: >90% | H49: 1) duplicates 2) gender discrepancy 3) contaminated samples 4) relatedness | I49: Measured | J49: Measured | K49: Yes | L49: 18763692, 18197199
A50: NFBC66 | B50: Northern Finland Birth Cohorts 1966 | C50: Population-based | D50: European | E50: Finland | F50: 5402 | G50: ≥95% | H50: (1) duplicates (2) contaminated samples (3) excess heterozygosity (4) cryptic relatedness (5) withdrew consent (6) gender mismatch (7) MDS outliers | I50: Measured | J50: Measured | K50: Yes | L50: 4911003
A51: NHS | B51: The Nurses' Health Study | C51: Population-based | D51: European | E51: USA | F51: 2368 | G51: 0.95 | H51: 1) duplicate 2) samples with misidentified sex, 3) related samples (siblings or possible first cousins) 4) samples with evidence of contamination 5) samples with highly variable intensity data, and 6) samples with missing call rates >=2% were excluded. | I51: Measured | J51: Measured | K51: Yes | L51: 7860180
A52: ORCADES | B52: Orkney Complex Disease Study | C52: Population-based | D52: European | E52: Scotland | F52: 889 | G52: >97% | H52: 1) duplicates 2) gender mismatch 3) identity issues 4) excess heterozygousity | I52: Measured | J52: Measured | K52: Yes | L52: 18760389
A53: PIVUS | B53: The Prospective Investigation of the Vasculature in Uppsala Seniors | C53: Prospective cohort | D53: European | E53: Sweden | F53: 949 | G53: >95% | H53: 1) gender mismatch 2) excess heterozygosity 3) duplicates | I53: Measured | J53: Measured | K53: Yes | L53: 16141402
A54: Prevend | B54: Prevention of renal and vascular end-stage disease | C54: Population-based | D54: European | E54: The Netherlands | F54: 3649 | G54: ≥95% | H54: 1) ethnic outliers 2) related individuals and duplicates 3) missing phenotype | I54: Measured | J54: Measured | K54: Yes | L54: 12356629
A55: PROSPER | B55: The PROspective study of Pravastatin in the Elderly at Risk for vascular disease | C55: Population-based | D55: European | E55: Europe | F55: 5244 | G55: ≥95% | H55: 1) sex mismatch 2) ethnic outliers 3) heterozygosity (3 SD) | I55: Measured | J55: NA | K55: NA | L55: 10569329
A56: QFS | B56: Quebec Family Study | C56: Population-based | D56: European | E56: Quebec-Canada | F56: 929 | G56: 0.95 | H56: None | I56: Measured | J56: Measured | K56: Yes | L56: 24533236
A57: Rotterdam Study I | B57: Rotterdam Study - I | C57: Population-based | D57: European | E57: Netherlands | F57: 5974 | G57: ≥ 98% | H57: 1) sex mismatch 2)excess autosomal heterozygosity >0.336 3) outliers identified by IBS clustering analysis | I57: Measured | J57: Measured | K57: Yes | L57: 26386597
A58: Rotterdam Study II | B58: Rotterdam Study - II | C58: Population-based | D58: European | E58: Netherlands | F58: 2157 | G58: ≥98% | H58: 1) sex mismatch 2)excess autosomal heterozygosity >0.336 3) outliers identified by IBS clustering analysis | I58: Measured | J58: Measured | K58: Yes | L58: 26386597
A59: Rotterdam Study III | B59: Rotterdam Study - III | C59: Population-based | D59: European | E59: Netherlands | F59: 2078 | G59: ≥ 98% | H59: 1) sex mismatch 2)excess autosomal heterozygosity >0.336 3) outliers identified by IBS clustering analysis | I59: Measured | J59: Measured | K59: Yes | L59: 26386597
A60: SardiNIA | B60: SardiNIA Study on Aging | C60: Population-based | D60: European | E60: Ogliastra Region in Sardinia (Italy) | F60: 4694 | G60: 0.95 | H60: 1) gender discrepancy with genetic data from X‐linked marker; 2) discrepancy between genetically inferred relationship with other samples and reported pedigree information | I60: Measured | J60: Measured | K60: Yes | L60: 16934002, 22291609
A61: SHIP | B61: Study of Health in Pomerania | C61: Population-based | D61: European | E61: Germany - West Pomerania | F61: 4081 | G61: >92% | H61: 1) duplicates 2) gender discrepancy | I61: Measured | J61: Measured | K61: Yes | L61: 20167617
A62: THISEAS | B62: The Hellenic study of Interactions between Snps and Eating in Atherosclerosis Susceptibility | C62: CAD case-control | D62: European | E62: Greece | F62: 1000 | G62: ≥95% | H62: 1) sex mismatch 2) ethnic outliers 3) heterozygosity (3 SD) | I62: Measured | J62: Measured | K62: Yes | L62: 20167083
A63: TRAILS | B63: Tracking Adolescents' Individual Lives Survey | C63: Population-based | D63: European | E63: The Netherlands | F63: 1354 | G63: 0.95 | H63: 1) heterozygosity 2) duplicate and MZ samples 3) sex mismatch 4) non-caucasians | I63: Measured | J63: Measured | K63: Yes | L63: 18263649, 23021478, 25431468
A64: TwinsUK | B64: TwinsUK | C64: Population-based | D64: European | E64: UK | F64: 5654 | G64: >98% | H64: 1) call-rate < 98% 2) heterozygosity across all SNPs ≥2 s.d. from the sample mean 3) duplicated samples 4) gender mismatch 5) evidence of non‐European ancestry as assessed by PCA comparison with HapMap3 population 6) observed pairwise IBD probabilities suggestive of sample identity errors | I64: Measured | J64: Measured | K64: Yes | L64: 23088889
A65: WGHS | B65: Women's Genome Health Study | C65: Population-based | D65: European | E65: USA | F65: 23294 | G65: 0.98 | H65: None | I65: Self-reported | J65: Self-reported | K65: No, waist and WHR assessed 6 years after BMI | L65: 18070814
A66: YFS | B66: The Cardiovascular Risk in Young Finns Study | C66: Population-based | D66: European | E66: Finland | F66: 2442 | G66: 0.95 | H66: 1) gender mismatch 2) excess heterozygosity 3) duplicates 4) cryptic relatedness 5) ethnic outliers | I66: Measured | J66: Measured | K66: Yes | L66: 18263651
A68: METABOCHIP DATA
A69: Study | C69: Study design | D69: Ancestry | E69: Region | F69: Total sample size (N) | G69: Sample QC | I69: Anthropometric assessment method | L69: Study References (PMID)
A70: Short name | B70: Full name | G70: Call rate* | H70: sample exclusion criteria | I70: BMI | J70: WHR | K70: WHR and BMI were assessed at the same time?
A71: DESIR | B71: Data from an Epidemiological Study on the Insulin Resistance syndrome | C71: Population based | D71: European | E71: France | F71: 4993 | G71: ≥ 90% | H71: 1) missing data 2) ethnic outliers (n=66 dropped using PCA) | I71: Measured | J71: Measured | K71: Yes | L71: 8927780
A72: DR's EXTRA | B72: DR's EXTRA | C72: Population-based | D72: European | E72: Finland | F72: 1250 | G72: >99% | H72: 1) missing phenotypes or age<18 2) gender discrepancy or anomaly 3) unexplained duplicate sample 4) relateds across DR's EXTRA, FUSION, and METSIM | I72: Measured | J72: Measured | K72: Yes | L72: 8177243
A73: EGCUT Metabochip | B73: Estonian Genome Center, University of Tartu | C73: Population-based | D73: European | E73: Estonia | F73: 2510 | G73: ≥ 98% | H73: 1) call-rate < 95% 2) related smaller than 2nd degree 3) duplicated samples 4) gender mismatch | I73: Measured | J73: Measured | K73: Yes | L73: 24518929
A74: Ely | B74: MRC Ely Study | C74: Population-based | D74: European | E74: UK | F74: 1602 | G74: 0.95 | H74: 1) sex-check 2) relatedness check 3) ethnic ancestry outlying 4) hetezygosity check | I74: Measured | J74: Measured | K74: Yes | L74: 17257284
A75: EPIC | B75: European Prospective Investigation into Cancer and Nutrition - Obesity Study | C75: Case-cohort design | D75: European | E75: UK | F75: 1700 | G75: 0.95 | H75: 1) sex-check 2) relatedness check 3) ethnic ancestry outlying 4) hetezygosity check | I75: Measured | J75: Measured | K75: Yes | L75: 10466767 12795830
A76: Fenland | B76: Fenland Study | C76: Population-based | D76: European | E76: UK | F76: 3217 | G76: 0.95 | H76: 1) sex-check 2) relatedness check 3) ethnic ancestry outlying 4) hetezygosity check | I76: Measured | J76: Measured | K76: Yes | L76: 20519560
A77: FUSION2 | B77: Finland-United States Investigation of NIDDM Genetics | C77: Case-control | D77: European | E77: Finland | F77: 2014 | G77: >99% | H77: 1) missing phenotypes or age<18 2) gender discrepancy or anomaly 3) unexplained duplicate sample 4) relateds across DR's EXTRA, FUSION, and METSIM | I77: Measured | J77: Measured | K77: Yes | L77: 17463248
A78: GLACIER | B78: Gene x Lifestyle Interactions and Complex Traits Involved in Elevated Disease Risk | C78: Population-based | D78: European | E78: Sweden | F78: 6064 | G78: ≥95% | H78: 1) call-rate < 95% 2) sex mismatch | I78: Measured | J78: Waist, but not hip circumference | K78: Yes | L78: 25396097
A79: GXE | B79: Gene By Environment | C79: Population-based | D79: Jamaican | E79: Caribbean | F79: 613 | G79: ≥95% | H79: 1) missing phenotype data 2) heterozygosity 3) PCA outliers 4) IBD cryptic relateds | I79: Measured | J79: Measured | K79: Yes | L79: 9103091, 9098179, 20400458
A80: Health2006 | B80: Health2006 | C80: Population-based | D80: European | E80: Capital region of Denmark | F80: 3207 | G80: >99% | H80: 1) individuals with 1st or 2nd degree familial relationship 2) extreme inbreeding coefficient 3) low call rate 4) mislabelled sex and 5) high discordance to previous genotypings | I80: Measured | J80: Measured | K80: Yes | L80: 23615486
A81: HUNT | B81: The Nord-Trøndelag Health Study | C81: Population-based with enrichment for T2D cases | D81: European | E81: Norway | F81: 1567 | G81: >99% | H81: 1) missing phenotypes or age<18 2) gender discrepancy or anomaly 3) unexplained duplicate sample 4) relateds | I81: Measured | J81: Measured | K81: Yes | L81: [No PMID] Holmen J, Midthjell K, et al. The Nord-Trøndelag Health Study 1995-97 (HUNT 2):Objectives, contents, methods and participation. Nor J Epidemiol 2003;13(1):19-32.
A82: IMPROVE | B82: Carotid Intima Media Thickness (IMT) and IMT-PRogression as Predictors of Vascular Events in a High-Risk European Population | C82: Population-based (high CVD-risk) | D82: European | E82: Europe (Italy, France, Netherlands, Sweden, Finland) | F82: 3426 | G82: ≥ 95% | H82: 1) ambiguous sex 2) cryptic relatedness 3) non-european descent | I82: Measured | J82: Measured | K82: Yes | L82: 22999719
A83: Inter99 (I99) | B83: Inter99 | C83: Population-based | D83: European | E83: Capital region of Denmark | F83: 6127 | G83: >99% | H83: 1) individuals with 1st or 2nd degree familial relationship 2) extreme inbreeding coefficient 3) low call rate 4) mislabelled sex and 5) high discordance to previous genotypings | I83: Measured | J83: Measured | K83: Yes | L83: 14663300 12882858 19898830
A84: KORA S3 | B84: Cooperative Health Research in the Region of Augsburg | C84: Population-based | D84: European | E84: Germany | F84: 3113 | G84: 0.93 | H84: none | I84: Measured | J84: Measured | K84: Yes | L84: 16032513 16032514
A85: KORA S4 | B85: Cooperative Health Research in the Region of Augsburg | C85: Population-based | D85: European | E85: Germany | F85: 3028 | G85: 0.93 | H85: none | I85: Measured | J85: Measured | K85: Yes
A86: MEC | B86: The Multiethnic Cohort Study | C86: Population-based | D86: African | E86: USA-North America | F86: ≥ 95% | G86: >95% | H86: 1) first-degree relatives 2) ancestry outliers 3) gender mismatch 4) identity issues 5) excessive heterozygosity 6) missing height or weight | I86: Self-reported | J86: Self-measured | K86: Yes | L86: 10695593
A87: METSIM | B87: Metabolic Syndrome In Men | C87: Population-based with enrichment for T2D cases | D87: European | E87: Finland | F87: 2162 | G87: >99% | H87: 1) missing phenotypes or age<18 2) gender discrepancy or anomaly 3) unexplained duplicate sample 4) relateds across DR's EXTRA, FUSION, and METSIM | I87: Measured | J87: Measured | K87: Yes | L87: 19223598
A88: NSHD | B88: MRC National Survey of Health & Development | C88: Birth cohort | D88: European | E88: UK | F88: 2476 | G88: 0.95 | H88: 1) sex-check 2) relatedness check 3) ethnic ancestry outlying 4) hetezygosity check | I88: Measured | J88: Measured | K88: Yes | L88: 15814867 16204333
A89: SCARFSHEEP | B89: Stockholm Coronary Atherosclerosis Risk Factor-Stockholm Heart Epidemiology Program | C89: MI case-control | D89: European | E89: Europe (Stockholm, Sweden) | F89: 2899 | G89: ≥95% | H89: 1) ambiguous sex 2) cryptic relatedness 3) non-european descent | I89: Measured | J89: Measured | K89: Yes | L89: 16238676 10447785
A90: SPT | B90: Spanish Town | C90: Population-based | D90: Jamaican | E90: Caribbean | F90: 476 | G90: ≥95% | H90: 1) missing phenotype data 2) heterozygosity 3) PCA outliers 4) IBD cryptic relateds | I90: Measured | J90: Measured | K90: Yes | L90: 9103091, 9098179, 20400458
A91: WHI | B91: Women's Health Initiative Study | C91: Population-based | D91: African | E91: USA-North America | F91: YR3/YR4 (3508) ; Pilot (2203) | G91: >95% | H91: 1) first-degree relatives 2) ancestry outliers 3) gender mismatch 4) identity issues 5) excessive heterozygosity 6) missing height or weight | I91: Measured | J91: Measured | K91: Yes | L91: 14575938
A92: Whitehall | B92: The Whitehall II study | C92: Cohort of London-based civil servants | D92: European | E92: UK | F92: 2413 | G92: 0.95 | H92: 1) missing phenotype data 2) gender check 3) duplicates check 4) relatedness check 5) ethnic check | I92: Measured | J92: Measured | K92: Yes | L92: 15576467 21441441
A93: VALIDATION DATA
A94: UKBB | B94: UK Biobank | C94: Population study | D94: White British | E94: UK | F94: 120286 | G94: NA, See UKB document on QC http://biobank.ctsu.ox.ac.uk/showcase/refer.cgi?id=155580 | H94: 1) Sex mismatch 2) HWE P<1x10-6 3) non British ancestry | I94: Measured | J94: Measured | K94: Yes | L94: DOI: 10.1371/journal.pmed.1001779

Sheet ST2. Genotyping and QC
A1: Supplementary Table 2. Information on genotyping methods, quality control of SNPs, imputation, and statistical analysis for GWAS and Metabochip study cohorts. Abbreviations: MAF- minor allele frequency, HWE- Hardy-Weinberg Equilibrium, QC- quality control, SNP- single nucleotide polymorphism, GWAS- genome-wide association study.
A2: GWAS DATA
A3: Study | B3: Ancestry | C3: Genotyping | H3: Imputation | L3: Statistical Analysis Software
C4: Genotyping array | D4: Genotype calling software | E4: SNP QC | G4: No. of SNPs after QC | H4: No. of SNPs used for imputation | I4: Imputation Sofware | J4: Imputation reference panel (NCBI build) | K4: Imputed X chromosome data available? (software, reference)
E5: Call rate* | F5: p for HWE
A6: AE | B6: European | C6: Affymetrix SNP 5.0 | D6: BRLMM-P | E6: ≥ 97% | F6: > 10-6 | G6: 403789 | H6: 403789 | I6: BEAGLE v3.3.2 | J6: HapMap r 22 CEU | K6: No | L6: PLINKv1.07
A7: AGES | B7: European | C7: Illumina Hu370CNV | D7: BeadStudio | E7: >97% | F7: > 10-6 | G7: 325094 | H7: 308340 | I7: Mach + MiniMac | J7: HapMap r 22 CEU | K7: Yes, (IMPUTE2) | L7: ProbABEL
A8: ARIC | B8: European | C8: Affymetrix 6.0 | D8: Birdseed | E8: ≥ 90% | F8: > 10-6 | G8: 685812 | H8: 685812 | I8: MACH v1.0.16 | J8: HapMap CEU, release 22, build 36 | K8: No | L8: ProbABEL
A9: ARIC | B9: African American | C9: Affymetrix 6.0 | D9: Birdseed | E9: ≥ 90% | F9: > 10-6 | G9: 685812 | H9: 685812 | I9: MACH v1.0.16 | J9: HapMap YRI, release 22, build 36 | K9: No | L9: ProbABEL
A10: AUSTWIN | B10: European | C10: Illumina370, Illumina610 | D10: Beadstudio-gencall v3.0 | E10: 0.95 | F10: > 10-6 | G10: 269840 | H10: 269840 | I10: MACH v1.0.15 | J10: HapMap r22 (build 36) | K10: No | L10: ProbABEL,R
A11: BHS | B11: European | C11: Illumina 610 Quad | D11: BeadStudio | E11: >95% | F11: > 10-6 | G11: 529526 | H11: 529526 | I11: MaCH | J11: HapMap r 22 CEU | K11: No | L11: ProbABEL, mach2qtl
A12: BioMe (MSSM) | B12: European American | C12: Illumina HumanOmniExpressExome-8 v1.0 | D12: zCall (GenomeStudio) | E12: ≥ 90% | F12: > 10-6 | G12: 906917 | H12: 768517 | I12: IMPUTE2 | J12: I000G v3 (March 2012) | K12: Yes | L12: SAS, Quicktest
A13: BioMe (MSSM) | B13: African American | C13: Illumina HumanOmniExpressExome-8 v1.0 | D13: zCall (GenomeStudio) | E13: ≥ 90% | F13: > 10-6 | G13: 906917 | H13: 768517 | I13: IMPUTE2 | J13: I000G v3 (March 2012) | K13: Yes | L13: SAS, Quicktest
A14: BioMe (MSSM) | B14: Hispanic / Latinos | C14: Illumina HumanOmniExpressExome-8 v1.0 | D14: zCall (GenomeStudio) | E14: ≥ 90% | F14: > 10-6 | G14: 906917 | H14: 768517 | I14: IMPUTE2 | J14: I000G v3 (March 2012) | K14: Yes | L14: SAS, Quicktest
A15: BLSA | B15: European | C15: Illumina 450K | D15: BeadStudio | E15: ≥ 99% | F15: > 10-6 | G15: 514027 | H15: 514027 | I15: MACH | J15: HapMap release22, build 36 | K15: No | L15: ProbABEL
A16: British 1958 birth cohort (B58C) | B16: European | C16: Illumina 550k_v1, 550k_v3, 610k (3 non-overlapping subsets) | D16: BeadStudio | E16: ≥ 95% | F16: > 10-4 | G16: 500521 | H16: 500521 | I16: MACH/Minimac | J16: HapMap r 21 CEU | K16: Yes, (MACH/Minimac) | L16: ProbABEL
A17: CHS | B17: European | C17: Illumina 370CNV BeadChip | D17: Illumina BeadStudio | E17: ≥ 97% | F17: > 10-5 | G17: 306655 | H17: 306655 | I17: BIMBAM v0.99 | J17: HapMap release22, build 36 | K17: Yes, (build 36, release 24) | L17: R
A18: CLHNS | B18: East Asian (Filipino) | C18: Affymetrix Genome-Wide Human SNP Array 5.0 | D18: Birdseed (version 2) | E18: ≥ 90% | F18: > 10-6 | G18: 352264 | H18: 352264 | I18: MACH v.1.0 | J18: HapMap r22 CHB+JPT+CEU | K18: No | L18: ProbABEL, mach2qtl
A19: COLAUS | B19: European | C19: Affymetrix 500k | D19: APT | E19: 0.9 | F19: > 10-7 | G19: 390631 | H19: 390631 | I19: IMPUTE | J19: HapMap r 21 CEU | K19: No | L19: Matlab
A20: CROATIA-Korcula | B20: European | C20: Illumina HumanHap370 CNV | D20: BeadStudio | E20: >98% | F20: > 10-6 | G20: 316730 | H20: 316730 | I20: MACH | J20: HapMap r 22 CEU | K20: No | L20: ProbABEL
A21: CROATIA-Vis | B21: European | C21: Illumina HumanHap300 | D21: BeadStudio | E21: >98% | F21: > 10-6 | G21: 308996 | H21: 308996 | I21: MACH | J21: HapMap r 22 CEU | K21: No | L21: ProbABEL
A22: DESIR | B22: European | C22: Illumina Human CNV370-Duo Array and Illumina HAP300 array | D22: BeadStudio | E22: ≥ 95% | F22: > 10-4 | G22: 291 609 | H22: 291 609 | I22: IMPUTE2 | J22: HapMap r 22 CEU | K22: No | L22: SNPtest
A23: EGCUT GWAS | B23: European | C23: Illumina OmniExpress | D23: Illumina BeadStudio | E23: 0.95 | F23: > 10-6 | G23: 611549 | H23: 611549 | I23: IMPUTE2 | J23: HapMap r 22 CEU | K23: No | L23: R, Quicktest
A24: EPIC-Norfolk | B24: European | C24: Affymetrix 500K | D24: BRLMM | E24: ≥ 90% | F24: > 10-6 | G24: 382036 | H24: 382036 | I24: IMPUTE | J24: HapMAP 21 CEU | K24: Yes | L24: Quicktest
A25: ERF | B25: European | C25: Illumina 318K, 370K, 610K, Affymetrix 250K | D25: Genome Studio & Beadstudio, BRLMM | E25: 0.95 | F25: > 10-6 | G25: 649956 | H25: 635956 | I25: MACH 1.0.16 | J25: HapMap release22, build 36 | K25: Yes, (build 36, rel 22 (IMPUTE)) | L25: GenABEL, ProbABEL
A26: FamHS | B26: European | C26: Illumina HumMap 550k, Human610-Quadv1, Human 1M-Duov3 | D26: BeadStudio | E26: 0.98 | F26: > 10-6 | G26: 2543887 | H26: 499558 | I26: MaCH | J26: HapMap r 22 CEU | K26: Yes | L26: SAS, R
A27: Fenland | B27: European | C27: Affymetrix SNP5.0 | D27: BRLMM | E27: 0.95 | F27: > 10-6 | G27: 360602 | H27: 360602 | I27: IMPUTE2 | J27: 1000GP Phase1 v3 | K27: Yes | L27: SNPtest, Quicktest
A28: FramHS | B28: European | C28: Affymetrix 500K Affymetrix 50K supplemental | D28: BRLMM | E28: >97% | F28: > 10-6 | G28: 378163 | H28: 378163 | I28: MACH v1.0.15 | J28: HapMap r 22 CEU | K28: Yes | L28: R
A29: FUSION | B29: European | C29: Illumina HumanHap300 | D29: BeadStudio | E29: >98% | F29: > 10-6 | G29: 315635 | H29: 315635 | I29: MaCH | J29: HapMap r 22 CEU | K29: No | L29: ProbABEL
A30: Gendian | B30: European | C30: Genome-Wide Human SNP Array 6.0 | D30: Affymetrix - birdseed, (algorithm: BRLMM) | E30: MAF>.1 & callrate<.9 MAF>.09 & MAF ≤.1 & callrate <.91 MAF>.08 & MAF ≤.09 & callrate<.92 MAF>.07 & MAF ≤.08 & callrate<.93 MAF>.06 & MAF ≤.07 & callrate<.94 MAF>.05 & MAF ≤.06 & callrate<.95 MAF>.04 & MAF ≤.05 & callrate<.96 MAF>.03 & MAF ≤.04 & callrate<.97 MAF>.02 & MAF ≤.03 & callrate<.98 MAF>.01 & MAF ≤.02 & callrate<.99 MAF ≤.01 & callrate <.99 | F30: > 10-6 | G30: 747402 | H30: 747402 | I30: Mach 1.0.18.c MiniMac 2012-10-09 | J30: GIANT ALL 1000G v3 ref panel GRCh build 37 | K30: Yes, (MaCH/ minimac, GIANT ALL 1000G v3 ref panel GRCh build 37) | L30: ProbAbel, R, Plink
A31: Generation Scotland | B31: European | C31: Illumina HumanOmniPlusExome | D31: BeadStudio | E31: >98% | F31: > 10-6 | G31: 706980 | H31: 706980 | I31: ShapeIt2 + IMPUTE2 | J31: 1000G (ALL) | K31: Yes, (IMPUTE2) | L31: ProbABEL
A32: GENOA | B32: European American | C32: Affymetrix 6.0 & Illumina 1M-Duo Bead Chip | D32: Birdseed and Genome Studio | E32: ≥ 95% | F32: NA | G32: Affymetrix: 596,941; Illumina: 804,154 | H32: Affymetrix: 596,941; Illumina: 804,154 | I32: MACH 1.0.16 | J32: HapMap (release 22) CEU | K32: No | L32: MMAP
A33: GOOD | B33: European | C33: Illumina 610 | D33: Beadstudio | E33: >98% | F33: > 10-6 | G33: 553191 | H33: 521160 | I33: MaCH | J33: HapMap CEU, release 22, build 36 | K33: Yes | L33: PLINK, R
A34: GOYA cases | B34: European | C34: Illumina 610K Quad | D34: GenomeStudio | E34: ≥ 95% | F34: > 10-7 | G34: 545349 | H34: 545349 | I34: Mach 1.0 | J34: HapMap r22 (build 36) | K34: No | L34: Quicktest
A35: GOYA controls | B35: European | C35: Illumina 610K Quad | D35: GenomeStudio | E35: ≥ 95% | F35: > 10-7 | G35: 545349 | H35: 545349 | I35: Mach 1.0 | J35: HapMap r22 (build 36) | K35: No | L35: Quicktest
A36: HERITAGE Family Study | B36: European | C36: Illumina 370CNV | D36: GenomeStudio | E36: ≥ 98% | F36: > 10-6 | G36: 324607 | H36: 324607 | I36: MaCH | J36: HapMap r 22 CEU | K36: No | L36: ProbABEL
A37: HRS | B37: European American | C37: Illumina Omni2.5 Beadchip | D37: BeadStudio | E37: 0.98 | F37: > 10-4 | G37: 1681327 | H37: 551936 | I37: MaCH | J37: HapMap r 22 CEU | K37: Yes, (MaCH) | L37: PLINK, ProbABEL
A38: HRS | B38: African American | C38: Illumina Omni2.5 Beadchip | D38: BeadStudio | E38: 0.98 | F38: > 10-4 | G38: 1681327 | H38: 909595 | I38: MaCH | J38: HapMap r 22 CEU+YRI | K38: No | L38: PLINK, ProbABEL
A39: HYPERGENES | B39: European | C39: Illumina 1M-Duo | D39: Genome-Studio | E39: ≥ 99% | F39: > 10-8 | G39: 882854 | H39: 882854 | I39: Minimac | J39: HapMap r 22 CEU | K39: No | L39: PLINK
A40: InCHIANTI | B40: European | C40: Illumina 450K | D40: BeadStudio | E40: ≥ 99% | F40: 10-4 | G40: 498838 | H40: 498838 | I40: MACH | J40: HapMap release22, build 36 | K40: No | L40: ProbABEL
A41: KORA3 | B41: European | C41: Affymetrix 500K | D41: BRLMM | E41: none | F41: none | G41: No | H41: 490032 | I41: MACH v1.0.9 | J41: HapMap r 22 CEU | K41: No | L41: ProbABEL, R
A42: KORA4 | B42: European | C42: Affymetrix 6.0 | D42: Birdseed | E42: none | F42: none | G42: 909622 | H42: 909622 | I42: IMPUTE v0.4.2 | J42: HapMap r 22 CEU | K42: No | L42: ProbABEL, R
A43: Lifelines | B43: European | C43: Illumina Cyto SNP12 v2 | D43: GenomeStudio | E43: >95% | F43: > 10-4 | G43: 257581 | H43: 257581 | I43: BEAGLE v3.3.2 | J43: HapMap r24 CEU (build 36) | K43: No | L43: PLINKv1.07
A44: LOLIPOP_EW610 | B44: European | C44: Illumina Human610 | D44: BeadStudio | E44: 0.95 | F44: > 10-6 | G44: 544620 | H44: 544620 | I44: IMPUTE2 | J44: HapMap r 22 CEU | K44: No | L44: Quicktest
A45: LOLIPOP_IA317 | B45: Indian Asian | C45: Illumina HumanHap300 | D45: BeadStudio | E45: 0.95 | F45: > 10-6 | G45: 307303 | H45: 307303 | I45: IMPUTE2 | J45: HapMap r 22 population combined | K45: No | L45: Quicktest
A46: LOLIPOP_IA610 | B46: Indian Asian | C46: Illumina Human610 | D46: BeadStudio | E46: 0.95 | F46: > 10-6 | G46: 544390 | H46: 544390 | I46: IMPUTE2 | J46: HapMap r 22 population combined | K46: No | L46: Quicktest
A47: LURIC | B47: European | C47: Affymetrix 6.0 | D47: Birdseed v2 | E47: ≥ 98% | F47: > 10-4 | G47: 686195 | H47: 686195 | I47: MaCH | J47: HapMap r 22 CEU | K47: No | L47: ProbABEL
A48: MESA | B48: European | C48: Affymetrix 6.0 | D48: Birdseed v2 | E48: >95% | F48: NA | G48: 854755 | H48: 854755 | I48: IMPUTE v2.1.0 | J48: HapMap r24 CEU | K48: No | L48: ProbABEL
A49: MrOS Sweden | B49: European | C49: Illumina 1M | D49: Beadstudio | E49: 0.97 | F49: > 10-4 | G49: 739477 | H49: 714543 | I49: Minimac | J49: HapMap CEU, release 22, build 36 | K49: No | L49: PLINK, R
A50: Netherlands Twin Register | B50: European | C50: Affymetrix 6.0 + affymetrix perlegen 5.0 + Illumina 370 + Illumina 660 + Illumina Omni Express 1 M | D50: Beadstudio | E50: >95% | F50: > 10-6 | G50: 311,567-932,824 | H50: 311567-932824 | I50: IMPUTE 2 | J50: Hapmap 2 build 36 release 24 CEU reference set | K50: No | L50: Quicktest
A51: NFBC66 | B51: European | C51: Illumina HumanCNV370DUO Analysis BeadChip | D51: Beadstudio | E51: ≥ 95%, MAF< 5%, call rate ≥ 99% | F51: ≥ 10-7 | G51: 324896 | H51: 324896 | I51: IMPUTE2 | J51: HapMap r 22 CEU | K51: No | L51: SNPTEST2, Quicktest
A52: NHS | B52: European | C52: Affymetrix 6.0 | D52: BeadStudio | E52: 0.95 | F52: > 10-6 | G52: 704409 | H52: 704409 | I52: MaCH | J52: HapMap r 22 CEU | K52: No | L52: ProbABEL, R
A53: ORCADES | B53: European | C53: Illumina HumanHap300 | D53: BeadStudio | E53: >98% | F53: > 10-6 | G53: 293687 | H53: 293687 | I53: MACH | J53: HapMap r 22 CEU | K53: No | L53: ProbABEL
A54: PIVUS | B54: European | C54: Human Omni Express and Metabochip | D54: GenCall | E54: 0.95 | F54: >10-6 | G54: 738879 | H54: 738879 | I54: IMPUTE2 | J54: HapMap r 22 CEU | K54: NA | L54: SNPTEST, Quicktest
A55: Prevend | B55: Euopean | C55: Illumina Cyto SNP12 v2 | D55: GenomeStudio | E55: >95% | F55: > 10-4 | G55: 232571 | H55: 232571 | I55: BEAGLE v3.3.2 | J55: phased CEU haplotypes, HapMap release 22 (build 36) | K55: No | L55: PLINK, ProbABEL
A56: PROSPER | B56: European | C56: Illumina 660K Quad | D56: Beadstudio | E56: ≥ 98% | F56: > 10-6 | G56: 557192 | H56: 557192 | I56: MACH 1.0.15 | J56: HapMap r 22 CEU | K56: No | L56: PROBABEL
A57: QFS | B57: European | C57: Illumina 610-Quad chip | D57: BeadStudio | E57: 0.95 | F57: > 10-4 | G57: 543713 | H57: 525406 | I57: MACH | J57: HapMap r 22 CEU | K57: No | L57: GWAF 2.0, R
A58: Rotterdam Study I | B58: European | C58: Version 3 Illumina Infinium II, HumanHap 550 SNP chip array | D58: BeadStudio | E58: >98 % | F58: > 10-6 | G58: 512349 | H58: 512349 | I58: MACH | J58: HapMap release22, build 36 | K58: No | L58: SPSS, ProbABEL, R
A59: Rotterdam Study II | B59: European | C59: Version 3 Illumina Infinium II, HumanHap 550 SNP chip array | D59: BeadStudio | E59: >98 % | F59: > 10-6 | G59: 466389 | H59: 466389 | I59: MACH | J59: HapMap release22, build 36 | K59: No | L59: SPSS, ProbABEL, R
A60: Rotterdam Study III | B60: European | C60: Version 3 Illumina Infinium II, HumanHap 550 SNP chip array | D60: BeadStudio | E60: >98 % | F60: > 10-6 | G60: 514073 | H60: 514073 | I60: MACH | J60: HapMap release22, build 36 | K60: No | L60: SPSS, ProbABEL, R
A61: SardiNIA | B61: European | C61: Affymetrix 10K, 500K, 6.0 | D61: BRLMM, Birdseed | E61: 0.95 | F61: ≥ 10-6 | G61: 759213 | H61: 731209 | I61: MACH | J61: HapMap r 22 CEU | K61: No | L61: ProbABEL, R
A62: SHIP | B62: European | C62: Affymetrix 6.0 | D62: Birdseed2 | E62: >92% | F62: NA | G62: 869224 | H62: 869224 | I62: IMPUTE v0.5.0 | J62: Hapmap r22 CEU | K62: No | L62: Quicktest
A63: THISEAS | B63: European | C63: Illumina OmniExpress | D63: Illuminus | E63: ≥98% | F63: > 10-6 | G63: 733202 | H63: NA | I63: NA | J63: NA | K63: No | L63: Plink, Quicktest
A64: TRAILS | B64: European | C64: Illumina Cyto SNP12 v2 | D64: GenomeStudio | E64: 0.95 | F64: > 10-4 | G64: 260127 | H64: 260127 | I64: IMPUTE2 | J64: HapMap r 22 CEU | K64: Yes | L64: Quicktest
A65: TwinsUK | B65: European | C65: Illumina 318K, 610K | D65: Illluminus | E65: MAF≥.05 & callrate <.97 MAF≥.01 & MAF <.05 & callrate<.99 | F65: > 10-6 | G65: Illumina 318K: 303,940, 610K: 553,487 | H65: Illumina 318K: 303,940, 610K: 553,487 | I65: IMPUTE2 | J65: HapMap r 22 CEU | K65: No | L65: Quicktest
A66: WGHS | B66: European | C66: Illumina Human Hap Duo 300 + | D66: BeadStudio | E66: 0.98 | F66: > 10-6 | G66: 339596 | H66: 333470 | I66: MaCH | J66: HapMap r 22 CEU | K66: Yes | L66: ProbABEL, R
A67: YFS | B67: European | C67: Illumina 670k custom | D67: Illuminus | E67: 0.95 | F67: > 10-6 | G67: 546674 | H67: 534047 | I67: MACH 1.0 | J67: HapMap release22, build 36 | K67: No | L67: ProbABEL
A69: METABOCHIP DATA
A70: Study | B70: Ancestry | C70: Genotyping | H70: Imputation | L70: Statistical Analysis Software
C71: Genotyping array | D71: Genotype calling software | E71: SNP QC | G71: No. of SNPs after QC | H71: No. of SNPs used for imputation | I71: Imputation Sofware | J71: Imputation reference panel (NCBI build) | K71: Imputed X chromosome data available? (software, reference)
E72: Call rate* | F72: p for HWE
A73: DESIR | B73: European | C73: Illumina Metabochip | D73: BeadStudio | E73: ≥ 95% | F73: > 10-4 | G73: 194763 | H73: NA | I73: NA | J73: NA | K73: No | L73: PLINK, SNPtest, Quicktest
A74: DR's EXTRA | B74: European | C74: Illumina Metabochip | D74: BeadStudio | E74: >98% | F74: > 10-6 | G74: 188072 | H74: NA | I74: NA | J74: NA | K74: No | L74: Quicktest
A75: EGCUT Metabochip | B75: European | C75: Illumina Metabochip | D75: BeadStudio | E75: 0.95 | F75: > 10-6 | G75: 138179 | H75: No | I75: No | J75: No | K75: No | L75: R, Quicktest
A76: Ely | B76: European | C76: Illumina Metabochip | D76: GeneCall | E76: 0.95 | F76: > 10-6 | G76: 144581 | H76: NA | I76: NA | J76: NA | K76: No | L76: PLINK, Quicktest
A77: EPIC-Norfolk | B77: European | C77: Illumina Metabochip | D77: GeneCall | E77: 0.95 | F77: > 10-6 | G77: 140943 | H77: NA | I77: NA | J77: NA | K77: No | L77: PLINK, Quicktest
A78: Fenland | B78: European | C78: Illumina Metabochip | D78: GeneCall | E78: 0.95 | F78: > 10-6 | G78: 149819 | H78: NA | I78: NA | J78: NA | K78: No | L78: PLINK, Quicktest
A79: FUSION2 | B79: European | C79: Illumina Metabochip | D79: BeadStudio | E79: >98% | F79: > 10-6 | G79: 188072 | H79: NA | I79: NA | J79: NA | K79: No | L79: Quicktest
A80: GLACIER | B80: European | C80: Illumina Metabochip | D80: Illuminus | E80: ≥ 95% | F80: > 10-5 | G80: 149782 | H80: NA | I80: NA | J80: NA | K80: No | L80: SAS, Quicktest
A81: GXE | B81: Jamaican | C81: Illumina Metabochip | D81: Birdseed | E81: ≥ 90% | F81: > 10-6 | G81: 195531 | H81: NA | I81: NA | J81: NA | K81: NA | L81: R, PLINK
A82: Health2006 | B82: European | C82: Illumina Metabochip | D82: GenomeStudio | E82: none | F82: none | G82: 196725 | H82: NA | I82: NA | J82: NA | K82: No | L82: PLINK
A83: HUNT | B83: European | C83: Illumina Metabochip | D83: BeadStudio | E83: >98% | F83: > 10-6 | G83: 188573 | H83: NA | I83: NA | J83: NA | K83: No | L83: Quicktest
A84: IMPROVE | B84: European | C84: Metabochip | D84: GeneCall | E84: ≥ 95% | F84: > 10-6 | G84: 185704 | H84: NA | I84: NA | J84: NA | K84: No | L84: PLINK
A85: Inter99 (I99) | B85: European | C85: Illumina Metabochip | D85: GenomeStudio | E85: none | F85: none | G85: 196725 | H85: NA | I85: NA | J85: NA | K85: No | L85: PLINK
A86: KORA S3 | B86: European | C86: Illumina Metabochip | D86: Genome Studio | E86: none | F86: none | G86: 185781 | H86: NA | I86: NA | J86: NA | K86: No | L86: ProbABEL, R
A87: KORA S4 | B87: European | C87: Illumina Metabochip | D87: Genome Studio | E87: none | F87: none | G87: 185781 | H87: NA | I87: NA | J87: NA | K87: No | L87: ProbABEL, R
A88: MEC | B88: African | C88: Illumina Metabochip | D88: GenomeStudio with the GenCall 2.0 algorithm | E88: ≥ 95% | F88: > 10-6 | G88: 196725 | H88: NA | I88: NA | J88: NA | K88: No | L88: PLINK
A89: METSIM | B89: European | C89: Illumina Metabochip | D89: BeadStudio | E89: >98% | F89: > 10-6 | G89: 188072 | H89: NA | I89: NA | J89: NA | K89: No | L89: Quicktest
A90: NSHD | B90: European | C90: Illumina Metabochip | D90: GeneCall | E90: 0.95 | F90: > 10-6 | G90: 147949 | H90: NA | I90: NA | J90: NA | K90: No | L90: PLINK, Quicktest
A91: SCARFSHEEP | B91: European | C91: Metabochip | D91: GeneCall | E91: ≥ 95% | F91: > 10-6 | G91: 185704 | H91: NA | I91: NA | J91: NA | K91: No | L91: PLINK
A92: SPT | B92: Jamaican | C92: Illumina Metabochip | D92: Birdseed | E92: ≥ 90% | F92: > 10-6 | G92: 195567 | H92: NA | I92: NA | J92: NA | K92: NA | L92: R, Plink
A93: WHI | B93: African | C93: Illumina Metabochip | D93: GenomeStudio with the GenCall 2.0 algorithm | E93: ≥ 95% | F93: > 10-6 | G93: 196725 | H93: NA | I93: NA | J93: NA | K93: No | L93: PLINK
A94: WHITEHALL | B94: European | C94: Illumina Metabochip | D94: GeneCall | E94: 0.95 | F94: > 10-6 | G94: 151534 | H94: NA | I94: NA | J94: NA | K94: No | L94: Plink, Quicktest
A95: VALIDATION DATA
A96: UKBB | B96: White British | C96: UK Biobank Axiom Array and UK BiLEVE array | D96: Affymetrix Power Tools | E96: NA | F96: NA | G96: NA | H96: NA | I96: NA | J96: NA | K96: NA | L96: STATA

Sheet ST3. Study Descriptives
A1: Supplementary Table 3. Study-specific descriptives for total sample from contributing studies. Abbreviations: BMI- body mass index, WHR- waist to hip ratio.
A2: GWAS Data
A3: Study | B3: Ancestry | C3: Groups | D3: N | E3: Age | G3: BMI (kg/m2) | I3: BMI Categories* | O3: Waist (cm) | Q3: WHR (ratio) | S3: Current Smoking Status
I4: Normal weight (18 to < 25 kg/m2) | K4: Overweight (25 to 30 kg/m2) | M4: Obese ( ≥ 30 kg/m2) | S4: Smoker | U4: Non-Smoker
E5: mean | F5: sd | G5: mean | H5: sd | I5: n | J5: % | K5: n | L5: % | M5: n | N5: % | O5: mean | P5: sd | Q5: mean | R5: sd | S5: n | T5: % | U5: n | V5: %
A6: AE | B6: EU | C6: Overall | D6: 627 | E6: 67.7 | F6: 8.84 | G6: 26.3 | H6: 3.65 | I6: 242 | J6: 38.6 | K6: 307 | L6: 49 | M6: 78 | N6: 12.4 | O6: NA | P6: NA | Q6: NA | R6: NA | S6: 228 | T6: 36.4 | U6: 397 | V6: 63.3
C7: women | D7: 190 | E7: 67.64 | F7: 9.63 | G7: 26.32 | H7: 4.69 | I7: 77 | J7: 12.3 | K7: 82 | L7: 13.1 | M7: 31 | N7: 4.9 | O7: NA | P7: NA | Q7: NA | R7: NA | S7: 80 | T7: 12.8 | U7: 110 | V7: 17.6
C8: men | D8: 435 | E8: 67.72 | F8: 8.5 | G8: 26.26 | H8: 3.19 | I8: 165 | J8: 26.3 | K8: 225 | L8: 35.9 | M8: 47 | N8: 7.5 | O8: NA | P8: NA | Q8: NA | R8: NA | S8: 148 | T8: 23.7 | U8: 287 | V8: 45.9
A9: AGES | B9: EU | C9: Overall | D9: 3214 | E9: 76.41 | F9: 5.45 | G9: 27.11 | H9: 4.43 | I9: 1008 | J9: 31.68814838 | K9: 1465 | L9: 31.68814838 | M9: 708 | N9: 22.25715184 | O9: 100.8 | P9: 12.18 | Q9: NA | R9: NA | S9: 409 | T9: 12.73 | U9: 2805 | V9: 87.27
C10: women | D10: 1863 | E10: 76.33 | F10: 5.55 | G10: 27.19 | H10: 4.85 | I10: 602 | J10: 32.78867102 | K10: 788 | L10: 32.78867102 | M10: 446 | N10: 24.291939 | O10: 99.54 | P10: 13.14 | Q10: NA | R10: NA | S10: 247 | T10: 13.26 | U10: 1616 | V10: 86.74
C11: men | D11: 1351 | E11: 76.52 | F11: 5.32 | G11: 26.99 | H11: 3.78 | I11: 406 | J11: 30.18587361 | K11: 677 | L11: 30.18587361 | M11: 262 | N11: 19.4795539 | O11: 102.54 | P11: 10.48 | Q11: NA | R11: NA | S11: 162 | T11: 11.99 | U11: 1189 | V11: 88.01
A12: ARIC | B12: AF | C12: Overall | D12: 2618 | E12: 53.31 | F12: 5.79 | G12: 29.67 | H12: 6.08 | I12: 547 | J12: 20.89 | K12: 1007 | L12: 38.46 | M12: 1064 | N12: 40.64 | O12: 99.3 | P12: 15.01 | Q12: 0.92 | R12: 0.08 | S12: 781 | T12: 29.8 | U12: 1837 | V12: 70.2
C13: women | D13: 1649 | E13: 53.18 | F13: 5.67 | G13: 30.66 | H13: 6.51 | I13: 290 | J13: 17.59 | K13: 581 | L13: 35.23 | M13: 778 | N13: 47.18 | O13: 100.17 | P13: 16.19 | Q13: 0.91 | R13: 0.08 | S13: 416 | T13: 25.23 | U13: 1233 | V13: 74.77
C14: men | D14: 969 | E14: 53.52 | F14: 5.99 | G14: 27.99 | H14: 4.82 | I14: 257 | J14: 26.52 | K14: 426 | L14: 43.96 | M14: 286 | N14: 29.51 | O14: 97.82 | P14: 12.64 | Q14: 0.94 | R14: 0.05 | S14: 365 | T14: 37.67 | U14: 604 | V14: 62.33
A15: ARIC | B15: EU | C15: Overall | D15: 7930 | E15: 54.27 | F15: 5.69 | G15: 27.02 | H15: 4.88 | I15: 2942 | J15: 37.1 | K15: 3179 | L15: 40.09 | M15: 1809 | N15: 22.81 | O15: 96.19 | P15: 13.39 | Q15: 0.93 | R15: 0.08 | S15: 1996 | T15: 25.17 | U15: 5934 | V15: 74.83
C16: women | D16: 4188 | E16: 53.93 | F16: 5.66 | G16: 26.62 | H16: 5.51 | I16: 2048 | J16: 46.3 | K16: 1343 | L16: 30.36 | M16: 1032 | N16: 23.33 | O16: 93.02 | P16: 14.86 | Q16: 0.89 | R16: 0.08 | S16: 1091 | T16: 26.05 | U16: 3097 | V16: 73.95
C17: men | D17: 3742 | E17: 53.66 | F17: 5.71 | G17: 27.48 | H17: 4.01 | I17: 1068 | J17: 26.84 | K17: 2020 | L17: 50.77 | M17: 891 | N17: 22.39 | O17: 99.73 | P17: 10.46 | Q17: 0.97 | R17: 0.05 | S17: 905 | T17: 24.18 | U17: 2837 | V17: 75.82
A18: AUSTWIN | B18: EU | C18: Overall | D18: 2166 | E18: 50.9 | F18: 15.31 | G18: 26.78 | H18: 5.06 | I18: 863 | J18: 39.8 | K18: 829 | L18: 38.3 | M18: 459 | N18: 21.2 | O18: NA | P18: NA | Q18: NA | R18: NA | S18: 448 | T18: 20.7 | U18: 1718 | V18: 79.3
A19: BHS | B19: EU | C19: women | D19: 645 | E19: 54.42 | F19: 16.83 | G19: 25.57 | H19: 4.42 | I19: 338 | J19: 52.4 | K19: 196 | L19: 30.39 | M19: 107 | N19: 16.59 | O19: 80.96 | P19: 11.55 | Q19: 0.8 | R19: 0.07 | S19: 55 | T19: 8.5 | U19: 590 | V19: 91.5
C20: men | D20: 413 | E20: 53.49 | F20: 16.92 | G20: 26.57 | H20: 3.66 | I20: 150 | J20: 36.3 | K20: 189 | L20: 45.7 | M20: 71 | N20: 17.2 | O20: 93.39 | P20: 10.47 | Q20: 0.93 | R20: 0.06 | S20: 54 | T20: 13.1 | U20: 359 | V20: 86.9
A21: BIOME | B21: AF | C21: Overall | D21: 3492 | E21: 51.86 | F21: 14.88 | G21: 30.44 | H21: 7.99 | I21: 862 | J21: 24.68 | K21: 1053 | L21: 30.15 | M21: 1528 | N21: 43.76 | O21: NA | P21: NA | Q21: NA | R21: NA | S21: 905 | T21: 25.92 | U21: 2587 | V21: 74.08
C22: women | D22: 2249 | E22: 52.21 | F22: 15.31 | G22: 31.53 | H22: 8.56 | I22: 485 | J22: 21.57 | K22: 605 | L22: 26.9 | M22: 1118 | N22: 49.71 | O22: NA | P22: NA | Q22: NA | R22: NA | S22: 478 | T22: 21.25 | U22: 1771 | V22: 78.75
C23: men | D23: 1243 | E23: 51.22 | F23: 14.06 | G23: 28.48 | H23: 6.37 | I23: 377 | J23: 30.33 | K23: 448 | L23: 36.04 | M23: 410 | N23: 32.98 | O23: NA | P23: NA | Q23: NA | R23: NA | S23: 427 | T23: 34.35 | U23: 816 | V23: 65.65
A24: BIOME | B24: EU | C24: Overall | D24: 2017 | E24: 67.76 | F24: 9.29 | G24: 26.91 | H24: 5.44 | I24: 775 | J24: 38.42 | K24: 742 | L24: 36.79 | M24: 479 | N24: 23.75 | O24: NA | P24: NA | Q24: NA | R24: NA | S24: 168 | T24: 8.33 | U24: 1849 | V24: 91.67
C25: women | D25: 968 | E25: 67.25 | F25: 9.09 | G25: 25.98 | H25: 5.72 | I25: 463 | J25: 47.83 | K25: 281 | L25: 29.03 | M25: 206 | N25: 21.28 | O25: NA | P25: NA | Q25: NA | R25: NA | S25: 55 | T25: 5.68 | U25: 913 | V25: 94.32
C26: men | D26: 1049 | E26: 68.23 | F26: 9.46 | G26: 27.77 | H26: 5.03 | I26: 312 | J26: 29.74 | K26: 461 | L26: 43.95 | M26: 273 | N26: 26.02 | O26: NA | P26: NA | Q26: NA | R26: NA | S26: 113 | T26: 10.77 | U26: 936 | V26: 89.23
A27: BIOME | B27: HS | C27: Overall | D27: 4708 | E27: 54.31 | F27: 16.09 | G27: 29.4 | H27: 6.64 | I27: 1206 | J27: 25.62 | K27: 1625 | L27: 34.52 | M27: 1842 | N27: 39.12 | O27: NA | P27: NA | Q27: NA | R27: NA | S27: 921 | T27: 19.56 | U27: 3787 | V27: 80.44
C28: women | D28: 2944 | E28: 54.21 | F28: 16.31 | G28: 29.73 | H28: 6.95 | I28: 758 | J28: 25.75 | K28: 922 | L28: 31.32 | M28: 1240 | N28: 42.12 | O28: NA | P28: NA | Q28: NA | R28: NA | S28: 475 | T28: 16.13 | U28: 2469 | V28: 83.87
C29: men | D29: 1764 | E29: 54.49 | F29: 15.73 | G29: 28.86 | H29: 6.04 | I29: 448 | J29: 25.4 | K29: 703 | L29: 39.85 | M29: 602 | N29: 34.13 | O29: NA | P29: NA | Q29: NA | R29: NA | S29: 446 | T29: 25.28 | U29: 1318 | V29: 74.72
A30: BLSA | B30: EU | C30: women | D30: 381 | E30: 66.5 | F30: 17.15 | G30: 25.93 | H30: 4.83 | I30: 196 | J30: 51.44 | K30: 113 | L30: 29.66 | M30: 72 | N30: 18.9 | O30: 84.45 | P30: 11.65 | Q30: 0.819 | R30: 0.074 | S30: 9 | T30: 2.36 | U30: 372 | V30: 97.64
C31: men | D31: 461 | E31: 71.3 | F31: 15.72 | G31: 27.55 | H31: 4.5 | I31: 142 | J31: 30.8 | K31: 205 | L31: 44.47 | M31: 114 | N31: 24.73 | O31: 98.56 | P31: 12.01 | Q31: 0.95 | R31: 0.065 | S31: 20 | T31: 4.34 | U31: 441 | V31: 95.66
A32: B58C | B32: EU | C32: women | D32: 3255 | E32: 45.16 | F32: 0.39 | G32: 26.92 | H32: 5.53 | I32: 1426 | J32: 43.8 | K32: 1063 | L32: 32.7 | M32: 751 | N32: 23 | O32: 85.32 | P32: 12.61 | Q32: 0.81 | R32: 0.06 | S32: 809 | T32: 24.9 | U32: 2446 | V32: 75.2
C33: men | D33: 3226 | E33: 45.17 | F33: 0.38 | G33: 27.88 | H33: 4.29 | I33: 791 | J33: 24.5 | K33: 1594 | L33: 49.4 | M33: 834 | N33: 25.9 | O33: 98.62 | P33: 11.11 | Q33: 0.93 | R33: 0.06 | S33: 732 | T33: 22.7 | U33: 2494 | V33: 77.3
A34: CHS | B34: EU | C34: women | D34: 1885 | E34: 71.89 | F34: 5.15 | G34: 26.48 | H34: 4.77 | I34: 808 | J34: 42.86 | K34: 713 | L34: 37.82 | M34: 364 | N34: 19.31 | O34: 90.87 | P34: 13.43 | Q34: 0.89 | R34: 0.094 | S34: 229 | T34: 12.15 | U34: 1656 | V34: 87.85
C35: men | D35: 1230 | E35: 72.95 | F35: 5.59 | G35: 26.41 | H35: 3.49 | I35: 445 | J35: 36.18 | K35: 604 | L35: 49.11 | M35: 181 | N35: 14.72 | O35: 97.65 | P35: 9.71 | Q35: 0.96 | R35: 0.058 | S35: 119 | T35: 9.67 | U35: 1111 | V35: 90.33
A36: CLHNS | B36: AS | C36: women | D36: 1793 | E36: 48.45 | F36: 6.1 | G36: 24.31 | H36: 4.37 | I36: 1029 | J36: 57.39 | K36: 581 | L36: 32.4 | M36: 183 | N36: 10.21 | O36: 81.1 | P36: 10.88 | Q36: 0.88 | R36: 0.05 | S36: 267 | T36: 14.89 | U36: 1526 | V36: 85.11
A37: COLAUS | B37: EU | C37: women | D37: 2875 | E37: 53.894 | F37: 10.7156 | G37: 25.1645 | H37: 4.8979 | I37: 1636 | J37: 56.90434783 | K37: 820 | L37: 28.52173913 | M37: 419 | N37: 14.57391304 | O37: 83.523 | P37: 12.4678 | Q37: 0.8274 | R37: 0.0684 | S37: 699 | T37: 24.31 | U37: 2176 | V37: 75.69
C38: men | D38: 2560 | E38: 52.938 | F38: 10.7699 | G38: 26.6263 | H38: 4.0151 | I38: 950 | J38: 37.109375 | K38: 1170 | L38: 45.703125 | M38: 440 | N38: 17.1875 | O38: 95.9289 | P38: 11.2368 | Q38: 0.93 | R38: 0.0616 | S38: 734 | T38: 28.67 | U38: 1826 | V38: 71.33
A39: CROATIA-KORCULA | B39: EU | C39: Overall | D39: 898 | E39: 56.27 | F39: 13,94 | G39: 27.96 | H39: 4.14 | I39: 206 | J39: 23.41 | K39: 417 | L39: 47.39 | M39: 257 | N39: 29.2 | O39: 94.19 | P39: 12.16 | Q39: 0.9 | R39: 0.09 | S39: 203 | T39: 22.91 | U39: 683 | V39: 77.09
C40: women | D40: 573 | E40: 55.54 | F40: 13,71 | G40: 27.52 | H40: 4.35 | I40: 165 | J40: 29.26 | K40: 250 | L40: 44.33 | M40: 149 | N40: 26.42 | O40: 90.85 | P40: 11.91 | Q40: 0.87 | R40: 0.08 | S40: 140 | T40: 24.78 | U40: 425 | V40: 75.22
C41: men | D41: 325 | E41: 57.55 | F41: 14,27 | G41: 28.76 | H41: 3.6 | I41: 41 | J41: 12.97 | K41: 167 | L41: 52.85 | M41: 108 | N41: 34.18 | O41: 100.12 | P41: 10.18 | Q41: 0.96 | R41: 0.07 | S41: 63 | T41: 19.63 | U41: 258 | V41: 80.37
A42: CROTIA-VIS | B42: EU | C42: Overall | D42: 924 | E42: 56.36 | F42: 15.54 | G42: 27.32 | H42: 4.27 | I42: 271 | J42: 29.88 | K42: 396 | L42: 43.66 | M42: 240 | N42: 26.46 | O42: 95.84 | P42: 11.79 | Q42: 0.94 | R42: 0.08 | S42: 255 | T42: 27.87 | U42: 660 | V42: 72.13
C43: women | D43: 536 | E43: 56.72 | F43: 16 | G43: 27.19 | H43: 4.65 | I43: 180 | J43: 34.42 | K43: 194 | L43: 37.09 | M43: 149 | N43: 28.49 | O43: 94.14 | P43: 12.74 | Q43: 0.91 | R43: 0.08 | S43: 136 | T43: 25.71 | U43: 393 | V43: 74.29
C44: men | D44: 388 | E44: 55.88 | F44: 14.9 | G44: 27.49 | H44: 3.69 | I44: 91 | J44: 23.7 | K44: 202 | L44: 52.6 | M44: 91 | N44: 23.7 | O44: 98.16 | P44: 9.91 | Q44: 0.97 | R44: 0.06 | S44: 119 | T44: 30.83 | U44: 267 | V44: 69.17
A45: DESIR | B45: EU | C45: Overall | D45: 715 | E45: 49.93 | F45: 8.07 | G45: 21.81 | H45: 1.87 | I45: 715 | J45: 100 | K45: 0 | L45: 0 | M45: 0 | N45: 0 | O45: 74.26 | P45: 8.22 | Q45: 0.8 | R45: 0.07 | S45: 68 | T45: 9.51 | U45: 647 | V45: 90.49
C46: women | D46: 537 | E46: 49.02 | F46: 8.56 | G46: 21.36 | H46: 1.85 | I46: 537 | J46: 100 | K46: 0 | L46: 0 | M46: 0 | N46: 0 | O46: 70.85 | P46: 5.8 | Q46: 0.76 | R46: 0.05 | S46: 31 | T46: 5.77 | U46: 506 | V46: 94.23
C47: men | D47: 178 | E47: 52.65 | F47: 5.59 | G47: 23.15 | H47: 1.16 | I47: 178 | J47: 100 | K47: 0 | L47: 0 | M47: 0 | N47: 0 | O47: 84.56 | P47: 5.38 | Q47: 0.89 | R47: 0.04 | S47: 37 | T47: 20.79 | U47: 141 | V47: 79.21
A48: EGCUT | B48: EU | C48: women | D48: 1083 | E48: 65.99 | F48: 21.42 | G48: 27.32 | H48: 5.59 | I48: 402 | J48: 37.15 | K48: 373 | L48: 34.47 | M48: 307 | N48: 28.37 | O48: 88.63 | P48: 14.14 | Q48: 0.85 | R48: 0.09 | S48: 125 | T48: 11.54 | U48: 958 | V48: 88.46
C49: men | D49: 976 | E49: 56.53 | F49: 19.06 | G49: 26.95 | H49: 4.82 | I49: 367 | J49: 37.64 | K49: 394 | L49: 40.41 | M49: 214 | N49: 21.95 | O49: 96.31 | P49: 13.75 | Q49: 0.94 | R49: 0.09 | S49: 338 | T49: 34.63 | U49: 638 | V49: 65.37
A50: EPIC-Norfolk | B50: EU | C50: women | D50: 1285 | E50: 58.75 | F50: 9 | G50: 26.19 | H50: 4.39 | I50: 569 | J50: 44.38 | K50: 489 | L50: 38.14 | M50: 224 | N50: 17.47 | O50: 81.94 | P50: 10.77 | Q50: 0.79 | R50: 0.06 | S50: 130 | T50: 10.25 | U50: 1138 | V50: 89.75
C51: men | D51: 1132 | E51: 59.81 | F51: 9.03 | G51: 26.62 | H51: 3.21 | I51: 347 | J51: 30.68 | K51: 626 | L51: 55.35 | M51: 158 | N51: 13.97 | O51: 95.81 | P51: 9.45 | Q51: 0.93 | R51: 0.06 | S51: 124 | T51: 11.04 | U51: 999 | V51: 88.96
A52: ERF | B52: EU | C52: women | D52: 1316 | E52: 47.5 | F52: 14.42 | G52: 26.4 | H52: 4.96 | I52: 563 | J52: 42.8 | K52: 477 | L52: 36.2 | M52: 263 | N52: 20 | O52: 81.47 | P52: 12.12 | Q52: 0.8 | R52: 0.08 | S52: 591 | T52: 44.9 | U52: 722 | V52: 55.1
C53: men | D53: 1009 | E53: 48.43 | F53: 14.26 | G53: 27.1 | H53: 3.96 | I53: 297 | J53: 29.4 | K53: 508 | L53: 50.4 | M53: 200 | N53: 19.8 | O53: 93.61 | P53: 11.43 | Q53: 0.94 | R53: 0.79 | S53: 329 | T53: 32.6 | U53: 680 | V53: 67.4
A54: FAMHS | B54: EU | C54: Overall | D54: 3663 | E54: 52.2 | F54: 13.64 | G54: 27.75 | H54: 5.49 | I54: 1241 | J54: 34 | K54: 1371 | L54: 37.56 | M54: 1038 | N54: 28.44 | O54: 97.65 | P54: 15.31 | Q54: 0.92, | R54: 0.09 | S54: 525 | T54: 14.37 | U54: 3138 | V54: 85.67
A55: FENLAND | B55: EU | C55: women | D55: 742 | E55: 45.43 | F55: 7.21 | G55: 26.7 | H55: 5.5 | I55: 338 | J55: 45.6 | K55: 237 | L55: 31.9 | M55: 167 | N55: 22.5 | O55: 87.03 | P55: 12.93 | Q55: 0.84 | R55: 0.06 | S55: 75 | T55: 10.1 | U55: 667 | V55: 89.9
C56: men | D56: 565 | E56: 44.74 | F56: 7.36 | G56: 27.57 | H56: 3.93 | I56: 147 | J56: 26 | K56: 297 | L56: 52.6 | M56: 121 | N56: 21.4 | O56: 98.72 | P56: 11.78 | Q56: 0.94 | R56: 0.08 | S56: 65 | T56: 11.5 | U56: 500 | V56: 88.5
A57: FRAMINGHAM HEART STUDY (BMI) | B57: EU | C57: Overall | D57: 8354 | E57: 37.75 | F57: 9.35 | G57: 25.8 | H57: 4.92 | I57: 4090 | J57: 49.5 | K57: 2829 | L57: 34.24 | M57: 1344 | N57: 16.27 | O57: 93.04 | P57: 15.15 | Q57: 0.88 | R57: 0.1 | S57: 2507 | T57: 30.01 | U57: 5847 | V57: 69.99
C58: women | D58: 4518 | E58: 37.6 | F58: 9.23 | G58: 24.82 | H58: 5.25 | I58: 2831 | J58: 63.65 | K58: 1003 | L58: 22.55 | M58: 614 | N58: 13.8 | O58: 88.38 | P58: 15.69 | Q58: 0.81 | R58: 0.07 | S58: 1320 | T58: 29.22 | U58: 3198 | V58: 70.78
C59: men | D59: 3836 | E59: 37.93 | F59: 9.5 | G59: 26.95 | H59: 4.23 | I59: 1259 | J59: 33 | K59: 1826 | L59: 47.86 | M59: 730 | N59: 19.13 | O59: 98.3 | P59: 12.6 | Q59: 0.96 | R59: 0.06 | S59: 1187 | T59: 30.94 | U59: 2649 | V59: 69.06
A60: FRAMINGHAM HEART STUDY (WC) | B60: EU | C60: Overall | D60: 7100 | E60: 42.23 | F60: 10.87 | G60: 26.85 | H60: 5.22 | I60: 3342 | J60: 47.56 | K60: 2454 | L60: 34.92 | M60: 1231 | N60: 17.52 | O60: 91.38 | P60: 14.95 | Q60: 0.88 | R60: 0.1 | S60: 1380 | T60: 19.44 | U60: 5720 | V60: 80.56
C61: women | D61: 3745 | E61: 45.04 | F61: 10.78 | G61: 26.01 | H61: 5.82 | I61: 2318 | J61: 62.8 | K61: 824 | L61: 22.32 | M61: 549 | N61: 14.87 | O61: 85.48 | P61: 15.11 | Q61: 0.81 | R61: 0.07 | S61: 713 | T61: 19.04 | U61: 3032 | V61: 80.96
C62: men | D62: 3355 | E62: 45.43 | F62: 10.96 | G62: 27.78 | H62: 4.28 | I62: 1024 | J62: 30.7 | K62: 1630 | L62: 48.86 | M62: 682 | N62: 20.44 | O62: 97.97 | P62: 11.66 | Q62: 0.96 | R62: 0.06 | S62: 667 | T62: 19.88 | U62: 2688 | V62: 80.12
A63: FRAMINGHAM HEART STUDY (WHR) | B63: EU | C63: Overall | D63: 3255 | E63: 51.2 | F63: 9.93 | G63: 26.82 | H63: 4.87 | I63: 1770 | J63: 55.12 | K63: 1081 | L63: 33.67 | M63: 360 | N63: 11.21 | O63: 89.43 | P63: 14.48 | Q63: 0.88 | R63: 0.1 | S63: 777 | T63: 23.87 | U63: 2478 | V63: 76.13
C64: women | D64: 1707 | E64: 51.03 | F64: 9.79 | G64: 26.08 | H64: 5.54 | I64: 1221 | J64: 72.72 | K64: 320 | L64: 19.06 | M64: 138 | N64: 8.22 | O64: 82.04 | P64: 13.63 | Q64: 0.81 | R64: 0.07 | S64: 409 | T64: 23.96 | U64: 1298 | V64: 76.04
C65: men | D65: 1548 | E65: 51.38 | F65: 10.09 | G65: 27.62 | H65: 3.85 | I65: 549 | J65: 35.84 | K65: 761 | L65: 49.67 | M65: 222 | N65: 14.49 | O65: 97.58 | P65: 10.44 | Q65: 0.96 | R65: 0.06 | S65: 368 | T65: 23.77 | U65: 1180 | V65: 76.23
A66: FUSION-controls | B66: EU | C66: women | D66: 47 | E66: 60.82 | F66: 7.48 | G66: 26.98 | H66: 4 | I66: 17 | J66: 36.2 | K66: 21 | L66: 44.7 | M66: 9 | N66: 19.1 | O66: 86.63 | P66: 10.44 | Q66: 0.83 | R66: 0.058 | S66: 30 | T66: 63.83 | U66: 17 | V66: 36.17
C67: men | D67: 60 | E67: 68.15 | F67: 7.34 | G67: 27.2 | H67: 3.72 | I67: 19 | J67: 31.7 | K67: 30 | L67: 50 | M67: 11 | N67: 18.3 | O67: 98.29 | P67: 9.96 | Q67: 0.95 | R67: 0.058 | S67: 24 | T67: 40 | U67: 36 | V67: 60
A68: FUSION-T2D cases | C68: women | D68: 63 | E68: 62.16 | F68: 7.82 | G68: 31.76 | H68: 4.92 | I68: 5 | J68: 7.9 | K68: 17 | L68: 27 | M68: 41 | N68: 65.1 | O68: 101.88 | P68: 13.18 | Q68: 0.9 | R68: 0.061 | S68: 25 | T68: 39.7 | U68: 38 | V68: 60.3
C69: men | D69: 261 | E69: 62.85 | F69: 7.15 | G69: 29.31 | H69: 4.07 | I69: 33 | J69: 12.6 | K69: 121 | L69: 46.4 | M69: 107 | N69: 41 | O69: 104.75 | P69: 10.93 | Q69: 0.98 | R69: 0.065 | S69: 55 | T69: 21.1 | U69: 206 | V69: 78.9
A70: GENDIAN | B70: EU | C70: Overall | D70: 449 | E70: 65.01 | F70: 10.37 | G70: 31.59 | H70: 5.87 | I70: 39 | J70: 8.69 | K70: 170 | L70: 37.86 | M70: 240 | N70: 53.45 | O70: 111.14 | P70: 15.04 | Q70: 1 | R70: 0.12 | S70: 47 | T70: 10.47 | U70: 402 | V70: 89.53
C71: women | D71: 212 | E71: 66.66 | F71: 10.54 | G71: 32.3 | H71: 6.15 | I71: 15 | J71: 7.08 | K71: 74 | L71: 34.91 | M71: 123 | N71: 58.02 | O71: 110.31 | P71: 15.74 | Q71: 0.96 | R71: 0.13 | S71: 16 | T71: 7.55 | U71: 196 | V71: 92.45
C72: men | D72: 237 | E72: 63.53 | F72: 10 | G72: 30.96 | H72: 5.54 | I72: 24 | J72: 10.13 | K72: 96 | L72: 40.51 | M72: 117 | N72: 49.37 | O72: 111.89 | P72: 14.37 | Q72: 1.03 | R72: 0.11 | S72: 31 | T72: 13.08 | U72: 206 | V72: 86.92
A73: GENERATION SCOTLAND | B73: EU | C73: Overall | D73: 9852 | E73: 52.21 | F73: 13.63 | G73: 27.05 | H73: 5.11 | I73: 2447 | J73: 36.57 | K73: 2706 | L73: 40.44 | M73: 1539 | N73: 23 | O73: 90.3 | P73: 13.84 | Q73: 0.87 | R73: 0.09 | S73: 1543 | T73: 15.86 | U73: 8186 | V73: 84.14
C74: women | D74: 5782 | E74: 51.92 | F74: 13.52 | G74: 26.86 | H74: 5.59 | I74: 1632 | J74: 41.33 | K74: 1402 | L74: 35.5 | M74: 915 | N74: 23.17 | O74: 86.19 | P74: 13.65 | Q74: 0.83 | R74: 0.09 | S74: 855 | T74: 14.97 | U74: 4858 | V74: 85.03
C75: men | D75: 4070 | E75: 52.62 | F75: 13.78 | G75: 27.32 | H75: 4.29 | I75: 815 | J75: 29.71 | K75: 1304 | L75: 47.54 | M75: 624 | N75: 22.75 | O75: 96.24 | P75: 11.82 | Q75: 0.93 | R75: 0.07 | S75: 688 | T75: 17.13 | U75: 3328 | V75: 82.87
A76: GENOA | B76: EU | C76: Overall | D76: 1434 | E76: 55.31 | F76: 10.81 | G76: 30.41 | H76: 6.35 | I76: 264 | J76: 18.41 | K76: 521 | L76: 36.33 | M76: 649 | N76: 45.26 | O76: 100.09 | P76: 15.64 | Q76: 0.91 | R76: 0.09 | S76: 181 | T76: 12.62 | U76: 1253 | V76: 87.38
C77: women | D77: 792 | E77: 55.04 | F77: 10.82 | G77: 30.56 | H77: 7.2 | I77: 190 | J77: 23.99 | K77: 233 | L77: 29.42 | M77: 369 | N77: 46.59 | O77: 96.27 | P77: 17.16 | Q77: 0.86 | R77: 0.08 | S77: 92 | T77: 11.62 | U77: 700 | V77: 88.38
C78: men | D78: 642 | E78: 55.63 | F78: 10.79 | G78: 30.21 | H78: 5.12 | I78: 74 | J78: 11.53 | K78: 288 | L78: 44.86 | M78: 280 | N78: 43.61 | O78: 104.8 | P78: 11.96 | Q78: 0.97 | R78: 0.06 | S78: 89 | T78: 13.86 | U78: 553 | V78: 86.14
A79: GOOD | B79: EU | C79: men | D79: 731 | E79: 24.1 | F79: 0.6 | G79: 23.6 | H79: 3.4 | I79: 535 | J79: 73.2 | K79: 148 | L79: 20.2 | M79: 32 | N79: 4.4 | O79: 84.4 | P79: 8.1 | Q79: 0.85 | R79: 0.04 | S79: 48 | T79: 6.6 | U79: 683 | V79: 93.4
A80: GOYA cases | B80: EU | C80: men | D80: 671 | E80: 43 | F80: 6.23 | G80: 35.61 | H80: 5.63 | I80: 5 | J80: 0.74 | K80: 99 | L80: 14.75 | M80: 567 | N80: 84.5 | O80: 116.9 | P80: 14.07 | Q80: 1.019 | R80: 0.088 | S80: 353 | T80: 52.6 | U80: 318 | V80: 47.39
A81: GOYA controls | C81: men | D81: 790 | E81: 47.76 | F81: 8.55 | G81: 26.12 | H81: 3.6 | I81: 315 | J81: 39.92 | K81: 372 | L81: 47.14 | M81: 102 | N81: 12.92 | O81: 93.48 | P81: 10.52 | Q81: 0.931 | R81: 0.068 | S81: 396 | T81: 50.13 | U81: 393 | V81: 49.75
A82: HERITAGE | B82: EU | C82: Overall | D82: 499 | E82: 35.84 | F82: 14.56 | G82: 25.86 | H82: 4.96 | I82: 247 | J82: 49.5 | K82: 155 | L82: 31.1 | M82: 97 | N82: 19.4 | O82: 90.44 | P82: 14.89 | Q82: 0.88 | R82: 0.08 | S82: 75 | T82: 15 | U82: 424 | V82: 85
C83: women | D83: 255 | E83: 35.12 | F83: 14.14 | G83: 25.04 | H83: 4.89 | I83: 146 | J83: 57.2 | K83: 70 | L83: 27.4 | M83: 39 | N83: 15.3 | O83: 86.22 | P83: 14.53 | Q83: 0.84 | R83: 0.08 | S83: 41 | T83: 16.1 | U83: 214 | V83: 83.9
C84: men | D84: 244 | E84: 36.59 | F84: 14.96 | G84: 26.71 | H84: 4.9 | I84: 101 | J84: 41.4 | K84: 85 | L84: 34.8 | M84: 58 | N84: 23.8 | O84: 94.84 | P84: 13.98 | Q84: 0.92 | R84: 0.07 | S84: 34 | T84: 13.9 | U84: 210 | V84: 86.1
A85: HRS | B85: AF | C85: women | D85: 871 | E85: 66.23 | F85: 10.43 | G85: 31.61 | H85: 6.97 | I85: 143 | J85: 16.9 | K85: 227 | L85: 26.1 | M85: 497 | N85: 57.1 | O85: 101.99 | P85: 15.31 | Q85: NA | R85: NA | S85: 149 | T85: 17.1 | U85: 722 | V85: 82.9
C86: men | D86: 494 | E86: 67.03 | F86: 9.69 | G86: 28.78 | H86: 5.38 | I86: 129 | J86: 26.1 | K86: 174 | L86: 35.2 | M86: 191 | N86: 38.7 | O86: 102.48 | P86: 13.27 | Q86: NA | R86: NA | S86: 111 | T86: 22.5 | U86: 383 | V86: 77.5
A87: HRS | B87: EU | C87: women | D87: 4727 | E87: 68.25 | F87: 10.78 | G87: 28.65 | H87: 6.25 | I87: 1483 | J87: 64.7 | K87: 1548 | L87: 32.8 | M87: 1696 | N87: 35.9 | O87: 95.95 | P87: 15.45 | Q87: NA | R87: NA | S87: 603 | T87: 12.8 | U87: 4124 | V87: 87.2
C88: men | D88: 3415 | E88: 68.93 | F88: 9.76 | G88: 29.12 | H88: 4.93 | I88: 679 | J88: 19.9 | K88: 1445 | L88: 42.3 | M88: 1291 | N88: 37.8 | O88: 105.1 | P88: 11.92 | Q88: NA | R88: NA | S88: 440 | T88: 12.9 | U88: 2975 | V88: 87.1
A89: HYPERGENES-Cases | B89: EU | C89: women | D89: 522 | E89: 47.2 | F89: 9.2 | G89: 27 | H89: 5.1 | I89: 204 | J89: 39.1 | K89: 203 | L89: 39 | M89: 114 | N89: 21.9 | O89: 89.59 | P89: 13.25 | Q89: 0.83 | R89: 0.06 | S89: 159 | T89: 30.5 | U89: 363 | V89: 69.5
C90: men | D90: 993 | E90: 47.55 | F90: 9.6 | G90: 27.43 | H90: 3.6 | I90: 223 | J90: 22.5 | K90: 584 | L90: 58.9 | M90: 185 | N90: 18.6 | O90: 97.37 | P90: 11.42 | Q90: 0.93 | R90: 0.07 | S90: 282 | T90: 28.4 | U90: 711 | V90: 71.6
A91: HYPERGENES-Controls | C91: women | D91: 563 | E91: 60.6 | F91: 12 | G91: 25 | H91: 3.8 | I91: 306 | J91: 55 | K91: 198 | L91: 35.5 | M91: 53 | N91: 9.5 | O91: 84.84 | P91: 11.15 | Q91: 0.92 | R91: 0.06 | S91: 121 | T91: 21.5 | U91: 442 | V91: 78.5
C92: men | D92: 802 | E92: 58.7 | F92: 11.1 | G92: 26 | H92: 3.3 | I92: 320 | J92: 40 | K92: 388 | L92: 48.5 | M92: 92 | N92: 11.5 | O92: 95.09 | P92: 11.25 | Q92: 0.82 | R92: 0.08 | S92: 269 | T92: 33.5 | U92: 533 | V92: 66.5
A93: lnCHIANTI | B93: EU | C93: women | D93: 614 | E93: 68.13 | F93: 15.11 | G93: 27.35 | H93: 4.68 | I93: 210 | J93: 34.2 | K93: 241 | L93: 39.25 | M93: 163 | N93: 26.55 | O93: 88.82 | P93: 11.81 | Q93: 0.872 | R93: 0.072 | S93: 83 | T93: 13.52 | U93: 531 | V93: 86.48
C94: men | D94: 498 | E94: 66.72 | F94: 15.14 | G94: 27.06 | H94: 3.39 | I94: 148 | J94: 29.7 | K94: 247 | L94: 49.6 | M94: 103 | N94: 20.68 | O94: 94.54 | P94: 9.34 | Q94: 0.952 | R94: 0.0559 | S94: 126 | T94: 25.3 | U94: 372 | V94: 74.7
A95: KORA S3 | B95: EU | C95: women | D95: 829 | E95: 52.13 | F95: 10.05 | G95: 26.98 | H95: 4.64 | I95: 307 | J95: 37 | K95: 334 | L95: 40.3 | M95: 188 | N95: 22.7 | O95: 83.75 | P95: 11.03 | Q95: 0.8 | R95: 0.06 | S95: 698 | T95: 84.2 | U95: 131 | V95: 15.8
C96: men | D96: 812 | E96: 52.95 | F96: 10.1 | G96: 27.7 | H96: 3.45 | I96: 160 | J96: 19.7 | K96: 484 | L96: 59.6 | M96: 168 | N96: 20.7 | O96: 97.07 | P96: 9.72 | Q96: 0.93 | R96: 0.06 | S96: 650 | T96: 80 | U96: 162 | V96: 20
A97: KORA S4 | B97: EU | C97: women | D97: 928 | E97: 53.62 | F97: 8.79 | G97: 27.49 | H97: 5.07 | I97: 335 | J97: 36.1 | K97: 338 | L97: 36.4 | M97: 254 | N97: 27.4 | O97: 86.64 | P97: 12.16 | Q97: 0.82 | R97: 0.06 | S97: 767 | T97: 82.7 | U97: 161 | V97: 17.3
C98: men | D98: 883 | E98: 54.22 | F98: 8.92 | G98: 27.99 | H98: 3.91 | I98: 167 | J98: 18.9 | K98: 493 | L98: 55.8 | M98: 223 | N98: 25.3 | O98: 99.01 | P98: 10.22 | Q98: 0.94 | R98: 0.06 | S98: 677 | T98: 76.7 | U98: 206 | V98: 23.3
A99: LIFELINES | B99: EU | C99: women | D99: 4605 | E99: 47.1 | F99: 11.06 | G99: 25.99 | H99: 4.7 | I99: 2200 | J99: 48.1 | K99: 1612 | L99: 35.3 | M99: 760 | N99: 16.6 | O99: 87.85 | P99: 12.26 | Q99: 0.87 | R99: 0.07 | S99: 1044 | T99: 23 | U99: 3496 | V99: 77
C100: men | D100: 3452 | E100: 47.58 | F100: 11.32 | G100: 26.66 | H100: 3.66 | I100: 1172 | J100: 34 | K100: 1728 | L100: 50.2 | M100: 543 | N100: 15.8 | O100: 96.35 | P100: 10.71 | Q100: 0.96 | R100: 0.07 | S100: 930 | T100: 27.2 | U100: 2486 | V100: 72.8
A101: LOLIPOP_EW610 | B101: EU | C101: women | D101: 249 | E101: 55.66 | F101: 9.7 | G101: 26.65 | H101: 5.1 | I101: 110 | J101: 44.2 | K101: 86 | L101: 34.5 | M101: 53 | N101: 21.3 | O101: 88.32 | P101: 13.6 | Q101: 0.86 | R101: 0.09 | S101: 29 | T101: 11.6 | U101: 220 | V101: 88.4
C102: men | D102: 678 | E102: 56.07 | F102: 9.84 | G102: 27.8 | H102: 4.44 | I102: 186 | J102: 27.4 | K102: 325 | L102: 47.9 | M102: 167 | N102: 24.6 | O102: 98.42 | P102: 11.61 | Q102: 0.94 | R102: 0.06 | S102: 125 | T102: 18.4 | U102: 553 | V102: 81.6
A103: LOLIPOP_IA317 | B103: AS | C103: men | D103: 2121 | E103: 48.26 | F103: 10.47 | G103: 26.83 | H103: 4.31 | I103: 735 | J103: 34.7 | K103: 977 | L103: 46.1 | M103: 409 | N103: 19.3 | O103: 97.07 | P103: 11.68 | Q103: 0.96 | R103: 0.07 | S103: 344 | T103: 16.2 | U103: 1777 | V103: 83.8
A104: LOLIPOP IA610 CASES | B104: AS | C104: women | D104: 412 | E104: 61.65 | F104: 9 | G104: 29.89 | H104: 5.69 | I104: 78 | J104: 19 | K104: 157 | L104: 38.2 | M104: 176 | N104: 42.8 | O104: 100.5 | P104: 12.53 | Q104: 0.95 | R104: 0.08 | S104: 3 | T104: 0.7 | U104: 409 | V104: 99.3
C105: men | D105: 2011 | E105: 58.71 | F105: 9.68 | G105: 27.14 | H105: 4.13 | I105: 628 | J105: 31.3 | K105: 973 | L105: 48.4 | M105: 407 | N105: 20.3 | O105: 99.02 | P105: 11.2 | Q105: 0.98 | R105: 0.07 | S105: 192 | T105: 9.5 | U105: 1819 | V105: 90.5
A106: LOLIPOP IA610 CONTROLS | C106: women | D106: 618 | E106: 53.65 | F106: 9.25 | G106: 27.97 | H106: 4.9 | I106: 164 | J106: 26.5 | K106: 282 | L106: 45.6 | M106: 172 | N106: 27.8 | O106: 94.61 | P106: 12.19 | Q106: 0.91 | R106: 0.09 | S106: 7 | T106: 1.1 | U106: 611 | V106: 98.9
C107: men | D107: 3516 | E107: 53.04 | F107: 10.64 | G107: 26.68 | H107: 4 | I107: 1166 | J107: 33.2 | K107: 1708 | L107: 48.6 | M107: 638 | N107: 18.2 | O107: 97.21 | P107: 10.68 | Q107: 0.96 | R107: 0.07 | S107: 421 | T107: 12 | U107: 3095 | V107: 88
A108: LURIC-Cases | B108: EU | C108: women | D108: 592 | E108: 66.4 | F108: 9.72 | G108: 27.2 | H108: 4.58 | I108: 190 | J108: 32.1 | K108: 243 | L108: 41 | M108: 153 | N108: 25.8 | O108: 94.5 | P108: 13 | Q108: 0.91 | R108: 0.08 | S108: 99 | T108: 16.7 | U108: 493 | V108: 83.3
C109: men | D109: 1772 | E109: 63.1 | F109: 9.75 | G109: 27.6 | H109: 3.69 | I109: 467 | J109: 26.4 | K109: 907 | L109: 51.2 | M109: 396 | N109: 22.3 | O109: 101.1 | P109: 10.6 | Q109: 0.99 | R109: 0.06 | S109: 449 | T109: 25.3 | U109: 1323 | V109: 74.7
A110: LURIC-Controls | B110: EU | C110: women | D110: 296 | E110: 62.1 | F110: 10.8 | G110: 27.4 | H110: 4.88 | I110: 97 | J110: 32.8 | K110: 129 | L110: 43.6 | M110: 70 | N110: 23.6 | O110: 93.4 | P110: 12.6 | Q110: 0.89 | R110: 0.07 | S110: 49 | T110: 16.6 | U110: 247 | V110: 83.4
C111: men | D111: 324 | E111: 54.7 | F111: 12.6 | G111: 27.4 | H111: 3.75 | I111: 89 | J111: 27.5 | K111: 171 | L111: 52.8 | M111: 64 | N111: 19.8 | O111: 99.5 | P111: 11 | Q111: 0.97 | R111: 0.07 | S111: 87 | T111: 26.9 | U111: 237 | V111: 73.1
A112: MESA | B112: EU | C112: women | D112: 1251 | E112: 62.61 | F112: 10.33 | G112: 27.45 | H112: 5.78 | I112: 492 | J112: 39.33 | K112: 418 | L112: 33.41 | M112: 334 | N112: 26.7 | O112: 94.93 | P112: 16.19 | Q112: 0.88 | R112: 0.09 | S112: 148 | T112: 11.83 | U112: 1103 | V112: 88.17
C113: men | D113: 1148 | E113: 62.83 | F113: 10.11 | G113: 27.98 | H113: 4.1 | I113: 279 | J113: 24.3 | K113: 547 | L113: 47.65 | M113: 321 | N113: 27.96 | O113: 101.15 | P113: 10.97 | Q113: 0.96 | R113: 0.06 | S113: 127 | T113: 11.06 | U113: 1021 | V113: 88.94
A114: MrOS SWEDEN | B114: EU | C114: men | D114: 962 | E114: 75.26 | F114: 3.2 | G114: 26.2 | H114: 3.5 | I114: 372 | J114: 38.6 | K114: 472 | L114: 49.1 | M114: 118 | N114: 12.3 | O114: NA | P114: NA | Q114: NA | R114: NA | S114: 77 | T114: 8 | U114: 885 | V114: 92
A115: NETHERLANDS TWIN REGISTER | B115: EU | C115: women | D115: 2017 | E115: 44.6 | F115: 14.3 | G115: 25.01 | H115: 4.46 | I115: 1163 | J115: 57.7 | K115: 604 | L115: 29.9 | M115: 250 | N115: 12.4 | O115: 83.39 | P115: 12.04 | Q115: 0.8 | R115: 0.08 | S115: 360 | T115: 17.8 | U115: 1648 | V115: 81.7
C116: men | D116: 1314 | E116: 50.8 | F116: 14.8 | G116: 25.9 | H116: 3.5 | I116: 559 | J116: 42.5 | K116: 581 | L116: 44.2 | M116: 174 | N116: 13.2 | O116: 94 | P116: 11.4 | Q116: 0.9 | R116: 0.08 | S116: 317 | T116: 24.1 | U116: 994 | V116: 75.6
A117: NFBC66 | B117: EU | C117: Overall | D117: 4984 | E117: 31 | F117: 0 | G117: 24.66 | H117: 4.27 | I117: 2989 | J117: 59.97 | K117: 1528 | L117: 30.66 | M117: 467 | N117: 9.37 | O117: 83.72 | P117: 12.13 | Q117: 0.86 | R117: 0.09 | S117: 2095 | T117: 42.04 | U117: 2889 | V117: 57.97
C118: women | D118: 2608 | E118: 31 | F118: 0 | G118: 24.17 | H118: 4.73 | I118: 1776 | J118: 68.1 | K118: 571 | L118: 21.89 | M118: 261 | N118: 10.01 | O118: 78.75 | P118: 12 | Q118: 0.81 | R118: 0.08 | S118: 938 | T118: 35.97 | U118: 1670 | V118: 64.03
C119: men | D119: 2376 | E119: 31 | F119: 0 | G119: 25.2 | H119: 3.62 | I119: 1213 | J119: 51.05 | K119: 957 | L119: 40.28 | M119: 206 | N119: 8.67 | O119: 88.89 | P119: 9.95 | Q119: 0.91 | R119: 0.06 | S119: 1157 | T119: 48.7 | U119: 1219 | V119: 51.31
A120: NHS-case | B120: EU | C120: women | D120: 1127 | E120: 53.57 | F120: 6.67 | G120: 29.63 | H120: 5.59 | I120: 283 | J120: 21.5 | K120: 467 | L120: 35.6 | M120: 562 | N120: 42.8 | O120: 89.89 | P120: 13.05 | Q120: 0.83 | R120: 0.14 | S120: 158 | T120: 21.1 | U120: 590 | V120: 78.9
A121: NHS-control | C121: women | D121: 1124 | E121: 53.24 | F121: 6.69 | G121: 25.09 | H121: 4.7 | I121: 915 | J121: 58 | K121: 465 | L121: 29.5 | M121: 197 | N121: 12.5 | O121: 78.59 | P121: 11.12 | Q121: 0.77 | R121: 0.07 | S121: 130 | T121: 16.2 | U121: 673 | V121: 83.8
A122: ORCADES | B122: EU | C122: Overall | D122: 889 | E122: 53.49 | F122: 15.73 | G122: 27.67 | H122: 4.84 | I122: 257 | J122: 29.75 | K122: 377 | L122: 43.63 | M122: 230 | N122: 26.62 | O122: 93.51 | P122: 13.88 | Q122: 0.91 | R122: 0.09 | S122: 373 | T122: 42.73 | U122: 500 | V122: 57.27
C123: women | D123: 485 | E123: 52.71 | F123: 15.71 | G123: 27.34 | H123: 5.31 | I123: 177 | J123: 37.5 | K123: 175 | L123: 37.08 | M123: 120 | N123: 25.42 | O123: 89 | P123: 13.6 | Q123: 0.86 | R123: 0.08 | S123: 168 | T123: 35.22 | U123: 309 | V123: 64.78
C124: men | D124: 404 | E124: 54.43 | F124: 15.73 | G124: 28.07 | H124: 4.19 | I124: 80 | J124: 20.41 | K124: 202 | L124: 51.53 | M124: 110 | N124: 28.06 | O124: 98.92 | P124: 12.19 | Q124: 0.96 | R124: 0.07 | S124: 205 | T124: 51.77 | U124: 191 | V124: 48.23
A125: PIVUS | B125: EU | C125: Overall | D125: 948 | E125: 70.2 | F125: 0.17 | G125: 27.05 | H125: 4.35 | I125: 310 | J125: 32.7 | K125: 428 | L125: 45.15 | M125: 210 | N125: 22.15 | O125: 91.22 | P125: 11.6 | Q125: 0.9 | R125: 0.07 | S125: 104 | T125: 10.97 | U125: 844 | V125: 89.03
C126: women | D126: 475 | E126: 70.26 | F126: 0.15 | G126: 27.1 | H126: 4.9 | I126: 170 | J126: 35.79 | K126: 182 | L126: 38.32 | M126: 123 | N126: 25.89 | O126: 87.77 | P126: 11.68 | Q126: 0.86 | R126: 0.06 | S126: 57 | T126: 12 | U126: 418 | V126: 88
C127: men | D127: 473 | E127: 70.13 | F127: 0.17 | G127: 27 | H127: 3.73 | I127: 140 | J127: 29.59 | K127: 246 | L127: 52 | M127: 87 | N127: 18.39 | O127: 94.68 | P127: 10.46 | Q127: 0.94 | R127: 0.06 | S127: 47 | T127: 9.93 | U127: 426 | V127: 90.07
A128: PREVEND | B128: EU | C128: women | D128: 1754 | E128: 48.23 | F128: 12.03 | G128: 25.82 | H128: 4.77 | I128: 863 | J128: 49.2 | K128: 583 | L128: 33.24 | M128: 293 | N128: 16.7 | O128: 83.34 | P128: 12.99 | Q128: 0.82 | R128: 0.08 | S128: 622 | T128: 35.5 | U128: 1132 | V128: 64.54
C129: men | D129: 1870 | E129: 50.93 | F129: 12.77 | G129: 26.41 | H129: 3.68 | I129: 704 | J129: 37.6 | K129: 878 | L129: 46.95 | M129: 285 | N129: 15.24 | O129: 94.5 | P129: 11.17 | Q129: 0.94 | R129: 0.75 | S129: 659 | T129: 35.24 | U129: 1209 | V129: 64.65
A130: PROSPER | B130: EU | C130: Overall | D130: 5244 | E130: 75.34 | F130: 3.35 | G130: 26.82 | H130: 4.18 | I130: 1748 | J130: 33.3 | K130: 2378 | L130: 45.3 | M130: 1073 | N130: 20.5 | O130: NA | P130: NA | Q130: NA | R130: NA | S130: 1392 | T130: 26.5 | U130: 3852 | V130: 73.5
C131: women | D131: 2720 | E131: 75.66 | F131: 3.4 | G131: 27.07 | H131: 4.66 | I131: 899 | J131: 33.1 | K131: 1122 | L131: 41.3 | M131: 668 | N131: 24.6 | O131: NA | P131: NA | Q131: NA | R131: NA | S131: 578 | T131: 21.3 | U131: 2142 | V131: 78.8
C132: men | D132: 2524 | E132: 75 | F132: 3.27 | G132: 26.55 | H132: 3.58 | I132: 849 | J132: 33.6 | K132: 1256 | L132: 49.8 | M132: 405 | N132: 16 | O132: NA | P132: NA | Q132: NA | R132: NA | S132: 814 | T132: 32.3 | U132: 1710 | V132: 67.7
A133: QFS | B133: EU | C133: Overall | D133: 853 | E133: 41.57 | F133: 15.46 | G133: 27.79 | H133: 7.73 | I133: 382 | J133: 44.8 | K133: 237 | L133: 27.8 | M133: 234 | N133: 27.4 | O133: 88.94 | P133: 18.4 | Q133: 0.85 | R133: 0.1 | S133: 178 | T133: 20.9 | U133: 675 | V133: 79.1
C134: women | D134: 481 | E134: 41.16 | F134: 15.07 | G134: 28.04 | H134: 8.59 | I134: 229 | J134: 47.6 | K134: 108 | L134: 22.5 | M134: 144 | N134: 29.9 | O134: 84.89 | P134: 18.75 | Q134: 0.8 | R134: 0.08 | S134: 100 | T134: 20.8 | U134: 381 | V134: 79.2
C135: men | D135: 372 | E135: 42.09 | F135: 15.95 | G135: 27.47 | H135: 6.45 | I135: 153 | J135: 41.1 | K135: 129 | L135: 34.7 | M135: 90 | N135: 24.2 | O135: 94.17 | P135: 16.64 | Q135: 0.93 | R135: 0.08 | S135: 78 | T135: 21 | U135: 294 | V135: 79
A136: ROTTERDAM STUDY I | B136: EU | C136: women | D136: 3547 | E136: 70.33 | F136: 9.6 | G136: 26.73 | H136: 4.06 | I136: 1230 | J136: 36.5 | K136: 1494 | L136: 44.3 | M136: 649 | N136: 19.2 | O136: 87.9 | P136: 11.5 | Q136: 0.87 | R136: 0.09 | S136: 623 | T136: 18.2 | U136: 2804 | V136: 81.8
C137: men | D137: 2427 | E137: 68.13 | F137: 8.16 | G137: 25.68 | H137: 2.99 | I137: 990 | J137: 41.7 | K137: 1208 | L137: 50.9 | M137: 174 | N137: 7.3 | O137: 94.33 | P137: 9.52 | Q137: 0.96 | R137: 0.07 | S137: 716 | T137: 30 | U137: 1669 | V137: 70
A138: ROTTERDAM STUDY II | B138: EU | C138: women | D138: 1173 | E138: 65.02 | F138: 8.3 | G138: 27.5 | H138: 4.45 | I138: 361 | J138: 30.9 | K138: 525 | L138: 44.9 | M138: 283 | N138: 24.2 | O138: 89.85 | P138: 11.58 | Q138: 0.86 | R138: 0.08 | S138: 237 | T138: 20.2 | U138: 934 | V138: 79.8
C139: men | D139: 984 | E139: 64.47 | F139: 7.59 | G139: 26.92 | H139: 3.36 | I139: 285 | J139: 29 | K139: 543 | L139: 55.2 | M139: 155 | N139: 15.8 | O139: 99.03 | P139: 10.2 | Q139: 0.97 | R139: 0.07 | S139: 182 | T139: 18.5 | U139: 801 | V139: 81.5
A140: ROTTERDAM STUDY III | B140: EU | C140: women | D140: 1166 | E140: 56.15 | F140: 6.07 | G140: 27.47 | H140: 5.09 | I140: 399 | J140: 34.3 | K140: 477 | L140: 41 | M140: 286 | N140: 24.6 | O140: 89.58 | P140: 12.88 | Q140: 0.83 | R140: 0.07 | S140: 269 | T140: 23.1 | U140: 894 | V140: 76.9
C141: men | D141: 912 | E141: 55.89 | F141: 5.47 | G141: 28.03 | H141: 4.09 | I141: 207 | J141: 22.8 | K141: 474 | L141: 52.3 | M141: 226 | N141: 24.9 | O141: 99.94 | P141: 11.7 | Q141: 0.93 | R141: 0.08 | S141: 198 | T141: 21.8 | U141: 712 | V141: 78.2
A142: SARDINIA | B142: EU | C142: women | D142: 552 | E142: 54.97 | F142: 11.67 | G142: 27.28 | H142: 5.077 | I142: 201 | J142: 36.41 | K142: 205 | L142: 37.137 | M142: 146 | N142: 26.44 | O142: 87.18 | P142: 13.158 | Q142: 0.86 | R142: 0.093 | S142: 54 | T142: 9.78 | U142: 498 | V142: 90.22
C143: men | D143: 478 | E143: 59.129 | F143: 12.53 | G143: 27.89 | H143: 4.01 | I143: 97 | J143: 20.29 | K143: 247 | L143: 51.67 | M143: 134 | N143: 28.03 | O143: 96.42 | P143: 9.915 | Q143: 0.97 | R143: 0.059 | S143: 85 | T143: 17.78 | U143: 393 | V143: 82.22
A144: SHIP | B144: EU | C144: women | D144: 2057 | E144: 48.56 | F144: 16.02 | G144: 26.92 | H144: 5.31 | I144: 846 | J144: 41.1 | K144: 660 | L144: 32.1 | M144: 533 | N144: 25.9 | O144: 83.15 | P144: 12.99 | Q144: 0.8 | R144: 0.06 | S144: 560 | T144: 27.2 | U144: 1497 | V144: 72.8
C145: men | D145: 1994 | E145: 50.78 | F145: 16.41 | G145: 27.68 | H145: 4.05 | I145: 512 | J145: 25.7 | K145: 981 | L145: 49.2 | M145: 501 | N145: 25.1 | O145: 95.78 | P145: 11.67 | Q145: 0.93 | R145: 0.06 | S145: 672 | T145: 33.7 | U145: 1322 | V145: 66.3
A146: SPT | B146: JAMAICA | C146: women | D146: 553 | E146: 45.59 | F146: 13.06 | G146: 28.41 | H146: 6.06 | I146: 157 | J146: 28.39 | K146: 193 | L146: 34.9 | M146: 203 | N146: 36.7 | O146: 84.24 | P146: 12.47 | Q146: 1 | R146: 0 | S146: 66 | T146: 11.93 | U146: 487 | V146: 88.07
A147: THISEAS_CASES | B147: EU | C147: women | D147: 62 | E147: 65.78 | F147: 10.35 | G147: 28.29 | H147: 4.3 | I147: 15 | J147: 24.19 | K147: 33 | L147: 53.23 | M147: 14 | N147: 22.58 | O147: 97.01 | P147: 12.69 | Q147: 0.9 | R147: 0.07 | S147: 21 | T147: 33.87 | U147: 41 | V147: 66.13
C148: men | D148: 288 | E148: 61.03 | F148: 10.05 | G148: 27.79 | H148: 3.87 | I148: 67 | J148: 23.26 | K148: 150 | L148: 52.08 | M148: 71 | N148: 24.65 | O148: 99.96 | P148: 11.44 | Q148: 0.98 | R148: 0.07 | S148: 119 | T148: 41.32 | U148: 169 | V148: 58.68
A149: THISEAS_CONTROLS | C149: women | D149: 224 | E149: 55.66 | F149: 14.4 | G149: 27.97 | H149: 5.1 | I149: 68 | J149: 30.36 | K149: 89 | L149: 39.73 | M149: 67 | N149: 29.91 | O149: 90.38 | P149: 13.7 | Q149: 0.87 | R149: 0.1 | S149: 44 | T149: 19.64 | U149: 180 | V149: 80.36
C150: men | D150: 204 | E150: 52.25 | F150: 12.87 | G150: 29.08 | H150: 4.15 | I150: 30 | J150: 14.71 | K150: 95 | L150: 46.57 | M150: 79 | N150: 38.73 | O150: 102.04 | P150: 10.42 | Q150: 0.98 | R150: 0.08 | S150: 62 | T150: 30.39 | U150: 142 | V150: 69.61
A151: TRAILS | B151: EU | C151: women | D151: 609 | E151: 19.13 | F151: 0.57 | G151: 23.09 | H151: 3.8 | I151: 451 | J151: 74.1 | K151: 108 | L151: 17.7 | M151: 35 | N151: 5.7 | O151: 75.47 | P151: 8.92 | Q151: 0.75 | R151: 0.05 | S151: 212 | T151: 34.8 | U151: 397 | V151: 65.2
C152: men | D152: 532 | E152: 19.19 | F152: 0.54 | G152: 22.61 | H152: 3.77 | I152: 416 | J152: 78.2 | K152: 65 | L152: 12.2 | M152: 30 | N152: 5.6 | O152: 81.73 | P152: 9.7 | Q152: 0.82 | R152: 0.05 | S152: 205 | T152: 38.5 | U152: 326 | V152: 61.5
A153: TWINSUK | B153: EU | C153: women | D153: 2888 | E153: 47.34 | F153: 12.7 | G153: 25.18 | H153: 4.68 | I153: 1639 | J153: 56.75 | K153: 858 | L153: 29.77 | M153: 391 | N153: 13.54 | O153: 79.15 | P153: 10.54 | Q153: 0.78 | R153: 0.06 | S153: 1263 | T153: 43.73 | U153: 1625 | V153: 56.27
A154: WGHS | B154: EU | C154: women | D154: 22870 | E154: 54.69 | F154: 7.11 | G154: 25.91 | H154: 4.96 | I154: 11695 | J154: 51.1 | K154: 7056 | L154: 30.9 | M154: 3996 | N154: 17.5 | O154: 88.87 | P154: 14.33 | Q154: 0.83 | R154: 0.08 | S154: 2648 | T154: 11.6 | U154: 20222 | V154: 88.4
A155: WHI Pilot | B155: AF | C155: women | D155: 1998 | E155: 61 | F155: 6.88 | G155: 31.36 | H155: 6.81 | I155: 323 | J155: 16.17 | K155: 660 | L155: 33.03 | M155: 1015 | N155: 50.8 | O155: 91.82 | P155: 14 | Q155: 0.82 | R155: 0.07 | S155: 220 | T155: 11.01 | U155: 1778 | V155: 88.99
A156: WHIYR3/YR4 | B156: AF | C156: women | D156: 3180 | E156: 61.2 | F156: 7.3 | G156: 31.5 | H156: 6.75 | I156: 484 | J156: 15.22 | K156: 993 | L156: 31.23 | M156: 1703 | N156: 53.55 | O156: 92.59 | P156: 14.37 | Q156: 0.83 | R156: 0.09 | S156: 372 | T156: 11.7 | U156: 2808 | V156: 88.3
A157: YFS | B157: EU | C157: women | D157: 1067 | E157: 37.79 | F157: 4.97 | G157: 25.29 | H157: 4.96 | I157: 588 | J157: 55.1 | K157: 299 | L157: 28 | M157: 169 | N157: 15.8 | O157: 83.5 | P157: 12.48 | Q157: 0.83 | R157: 0.07 | S157: 160 | T157: 15 | U157: 907 | V157: 85
C158: men | D158: 900 | E158: 37.69 | F158: 5.04 | G158: 26.75 | H158: 4.29 | I158: 327 | J158: 36.3 | K158: 405 | L158: 45 | M158: 166 | N158: 18.4 | O158: 94.44 | P158: 12.01 | Q158: 0.94 | R158: 0.07 | S158: 206 | T158: 22.9 | U158: 694 | V158: 77.1
A160: METBOCHIP Data
A161: Study | B161: Ancestry | C161: Groups | D161: N | E161: Age | G161: BMI (kg/m2) | I161: BMI Categories* | O161: Waist (cm) | Q161: WHR (ratio) | S161: Current Smoking Status
I162: Normal weight (18 to < 25 kg/m2) | K162: Overweight (25 to 30 kg/m2) | M162: Obese ( ≥ 30 kg/m2) | S162: Smoker | U162: Non-Smoker
E163: mean | F163: sd | G163: mean | H163: sd | I163: n | J163: % | K163: n | L163: % | M163: n | N163: % | O163: mean | P163: sd | Q163: mean | R163: sd | S163: n | T163: % | U163: n | V163: %
A164: DESIR | B164: EU | C164: Overall | D164: 4263 | E164: 46.26 | F164: 10.21 | G164: 25.23 | H164: 3.86 | I164: 2182 | J164: 51.22 | K164: 1611 | L164: 37.82 | M164: 467 | N164: 10.96 | O164: 84.91 | P164: 11.62 | Q164: 0.87 | R164: 0.09 | S164: 1035 | T164: 24.28 | U164: 3228 | V164: 75.72
C165: women | D165: 1968 | E165: 46.38 | F165: 10.32 | G165: 24.79 | H165: 4.29 | I165: 1160 | J165: 59 | K165: 565 | L165: 28.74 | M165: 241 | N165: 12.26 | O165: 78.87 | P165: 10.72 | Q165: 0.8 | R165: 0.07 | S165: 362 | T165: 18.39 | U165: 1606 | V165: 81.61
C166: men | D166: 2295 | E166: 46.15 | F166: 10.12 | G166: 25.61 | H166: 3.4 | I166: 1022 | J166: 44.55 | K166: 1046 | L166: 45.6 | M166: 226 | N166: 9.85 | O166: 90.08 | P166: 9.7 | Q166: 0.92 | R166: 0.06 | S166: 673 | T166: 29.32 | U166: 1622 | V166: 70.68
A167: DR's EXTRA | B167: EU | C167: women | D167: 621 | E167: 66.47 | F167: 5.25 | G167: 27.57 | H167: 5.04 | I167: 215 | J167: 34.6 | K167: 246 | L167: 39.6 | M167: 160 | N167: 25.8 | O167: 88.71 | P167: 13.1 | Q167: 0.87 | R167: 0.067 | S167: 44 | T167: 7.1 | U167: 577 | V167: 92.9
C168: men | D168: 546 | E168: 66.5 | F168: 5.44 | G168: 27.37 | H168: 3.74 | I168: 147 | J168: 26.9 | K168: 289 | L168: 52.9 | M168: 110 | N168: 20.2 | O168: 98.17 | P168: 10.69 | Q168: 0.99 | R168: 0.054 | S168: 78 | T168: 14.3 | U168: 466 | V168: 85.7
A169: EGCUT | B169: EU | C169: women | D169: 1490 | E169: 59.45 | F169: 12.58 | G169: 28.27 | H169: 6.91 | I169: 573 | J169: 39.19 | K169: 319 | L169: 21.82 | M169: 570 | N169: 38.99 | O169: 87.78 | P169: 17.69 | Q169: 0.84 | R169: 0.09 | S169: 387 | T169: 36.48 | U169: 1103 | V169: 76.44
C170: men | D170: 1014 | E170: 60.25 | F170: 11.64 | G170: 28.02 | H170: 5.7 | I170: 362 | J170: 35.7 | K170: 288 | L170: 28.4 | M170: 364 | N170: 35.9 | O170: 97.95 | P170: 15.03 | Q170: 0.95 | R170: 0.1 | S170: 674 | T170: 63.52 | U170: 340 | V170: 23.56
A171: ELY | B171: EU | C171: women | D171: 366 | E171: 57.27 | F171: 7.57 | G171: 26.2 | H171: 4.44 | I171: 169 | J171: 46.2 | K171: 133 | L171: 36.3 | M171: 64 | N171: 17.5 | O171: 81.89 | P171: 10.96 | Q171: 0.8 | R171: 0.08 | S171: 59 | T171: 16.1 | U171: 307 | V171: 83.9
C172: men | D172: 262 | E172: 58.07 | F172: 7.82 | G172: 26.82 | H172: 3.09 | I172: 79 | J172: 30.2 | K172: 142 | L172: 54.2 | M172: 41 | N172: 15.6 | O172: 95.6 | P172: 9.36 | Q172: 0.96 | R172: 0.07 | S172: 47 | T172: 17.9 | U172: 215 | V172: 82.1
A173: EPIC-non-subcohort | B173: EU | C173: women | D173: 216 | E173: 62.68 | F173: 8.5 | G173: 28.95 | H173: 4.61 | I173: 41 | J173: 19 | K173: 100 | L173: 46.3 | M173: 75 | N173: 34.7 | O173: 90.47 | P173: 11.63 | Q173: 0.84 | R173: 0.06 | S173: 31 | T173: 14.4 | U173: 185 | V173: 85.6
C174: men | D174: 321 | E174: 61.92 | F174: 8.39 | G174: 28.38 | H174: 3.57 | I174: 35 | J174: 10.9 | K174: 218 | L174: 67.9 | M174: 68 | N174: 21.2 | O174: 101.92 | P174: 9.72 | Q174: 0.97 | R174: 0.05 | S174: 36 | T174: 11.2 | U174: 285 | V174: 88.8
A175: EPIC-subcohort | C175: women | D175: 474 | E175: 58.92 | F175: 9.59 | G175: 25.64 | H175: 3.78 | I175: 227 | J175: 47.9 | K175: 195 | L175: 41.1 | M175: 52 | N175: 11 | O175: 81 | P175: 10.1 | Q175: 0.79 | R175: 0.06 | S175: 67 | T175: 14.1 | U175: 407 | V175: 85.9
C176: men | D176: 339 | E176: 59.45 | F176: 9.07 | G176: 25.99 | H176: 2.96 | I176: 131 | J176: 38.6 | K176: 182 | L176: 53.7 | M176: 26 | N176: 7.7 | O176: 93.93 | P176: 9.12 | Q176: 0.92 | R176: 0.06 | S176: 39 | T176: 11.5 | U176: 300 | V176: 88.5
A177: FENLAND | B177: EU | C177: women | D177: 1542 | E177: 47.01 | F177: 7.01 | G177: 26.47 | H177: 5.54 | I177: 740 | J177: 48 | K177: 485 | L177: 31.5 | M177: 317 | N177: 20.6 | O177: 85.18 | P177: 12.87 | Q177: 0.82 | R177: 0.07 | S177: 194 | T177: 12.6 | U177: 1348 | V177: 87.4
C178: men | D178: 1368 | E178: 46.98 | F178: 7.17 | G178: 27.04 | H178: 4.08 | I178: 453 | J178: 33.1 | K178: 642 | L178: 46.9 | M178: 273 | N178: 20 | O178: 96.5 | P178: 11.2 | Q178: 0.93 | R178: 0.07 | S178: 197 | T178: 14.4 | U178: 1171 | V178: 85.6
A179: FUSION2-controls | B179: EU | C179: women | D179: 47 | E179: 39.09 | F179: 9.24 | G179: 26.56 | H179: 5.99 | I179: 23 | J179: 48.9 | K179: 12 | L179: 25.5 | M179: 12 | N179: 25.5 | O179: 84.72 | P179: 15.24 | Q179: 0.813 | R179: 0.078 | S179: 30 | T179: 63.8 | U179: 17 | V179: 36.2
C180: men | D180: 43 | E180: 41.29 | F180: 13.98 | G180: 26.47 | H180: 4.03 | I180: 14 | J180: 32.6 | K180: 24 | L180: 55.8 | M180: 5 | N180: 11.6 | O180: 95.21 | P180: 11.11 | Q180: 0.923 | R180: 0.072 | S180: 29 | T180: 67.4 | U180: 14 | V180: 32.6
A181: FUSION2-T2D cases | C181: women | D181: 43 | E181: 57.12 | F181: 10.45 | G181: 30.96 | H181: 6.82 | I181: 8 | J181: 18.6 | K181: 13 | L181: 30.2 | M181: 22 | N181: 51.2 | O181: 99.62 | P181: 16 | Q181: 0.896 | R181: 0.06 | S181: 20 | T181: 46.5 | U181: 23 | V181: 53.5
C182: men | D182: 109 | E182: 58.63 | F182: 8.04 | G182: 31.29 | H182: 5.6 | I182: 14 | J182: 12.8 | K182: 35 | L182: 32.1 | M182: 60 | N182: 55.1 | O182: 107.91 | P182: 14.5 | Q182: 0.997 | R182: 0.069 | S182: 43 | T182: 39.4 | U182: 66 | V182: 60.6
A183: GLACIER | B183: EU | C183: women | D183: 3619 | E183: 49.27 | F183: 8.82 | G183: 25.56 | H183: 4.38 | I183: 1869 | J183: 51.8 | K183: 1219 | L183: 33.8 | M183: 517 | N183: 14.3 | O183: 86.56 | P183: 11.73 | Q183: NA | R183: NA | S183: 861 | T183: 23.8 | U183: 2758 | V183: 76.2
C184: men | D184: 2341 | E184: 50.07 | F184: 8.33 | G184: 26.09 | H184: 3.42 | I184: 927 | J184: 39.6 | K184: 1146 | L184: 49 | M184: 265 | N184: 11.3 | O184: 96.83 | P184: 10.07 | Q184: NA | R184: NA | S184: 496 | T184: 21.2 | U184: 1845 | V184: 78.8
A185: GXE | B185: JAMAICA | C185: women | D185: 469 | E185: 40.02 | F185: 8.13 | G185: 32.33 | H185: 7.47 | I185: 101 | J185: 21.54 | K185: 0 | L185: 0 | M185: 368 | N185: 78.47 | O185: 88.78 | P185: 15.31 | Q185: 0.797 | R185: 0.073 | S185: 20 | T185: 0.043 | U185: 449 | V185: 95.73
C186: men | D186: 140 | E186: 38.67 | F186: 8.9 | G186: 27.69 | H186: 6.94 | I186: 66 | J186: 47.14 | K186: 0 | L186: 0 | M186: 74 | N186: 52.86 | O186: 87.72 | P186: 17.91 | Q186: 0.8452 | R186: 0.084 | S186: 31 | T186: 22.14 | U186: 109 | V186: 77.85
A187: HEALTH2006 | B187: EU | C187: women | D187: 1580 | E187: 48.83 | F187: 12.97 | G187: 25.32 | H187: 5.02 | I187: 860 | J187: 54.4 | K187: 454 | L187: 28.7 | M187: 236 | N187: 14.9 | O187: 83.23 | P187: 12.58 | Q187: 0.82 | R187: 0.07 | S187: 378 | T187: 23.9 | U187: 1202 | V187: 76.1
C188: men | D188: 1304 | E188: 50.43 | F188: 12.76 | G188: 26.6 | H188: 4.16 | I188: 496 | J188: 38 | K188: 581 | L188: 44.6 | M188: 225 | N188: 17.3 | O188: 95.29 | P188: 12.06 | Q188: 0.94 | R188: 0.07 | S188: 281 | T188: 21.5 | U188: 1023 | V188: 78.5
A189: HUNT-controls | B189: EU | C189: women | D189: 319 | E189: 68.03 | F189: 13.56 | G189: 27.65 | H189: 4.56 | I189: 92 | J189: 28.8 | K189: 130 | L189: 40.8 | M189: 97 | N189: 30.4 | O189: 86.72 | P189: 11.11 | Q189: 0.826 | R189: 0.056 | S189: 84 | T189: 26.3 | U189: 235 | V189: 73.7
C190: men | D190: 368 | E190: 63.58 | F190: 14.58 | G190: 26.53 | H190: 3.3 | I190: 120 | J190: 32.6 | K190: 202 | L190: 54.9 | M190: 46 | N190: 12.5 | O190: 93.38 | P190: 8.69 | Q190: 0.916 | R190: 0.058 | S190: 106 | T190: 28.8 | U190: 262 | V190: 71.2
A191: HUNT-T2D cases | C191: women | D191: 238 | E191: 70.42 | F191: 11.92 | G191: 30.11 | H191: 5.15 | I191: 37 | J191: 15.5 | K191: 83 | L191: 34.9 | M191: 118 | N191: 49.6 | O191: 93.94 | P191: 11.97 | Q191: 0.861 | R191: 0.063 | S191: 24 | T191: 10.1 | U191: 214 | V191: 89.9
C192: men | D192: 277 | E192: 66.9 | F192: 11.08 | G192: 28.12 | H192: 3.79 | I192: 61 | J192: 22 | K192: 133 | L192: 48 | M192: 83 | N192: 30 | O192: 98.6 | P192: 9.61 | Q192: 0.945 | R192: 0.062 | S192: 58 | T192: 20.9 | U192: 219 | V192: 79.1
A193: IMPROVE | B193: EU | C193: women | D193: 1777 | E193: 64.38 | F193: 5.45 | G193: 27.1 | H193: 4.76 | I193: 651 | J193: 36.6 | K193: 702 | L193: 39.5 | M193: 424 | N193: 23.9 | O193: 89.61 | P193: 12.44 | Q193: 0.87 | R193: 0.07 | S193: 238 | T193: 13.4 | U193: 1539 | V193: 86.6
C194: men | D194: 1653 | E194: 64.04 | F194: 5.35 | G194: 27.39 | H194: 3.64 | I194: 420 | J194: 25.4 | K194: 900 | L194: 54.5 | M194: 332 | N194: 20 | O194: 98.7 | P194: 10.81 | Q194: 0.97 | R194: 0.07 | S194: 274 | T194: 16.6 | U194: 1379 | V194: 83.4
A195: INTER99 | B195: EU | C195: women | D195: 3036 | E195: 45.94 | F195: 7.9 | G195: 25.76 | H195: 5.07 | I195: 1582 | J195: 52.1 | K195: 919 | L195: 30.3 | M195: 505 | N195: 16.6 | O195: 80.3 | P195: 12.33 | Q195: 0.8 | R195: 0.06 | S195: 1075 | T195: 35.4 | U195: 1961 | V195: 64.6
C196: men | D196: 2907 | E196: 46.66 | F196: 7.72 | G196: 26.82 | H196: 4.02 | I196: 996 | J196: 34.3 | K196: 1403 | L196: 48.2 | M196: 503 | N196: 17.3 | O196: 93.26 | P196: 11.04 | Q196: 0.92 | R196: 0.06 | S196: 1070 | T196: 36.8 | U196: 1837 | V196: 63.2
A197: KORAS3 | B197: EU | C197: women | D197: 659 | E197: 40.89 | F197: 12.66 | G197: 25.18 | H197: 4.72 | I197: 387 | J197: 58.7 | K197: 173 | L197: 26.3 | M197: 98 | N197: 14.9 | O197: 79.12 | P197: 11.24 | Q197: 0.78 | R197: 0.06 | S197: 473 | T197: 71.8 | U197: 186 | V197: 28.2
C198: men | D198: 599 | E198: 40.58 | F198: 13.14 | G198: 26.54 | H198: 3.43 | I198: 207 | J198: 34.6 | K198: 305 | L198: 50.9 | M198: 87 | N198: 14.5 | O198: 92.8 | P198: 9.33 | Q198: 0.9 | R198: 0.06 | S198: 392 | T198: 65.4 | U198: 207 | V198: 34.6
A199: KORAS4 | B199: EU | C199: women | D199: 624 | E199: 41.35 | F199: 14.82 | G199: 25.94 | H199: 5.09 | I199: 294 | J199: 47.1 | K199: 223 | L199: 35.7 | M199: 107 | N199: 17.1 | O199: 82.16 | P199: 12 | Q199: 0.79 | R199: 0.06 | S199: 476 | T199: 76.3 | U199: 148 | V199: 23.7
C200: men | D200: 582 | E200: 42.49 | F200: 15.74 | G200: 26.64 | H200: 3.59 | I200: 197 | J200: 33.8 | K200: 295 | L200: 50.7 | M200: 90 | N200: 15.5 | O200: 94.34 | P200: 10 | Q200: 0.9 | R200: 0.06 | S200: 389 | T200: 66.8 | U200: 193 | V200: 33.2
A201: MEC-Diabetes cases | B201: AF | C201: Overall | D201: 384 | E201: 68.72 | F201: 8.27 | G201: 31.53 | H201: 6.63 | I201: 48 | J201: 12.5 | K201: 135 | L201: 35.15625 | M201: 200 | N201: 52.08333333 | O201: 103.58 | P201: 15.09 | Q201: 0.91 | R201: 0.1 | S201: 70 | T201: 18.22916667 | U201: 314 | V201: 81.77083333
... 20 more rows

Sheet ST4. Study Descriptives by SMK
A1: Supplementary Table 4. Study-specific descriptives from contributing studies stratified by smoking status. Abbreviations: BMI- body mass index, WHR- waist to hip ratio.
A2: GWAS Data
D3: SMOKERS | U3: NON-SMOKERS
A4: Study | B4: Ancestry | C4: Groups | D4: N | E4: Age | G4: BMI | I4: BMI Categories* | O4: Waist (cm) | Q4: WHR (ratio) | T4: N | U4: Age | W4: BMI | Y4: BMI Categories* | AE4: Waist (cm) | AG4: WHR (ratio)
I5: Normal weight (18 to < 25 kg/m2) | K5: Overweight (25 to 30 kg/m2) | M5: Obese ( ≥ 30 kg/m2) | Y5: Normal weight (18 to < 25 kg/m2) | AA5: Overweight (25 to 30 kg/m2) | AC5: Obese ( ≥ 30 kg/m2)
E6: mean | F6: sd | G6: mean | H6: sd | I6: n | J6: % | K6: n | L6: % | M6: n | N6: % | O6: mean | P6: sd | Q6: mean | R6: sd | U6: mean | V6: sd | W6: mean | X6: sd | Y6: n | Z6: % | AA6: n | AB6: % | AC6: n | AD6: % | AE6: mean | AF6: sd | AG6: mean | AH6: sd
A7: AE | B7: EU | C7: Overall | D7: 228 | E7: 64.58 | F7: 8.446 | G7: 25.5767 | H7: 3.60261 | I7: 107 | J7: 46.9 | K7: 101 | L7: 44.3 | M7: 20 | N7: 8.8 | O7: NA | P7: NA | Q7: NA | R7: NA | T7: 397 | U7: 69.45 | V7: 8.567 | W7: 26.6893 | X7: 3.71712 | Y7: 133 | Z7: 33.5 | AA7: 206 | AB7: 51.9 | AC7: 58 | AD7: 14.6 | AE7: NA | AF7: NA | AG7: NA | AH7: NA
C8: women | D8: 80 | E8: 64.75 | F8: 9.152 | G8: 25.1718 | H8: 3.98674 | I8: 39 | J8: 48.8 | K8: 33 | L8: 41.3 | M8: 8 | N8: 10 | O8: NA | P8: NA | Q8: NA | R8: NA | T8: 110 | U8: 69.74 | V8: 9.465 | W8: 26.2134 | X8: 4.99491 | Y8: 38 | Z8: 34.5 | AA8: 49 | AB8: 44.5 | AC8: 23 | AD8: 20.9 | AE8: NA | AF8: NA | AG8: NA | AH8: NA
C9: men | D9: 148 | E9: 64.48 | F9: 8.078 | G9: 25.7955 | H9: 3.3709 | I9: 68 | J9: 46 | K9: 68 | L9: 45.9 | M9: 12 | N9: 8.1 | O9: NA | P9: NA | Q9: NA | R9: NA | T9: 287 | U9: 69.34 | V9: 8.214 | W9: 26.5099 | X9: 3.0832 | Y9: 95 | Z9: 33.1 | AA9: 157 | AB9: 54.7 | AC9: 35 | AD9: 12.2 | AE9: NA | AF9: NA | AG9: NA | AH9: NA
A10: AGES | B10: EU | C10: Overall | D10: 409 | E10: 74.5 | F10: 4.9 | G10: 25.8 | H10: 4.4 | I10: 167 | J10: 40.83 | K10: 166 | L10: 40.59 | M10: 65 | N10: 15.89 | O10: 98.1 | P10: 12.4 | Q10: NA | R10: NA | T10: 2805 | U10: 76.68 | V10: 5.48 | W10: 27.29 | X10: 4.4 | Y10: 841 | Z10: 30.21918793 | AA10: 1299 | AB10: 46.67624865 | AC10: 643 | AD10: 23.10456342 | AE10: 101.19 | AF10: 12.1 | AG10: NA | AH10: NA
C11: women | D11: 247 | E11: 74.6 | F11: 4.9 | G11: 25.9 | H11: 4.8 | I11: 98 | J11: 39.68 | K11: 94 | L11: 38.06 | M11: 46 | N11: 18.62 | O11: 97.2 | P11: 13.3 | Q11: NA | R11: NA | T11: 1616 | U11: 76.59 | V11: 5.59 | W11: 27.39 | X11: 4.83 | Y11: 504 | Z11: 31.53942428 | AA11: 694 | AB11: 43.42928661 | AC11: 400 | AD11: 25.03128911 | AE11: 99.89 | AF11: 13.07 | AG11: NA | AH11: NA
C12: men | D12: 162 | E12: 74.5 | F12: 4.9 | G12: 25.7 | H12: 3.8 | I12: 69 | J12: 42.59 | K12: 72 | L12: 44.44 | M12: 19 | N12: 11.73 | O12: 99.5 | P12: 10.7 | Q12: NA | R12: NA | T12: 1189 | U12: 76.8 | V12: 5.31 | W12: 27.16 | X12: 3.75 | Y12: 337 | Z12: 28.43881857 | AA12: 605 | AB12: 51.05485232 | AC12: 243 | AD12: 20.50632911 | AE12: 102.96 | AF12: 10.38 | AG12: NA | AH12: NA
A13: ARIC | B13: AF | C13: Overall | D13: 781 | E13: 53 | F13: 5.7 | G13: 27.8 | H13: 5.5 | I13: 245 | J13: 31.4 | K13: 308 | L13: 39.4 | M13: 228 | N13: 29.2 | O13: 96.1 | P13: 13.8 | Q13: 0.92 | R13: 0.07 | T13: 1837 | U13: 53.45 | V13: 5.85 | W13: 30.48 | X13: 6.13 | Y13: 302 | Z13: 16.44 | AA13: 699 | AB13: 38.05 | AC13: 836 | AD13: 45.51 | AE13: 100.68 | AF13: 15.3 | AG13: 0.92 | AH13: 0.08
C14: women | D14: 416 | E14: 52.7 | F14: 5.4 | G14: 28.6 | H14: 6 | I14: 115 | J14: 27.6 | K14: 154 | L14: 37 | M14: 147 | N14: 35.3 | O14: 96.8 | P14: 15.1 | Q14: 0.91 | R14: 0.08 | T14: 1233 | U14: 53.35 | V14: 5.74 | W14: 31.35 | X14: 6.52 | Y14: 175 | Z14: 14.19 | AA14: 427 | AB14: 34.63 | AC14: 631 | AD14: 51.18 | AE14: 101.31 | AF14: 16.38 | AG14: 0.9 | AH14: 0.08
C15: men | D15: 365 | E15: 53.3 | F15: 5.9 | G15: 26.8 | H15: 4.6 | I15: 130 | J15: 35.6 | K15: 154 | L15: 42.2 | M15: 81 | N15: 22.2 | O15: 95.2 | P15: 12 | Q15: 0.94 | R15: 0.06 | T15: 604 | U15: 53.65 | V15: 6.05 | W15: 28.71 | X15: 4.8 | Y15: 127 | Z15: 21.03 | AA15: 272 | AB15: 45.03 | AC15: 205 | AD15: 33.94 | AE15: 99.41 | AF15: 12.76 | AG15: 0.95 | AH15: 0.05
A16: ARIC | B16: EU | C16: Overall | D16: 1996 | E16: 53.6 | F16: 5.5 | G16: 25.8 | H16: 4.6 | I16: 951 | J16: 47.7 | K16: 713 | L16: 35.7 | M16: 332 | N16: 16.6 | O16: 94 | P16: 13.1 | Q16: 0.93 | R16: 0.08 | T16: 5934 | U16: 54.51 | V16: 5.73 | W16: 27.43 | X16: 4.92 | Y16: 1991 | Z16: 33.55 | AA16: 2466 | AB16: 41.56 | AC16: 1477 | AD16: 24.89 | AE16: 96.94 | AF16: 13.42 | AG16: 0.93 | AH16: 0.08
C17: women | D17: 1091 | E17: 53.3 | F17: 5.6 | G17: 25.2 | H17: 4.9 | I17: 617 | J17: 56.6 | K17: 295 | L17: 27 | M17: 179 | N17: 16.4 | O17: 90.5 | P17: 13.9 | Q17: 0.89 | R17: 0.08 | T17: 3097 | U17: 54.16 | V17: 5.69 | W17: 27.11 | X17: 5.64 | Y17: 1330 | Z17: 42.94 | AA17: 972 | AB17: 31.39 | AC17: 795 | AD17: 25.67 | AE17: 93.92 | AF17: 15.08 | AG17: 0.89 | AH17: 0.08
C18: men | D18: 905 | E18: 53.9 | F18: 5.5 | G18: 26.6 | H18: 4 | I18: 334 | J18: 36.9 | K18: 418 | L18: 46 | M18: 153 | N18: 16.9 | O18: 98.2 | P18: 10.6 | Q18: 0.97 | R18: 0.05 | T18: 2831 | U18: 54.89 | V18: 5.76 | W18: 27.77 | X18: 3.96 | Y18: 661 | Z18: 23.3 | AA18: 1494 | AB18: 52.66 | AC18: 682 | AD18: 24.04 | AE18: 100.23 | AF18: 10.37 | AG18: 0.97 | AH18: 0.05
A19: AUSTWIN | B19: EU | C19: Overall | D19: 448 | E19: 42.6 | F19: 11.4 | G19: 25.8 | H19: 4.6 | I19: 205 | J19: 45.8 | K19: 166 | L19: 37.1 | M19: 72 | N19: 16.1 | O19: NA | P19: NA | Q19: NA | R19: NA | T19: 1718 | U19: 53.06 | V19: 15.47 | W19: 27.05 | X19: 5.16 | Y19: 658 | Z19: 38.5 | AA19: 663 | AB19: 38.8 | AC19: 387 | AD19: 22.7 | AE19: NA | AF19: NA | AG19: NA | AH19: NA
A20: BHS | B20: EU | C20: women | D20: 55 | E20: 45.8 | F20: 16.7 | G20: 27 | H20: 4.6 | I20: 22 | J20: 40 | K20: 19 | L20: 34.5 | M20: 14 | N20: 25.5 | O20: 84.2 | P20: 12 | Q20: 0.81 | R20: 0.07 | T20: 590 | U20: 55.23 | V20: 16.63 | W20: 25.44 | X20: 4.38 | Y20: 316 | Z20: 53.6 | AA20: 177 | AB20: 30 | AC20: 93 | AD20: 15.8 | AE20: 80.66 | AF20: 11.5 | AG20: 0.8 | AH20: 0.07
C21: men | D21: 54 | E21: 45.1 | F21: 15.5 | G21: 26.2 | H21: 3.9 | I21: 26 | J21: 33.3 | K21: 18 | L21: 33.3 | M21: 10 | N21: 18.5 | O21: 91.8 | P21: 10.5 | Q21: 0.93 | R21: 0.07 | T21: 359 | U21: 54.75 | V21: 16.78 | W21: 26.63 | X21: 3.64 | Y21: 124 | Z21: 34.5 | AA21: 171 | AB21: 47.6 | AC21: 61 | AD21: 17 | AE21: 93.62 | AF21: 10.46 | AG21: 0.93 | AH21: 0.06
A22: BIOME | B22: AF | C22: Overall | D22: 905 | E22: 50.8 | F22: 12.7 | G22: 29.5 | H22: 7.7 | I22: 264 | J22: 29.2 | K22: 266 | L22: 29.4 | M22: 358 | N22: 39.6 | O22: NA | P22: NA | Q22: NA | R22: NA | T22: 2587 | U22: 52.24 | V22: 15.56 | W22: 30.78 | X22: 8.07 | Y22: 598 | Z22: 23.12 | AA22: 787 | AB22: 30.42 | AC22: 1170 | AD22: 45.23 | AE22: NA | AF22: NA | AG22: NA | AH22: NA
C23: women | D23: 478 | E23: 51.9 | F23: 12.8 | G23: 30.9 | H23: 8.1 | I23: 106 | J23: 22.2 | K23: 126 | L23: 26.4 | M23: 233 | N23: 48.7 | O23: NA | P23: NA | Q23: NA | R23: NA | T23: 1771 | U23: 52.28 | V23: 15.92 | W23: 31.7 | X23: 8.68 | Y23: 379 | Z23: 21.4 | AA23: 479 | AB23: 27.05 | AC23: 885 | AD23: 49.97 | AE23: NA | AF23: NA | AG23: NA | AH23: NA
C24: men | D24: 427 | E24: 49.5 | F24: 12.4 | G24: 27.9 | H24: 6.8 | I24: 158 | J24: 37 | K24: 140 | L24: 32.8 | M24: 125 | N24: 29.3 | O24: NA | P24: NA | Q24: NA | R24: NA | T24: 816 | U24: 52.14 | V24: 14.77 | W24: 28.78 | X24: 6.1 | Y24: 219 | Z24: 26.84 | AA24: 308 | AB24: 37.75 | AC24: 285 | AD24: 34.93 | AE24: NA | AF24: NA | AG24: NA | AH24: NA
A25: BIOME | B25: EU | C25: Overall | D25: 168 | E25: 64.4 | F25: 8 | G25: 27.6 | H25: 5.5 | I25: 48 | J25: 28.6 | K25: 74 | L25: 44.1 | M25: 44 | N25: 26.2 | O25: NA | P25: NA | Q25: NA | R25: NA | T25: 1849 | U25: 68.07 | V25: 9.34 | W25: 26.85 | X25: 5.43 | Y25: 727 | Z25: 39.32 | AA25: 668 | AB25: 36.13 | AC25: 435 | AD25: 23.53 | AE25: NA | AF25: NA | AG25: NA | AH25: NA
C26: women | D26: 55 | E26: 63.6 | F26: 8.9 | G26: 26.7 | H26: 6 | I26: 22 | J26: 40 | K26: 17 | L26: 30.9 | M26: 15 | N26: 27.3 | O26: NA | P26: NA | Q26: NA | R26: NA | T26: 913 | U26: 67.47 | V26: 9.06 | W26: 25.93 | X26: 5.7 | Y26: 441 | Z26: 48.3 | AA26: 264 | AB26: 28.92 | AC26: 191 | AD26: 20.92 | AE26: NA | AF26: NA | AG26: NA | AH26: NA
C27: men | D27: 113 | E27: 64.7 | F27: 7.5 | G27: 28 | H27: 5.3 | I27: 26 | J27: 23 | K27: 57 | L27: 50.4 | M27: 29 | N27: 25.7 | O27: NA | P27: NA | Q27: NA | R27: NA | T27: 936 | U27: 68.66 | V27: 9.58 | W27: 27.74 | X27: 5 | Y27: 286 | Z27: 30.56 | AA27: 404 | AB27: 43.16 | AC27: 244 | AD27: 26.07 | AE27: NA | AF27: NA | AG27: NA | AH27: NA
A28: BIOME | B28: HS | C28: Overall | D28: 921 | E28: 49.2 | F28: 13.3 | G28: 29.2 | H28: 6.5 | I28: 239 | J28: 26 | K28: 315 | L28: 34.2 | M28: 358 | N28: 38.9 | O28: NA | P28: NA | Q28: NA | R28: NA | T28: 3787 | U28: 55.55 | V28: 16.47 | W28: 29.44 | X28: 6.67 | Y28: 967 | Z28: 25.53 | AA28: 1310 | AB28: 34.59 | AC28: 1484 | AD28: 39.19 | AE28: NA | AF28: NA | AG28: NA | AH28: NA
C29: women | D29: 475 | E29: 49.1 | F29: 13.5 | G29: 29.9 | H29: 6.8 | I29: 119 | J29: 25.1 | K29: 140 | L29: 29.5 | M29: 212 | N29: 44.6 | O29: NA | P29: NA | Q29: NA | R29: NA | T29: 2469 | U29: 55.19 | V29: 16.62 | W29: 29.7 | X29: 6.98 | Y29: 639 | Z29: 25.88 | AA29: 782 | AB29: 31.67 | AC29: 1028 | AD29: 41.64 | AE29: NA | AF29: NA | AG29: NA | AH29: NA
C30: men | D30: 446 | E30: 49.4 | F30: 13.2 | G30: 28.6 | H30: 6.1 | I30: 120 | J30: 26.9 | K30: 175 | L30: 39.2 | M30: 146 | N30: 32.7 | O30: NA | P30: NA | Q30: NA | R30: NA | T30: 1318 | U30: 56.22 | V30: 16.15 | W30: 28.96 | X30: 6.01 | Y30: 328 | Z30: 24.89 | AA30: 528 | AB30: 40.06 | AC30: 456 | AD30: 34.6 | AE30: NA | AF30: NA | AG30: NA | AH30: NA
A31: BLSA | B31: EU | C31: women | D31: NA | E31: NA | F31: NA | G31: NA | H31: NA | I31: NA | J31: NA | K31: NA | L31: NA | M31: NA | N31: NA | O31: NA | P31: NA | Q31: NA | R31: NA | T31: 372 | U31: 66.76 | V31: 17.03 | W31: 25.92 | X31: 4.84 | Y31: 193 | Z31: 51.88 | AA31: 109 | AB31: 29.3 | AC31: 70 | AD31: 18.82 | AE31: 84.49 | AF31: 11.67 | AG31: 0.82 | AH31: 0.074
C32: men | D32: NA | E32: NA | F32: NA | G32: NA | H32: NA | I32: NA | J32: NA | K32: NA | L32: NA | M32: NA | N32: NA | O32: NA | P32: NA | Q32: NA | R32: NA | T32: 441 | U32: 71.53 | V32: 15.7 | W32: 27.54 | X32: 4.56 | Y32: 139 | Z32: 31.52 | AA32: 191 | AB32: 43.31 | AC32: 111 | AD32: 25.17 | AE32: 98.54 | AF32: 12.17 | AG32: 0.95 | AH32: 0.065
A33: B58C | B33: EU | C33: women | D33: 809 | E33: 45.2 | F33: 0.4 | G33: 26.7 | H33: 5.5 | I33: 366 | J33: 45.2 | K33: 249 | L33: 30.8 | M33: 186 | N33: 23 | O33: 85.7 | P33: 13 | Q33: 0.83 | R33: 0.06 | T33: 2446 | U33: 45.16 | V33: 0.38 | W33: 27 | X33: 5.52 | Y33: 1060 | Z33: 43.3 | AA33: 814 | AB33: 33.3 | AC33: 565 | AD33: 23.1 | AE33: 85.19 | AF33: 12.47 | AG33: 0.81 | AH33: 0.06
C34: men | D34: 732 | E34: 45.2 | F34: 0.4 | G34: 27.3 | H34: 4.3 | I34: 230 | J34: 31.4 | K34: 312 | L34: 42.6 | M34: 185 | N34: 25.3 | O34: 97.9 | P34: 11.2 | Q34: 0.94 | R34: 0.06 | T34: 2494 | U34: 45.17 | V34: 0.38 | W34: 28.05 | X34: 4.24 | Y34: 561 | Z34: 22.5 | AA34: 1282 | AB34: 51.4 | AC34: 649 | AD34: 26 | AE34: 98.85 | AF34: 11.08 | AG34: 0.93 | AH34: 0.06
A35: CHS | B35: EU | C35: women | D35: 229 | E35: 70.1 | F35: 3.8 | G35: 25.4 | H35: 4.5 | I35: 127 | J35: 55.5 | K35: 67 | L35: 29.3 | M35: 35 | N35: 15.3 | O35: 89.4 | P35: 12.8 | Q35: 0.89 | R35: 0.08 | T35: 1656 | U35: 72.14 | V35: 5.26 | W35: 26.63 | X35: 4.78 | Y35: 681 | Z35: 41.12 | AA35: 646 | AB35: 39.01 | AC35: 329 | AD35: 19.87 | AE35: 91.08 | AF35: 13.51 | AG35: 0.89 | AH35: 0.095
C36: men | D36: 119 | E36: 71 | F36: 4.9 | G36: 25.4 | H36: 3.2 | I36: 54 | J36: 45.4 | K36: 59 | L36: 49.6 | M36: 6 | N36: 5 | O36: 96 | P36: 9.4 | Q36: 0.96 | R36: 0.06 | T36: 1111 | U36: 73.16 | V36: 5.62 | W36: 26.52 | X36: 3.51 | Y36: 391 | Z36: 35.19 | AA36: 545 | AB36: 49.05 | AC36: 175 | AD36: 15.75 | AE36: 97.82 | AF36: 9.73 | AG36: 0.96 | AH36: 0.058
A37: CLHNS | B37: AS | C37: women | D37: 267 | E37: 49.6 | F37: 7.1 | G37: 23.1 | H37: 4.8 | I37: 181 | J37: 67.8 | K37: 59 | L37: 22.1 | M37: 27 | N37: 10.1 | O37: 78.3 | P37: 11.6 | Q37: 0.88 | R37: 0.05 | T37: 1526 | U37: 48.25 | V37: 5.9 | W37: 24.53 | X37: 4.25 | Y37: 848 | Z37: 55.57 | AA37: 522 | AB37: 34.21 | AC37: 156 | AD37: 10.22 | AE37: 81.59 | AF37: 10.67 | AG37: 0.88 | AH37: 0.05
A38: COLAUS | B38: EU | C38: women | D38: 699 | E38: 52.04 | F38: 9.87 | G38: 23.98 | H38: 4.34 | I38: 444 | J38: 63.5193133 | K38: 168 | L38: 24.03433476 | M38: 87 | N38: 12.44635193 | O38: 64.05 | P38: 11.84 | Q38: 0.65 | R38: 0.068 | T38: 2176 | U38: 54.49 | V38: 10.91 | W38: 25.545 | X38: 5.005 | Y38: 1146 | Z38: 52.66544118 | AA38: 653 | AB38: 30.00919118 | AC38: 377 | AD38: 17.32536765 | AE38: 67.23 | AF38: 13.195 | AG38: 0.657 | AH38: 0.07
C39: men | D39: 734 | E39: 51.18 | F39: 10.39 | G39: 26.23 | H39: 3.77 | I39: 292 | J39: 39.78201635 | K39: 331 | L39: 45.09536785 | M39: 111 | N39: 15.1226158 | O39: 80.35 | P39: 12.68 | Q39: 0.785 | R39: 0.0796 | T39: 1826 | U39: 53.64 | V39: 10.84 | W39: 26.785 | X39: 4.097 | Y39: 646 | Z39: 35.37787514 | AA39: 839 | AB39: 45.94742607 | AC39: 341 | AD39: 18.6746988 | AE39: 82 | AF39: 13.48 | AG39: 0.789 | AH39: 0.08
A40: CROATIA-KORCULA | B40: EU | C40: Overall | D40: 203 | E40: 48.3 | F40: 12 | G40: 26.9 | H40: 4.4 | I40: 72 | J40: 35.8 | K40: 89 | L40: 44.3 | M40: 40 | N40: 19.9 | O40: 90.8 | P40: 12.7 | Q40: 0.89 | R40: 0.09 | T40: 683 | U40: 58.45 | V40: 13.6 | W40: 28.29 | X40: 4.02 | Y40: 133 | Z40: 19.85 | AA40: 323 | AB40: 48.21 | AC40: 214 | AD40: 31.94 | AE40: 95.27 | AF40: 11.81 | AG40: 0.91 | AH40: 0.08
C41: women | D41: 140 | E41: 47.7 | F41: 11,14 | G41: 26.4 | H41: 4.4 | I41: 57 | J41: 41.3 | K41: 58 | L41: 42 | M41: 23 | N41: 16.7 | O41: 87.8 | P41: 12 | Q41: 0.86 | R41: 0.08 | T41: 425 | U41: 57.89 | V41: 13.48 | W41: 27.87 | X41: 4.27 | Y41: 107 | Z41: 25.48 | AA41: 190 | AB41: 45.24 | AC41: 123 | AD41: 29.29 | AE41: 91.95 | AF41: 11.7 | AG41: 0.88 | AH41: 0.08
C42: men | D42: 63 | E42: 49.6 | F42: 13.7 | G42: 27.9 | H42: 4.1 | I42: 15 | J42: 23.8 | K42: 31 | L42: 49.2 | M42: 17 | N42: 26 | O42: 97.4 | P42: 11.6 | Q42: 0.94 | R42: 0.08 | T42: 258 | U42: 59.36 | V42: 13.76 | W42: 28.99 | X42: 3.46 | Y42: 26 | Z42: 10.4 | AA42: 133 | AB42: 53.2 | AC42: 91 | AD42: 36.4 | AE42: 100.84 | AF42: 9.73 | AG42: 0.96 | AH42: 0.07
A43: CROTIA-VIS | B43: EU | C43: Overall | D43: 255 | E43: 47.6 | F43: 14.5 | G43: 26.1 | H43: 4.5 | I43: 105 | J43: 42.2 | K43: 98 | L43: 39.4 | M43: 46 | N43: 18.5 | O43: 92.2 | P43: 12.5 | Q43: 0.91 | R43: 0.08 | T43: 660 | U43: 59.69 | V43: 14.57 | W43: 27.78 | X43: 4.11 | Y43: 165 | Z43: 25.19 | AA43: 297 | AB43: 45.34 | AC43: 193 | AD43: 29.47 | AE43: 97.21 | AF43: 11.24 | AG43: 0.94 | AH43: 0.08
C44: women | D44: 136 | E44: 46.5 | F44: 13.7 | G44: 25.9 | H44: 4.9 | I44: 62 | J44: 47 | K44: 43 | L44: 32.6 | M44: 27 | N44: 20.5 | O44: 89.8 | P44: 13.3 | Q44: 0.88 | R44: 0.08 | T44: 393 | U44: 60.15 | V44: 15.19 | W44: 27.63 | X44: 4.47 | Y44: 117 | Z44: 30.08 | AA44: 151 | AB44: 38.82 | AC44: 121 | AD44: 31.11 | AE44: 95.64 | AF44: 12.23 | AG44: 0.92 | AH44: 0.09
C45: men | D45: 119 | E45: 48.8 | F45: 15.4 | G45: 26.3 | H45: 3.9 | I45: 43 | J45: 36.8 | K45: 55 | L45: 47 | M45: 19 | N45: 16.2 | O45: 95.1 | P45: 10.9 | Q45: 0.95 | R45: 0.07 | T45: 267 | U45: 59.01 | V45: 13.6 | W45: 28 | X45: 3.51 | Y45: 48 | Z45: 18.05 | AA45: 146 | AB45: 54.89 | AC45: 72 | AD45: 27.07 | AE45: 99.52 | AF45: 9.16 | AG45: 0.98 | AH45: 0.06
A46: DESIR | B46: EU | C46: Overall | D46: 68 | E46: 51.8 | F46: 5.4 | G46: 22.7 | H46: 1.4 | I46: 68 | J46: 100 | K46: 0 | L46: 0 | M46: 0 | N46: 0 | O46: 79.6 | P46: 8.2 | Q46: 0.84 | R46: 0.08 | T46: 647 | U46: 49.73 | V46: 8.28 | W46: 21.71 | X46: 1.89 | Y46: 647 | Z46: 100 | AA46: 0 | AB46: 0 | AC46: 0 | AD46: 0 | AE46: 73.7 | AF46: 8.03 | AG46: 0.79 | AH46: 0.07
C47: women | D47: 31 | E47: 50.2 | F47: 5 | G47: 22.6 | H47: 1.5 | I47: 31 | J47: 100 | K47: 0 | L47: 0 | M47: 0 | N47: 0 | O47: 73.6 | P47: 6.6 | Q47: 0.78 | R47: 0.07 | T47: 506 | U47: 48.95 | V47: 8.73 | W47: 21.28 | X47: 1.85 | Y47: 506 | Z47: 100 | AA47: 0 | AB47: 0 | AC47: 0 | AD47: 0 | AE47: 70.68 | AF47: 5.71 | AG47: 0.76 | AH47: 0.05
C48: men | D48: 37 | E48: 53.1 | F48: 5.5 | G48: 22.8 | H48: 1.4 | I48: 37 | J48: 100 | K48: 0 | L48: 0 | M48: 0 | N48: 0 | O48: 84.5 | P48: 5.6 | Q48: 0.9 | R48: 0.05 | T48: 141 | U48: 52.53 | V48: 5.64 | W48: 23.24 | X48: 1.08 | Y48: 141 | Z48: 100 | AA48: 0 | AB48: 0 | AC48: 0 | AD48: 0 | AE48: 84.56 | AF48: 5.34 | AG48: 0.89 | AH48: 0.04
A49: EGCUT | B49: EU | C49: women | D49: 125 | E49: 43.99 | F49: 16.5 | G49: 25.26 | H49: 4.89 | I49: 67 | J49: 53.6 | K49: 38 | L49: 30.4 | M49: 20 | N49: 16 | O49: 83.77 | P49: 12.87 | Q49: 0.82 | R49: 0.08 | T49: 958 | U49: 68.87 | V49: 20.29 | W49: 27.59 | X49: 5.63 | Y49: 335 | Z49: 35.01 | AA49: 333 | AB49: 34.8 | AC49: 287 | AD49: 29.99 | AE49: 89.36 | AF49: 14.18 | AG49: 0.85 | AH49: 0.09
C50: men | D50: 338 | E50: 49.31 | F50: 17.13 | G50: 26.1 | H50: 5.12 | I50: 166 | J50: 49.11 | K50: 113 | L50: 33.43 | M50: 58 | N50: 17.16 | O50: 93.61 | P50: 13.99 | Q50: 0.93 | R50: 0.09 | T50: 638 | U50: 60.36 | V50: 18.93 | W50: 27.41 | X50: 4.59 | Y50: 201 | Z50: 31.55 | AA50: 280 | AB50: 43.96 | AC50: 156 | AD50: 24.49 | AE50: 97.76 | AF50: 13.41 | AG50: 0.94 | AH50: 0.09
A51: EPIC-Norfolk | B51: EU | C51: women | D51: 138 | E51: 54.9 | F51: 8.4 | G51: 25.8 | H51: 4.1 | I51: 59 | J51: 45.4 | K51: 52 | L51: 40 | M51: 19 | N51: 14.6 | O51: 81.6 | P51: 10.5 | Q51: 0.79 | R51: 0.06 | T51: 935 | U51: 57.29 | V51: 8.71 | W51: 25.71 | X51: 3.97 | Y51: 442 | Z51: 47.42 | AA51: 364 | AB51: 39.06 | AC51: 126 | AD51: 13.52 | AE51: 80.63 | AF51: 9.82 | AG51: 0.78 | AH51: 0.06
C52: men | D52: 124 | E52: 57.7 | F52: 9.1 | G52: 25.8 | H52: 3.7 | I52: 52 | J52: 42.3 | K52: 59 | L52: 48 | M52: 12 | N52: 9.8 | O52: 94.4 | P52: 10.7 | Q52: 0.93 | R52: 0.06 | T52: 789 | U52: 58.68 | V52: 8.96 | W52: 26.46 | X52: 3.19 | Y52: 262 | Z52: 33.21 | AA52: 422 | AB52: 53.49 | AC52: 105 | AD52: 13.31 | AE52: 94.9 | AF52: 9.32 | AG52: 0.92 | AH52: 0.06
A53: ERF | B53: EU | C53: women | D53: 591 | E53: 47.3 | F53: 12.9 | G53: 25.7 | H53: 4.6 | I53: 299 | J53: 50.6 | K53: 192 | L53: 32.5 | M53: 95 | N53: 16.1 | O53: 80.4 | P53: 11.6 | Q53: 0.81 | R53: 0.08 | T53: 722 | U53: 47.66 | V53: 15.54 | W53: 27 | X53: 5.14 | Y53: 264 | Z53: 36.5 | AA53: 285 | AB53: 36.5 | AC53: 168 | AD53: 23.2 | AE53: 82.38 | AF53: 12.49 | AG53: 0.8 | AH53: 0.08
C54: men | D54: 329 | E54: 48.9 | F54: 13.9 | G54: 26.3 | H54: 4.1 | I54: 124 | J54: 37.7 | K54: 147 | L54: 44.7 | M54: 56 | N54: 17 | O54: 92.4 | P54: 11.5 | Q54: 0.95 | R54: 0.08 | T54: 680 | U54: 48.23 | V54: 14.46 | W54: 27.51 | X54: 3.83 | Y54: 173 | Z54: 25.4 | AA54: 363 | AB54: 53.3 | AC54: 144 | AD54: 21.1 | AE54: 94.2 | AF54: 11.38 | AG54: 0.94 | AH54: 0.08
A55: FAMHS | B55: EU | C55: Overall | D55: 525 | E55: 49 | F55: 12.5 | G55: 26.3 | H55: 5.2 | I55: 235 | J55: 45 | K55: 197 | L55: 37.7 | M55: 90 | N55: 17.2 | O55: 94.6 | P55: 15 | Q55: 0.92 | R55: 0.09 | T55: 3138 | U55: 52.73 | V55: 13.75 | W55: 28 | X55: 5.51 | Y55: 1006 | Z55: 32.16 | AA55: 1174 | AB55: 37.53 | AC55: 948 | AD55: 30.31 | AE55: 98.16 | AF55: 15.31 | AG55: 0.92 | AH55: 0.09
A56: FENLAND | B56: EU | C56: women | D56: 75 | E56: 45.3 | F56: 7.4 | G56: 26.6 | H56: 5.3 | I56: 35 | J56: 46.7 | K56: 21 | L56: 28 | M56: 19 | N56: 25.3 | O56: 87.2 | P56: 13.3 | Q56: 0.85 | R56: 0.06 | T56: 667 | U56: 45.45 | V56: 7.19 | W56: 26.72 | X56: 5.53 | Y56: 303 | Z56: 45.4 | AA56: 216 | AB56: 32.4 | AC56: 148 | AD56: 22.2 | AE56: 87.01 | AF56: 12.9 | AG56: 0.84 | AH56: 0.06
C57: men | D57: 65 | E57: 44.4 | F57: 6.7 | G57: 27 | H57: 4.1 | I57: 24 | J57: 36.9 | K57: 31 | L57: 47.7 | M57: 10 | N57: 15.4 | O57: 96.6 | P57: 10.3 | Q57: 0.94 | R57: 0.06 | T57: 500 | U57: 44.79 | V57: 7.45 | W57: 27.65 | X57: 3.91 | Y57: 123 | Z57: 24.6 | AA57: 266 | AB57: 53.2 | AC57: 111 | AD57: 22.2 | AE57: 99 | AF57: 11.94 | AG57: 0.94 | AH57: 0.08
A58: FRAMINGHAM HEART STUDY (BMI) | B58: EU | C58: Overall | D58: 2507 | E58: 36.2 | F58: 8.8 | G58: 25.1 | H58: 4.6 | I58: 1380 | J58: 55.7 | K58: 772 | L58: 31.1 | M58: 328 | N58: 13.2 | O58: 93.8 | P58: 15.2 | Q58: 0.89 | R58: 0.1 | T58: 5847 | U58: 38.42 | V58: 9.51 | W58: 26.08 | X58: 5.04 | Y58: 2710 | Z58: 46.86 | AA58: 2057 | AB58: 35.57 | AC58: 1016 | AD58: 17.57 | AE58: 92.9 | AF58: 15.14 | AG58: 0.87 | AH58: 0.1
C59: women | D59: 1320 | E59: 36 | F59: 8.8 | G59: 24.1 | H59: 4.7 | I59: 911 | J59: 70.2 | K59: 255 | L59: 19.7 | M59: 132 | N59: 10.2 | O59: 89.5 | P59: 15.8 | Q59: 0.81 | R59: 0.07 | T59: 3198 | U59: 38.27 | V59: 9.34 | W59: 25.12 | X59: 5.42 | Y59: 1920 | Z59: 60.95 | AA59: 748 | AB59: 23.75 | AC59: 482 | AD59: 15.3 | AE59: 88.18 | AF59: 15.67 | AG59: 0.8 | AH59: 0.07
C60: men | D60: 1187 | E60: 36.4 | F60: 8.8 | G60: 26.3 | H60: 4.1 | I60: 469 | J60: 39.7 | K60: 517 | L60: 43.7 | M60: 196 | N60: 16.6 | O60: 98.2 | P60: 13.3 | Q60: 0.97 | R60: 0.06 | T60: 2649 | U60: 38.6 | V60: 9.7 | W60: 27.23 | X60: 4.27 | Y60: 790 | Z60: 30 | AA60: 1309 | AB60: 49.72 | AC60: 534 | AD60: 20.28 | AE60: 98.32 | AF60: 12.47 | AG60: 0.95 | AH60: 0.06
A61: FRAMINGHAM HEART STUDY (WC) | B61: EU | C61: Overall | D61: 1380 | E61: 45.2 | F61: 10.3 | G61: 26.6 | H61: 5 | I61: 685 | J61: 50.3 | K61: 464 | L61: 34.1 | M61: 213 | N61: 15.6 | O61: 91.3 | P61: 14.9 | Q61: 0.89 | R61: 0.1 | T61: 5720 | U61: 45.23 | V61: 11.01 | W61: 26.91 | X61: 5.27 | Y61: 2657 | Z61: 46.9 | AA61: 1990 | AB61: 35.13 | AC61: 1018 | AD61: 19.97 | AE61: 91.41 | AF61: 14.98 | AG61: 0.88 | AH61: 0.1
C62: women | D62: 713 | E62: 45.5 | F62: 10.2 | G62: 25.8 | H62: 5.4 | I62: 454 | J62: 64.9 | K62: 159 | L62: 22.7 | M62: 87 | N62: 12.4 | O62: 85.1 | P62: 14.4 | Q62: 0.82 | R62: 0.07 | T62: 3032 | U62: 44.94 | V62: 10.92 | W62: 26.07 | X62: 5.91 | Y62: 1864 | Z62: 62.32 | AA62: 665 | AB62: 22.23 | AC62: 462 | AD62: 15.45 | AE62: 85.58 | AF62: 15.27 | AG62: 0.8 | AH62: 0.07
C63: men | D63: 667 | E63: 44.9 | F63: 10.4 | G63: 27.5 | H63: 4.4 | I63: 231 | J63: 34.9 | K63: 305 | L63: 46.1 | M63: 126 | N63: 19 | O63: 97.9 | P63: 12.2 | Q63: 0.97 | R63: 0.06 | T63: 2688 | U63: 45.57 | V63: 11.1 | W63: 27.85 | X63: 4.26 | Y63: 793 | Z63: 29.66 | AA63: 1325 | AB63: 49.55 | AC63: 556 | AD63: 20.79 | AE63: 97.99 | AF63: 11.52 | AG63: 0.95 | AH63: 0.06
A64: FRAMINGHAM HEART STUDY (WHR) | B64: EU | C64: Overall | D64: 777 | E64: 49.5 | F64: 9.4 | G64: 26.4 | H64: 4.5 | I64: 437 | J64: 57.2 | K64: 256 | L64: 33.5 | M64: 71 | N64: 9.3 | O64: 89.3 | P64: 14.3 | Q64: 0.89 | R64: 0.1 | T64: 2478 | U64: 51.75 | V64: 10.02 | W64: 26.96 | X64: 4.96 | Y64: 1333 | Z64: 54.47 | AA64: 825 | AB64: 33.71 | AC64: 289 | AD64: 11.81 | AE64: 89.47 | AF64: 14.55 | AG64: 0.88 | AH64: 0.1
C65: women | D65: 409 | E65: 49.7 | F65: 9.5 | G65: 25.4 | H65: 4.8 | I65: 302 | J65: 75.3 | K65: 74 | L65: 18.5 | M65: 25 | N65: 6.2 | O65: 81.8 | P65: 12.4 | Q65: 0.82 | R65: 0.07 | T65: 1298 | U65: 51.45 | V65: 9.86 | W65: 26.3 | X65: 5.74 | Y65: 919 | Z65: 71.91 | AA65: 246 | AB65: 19.25 | AC65: 113 | AD65: 8.84 | AE65: 82.12 | AF65: 14 | AG65: 0.8 | AH65: 0.07
C66: men | D66: 368 | E66: 49.2 | F66: 9.4 | G66: 27.4 | H66: 4 | I66: 135 | J66: 37.2 | K66: 182 | L66: 50.1 | M66: 46 | N66: 12.7 | O66: 97.6 | P66: 11.2 | Q66: 0.97 | R66: 0.06 | T66: 1180 | U66: 52.07 | V66: 10.19 | W66: 27.69 | X66: 3.8 | Y66: 414 | Z66: 35.41 | AA66: 579 | AB66: 49.53 | AC66: 176 | AD66: 15.06 | AE66: 97.57 | AF66: 10.19 | AG66: 0.95 | AH66: 0.06
A67: FUSION-controls | B67: EU | C67: women | D67: 30 | E67: 60.9 | F67: 8.4 | G67: 27 | H67: 4.8 | I67: 13 | J67: 43.3 | K67: 9 | L67: 30 | M67: 8 | N67: 26.7 | O67: 86.9 | P67: 11.4 | Q67: 0.83 | R67: 0.06 | T67: 17 | U67: 60.69 | V67: 5.79 | W67: 26.92 | X67: 2.13 | Y67: 4 | Z67: 23.5 | AA67: 12 | AB67: 70.6 | AC67: 1 | AD67: 5.9 | AE67: 86.21 | AF67: 8.84 | AG67: 0.833 | AH67: 0.059
C68: men | D68: 24 | E68: 67.5 | F68: 6.5 | G68: 27.4 | H68: 4.2 | I68: 6 | J68: 25 | K68: 12 | L68: 50 | M68: 6 | N68: 25 | O68: 100.5 | P68: 10.3 | Q68: 0.96 | R68: 0.05 | T68: 36 | U68: 68.57 | V68: 7.9 | W68: 27.07 | X68: 3.41 | Y68: 13 | Z68: 36.1 | AA68: 18 | AB68: 50 | AC68: 5 | AD68: 13.9 | AE68: 96.83 | AF68: 9.58 | AG68: 0.94 | AH68: 0.059
A69: FUSION-T2D cases | C69: women | D69: 25 | E69: 59.9 | F69: 6.9 | G69: 31.6 | H69: 5.8 | I69: 3 | J69: 12 | K69: 8 | L69: 32 | M69: 14 | N69: 56 | O69: 102.3 | P69: 15.7 | Q69: 0.9 | R69: 0.06 | T69: 38 | U69: 63.63 | V69: 8.11 | W69: 31.87 | X69: 4.33 | Y69: 2 | Z69: 5.3 | AA69: 9 | AB69: 23.7 | AC69: 27 | AD69: 71 | AE69: 101.63 | AF69: 11.57 | AG69: 0.9 | AH69: 0.06
C70: men | D70: 55 | E70: 59.7 | F70: 7.5 | G70: 28.5 | H70: 4.1 | I70: 10 | J70: 18.2 | K70: 28 | L70: 50.9 | M70: 17 | N70: 30.9 | O70: 103.3 | P70: 12.6 | Q70: 0.98 | R70: 0.07 | T70: 206 | U70: 63.68 | V70: 6.84 | W70: 29.55 | X70: 4.05 | Y70: 23 | Z70: 11.2 | AA70: 93 | AB70: 45.1 | AC70: 90 | AD70: 43.7 | AE70: 105.13 | AF70: 10.43 | AG70: 0.98 | AH70: 0.063
A71: GENDIAN | B71: EU | C71: Overall | D71: 47 | E71: 56.1 | F71: 9.2 | G71: 31.3 | H71: 6.5 | I71: 6 | J71: 12.8 | K71: 18 | L71: 38.3 | M71: 23 | N71: 48.9 | O71: 109.9 | P71: 14.8 | Q71: 0.99 | R71: 0.08 | T71: 402 | U71: 66.05 | V71: 10 | W71: 31.63 | X71: 5.79 | Y71: 33 | Z71: 8.21 | AA71: 152 | AB71: 37.81 | AC71: 217 | AD71: 53.98 | AE71: 111.3 | AF71: 15.09 | AG71: 1 | AH71: 0.13
C72: women | D72: 16 | E72: 55.1 | F72: 10.9 | G72: 31.9 | H72: 5.5 | I72: 2 | J72: 12.5 | K72: 4 | L72: 25 | M72: 10 | N72: 62.5 | O72: 106.8 | P72: 11.9 | Q72: 0.94 | R72: 0.1 | T72: 196 | U72: 67.6 | V72: 9.96 | W72: 32.33 | X72: 6.21 | Y72: 13 | Z72: 6.63 | AA72: 70 | AB72: 35.71 | AC72: 113 | AD72: 57.65 | AE72: 110.63 | AF72: 16.04 | AG72: 0.96 | AH72: 0.13
C73: men | D73: 31 | E73: 56.6 | F73: 8.3 | G73: 31 | H73: 7.1 | I73: 4 | J73: 12.9 | K73: 14 | L73: 45.2 | M73: 13 | N73: 41.9 | O73: 111.5 | P73: 16.1 | Q73: 1.02 | R73: 0.05 | T73: 206 | U73: 64.58 | V73: 9.84 | W73: 30.95 | X73: 5.3 | Y73: 20 | Z73: 9.71 | AA73: 82 | AB73: 39.81 | AC73: 104 | AD73: 50.49 | AE73: 111.95 | AF73: 14.12 | AG73: 1.04 | AH73: 0.12
A74: GENERATION SCOTLAND | B74: EU | C74: Overall | D74: 1543 | E74: 47.8 | F74: 13.4 | G74: 26.3 | H74: 5.2 | I74: 440 | J74: 43.7 | K74: 366 | L74: 36.4 | M74: 200 | N74: 19.9 | O74: 89.7 | P74: 13.6 | Q74: 0.88 | R74: 0.08 | T74: 8186 | U74: 52.95 | V74: 13.49 | W74: 27.18 | X74: 5.07 | Y74: 1981 | Z74: 35.37 | AA74: 2305 | AB74: 41.15 | AC74: 1315 | AD74: 23.48 | AE74: 90.4 | AF74: 13.89 | AG74: 0.87 | AH74: 0.1
C75: women | D75: 855 | E75: 47.5 | F75: 13.3 | G75: 26.4 | H75: 5.8 | I75: 258 | J75: 45.9 | K75: 184 | L75: 32.7 | M75: 120 | N75: 21.4 | O75: 86.7 | P75: 13.8 | Q75: 0.84 | R75: 0.07 | T75: 4858 | U75: 52.62 | V75: 13.39 | W75: 26.94 | X75: 5.56 | Y75: 1356 | Z75: 40.62 | AA75: 1200 | AB75: 35.95 | AC75: 782 | AD75: 23.43 | AE75: 86.17 | AF75: 13.65 | AG75: 0.83 | AH75: 0.09
C76: men | D76: 688 | E76: 48.3 | F76: 13.6 | G76: 26.2 | H76: 4.4 | I76: 182 | J76: 41 | K76: 182 | L76: 41 | M76: 80 | N76: 18 | O76: 93.8 | P76: 12.3 | Q76: 0.92 | R76: 0.07 | T76: 3328 | U76: 53.44 | V76: 13.63 | W76: 27.53 | X76: 4.24 | Y76: 625 | Z76: 27.62 | AA76: 1105 | AB76: 48.83 | AC76: 533 | AD76: 23.55 | AE76: 96.68 | AF76: 11.68 | AG76: 0.93 | AH76: 0.07
A77: GENOA | B77: EU | C77: Overall | D77: 181 | E77: 51.9 | F77: 11 | G77: 28 | H77: 6.2 | I77: 59 | J77: 32.6 | K77: 69 | L77: 38.1 | M77: 53 | N77: 29.3 | O77: 95.9 | P77: 15.8 | Q77: 0.91 | R77: 0.08 | T77: 1253 | U77: 55.8 | V77: 10.69 | W77: 30.76 | X77: 6.3 | Y77: 205 | Z77: 16.36 | AA77: 452 | AB77: 36.07 | AC77: 596 | AD77: 47.57 | AE77: 100.7 | AF77: 15.53 | AG77: 0.91 | AH77: 0.09
C78: women | D78: 92 | E78: 51.8 | F78: 11.8 | G78: 27.2 | H78: 7.1 | I78: 41 | J78: 44.6 | K78: 25 | L78: 27.2 | M78: 26 | N78: 28.3 | O78: 90.6 | P78: 17 | Q78: 0.86 | R78: 0.07 | T78: 700 | U78: 55.46 | V78: 10.62 | W78: 31 | X78: 7.1 | Y78: 149 | Z78: 21.29 | AA78: 208 | AB78: 29.71 | AC78: 343 | AD78: 49 | AE78: 97.02 | AF78: 17.06 | AG78: 0.86 | AH78: 0.09
C79: men | D79: 89 | E79: 51.9 | F79: 10.3 | G79: 28.7 | H79: 5 | I79: 18 | J79: 20.2 | K79: 44 | L79: 49.4 | M79: 27 | N79: 30.3 | O79: 101.3 | P79: 12.3 | Q79: 0.96 | R79: 0.06 | T79: 553 | U79: 56.23 | V79: 10.77 | W79: 30.45 | X79: 5.11 | Y79: 56 | Z79: 10.13 | AA79: 244 | AB79: 44.12 | AC79: 253 | AD79: 45.75 | AE79: 105.36 | AF79: 11.82 | AG79: 0.97 | AH79: 0.06
A80: GOOD | B80: EU | C80: men | D80: 48 | E80: 24.1 | F80: 0.7 | G80: 23.9 | H80: 3.5 | I80: 34 | J80: 70.8 | K80: 10 | L80: 20.8 | M80: 4 | N80: 8.3 | O80: 85.6 | P80: 8.3 | Q80: 0.86 | R80: 0.04 | T80: 683 | U80: 24.05 | V80: 0.61 | W80: 23.57 | X80: 3.36 | Y80: 517 | Z80: 75.7 | AA80: 138 | AB80: 20.2 | AC80: 28 | AD80: 4.1 | AE80: 84.3 | AF80: 8.05 | AG80: 0.853 | AH80: 0.045
A81: GOYA cases | B81: EU | C81: men | D81: 69 | E81: 43.54 | F81: 6.35 | G81: 36.36 | H81: 5.71 | I81: 1 | J81: 1.44 | K81: 9 | L81: 13.04 | M81: 59 | N81: 85.5 | O81: 120.5 | P81: 14.86 | Q81: 1.04 | R81: 0.078 | T81: 255 | U81: 42.41 | V81: 6.3 | W81: 36.06 | X81: 5.79 | Y81: 2 | Z81: 0.78 | AA81: 36 | AB81: 14.11 | AC81: 217 | AD81: 85.09 | AE81: 117.03 | AF81: 14 | AG81: 1.017 | AH81: 0.11
A82: GOYA controls | C82: men | D82: 76 | E82: 46.15 | F82: 7.62 | G82: 26.07 | H82: 3.92 | I82: 32 | J82: 42.1 | K82: 32 | L82: 42.1 | M82: 12 | N82: 15.78 | O82: 94.09 | P82: 11.83 | Q82: 0.938 | R82: 0.076 | T82: 306 | U82: 47.46 | V82: 8.68 | W82: 26.45 | X82: 3.81 | Y82: 113 | Z82: 36.92 | AA82: 149 | AB82: 48.69 | AC82: 44 | AD82: 14.37 | AE82: 93.69 | AF82: 11 | AG82: 0.928 | AH82: 0.067
A83: HERITAGE | B83: EU | C83: Overall | D83: 75 | E83: 32.21 | F83: 13.16 | G83: 25.34 | H83: 4.68 | I83: 40 | J83: 53.3 | K83: 25 | L83: 33.3 | M83: 10 | N83: 13.3 | O83: 88.11 | P83: 14.97 | Q83: 0.86 | R83: 0.09 | T83: 424 | U83: 36.55 | V83: 14.71 | W83: 25.96 | X83: 5.01 | Y83: 207 | Z83: 48.8 | AA83: 130 | AB83: 30.7 | AC83: 87 | AD83: 20.5 | AE83: 90.92 | AF83: 14.85 | AG83: 0.88 | AH83: 0.08
C84: women | D84: 41 | E84: 31.42 | F84: 12.81 | G84: 24.03 | H84: 3.75 | I84: 28 | J84: 68.3 | K84: 11 | L84: 26.8 | M84: 2 | N84: 4.9 | O84: 82.03 | P84: 11 | Q84: 0.82 | R84: 0.06 | T84: 214 | U84: 35.89 | V84: 14.31 | W84: 25.25 | X84: 5.07 | Y84: 118 | Z84: 55.1 | AA84: 59 | AB84: 27.6 | AC84: 37 | AD84: 17.3 | AE84: 87.09 | AF84: 15.01 | AG84: 0.84 | AH84: 0.08
C85: men | D85: 34 | E85: 33.17 | F85: 13.7 | G85: 26.91 | H85: 5.25 | I85: 12 | J85: 35.3 | K85: 14 | L85: 41.2 | M85: 8 | N85: 23.5 | O85: 95.45 | P85: 15.96 | Q85: 0.92 | R85: 0.08 | T85: 210 | U85: 37.22 | V85: 15.11 | W85: 26.69 | X85: 4.86 | Y85: 89 | Z85: 42.4 | AA85: 71 | AB85: 33.8 | AC85: 50 | AD85: 23.8 | AE85: 94.83 | AF85: 13.64 | AG85: 0.92 | AH85: 0.07
A86: HRS | B86: AF | C86: women | D86: 149 | E86: 59.68 | F86: 8.93 | G86: 28.97 | H86: 6.83 | I86: 44 | J86: 29.53 | K86: 42 | L86: 28.2 | M86: 63 | N86: 42.3 | O86: 97.16 | P86: 15.14 | Q86: NA | R86: NA | T86: 722 | U86: 67.58 | V86: 10.21 | W86: 32.15 | X86: 6.88 | Y86: 103 | Z86: 14.3 | AA86: 98 | AB86: 13.6 | AC86: 434 | AD86: 60.1 | AE86: 102.99 | AF86: 15.16 | AG86: NA | AH86: NA
C87: men | D87: 111 | E87: 62.86 | F87: 10.3 | G87: 25.63 | H87: 4.52 | I87: 55 | J87: 49.6 | K87: 35 | L87: 31.5 | M87: 21 | N87: 18.9 | O87: 95.55 | P87: 12.47 | Q87: NA | R87: NA | T87: 383 | U87: 68.23 | V87: 9.17 | W87: 29.69 | X87: 5.27 | Y87: 74 | Z87: 19.3 | AA87: 139 | AB87: 36.3 | AC87: 170 | AD87: 44.4 | AE87: 104.49 | AF87: 12.82 | AG87: NA | AH87: NA
A88: HRS | B88: EU | C88: women | D88: 603 | E88: 63 | F88: 9.76 | G88: 27.3 | H88: 5.78 | I88: 242 | J88: 40.1 | K88: 189 | L88: 31.3 | M88: 172 | N88: 28.5 | O88: 94.18 | P88: 14.89 | Q88: NA | R88: NA | T88: 4124 | U88: 69.02 | V88: 10.71 | W88: 28.85 | X88: 6.29 | Y88: 1241 | Z88: 30.1 | AA88: 1359 | AB88: 33 | AC88: 1524 | AD88: 37 | AE88: 96.21 | AF88: 15.51 | AG88: NA | AH88: NA
C89: men | D89: 440 | E89: 63.72 | F89: 8.79 | G89: 27.49 | H89: 5.17 | I89: 156 | J89: 35.5 | K89: 158 | L89: 35.9 | M89: 126 | N89: 28.6 | O89: 101.82 | P89: 12.69 | Q89: NA | R89: NA | T89: 2975 | U89: 69.7 | V89: 9.66 | W89: 29.36 | X89: 4.85 | Y89: 523 | Z89: 17.6 | AA89: 1287 | AB89: 43.3 | AC89: 1165 | AD89: 39.2 | AE89: 105.58 | AF89: 11.73 | AG89: NA | AH89: NA
A90: HYPERGENES-Cases | B90: EU | C90: women | D90: 159 | E90: 45.45 | F90: 8.15 | G90: 26.33 | H90: 5.06 | I90: 72 | J90: 45.28 | K90: 54 | L90: 33.96 | M90: 31 | N90: 19.49 | O90: 87.68 | P90: 13.72 | Q90: 0.83 | R90: 0.07 | T90: 363 | U90: 47.95 | V90: 9.55 | W90: 27.24 | X90: 5.07 | Y90: 132 | Z90: 36.36 | AA90: 148 | AB90: 40.77 | AC90: 83 | AD90: 22.86 | AE90: 90.44 | AF90: 12.99 | AG90: 0.83 | AH90: 0.06
C91: men | D91: 282 | E91: 48.15 | F91: 8.89 | G91: 27.51 | H91: 3.99 | I91: 65 | J91: 23.04 | K91: 158 | L91: 56.02 | M91: 57 | N91: 20.21 | O91: 97.75 | P91: 12.36 | Q91: 0.94 | R91: 0.09 | T91: 711 | U91: 47.31 | V91: 9.92 | W91: 27.4 | X91: 3.39 | Y91: 158 | Z91: 22.22 | AA91: 425 | AB91: 59.77 | AC91: 128 | AD91: 18 | AE91: 97.24 | AF91: 11.11 | AG91: 0.93 | AH91: 0.06
A92: HYPERGENES-Controls | C92: women | D92: 121 | E92: 58.89 | F92: 10.4 | G92: 24.7 | H92: 4.09 | I92: 66 | J92: 54.54 | K92: 39 | L92: 32.23 | M92: 12 | N92: 9.91 | O92: 81.96 | P92: 8.99 | Q92: 0.81 | R92: 0.05 | T92: 442 | U92: 61.03 | V92: 12.32 | W92: 25.06 | X92: 3.81 | Y92: 239 | Z92: 54.07 | AA92: 159 | AB92: 35.97 | AC92: 41 | AD92: 9.27 | AE92: 85.44 | AF92: 11.48 | AG92: 0.82 | AH92: 0.08
C93: men | D93: 269 | E93: 58.01 | F93: 11.31 | G93: 25.54 | H93: 3.1 | I93: 125 | J93: 46.46 | K93: 115 | L93: 42.75 | M93: 27 | N93: 10.03 | O93: 95.59 | P93: 12.55 | Q93: 0.93 | R93: 0.05 | T93: 533 | U93: 58.96 | V93: 11.01 | W93: 26.23 | X93: 3.33 | Y93: 194 | Z93: 36.39 | AA93: 273 | AB93: 51.21 | AC93: 65 | AD93: 12.19 | AE93: 94.9 | AF93: 10.74 | AG93: 0.92 | AH93: 0.06
A94: lnCHIANTI | B94: EU | C94: women | D94: 83 | E94: 58.25 | F94: 16.3 | G94: 26.32 | H94: 5.06 | I94: 38 | J94: 45.78 | K94: 29 | L94: 34.94 | M94: 16 | N94: 19.28 | O94: 86.18 | P94: 13.22 | Q94: 0.86 | R94: 0.078 | T94: 531 | U94: 69.67 | V94: 14.32 | W94: 27.51 | X94: 4.6 | Y94: 172 | Z94: 32.39 | AA94: 212 | AB94: 39.92 | AC94: 147 | AD94: 27.68 | AE94: 89.23 | AF94: 11.54 | AG94: 0.87 | AH94: 0.071
C95: men | D95: 126 | E95: 60.8 | F95: 17.18 | G95: 26.12 | H95: 3.59 | I95: 48 | J95: 38.1 | K95: 61 | L95: 48.41 | M95: 17 | N95: 13.49 | O95: 92.52 | P95: 8.89 | Q95: 0.94 | R95: 0.048 | T95: 372 | U95: 68.73 | V95: 13.85 | W95: 37.37 | X95: 3.26 | Y95: 100 | Z95: 26.88 | AA95: 186 | AB95: 50 | AC95: 86 | AD95: 23.12 | AE95: 95.22 | AF95: 9.4 | AG95: 0.956 | AH95: 0.058
A96: KORA S3 | B96: EU | C96: women | D96: 131 | E96: 48.5 | F96: 9.98 | G96: 26.41 | H96: 4.48 | I96: 57 | J96: 43.5 | K96: 48 | L96: 36.6 | M96: 26 | N96: 19.8 | O96: 83.12 | P96: 11.39 | Q96: 0.81 | R96: 0.06 | T96: 698 | U96: 52.82 | V96: 9.92 | W96: 27.08 | X96: 4.67 | Y96: 250 | Z96: 35.8 | AA96: 286 | AB96: 41 | AC96: 162 | AD96: 23.2 | AE96: 83.87 | AF96: 10.96 | AG96: 0.8 | AH96: 0.06
C97: men | D97: 162 | E97: 49.68 | F97: 10.01 | G97: 27.36 | H97: 3.28 | I97: 38 | J97: 23.5 | K97: 95 | L97: 58.6 | M97: 29 | N97: 17.9 | O97: 96.56 | P97: 9.49 | Q97: 0.94 | R97: 0.06 | T97: 650 | U97: 53.76 | V97: 9.96 | W97: 27.78 | X97: 3.49 | Y97: 122 | Z97: 18.8 | AA97: 389 | AB97: 59.8 | AC97: 139 | AD97: 21.4 | AE97: 97.2 | AF97: 9.78 | AG97: 0.93 | AH97: 0.06
A98: KORA S4 | B98: EU | C98: women | D98: 161 | E98: 49.87 | F98: 7.11 | G98: 26.75 | H98: 5.39 | I98: 70 | J98: 43.5 | K98: 61 | L98: 37.9 | M98: 30 | N98: 18.6 | O98: 85.25 | P98: 12.48 | Q98: 0.81 | R98: 0.06 | T98: 767 | U98: 54.41 | V98: 8.91 | W98: 27.65 | X98: 4.99 | Y98: 265 | Z98: 34.6 | AA98: 277 | AB98: 36.1 | AC98: 224 | AD98: 29.2 | AE98: 86.93 | AF98: 12.08 | AG98: 0.82 | AH98: 0.06
C99: men | D99: 206 | E99: 51.28 | F99: 8.17 | G99: 27.11 | H99: 3.47 | I99: 54 | J99: 26.2 | K99: 113 | L99: 54.9 | M99: 39 | N99: 18.9 | O99: 97.46 | P99: 9.3 | Q99: 0.94 | R99: 0.06 | T99: 677 | U99: 55.11 | V99: 8.96 | W99: 28.26 | X99: 3.99 | Y99: 113 | Z99: 16.7 | AA99: 380 | AB99: 56.1 | AC99: 184 | AD99: 27.2 | AE99: 99.48 | AF99: 10.45 | AG99: 0.94 | AH99: 0.05
A100: LIFELINES | B100: EU | C100: women | D100: 1044 | E100: 44.15 | F100: 9.52 | G100: 25.53 | H100: 4.7 | I100: 531 | J100: 51.5 | K100: 353 | L100: 34.3 | M100: 146 | N100: 14.2 | O100: 87.39 | P100: 12.54 | Q100: 0.87 | R100: 0.07 | T100: 3496 | U100: 48.13 | V100: 11.33 | W100: 26.15 | X100: 4.7 | Y100: 1635 | Z100: 47 | AA100: 1238 | AB100: 35.6 | AC100: 606 | AD100: 17.4 | AE100: 88.08 | AF100: 12.16 | AG100: 0.87 | AH100: 0.07
C101: men | D101: 930 | E101: 44.69 | F101: 10.45 | G101: 26.44 | H101: 3.71 | I101: 347 | J101: 37.5 | K101: 432 | L101: 46.6 | M101: 147 | N101: 15.9 | O101: 95.77 | P101: 10.73 | Q101: 0.96 | R101: 0.06 | T101: 2486 | U101: 48.8 | V101: 11.44 | W101: 26.75 | X101: 3.61 | Y101: 811 | Z101: 32.7 | AA101: 1283 | AB101: 51.7 | AC101: 388 | AD101: 15.6 | AE101: 96.57 | AF101: 10.62 | AG101: 0.96 | AH101: 0.07
A102: LOLIPOP_EW610 | B102: EU | C102: women | D102: 29 | E102: 54.75 | F102: 9.93 | G102: 24.55 | H102: 4.48 | I102: 20 | J102: 69 | K102: 7 | L102: 24.1 | M102: 2 | N102: 6.9 | O102: 82.78 | P102: 12.59 | Q102: 0.84 | R102: 0.09 | T102: 220 | U102: 55.78 | V102: 9.69 | W102: 26.93 | X102: 5.12 | Y102: 90 | Z102: 40.9 | AA102: 79 | AB102: 35.9 | AC102: 51 | AD102: 23.2 | AE102: 89.06 | AF102: 13.59 | AG102: 0.86 | AH102: 0.09
C103: men | D103: 125 | E103: 54.22 | F103: 9.17 | G103: 27.63 | H103: 4.36 | I103: 35 | J103: 28 | K103: 58 | L103: 46.4 | M103: 32 | N103: 25.6 | O103: 99.05 | P103: 11.09 | Q103: 0.95 | R103: 0.06 | T103: 553 | U103: 56.48 | V103: 9.95 | W103: 27.84 | X103: 4.47 | Y103: 151 | Z103: 27.3 | AA103: 267 | AB103: 48.3 | AC103: 135 | AD103: 24.4 | AE103: 98.28 | AF103: 11.72 | AG103: 0.94 | AH103: 0.06
A104: LOLIPOP_IA317 | B104: AS | C104: men | D104: 344 | E104: 46.19 | F104: 10.21 | G104: 25.78 | H104: 4.41 | I104: 152 | J104: 44.2 | K104: 138 | L104: 40.1 | M104: 54 | N104: 15.7 | O104: 94.56 | P104: 11.61 | Q104: 0.95 | R104: 0.07 | T104: 1777 | U104: 48.66 | V104: 10.48 | W104: 27.03 | X104: 4.26 | Y104: 583 | Z104: 32.8 | AA104: 839 | AB104: 47.2 | AC104: 355 | AD104: 20 | AE104: 97.56 | AF104: 11.64 | AG104: 0.96 | AH104: 0.07
A105: LOLIPOP IA610 CASES | B105: AS | C105: women | D105: 3 | E105: 56.41 | F105: 1.05 | G105: 31.31 | H105: 6.45 | I105: 1 | J105: 33.3 | K105: 0 | L105: 0 | M105: 2 | N105: 66.7 | O105: 105 | P105: 16.52 | Q105: 0.99 | R105: 0.07 | T105: 409 | U105: 61.69 | V105: 9.03 | W105: 29.88 | X105: 5.69 | Y105: 77 | Z105: 18.9 | AA105: 157 | AB105: 38.5 | AC105: 174 | AD105: 42.6 | AE105: 100.46 | AF105: 12.51 | AG105: 0.95 | AH105: 0.08
C106: men | D106: 192 | E106: 53.59 | F106: 0.04 | G106: 26.36 | H106: 3.96 | I106: 74 | J106: 38.5 | K106: 85 | L106: 44.3 | M106: 33 | N106: 17.2 | O106: 97.36 | P106: 11.73 | Q106: 0.97 | R106: 0.07 | T106: 1819 | U106: 59.25 | V106: 9.59 | W106: 27.22 | X106: 4.14 | Y106: 554 | Z106: 30.5 | AA106: 888 | AB106: 48.9 | AC106: 374 | AD106: 20.6 | AE106: 99.19 | AF106: 11.13 | AG106: 0.98 | AH106: 0.07
A107: LOLIPOP IA610 CONTROLS | C107: women | D107: 7 | E107: 46.62 | F107: 10.6 | G107: 29.21 | H107: 6.64 | I107: 0 | J107: 0 | K107: 6 | L107: 85.7 | M107: 1 | N107: 14.3 | O107: 95 | P107: 11.02 | Q107: 0.9 | R107: 0.05 | T107: 611 | U107: 53.73 | V107: 9.21 | W107: 27.95 | X107: 4.88 | Y107: 164 | Z107: 26.8 | AA107: 276 | AB107: 45.2 | AC107: 171 | AD107: 28 | AE107: 94.6 | AF107: 12.21 | AG107: 0.91 | AH107: 0.09
C108: men | D108: 421 | E108: 52.11 | F108: 10.1 | G108: 25.79 | H108: 4.41 | I108: 178 | J108: 42.4 | K108: 170 | L108: 40.5 | M108: 72 | N108: 17.7 | O108: 94.94 | P108: 11.68 | Q108: 0.96 | R108: 0.07 | T108: 3095 | U108: 53.17 | V108: 10.7 | W108: 26.8 | X108: 3.92 | Y108: 988 | Z108: 32 | AA108: 1538 | AB108: 49.7 | AC108: 566 | AD108: 18.3 | AE108: 97.52 | AF108: 10.5 | AG108: 0.96 | AH108: 0.06
A109: LURIC-Cases | B109: EU | C109: women | D109: 99 | E109: 59.3 | F109: 10.9 | G109: 26.4 | H109: 4.75 | I109: 42 | J109: 42.4 | K109: 34 | L109: 34.3 | M109: 23 | N109: 23.2 | O109: 92.1 | P109: 13.7 | Q109: 0.9 | R109: 0.07 | T109: 493 | U109: 67.8 | V109: 8.82 | W109: 27.4 | X109: 4.53 | Y109: 154 | Z109: 31.2 | AA109: 209 | AB109: 42.4 | AC109: 130 | AD109: 26.4 | AE109: 95 | AF109: 12.9 | AG109: 0.91 | AH109: 0.07
C110: men | D110: 449 | E110: 56.9 | F110: 9.84 | G110: 27.1 | H110: 3.87 | I110: 142 | J110: 31.6 | K110: 217 | L110: 48.3 | M110: 90 | N110: 20 | O110: 99.9 | P110: 11.1 | Q110: 0.98 | R110: 0.06 | T110: 1323 | U110: 65.2 | V110: 8.79 | W110: 27.7 | X110: 3.62 | Y110: 327 | Z110: 24.7 | AA110: 690 | AB110: 52.2 | AC110: 306 | AD110: 23.1 | AE110: 101.5 | AF110: 10.5 | AG110: 0.98 | AH110: 0.06
A111: LURIC-Controls | B111: EU | C111: women | D111: 49 | E111: 53.4 | F111: 10 | G111: 26.4 | H111: 5.24 | I111: 22 | J111: 44.9 | K111: 17 | L111: 34.7 | M111: 10 | N111: 20.4 | O111: 89.8 | P111: 12.9 | Q111: 0.89 | R111: 0.07 | T111: 247 | U111: 63.9 | V111: 10.1 | W111: 27.6 | X111: 4.79 | Y111: 75 | Z111: 30.4 | AA111: 112 | AB111: 45.3 | AC111: 60 | AD111: 24.3 | AE111: 94.1 | AF111: 12.5 | AG111: 0.9 | AH111: 0.08
C112: men | D112: 87 | E112: 50.3 | F112: 10.3 | G112: 27.1 | H112: 3.83 | I112: 25 | J112: 28.7 | K112: 47 | L112: 54 | M112: 15 | N112: 17.2 | O112: 98.9 | P112: 11 | Q112: 0.98 | R112: 0.07 | T112: 237 | U112: 56.3 | V112: 12.9 | W112: 27.5 | X112: 3.73 | Y112: 64 | Z112: 27 | AA112: 124 | AB112: 52.3 | AC112: 49 | AD112: 20.7 | AE112: 99.7 | AF112: 11 | AG112: 0.97 | AH112: 0.07
A113: MESA | B113: EU | C113: women | D113: 148 | E113: 58.18 | F113: 8.85 | G113: 26.39 | H113: 5.53 | I113: 66 | J113: 44.59 | K113: 50 | L113: 33.78 | M113: 31 | N113: 20.95 | O113: 91.97 | P113: 16.36 | Q113: 0.88 | R113: 0.09 | T113: 1103 | U113: 63.2 | V113: 10.37 | W113: 27.6 | X113: 5.81 | Y113: 426 | Z113: 38.62 | AA113: 368 | AB113: 33.36 | AC113: 303 | AD113: 27.47 | AE113: 95.32 | AF113: 16.13 | AG113: 0.88 | AH113: 0.09
C114: men | D114: 127 | E114: 58.39 | F114: 9.17 | G114: 27.85 | H114: 4.35 | I114: 31 | J114: 24.41 | K114: 61 | L114: 48.03 | M114: 35 | N114: 27.56 | O114: 101.81 | P114: 11.35 | Q114: 0.97 | R114: 0.06 | T114: 1021 | U114: 63.38 | V114: 10.09 | W114: 27.99 | X114: 4.07 | Y114: 248 | Z114: 24.29 | AA114: 486 | AB114: 47.6 | AC114: 286 | AD114: 28.01 | AE114: 101.07 | AF114: 10.93 | AG114: 0.96 | AH114: 0.06
A115: MrOS SWEDEN | B115: EU | C115: men | D115: 77 | E115: 74.4 | F115: 3.03 | G115: 24.56 | H115: 3.91 | I115: 46 | J115: 59.7 | K115: 29 | L115: 38.2 | M115: 2 | N115: 2.6 | O115: NA | P115: NA | Q115: NA | R115: NA | T115: 885 | U115: 75.34 | V115: 3.21 | W115: 26.33 | X115: 3.42 | Y115: 326 | Z115: 36.8 | AA115: 443 | AB115: 50.1 | AC115: 116 | AD115: 13.1 | AE115: NA | AF115: NA | AG115: NA | AH115: NA
A116: NETHERLANDS TWIN REGISTER | B116: EU | C116: women | D116: 360 | E116: 43.56 | F116: 13.56 | G116: 24.54 | H116: 4.56 | I116: 220 | J116: 61.1 | K116: 105 | L116: 29.2 | M116: 35 | N116: 9.7 | O116: 83.48 | P116: 12.14 | Q116: 0.81 | R116: 0.077 | T116: 1618 | U116: 44.87 | V116: 14.42 | W116: 25.14 | X116: 4.44 | Y116: 915 | Z116: 56.6 | AA116: 491 | AB116: 30.3 | AC116: 212 | AD116: 13.1 | AE116: 83.37 | AF116: 12.02 | AG116: 0.8 | AH116: 0.08
C117: men | D117: 317 | E117: 28.24 | F117: 14.44 | G117: 25.4 | H117: 3.39 | I117: 141 | J117: 44.5 | K117: 150 | L117: 47.3 | M117: 26 | N117: 8.2 | O117: 93.3 | P117: 11.44 | Q117: 0.9 | R117: 0.09 | T117: 974 | U117: 51.04 | V117: 14.87 | W117: 26.12 | X117: 3.5 | Y117: 410 | Z117: 42.1 | AA117: 419 | AB117: 43 | AC117: 145 | AD117: 14.9 | AE117: 94.22 | AF117: 11.37 | AG117: 0.9 | AH117: 0.08
A118: NFBC66 | B118: EU | C118: Overall | D118: 2095 | E118: 31 | F118: 0 | G118: 24.86 | H118: 4.46 | I118: 1203 | J118: 57.42 | K118: 677 | L118: 32.32 | M118: 215 | N118: 10.26 | O118: 84.84 | P118: 12.51 | Q118: 0.87 | R118: 0.08 | T118: 2889 | U118: 31 | V118: 0 | W118: 24.52 | X118: 4.12 | Y118: 1786 | Z118: 61.82 | AA118: 851 | AB118: 29.46 | AC118: 252 | AD118: 8.72 | AE118: 82.89 | AF118: 11.77 | AG118: 0.85 | AH118: 0.09
C119: women | D119: 938 | E119: 31 | F119: 0 | G119: 24.43 | H119: 5.19 | I119: 621 | J119: 66.2 | K119: 207 | L119: 22.07 | M119: 110 | N119: 11.73 | O119: 79.49 | P119: 13.1 | Q119: 0.81 | R119: 0.08 | T119: 1670 | U119: 31 | V119: 0 | W119: 24.02 | X119: 4.44 | Y119: 1155 | Z119: 69.16 | AA119: 364 | AB119: 21.8 | AC119: 151 | AD119: 9.04 | AE119: 78.32 | AF119: 11.23 | AG119: 0.81 | AH119: 0.08
C120: men | D120: 1157 | E120: 31 | F120: 0 | G120: 25.2 | H120: 3.73 | I120: 582 | J120: 50.3 | K120: 470 | L120: 40.62 | M120: 105 | N120: 9.08 | O120: 89 | P120: 10.28 | Q120: 0.91 | R120: 0.06 | T120: 1219 | U120: 31 | V120: 0 | W120: 25.21 | X120: 3.51 | Y120: 631 | Z120: 51.76 | AA120: 487 | AB120: 39.95 | AC120: 101 | AD120: 8.29 | AE120: 88.78 | AF120: 9.64 | AG120: 0.91 | AH120: 0.06
A121: NHS-case | B121: EU | C121: women | D121: 584 | E121: 53.47 | F121: 6.96 | G121: 29.66 | H121: 5.64 | I121: 130 | J121: 22.7 | K121: 200 | L121: 34.9 | M121: 243 | N121: 42.4 | O121: 89.64 | P121: 12.57 | Q121: 0.83 | R121: 0.08 | T121: 516 | U121: 53.7 | V121: 6.49 | W121: 30.1 | X121: 5.62 | Y121: 91 | Z121: 17.9 | AA121: 182 | AB121: 35.7 | AC121: 236 | AD121: 46.4 | AE121: 90.68 | AF121: 13.33 | AG121: 0.84 | AH121: 0.05
A122: NHS-control | C122: women | D122: 808 | E122: 53.33 | F122: 6.79 | G122: 25.04 | H122: 4.56 | I122: 450 | J122: 57.2 | K122: 242 | L122: 30.8 | M122: 95 | N122: 12.1 | O122: 78.38 | P122: 10.76 | Q122: 0.77 | R122: 0.07 | T122: 600 | U122: 53.5 | V122: 6.53 | W122: 25.35 | X122: 4.95 | Y122: 331 | Z122: 56.2 | AA122: 176 | AB122: 29.8 | AC122: 82 | AD122: 13.9 | AE122: 79.3 | AF122: 11.73 | AG122: 0.77 | AH122: 0.05
A123: ORCADES | B123: EU | C123: Overall | D123: 371 | E123: 55.81 | F123: 14.77 | G123: 28 | H123: 4.77 | I123: 91 | J123: 24.8 | K123: 167 | L123: 45.5 | M123: 109 | N123: 29.7 | O123: 96.07 | P123: 13.89 | Q123: 0.93 | R123: 0.09 | T123: 498 | U123: 52.28 | V123: 15.52 | W123: 27.47 | X123: 4.89 | Y123: 162 | Z123: 32.99 | AA123: 208 | AB123: 42.36 | AC123: 121 | AD123: 24.64 | AE123: 91.74 | AF123: 13.56 | AG123: 0.89 | AH123: 0.09
C124: women | D124: 167 | E124: 53.77 | F124: 14.07 | G124: 27.11 | H124: 4.99 | I124: 62 | J124: 37.35 | K124: 66 | L124: 39.76 | M124: 28 | N124: 22.89 | O124: 89.75 | P124: 12.95 | Q124: 0.87 | R124: 0.07 | T124: 308 | U124: 52.54 | V124: 15.84 | W124: 27.52 | X124: 5.48 | Y124: 112 | Z124: 36.96 | AA124: 109 | AB124: 35.97 | AC124: 82 | AD124: 27.06 | AE124: 88.73 | AF124: 13.93 | AG124: 0.86 | AH124: 0.08
C125: men | D125: 204 | E125: 57.48 | F125: 15.14 | G125: 28.72 | H125: 4.47 | I125: 29 | J125: 14.43 | K125: 101 | L125: 50.25 | M125: 71 | N125: 35.32 | O125: 101.24 | P125: 12.43 | Q125: 0.98 | R125: 0.07 | T125: 190 | U125: 51.85 | V125: 15.02 | W125: 27.39 | X125: 3.76 | Y125: 50 | Z125: 26.6 | AA125: 99 | AB125: 52.66 | AC125: 39 | AD125: 20.74 | AE125: 96.58 | AF125: 11.4 | AG125: 0.95 | AH125: 0.07
A126: PIVUS | B126: EU | C126: Overall | D126: 104 | E126: 70.2 | F126: 0.15 | G126: 25.46 | H126: 4.34 | I126: 54 | J126: 51.92 | K126: 34 | L126: 32.69 | M126: 16 | N126: 15.39 | O126: 88.16 | P126: 11.25 | Q126: 0.9 | R126: 0.9 | T126: 844 | U126: 70.2 | V126: 0.17 | W126: 27.25 | X126: 4.3 | Y126: 256 | Z126: 30.33 | AA126: 394 | AB126: 46.68 | AC126: 194 | AD126: 22.98 | AE126: 91.62 | AF126: 11.6 | AG126: 0.9 | AH126: 0.07
C127: women | D127: 57 | E127: 70.28 | F127: 0.13 | G127: 25.56 | H127: 5.08 | I127: 29 | J127: 50.88 | K127: 14 | L127: 24.56 | M127: 14 | N127: 24.56 | O127: 85.35 | P127: 11.49 | Q127: 0.86 | R127: 0.06 | T127: 418 | U127: 70.26 | V127: 0.15 | W127: 27.31 | X127: 4.85 | Y127: 141 | Z127: 33.73 | AA127: 168 | AB127: 40.19 | AC127: 109 | AD127: 26.08 | AE127: 88.11 | AF127: 11.68 | AG127: 0.86 | AH127: 0.06
C128: men | D128: 47 | E128: 70.1 | F128: 0.12 | G128: 25.34 | H128: 3.27 | I128: 25 | J128: 53.19 | K128: 20 | L128: 42.55 | M128: 2 | N128: 0.04 | O128: 91.57 | P128: 10.05 | Q128: 0.94 | R128: 0.08 | T128: 426 | U128: 70.13 | V128: 0.17 | W128: 27.19 | X128: 3.72 | Y128: 115 | Z128: 26.99 | AA128: 226 | AB128: 53.05 | AC128: 85 | AD128: 19.95 | AE128: 95.05 | AF128: 10.45 | AG128: 0.94 | AH128: 0.06
A129: PREVEND | B129: EU | C129: women | D129: 622 | E129: 46.76 | F129: 11.2 | G129: 25.01 | H129: 4.55 | I129: 351 | J129: 56.43 | K129: 186 | L129: 29.9 | M129: 77 | N129: 12.38 | O129: 81.97 | P129: 13.02 | Q129: 0.82 | R129: 0.07 | T129: 1132 | U129: 49.01 | V129: 12.4 | W129: 26.26 | X129: 4.83 | Y129: 512 | Z129: 45.23 | AA129: 397 | AB129: 35.07 | AC129: 216 | AD129: 19.08 | AE129: 83.09 | AF129: 12.91 | AG129: 0.82 | AH129: 0.08
C130: men | D130: 659 | E130: 49.45 | F130: 11.61 | G130: 26.02 | H130: 3.7 | I130: 288 | J130: 43.7 | K130: 277 | L130: 42.03 | M130: 93 | N130: 14.11 | O130: 93.56 | P130: 11.2 | Q130: 0.93 | R130: 0.08 | T130: 1211 | U130: 51.73 | V130: 13.29 | W130: 26.63 | X130: 3.65 | Y130: 416 | Z130: 34.35 | AA130: 601 | AB130: 49.6 | AC130: 192 | AD130: 15.85 | AE130: 95.01 | AF130: 11.12 | AG130: 0.94 | AH130: 0.07
A131: PROSPER | B131: EU | C131: Overall | D131: 1392 | E131: 74.53 | F131: 3.15 | G131: 25.22 | H131: 3.95 | I131: 661 | J131: 47.5 | K131: 548 | L131: 39.4 | M131: 150 | N131: 10.8 | O131: NA | P131: NA | Q131: NA | R131: NA | T131: 3852 | U131: 75.63 | V131: 3.38 | W131: 27.39 | X131: 4.11 | Y131: 1087 | Z131: 28.2 | AA131: 1830 | AB131: 47.5 | AC131: 923 | AD131: 24 | AE131: NA | AF131: NA | AG131: NA | AH131: NA
C132: women | D132: 578 | E132: 74.87 | F132: 3.16 | G132: 24.76 | H132: 4.25 | I132: 297 | J132: 51.4 | K132: 197 | L132: 34.1 | M132: 62 | N132: 10.7 | O132: NA | P132: NA | Q132: NA | R132: NA | T132: 2142 | U132: 75.87 | V132: 3.43 | W132: 27.69 | X132: 4.57 | Y132: 602 | Z132: 28.1 | AA132: 925 | AB132: 43.2 | AC132: 606 | AD132: 28.3 | AE132: NA | AF132: NA | AG132: NA | AH132: NA
C133: men | D133: 814 | E133: 74.29 | F133: 3.12 | G133: 25.55 | H133: 3.69 | I133: 364 | J133: 44.7 | K133: 351 | L133: 43.1 | M133: 88 | N133: 10.8 | O133: NA | P133: NA | Q133: NA | R133: NA | T133: 1710 | U133: 75.34 | V133: 3.29 | W133: 27.03 | X133: 3.43 | Y133: 485 | Z133: 28.4 | AA133: 905 | AB133: 52.9 | AC133: 317 | AD133: 18.5 | AE133: NA | AF133: NA | AG133: NA | AH133: NA
A134: QFS | B134: EU | C134: Overall | D134: 178 | E134: 38.07 | F134: 13.39 | G134: 27.03 | H134: 7.2 | I134: 86 | J134: 48.3 | K134: 54 | L134: 30.3 | M134: 38 | N134: 21.3 | O134: 87.7 | P134: 16.5 | Q134: 0.86 | R134: 0.1 | T134: 675 | U134: 42.49 | V134: 15.84 | W134: 27.99 | X134: 7.85 | Y134: 296 | Z134: 43.9 | AA134: 183 | AB134: 27.1 | AC134: 196 | AD134: 29 | AE134: 89.27 | AF134: 18.9 | AG134: 0.85 | AH134: 0.1
C135: women | D135: 100 | E135: 35.46 | F135: 11.91 | G135: 27.16 | H135: 8.14 | I135: 51 | J135: 51 | K135: 26 | L135: 26 | M135: 23 | N135: 23 | O135: 83.1 | P135: 15.8 | Q135: 0.8 | R135: 0.06 | T135: 381 | U135: 42.66 | V135: 15.47 | W135: 28.26 | X135: 8.69 | Y135: 178 | Z135: 46.7 | AA135: 82 | AB135: 21.5 | AC135: 121 | AD135: 31.8 | AE135: 85.34 | AF135: 19.43 | AG135: 0.8 | AH135: 0.08
C136: men | D136: 78 | E136: 41.42 | F136: 14.47 | G136: 26.86 | H136: 5.81 | I136: 35 | J136: 44.9 | K136: 28 | L136: 35.9 | M136: 15 | N136: 19.2 | O136: 93.5 | P136: 15.6 | Q136: 0.93 | R136: 0.08 | T136: 294 | U136: 42.27 | V136: 16.34 | W136: 27.63 | X136: 6.61 | Y136: 118 | Z136: 40.1 | AA136: 101 | AB136: 34.4 | AC136: 75 | AD136: 25.5 | AE136: 94.35 | AF136: 16.91 | AG136: 0.93 | AH136: 0.08
A137: ROTTERDAM STUDY I | B137: EU | C137: women | D137: 623 | E137: 65.73 | F137: 7.45 | G137: 25.95 | H137: 4.22 | I137: 279 | J137: 45.6 | K137: 243 | L137: 39.7 | M137: 90 | N137: 14.7 | O137: 85.89 | P137: 11.95 | Q137: 0.86 | R137: 0.09 | T137: 2804 | U137: 70.98 | V137: 9.59 | W137: 26.93 | X137: 3.99 | Y137: 912 | Z137: 34.2 | AA137: 1217 | AB137: 45.6 | AC137: 541 | AD137: 20.3 | AE137: 88.37 | AF137: 11.38 | AG137: 0.87 | AH137: 0.09
C138: men | D138: 716 | E138: 67.34 | F138: 8.33 | G138: 24.97 | H138: 3.14 | I138: 355 | J138: 50.6 | K138: 305 | L138: 43.4 | M138: 42 | N138: 6 | O138: 93.01 | P138: 9.85 | Q138: 0.96 | R138: 0.07 | T138: 1669 | U138: 68.32 | V138: 7.97 | W138: 26.01 | X138: 2.87 | Y138: 618 | Z138: 37.8 | AA138: 885 | AB138: 54.2 | AC138: 131 | AD138: 8 | AE138: 94.93 | AF138: 9.31 | AG138: 0.96 | AH138: 0.07
A139: ROTTERDAM STUDY II | B139: EU | C139: women | D139: 237 | E139: 63.02 | F139: 7.13 | G139: 26.79 | H139: 4.35 | I139: 91 | J139: 38.4 | K139: 97 | L139: 40.9 | M139: 49 | N139: 20.7 | O139: 89.53 | P139: 11.53 | Q139: 0.88 | R139: 0.08 | T139: 934 | U139: 65.53 | V139: 8.51 | W139: 27.68 | X139: 4.45 | Y139: 270 | Z139: 29 | AA139: 428 | AB139: 46 | AC139: 232 | AD139: 24.9 | AE139: 89.91 | AF139: 11.58 | AG139: 0.86 | AH139: 0.07
C140: men | D140: 182 | E140: 62.79 | F140: 5.95 | G140: 26.52 | H140: 3.47 | I140: 66 | J140: 36.5 | K140: 91 | L140: 50.3 | M140: 24 | N140: 13.3 | O140: 98.37 | P140: 10.44 | Q140: 0.97 | R140: 0.07 | T140: 801 | U140: 64.86 | V140: 7.87 | W140: 27.01 | X140: 3.32 | Y140: 219 | Z140: 27.3 | AA140: 452 | AB140: 56.4 | AC140: 130 | AD140: 16.2 | AE140: 99.16 | AF140: 10.14 | AG140: 0.97 | AH140: 0.07
A141: ROTTERDAM STUDY III | B141: EU | C141: women | D141: 269 | E141: 55.11 | F141: 5.33 | G141: 26.25 | H141: 4.71 | I141: 123 | J141: 46.1 | K141: 101 | L141: 37.8 | M141: 43 | N141: 16.1 | O141: 87.52 | P141: 11.87 | Q141: 0.83 | R141: 0.07 | T141: 894 | U141: 56.49 | V141: 6.24 | W141: 27.84 | X141: 5.14 | Y141: 274 | Z141: 30.7 | AA141: 375 | AB141: 42 | AC141: 243 | AD141: 27.2 | AE141: 90.21 | AF141: 13.11 | AG141: 0.83 | AH141: 0.08
C142: men | D142: 198 | E142: 55.21 | F142: 4.62 | G142: 27.63 | H142: 3.92 | I142: 51 | J142: 26 | K142: 95 | L142: 48.5 | M142: 50 | N142: 25.5 | O142: 99.87 | P142: 11.55 | Q142: 0.94 | R142: 0.08 | T142: 712 | U142: 56.08 | V142: 5.68 | W142: 28.14 | X142: 4.14 | Y142: 156 | Z142: 22 | AA142: 377 | AB142: 53.2 | AC142: 176 | AD142: 24.8 | AE142: 99.98 | AF142: 11.77 | AG142: 0.93 | AH142: 0.08
A143: SARDINIA | B143: EU | C143: women | D143: 54 | E143: 47.48 | F143: 8.742 | G143: 25.04 | H143: 5.23 | I143: 33 | J143: 61.1 | K143: 12 | L143: 22.22 | M143: 9 | N143: 16.666 | O143: 81.53 | P143: 13.104 | Q143: 83.2 | R143: 0.073 | T143: 498 | U143: 55.79 | V143: 11.66 | W143: 27.52 | X143: 5 | Y143: 168 | Z143: 33.73 | AA143: 193 | AB143: 38.75 | AC143: 137 | AD143: 27.51 | AE143: 87.79 | AF143: 13.03 | AG143: 0.86 | AH143: 0.95
C144: men | D144: 85 | E144: 54.132 | F144: 10.989 | G144: 26.903 | H144: 3.715 | I144: 29 | J144: 34.11 | K144: 40 | L144: 47.05 | M144: 16 | N144: 18.82 | O144: 93.41 | P144: 10.24 | Q144: 96.13 | R144: 0.062 | T144: 393 | U144: 60.21 | V144: 12.59 | W144: 28.18 | X144: 4.03 | Y144: 68 | Z144: 17.3 | AA144: 207 | AB144: 52.67 | AC144: 118 | AD144: 30.03 | AE144: 97.07 | AF144: 9.73 | AG144: 0.97 | AH144: 0.06
A145: SHIP | B145: EU | C145: women | D145: 560 | E145: 40.38 | F145: 13.03 | G145: 25.61 | H145: 4.92 | I145: 290 | J145: 51.8 | K145: 159 | L145: 28.4 | M145: 103 | N145: 18.4 | O145: 80.11 | P145: 12.19 | Q145: 0.8 | R145: 0.06 | T145: 1497 | U145: 51.62 | V145: 15.97 | W145: 27.41 | X145: 5.37 | Y145: 556 | Z145: 37.1 | AA145: 501 | AB145: 33.5 | AC145: 430 | AD145: 28.7 | AE145: 84.29 | AF145: 13.09 | AG145: 0.81 | AH145: 0.07
C146: men | D146: 672 | E146: 43.14 | F146: 14.52 | G146: 26.76 | H146: 3.9 | I146: 226 | J146: 33.6 | K146: 319 | L146: 47.5 | M146: 127 | N146: 18.9 | O146: 93.03 | P146: 11.05 | Q146: 0.92 | R146: 0.06 | T146: 1322 | U146: 54.66 | V146: 15.95 | W146: 28.14 | X146: 4.04 | Y146: 286 | Z146: 21.6 | AA146: 662 | AB146: 50.1 | AC146: 374 | AD146: 28.3 | AE146: 97.18 | AF146: 11.73 | AG146: 0.93 | AH146: 0.06
A147: THISEAS_CASES | B147: EU | C147: women | D147: 21 | E147: 63.19 | F147: 11.21 | G147: 27.66 | H147: 3.84 | I147: 7 | J147: 33.33 | K147: 11 | L147: 52.38 | M147: 3 | N147: 14.29 | O147: 94.85 | P147: 11.18 | Q147: 0.91 | R147: 0.08 | T147: 41 | U147: 67.05 | V147: 9.79 | W147: 28.62 | X147: 4.53 | Y147: 8 | Z147: 18.6 | AA147: 22 | AB147: 51.16 | AC147: 13 | AD147: 30.23 | AE147: 98.12 | AF147: 13.43 | AG147: 0.9 | AH147: 0.07
C148: men | D148: 119 | E148: 57.14 | F148: 8.95 | G148: 27.84 | H148: 4.03 | I148: 32 | J148: 26.89 | K148: 57 | L148: 47.9 | M148: 30 | N148: 25.21 | O148: 100.28 | P148: 10.78 | Q148: 0.98 | R148: 0.06 | T148: 169 | U148: 63.89 | V148: 9.87 | W148: 27.76 | X148: 3.77 | Y148: 35 | Z148: 20.71 | AA148: 93 | AB148: 55.03 | AC148: 41 | AD148: 24.26 | AE148: 99.73 | AF148: 11.94 | AG148: 0.99 | AH148: 0.07
A149: THISEAS_CONTROLS | C149: women | D149: 44 | E149: 50.86 | F149: 12.76 | G149: 27.1 | H149: 5.05 | I149: 14 | J149: 31.82 | K149: 20 | L149: 45.45 | M149: 10 | N149: 22.73 | O149: 88.08 | P149: 13.2 | Q149: 0.85 | R149: 0.09 | T149: 180 | U149: 56.83 | V149: 14.57 | W149: 28.19 | X149: 5.1 | Y149: 54 | Z149: 30 | AA149: 69 | AB149: 38.33 | AC149: 57 | AD149: 31.67 | AE149: 90.99 | AF149: 13.81 | AG149: 0.87 | AH149: 0.11
C150: men | D150: 62 | E150: 49.52 | F150: 13.12 | G150: 29.06 | H150: 4.63 | I150: 9 | J150: 14.52 | K150: 31 | L150: 50 | M150: 22 | N150: 35.48 | O150: 100.37 | P150: 10.76 | Q150: 0.97 | R150: 0.09 | T150: 142 | U150: 53.43 | V150: 12.63 | W150: 29.09 | X150: 3.94 | Y150: 22 | Z150: 15.49 | AA150: 63 | AB150: 44.37 | AC150: 57 | AD150: 40.14 | AE150: 102.69 | AF150: 10.26 | AG150: 0.98 | AH150: 0.07
A151: TRAILS | B151: EU | C151: women | D151: 212 | E151: 19.18 | F151: 0.59 | G151: 23.45 | H151: 4.02 | I151: 142 | J151: 67 | K151: 49 | L151: 23.1 | M151: 14 | N151: 6.6 | O151: 76.29 | P151: 9.41 | Q151: 0.76 | R151: 0.05 | T151: 397 | U151: 19.11 | V151: 0.56 | W151: 22.9 | X151: 3.67 | Y151: 309 | Z151: 77.8 | AA151: 59 | AB151: 14.9 | AC151: 21 | AD151: 5.3 | AE151: 75.03 | AF151: 8.62 | AG151: 0.75 | AH151: 0.05
C152: men | D152: 205 | E152: 19.25 | F152: 0.57 | G152: 22.8 | H152: 3.96 | I152: 158 | J152: 77.1 | K152: 28 | L152: 13.7 | M152: 13 | N152: 6.3 | O152: 81.94 | P152: 9.86 | Q152: 0.83 | R152: 0.05 | T152: 327 | U152: 19.15 | V152: 0.52 | W152: 22.49 | X152: 3.64 | Y152: 258 | Z152: 78.9 | AA152: 37 | AB152: 11.3 | AC152: 17 | AD152: 5.2 | AE152: 81.69 | AF152: 9.62 | AG152: 0.82 | AH152: 0.05
A153: TWINSUK | B153: EU | C153: women | D153: 1263 | E153: 47.56 | F153: 12.08 | G153: 25.19 | H153: 4.65 | I153: 714 | J153: 56.53 | K153: 386 | L153: 30.56 | M153: 163 | N153: 12.91 | O153: 79.58 | P153: 10.62 | Q153: 0.78 | R153: 0.06 | T153: 1625 | U153: 47.17 | V153: 13.17 | W153: 25.17 | X153: 4.71 | Y153: 925 | Z153: 56.92 | AA153: 472 | AB153: 29.05 | AC153: 228 | AD153: 14.03 | AE153: 78.77 | AF153: 10.47 | AG153: 0.77 | AH153: 0.06
A154: WGHS | B154: EU | C154: women | D154: 2666 | E154: 54.03 | F154: 6.56 | G154: 25.33 | H154: 4.85 | I154: 1474 | J154: 55.3 | K154: 742 | L154: 27.8 | M154: 403 | N154: 15.1 | O154: 89.49 | P154: 14.73 | Q154: 0.85 | R154: 0.08 | T154: 20240 | U154: 54.78 | V154: 7.17 | W154: 25.99 | X154: 4.97 | Y154: 10221 | Z154: 50.5 | AA154: 6314 | AB154: 31.2 | AC154: 3593 | AD154: 17.8 | AE154: 88.8 | AF154: 14.28 | AG154: 0.83 | AH154: 0.08
A155: WHI Pilot | B155: AF | C155: women | D155: 220 | E155: 58.52 | F155: 6.02 | G155: 29.49 | H155: 6.55 | I155: 50 | J155: 22.73 | K155: 87 | L155: 39.55 | M155: 83 | N155: 37.73 | O155: 89.8 | P155: 12.96 | Q155: 0.83 | R155: 0.07 | T155: 1778 | U155: 61.3 | V155: 6.92 | W155: 31.59 | X155: 6.81 | Y155: 273 | Z155: 15.35 | AA155: 573 | AB155: 32.23 | AC155: 932 | AD155: 52.42 | AE155: 92.07 | AF155: 14.11 | AG155: 0.82 | AH155: 0.07
A156: WHIYR3/YR4 | B156: AF | C156: women | D156: 372 | E156: 59.34 | F156: 6.84 | G156: 30.07 | H156: 6.64 | I156: 83 | J156: 22.31 | K156: 120 | L156: 32.26 | M156: 169 | N156: 45.43 | O156: 91.56 | P156: 14.48 | Q156: 0.83 | R156: 0.1 | T156: 2808 | U156: 61.44 | V156: 7.33 | W156: 31.69 | X156: 6.74 | Y156: 401 | Z156: 14.28 | AA156: 873 | AB156: 31.09 | AC156: 1534 | AD156: 54.63 | AE156: 92.73 | AF156: 14.35 | AG156: 0.82 | AH156: 0.09
A157: YFS | B157: EU | C157: women | D157: 160 | E157: 37.31 | F157: 5.12 | G157: 25.79 | H157: 5.02 | I157: 73 | J157: 45.6 | K157: 55 | L157: 34.4 | M157: 28 | N157: 17.5 | O157: 85.25 | P157: 13.44 | Q157: 0.85 | R157: 0.07 | T157: 907 | U157: 37.87 | V157: 4.94 | W157: 25.2 | X157: 4.94 | Y157: 515 | Z157: 56.8 | AA157: 244 | AB157: 26.9 | AC157: 141 | AD157: 15.5 | AE157: 83.19 | AF157: 12.29 | AG157: 0.83 | AH157: 0.07
C158: men | D158: 206 | E158: 37.3 | F158: 5.01 | G158: 26.52 | H158: 4.19 | I158: 78 | J158: 37.9 | K158: 98 | L158: 47.6 | M158: 30 | N158: 14.6 | O158: 93.89 | P158: 11.4 | Q158: 0.95 | R158: 0.06 | T158: 694 | U158: 37.8 | V158: 5.05 | W158: 26.82 | X158: 4.32 | Y158: 249 | Z158: 35.9 | AA158: 307 | AB158: 44.2 | AC158: 136 | AD158: 19.6 | AE158: 94.6 | AF158: 12.18 | AG158: 0.94 | AH158: 0.07
A160: METABOCHIP Data
A161: SMOKERS | U161: NON-SMOKERS
A162: Study | B162: Ancestry | C162: Groups | D162: N | E162: Age | G162: BMI | I162: BMI Categories* | O162: Waist (cm) | Q162: WHR (ratio) | T162: N | U162: Age | W162: BMI | Y162: BMI Categories* | AE162: Waist (cm) | AG162: WHR (ratio)
I163: Normal weight (18 to < 25 kg/m2) | K163: Overweight (25 to 30 kg/m2) | M163: Obese ( ≥ 30 kg/m2) | Y163: Normal weight (18 to < 25 kg/m2) | AA163: Overweight (25 to 30 kg/m2) | AC163: Obese ( ≥ 30 kg/m2)
E164: mean | F164: sd | G164: mean | H164: sd | I164: n | J164: % | K164: n | L164: % | M164: n | N164: % | O164: mean | P164: sd | Q164: mean | R164: sd | U164: mean | V164: sd | W164: mean | X164: sd | Y164: n | Z164: % | AA164: n | AB164: % | AC164: n | AD164: % | AE164: mean | AF164: sd | AG164: mean | AH164: sd
A165: DESIR | B165: EU | C165: Overall | D165: 1035 | E165: 41.6 | F165: 9.03 | G165: 24.48 | H165: 4.1 | I165: 622 | J165: 60.15 | K165: 322 | L165: 31.14 | M165: 90 | N165: 8.7 | O165: 84.16 | P165: 12.45 | Q165: 0.87 | R165: 0.09 | T165: 3228 | U165: 47.75 | V165: 10.12 | W165: 25.47 | X165: 3.74 | Y165: 1560 | Z165: 48.36 | AA165: 1289 | AB165: 39.96 | AC165: 377 | AD165: 11.69 | AE165: 85.15 | AF165: 11.33 | AG165: 0.86 | AH165: 0.09
C166: women | D166: 362 | E166: 39.57 | F166: 8.35 | G166: 23.17 | H166: 4.42 | I166: 271 | J166: 74.86 | K166: 61 | L166: 16.85 | M166: 30 | N166: 8.29 | O166: 75.25 | P166: 10.98 | Q166: 0.79 | R166: 0.06 | T166: 1606 | U166: 47.91 | V166: 10.1 | W166: 25.15 | X166: 4.17 | Y166: 889 | Z166: 55.42 | AA166: 504 | AB166: 31.42 | AC166: 211 | AD166: 13.15 | AE166: 79.68 | AF166: 10.5 | AG166: 0.8 | AH166: 0.07
C167: men | D167: 673 | E167: 42.68 | F167: 9.2 | G167: 25.18 | H167: 3.74 | I167: 351 | J167: 52.23 | K167: 261 | L167: 38.84 | M167: 60 | N167: 8.93 | O167: 88.98 | P167: 10.37 | Q167: 0.92 | R167: 0.07 | T167: 1622 | U167: 47.59 | V167: 10.13 | W167: 25.79 | X167: 3.23 | Y167: 671 | Z167: 41.37 | AA167: 785 | AB167: 48.4 | AC167: 166 | AD167: 10.23 | AE167: 90.54 | AF167: 9.37 | AG167: 0.92 | AH167: 0.06
A168: DR's EXTRA | B168: EU | C168: women | D168: 44 | E168: 65.03 | F168: 5.42 | G168: 27.68 | H168: 4.35 | I168: 12 | J168: 27.3 | K168: 20 | L168: 45.5 | M168: 12 | N168: 27.3 | O168: 90.64 | P168: 11.83 | Q168: 0.89 | R168: 0.063 | T168: 577 | U168: 66.58 | V168: 5.22 | W168: 27.57 | X168: 5.09 | Y168: 203 | Z168: 35.2 | AA168: 226 | AB168: 39.2 | AC168: 148 | AD168: 25.6 | AE168: 88.56 | AF168: 13.2 | AG168: 0.86 | AH168: 0.067
C169: men | D169: 78 | E169: 65.97 | F169: 5.1 | G169: 26.98 | H169: 3.99 | I169: 22 | J169: 28.2 | K169: 42 | L169: 53.8 | M169: 14 | N169: 17.9 | O169: 98.52 | P169: 11.71 | Q169: 1 | R169: 0.055 | T169: 468 | U169: 66.59 | V169: 5.5 | W169: 27.44 | X169: 3.69 | Y169: 125 | Z169: 26.7 | AA169: 247 | AB169: 52.8 | AC169: 96 | AD169: 20.5 | AE169: 98.11 | AF169: 10.52 | AG169: 0.98 | AH169: 0.054
A170: EGCUT | B170: EU | C170: women | D170: 1014 | E170: 60.25 | F170: 11.64 | G170: 28.02 | H170: 5.7 | I170: 362 | J170: 35.7 | K170: 288 | L170: 28.4 | M170: 364 | N170: 35.9 | O170: 97.95 | P170: 15.03 | Q170: 0.95 | R170: 0.1 | T170: 1490 | U170: 59.45 | V170: 12.58 | W170: 28.27 | X170: 6.91 | Y170: 573 | Z170: 39.19 | AA170: 319 | AB170: 21.82 | AC170: 570 | AD170: 38.99 | AE170: 87.78 | AF170: 17.69 | AG170: 0.84 | AH170: 0.09
C171: men | D171: 1462 | E171: 59.45 | F171: 12.58 | G171: 28.27 | H171: 6.91 | I171: 573 | J171: 39.19 | K171: 319 | L171: 21.82 | M171: 570 | N171: 38.99 | O171: 87.78 | P171: 17.69 | Q171: 0.84 | R171: 0.09 | T171: 1020 | U171: 60.25 | V171: 11.64 | W171: 28.02 | X171: 5.7 | Y171: 362 | Z171: 35.7 | AA171: 288 | AB171: 28.4 | AC171: 364 | AD171: 35.9 | AE171: 97.95 | AF171: 15.03 | AG171: 0.95 | AH171: 0.1
A172: ELY | B172: EU | C172: women | D172: 59 | E172: 54.53 | F172: 6.64 | G172: 25.68 | H172: 4.91 | I172: 31 | J172: 52.5 | K172: 21 | L172: 35.6 | M172: 7 | N172: 11.9 | O172: 81.43 | P172: 12.21 | Q172: 0.82 | R172: 0.08 | T172: 307 | U172: 57.8 | V172: 7.64 | W172: 26.3 | X172: 4.35 | Y172: 138 | Z172: 45 | AA172: 112 | AB172: 36.5 | AC172: 57 | AD172: 18.6 | AE172: 81.98 | AF172: 10.72 | AG172: 0.8 | AH172: 0.08
C173: men | D173: 47 | E173: 57.69 | F173: 7.17 | G173: 26.04 | H173: 2.99 | I173: 19 | J173: 40.4 | K173: 24 | L173: 51.1 | M173: 4 | N173: 8.5 | O173: 93.47 | P173: 9.12 | Q173: 0.96 | R173: 0.07 | T173: 215 | U173: 58.15 | V173: 7.97 | W173: 26.99 | X173: 3.09 | Y173: 60 | Z173: 27.9 | AA173: 118 | AB173: 54.9 | AC173: 37 | AD173: 17.2 | AE173: 96.06 | AF173: 9.36 | AG173: 0.96 | AH173: 0.07
A174: EPIC-non-subcohort | B174: EU | C174: women | D174: 31 | E174: 62.95 | F174: 8.25 | G174: 27.1 | H174: 4.16 | I174: 11 | J174: 35.5 | K174: 13 | L174: 41.9 | M174: 7 | N174: 22.6 | O174: 87.57 | P174: 10.75 | Q174: 0.85 | R174: 0.06 | T174: 185 | U174: 62.63 | V174: 8.56 | W174: 29.26 | X174: 4.63 | Y174: 30 | Z174: 16.2 | AA174: 87 | AB174: 47 | AC174: 68 | AD174: 36.8 | AE174: 90.95 | AF174: 11.72 | AG174: 0.84 | AH174: 0.06
C175: men | D175: 36 | E175: 59.92 | F175: 9.33 | G175: 27.17 | H175: 3.09 | I175: 7 | J175: 19.4 | K175: 24 | L175: 66.7 | M175: 5 | N175: 13.9 | O175: 99.64 | P175: 9.87 | Q175: 0.96 | R175: 0.05 | T175: 285 | U175: 62.17 | V175: 8.25 | W175: 28.53 | X175: 3.6 | Y175: 28 | Z175: 9.8 | AA175: 194 | AB175: 68.1 | AC175: 63 | AD175: 22.1 | AE175: 102.21 | AF175: 9.68 | AG175: 0.97 | AH175: 0.06
A176: EPIC-subcohort | C176: women | D176: 67 | E176: 56.58 | F176: 8.52 | G176: 24.39 | H176: 3.68 | I176: 44 | J176: 65.7 | K176: 18 | L176: 26.9 | M176: 5 | N176: 7.5 | O176: 78.03 | P176: 9.85 | Q176: 0.79 | R176: 0.06 | T176: 407 | U176: 59.3 | V176: 9.71 | W176: 25.84 | X176: 3.76 | Y176: 183 | Z176: 45 | AA176: 177 | AB176: 43.5 | AC176: 47 | AD176: 11.5 | AE176: 81.49 | AF176: 10.07 | AG176: 0.79 | AH176: 0.06
C177: men | D177: 39 | E177: 56.83 | F177: 8.57 | G177: 25.91 | H177: 3.64 | I177: 15 | J177: 38.5 | K177: 21 | L177: 53.8 | M177: 3 | N177: 7.7 | O177: 93.46 | P177: 12.07 | Q177: 0.92 | R177: 0.08 | T177: 300 | U177: 59.79 | V177: 9.09 | W177: 26 | X177: 2.87 | Y177: 116 | Z177: 38.7 | AA177: 161 | AB177: 53.7 | AC177: 23 | AD177: 7.7 | AE177: 94 | AF177: 8.69 | AG177: 0.92 | AH177: 0.06
A178: FENLAND | B178: EU | C178: women | D178: 194 | E178: 46.4 | F178: 6.46 | G178: 26.78 | H178: 5.91 | I178: 95 | J178: 49 | K178: 56 | L178: 28.9 | M178: 43 | N178: 22.2 | O178: 86.66 | P178: 13.75 | Q178: 0.84 | R178: 0.07 | T178: 1348 | U178: 47.1 | V178: 7.08 | W178: 26.42 | X178: 5.49 | Y178: 645 | Z178: 47.8 | AA178: 429 | AB178: 31.8 | AC178: 274 | AD178: 20.3 | AE178: 84.97 | AF178: 12.73 | AG178: 0.82 | AH178: 0.07
C179: men | D179: 197 | E179: 46.1 | F179: 7.04 | G179: 26.75 | H179: 4.23 | I179: 73 | J179: 37.1 | K179: 90 | L179: 45.7 | M179: 34 | N179: 17.3 | O179: 95.65 | P179: 11.51 | Q179: 0.93 | R179: 0.06 | T179: 1171 | U179: 47.13 | V179: 7.18 | W179: 27.09 | X179: 4.06 | Y179: 380 | Z179: 32.5 | AA179: 552 | AB179: 47.1 | AC179: 239 | AD179: 20.4 | AE179: 96.65 | AF179: 11.14 | AG179: 0.93 | AH179: 0.07
A180: FUSION2-controls | B180: EU | C180: women | D180: 30 | E180: 38.76 | F180: 8.5 | G180: 25.7 | H180: 4.72 | I180: 16 | J180: 53.3 | K180: 8 | L180: 26.7 | M180: 6 | N180: 20 | O180: 81.3 | P180: 11.5 | Q180: 0.795 | R180: 0.06 | T180: 17 | U180: 39.68 | V180: 10.68 | W180: 28.08 | X180: 7.67 | Y180: 7 | Z180: 41.2 | AA180: 4 | AB180: 23.5 | AC180: 6 | AD180: 35.3 | AE180: 90.76 | AF180: 19.16 | AG180: 0.846 | AH180: 0.095
C181: men | D181: 29 | E181: 37.21 | F181: 10.66 | G181: 26.34 | H181: 4.09 | I181: 9 | J181: 31 | K181: 16 | L181: 55.2 | M181: 4 | N181: 13.8 | O181: 94.92 | P181: 11.78 | Q181: 0.919 | R181: 0.077 | T181: 14 | U181: 49.75 | V181: 16.51 | W181: 26.74 | X181: 4.05 | Y181: 5 | Z181: 35.7 | AA181: 8 | AB181: 57.1 | AC181: 1 | AD181: 7.1 | AE181: 95.82 | AF181: 9.95 | AG181: 0.932 | AH181: 0.062
A182: FUSION2-T2D cases | C182: women | D182: 20 | E182: 54.07 | F182: 10.89 | G182: 30.64 | H182: 8.01 | I182: 5 | J182: 25 | K182: 4 | L182: 20 | M182: 11 | N182: 55 | O182: 99.53 | P182: 18.14 | Q182: 0.898 | R182: 0.07 | T182: 23 | U182: 59.77 | V182: 9.5 | W182: 31.24 | X182: 5.77 | Y182: 3 | Z182: 13 | AA182: 9 | AB182: 39.1 | AC182: 11 | AD182: 47.8 | AE182: 99.7 | AF182: 14.31 | AG182: 0.893 | AH182: 0.052
C183: men | D183: 43 | E183: 55.73 | F183: 9.3 | G183: 30.6 | H183: 6.21 | I183: 5 | J183: 11.6 | K183: 17 | L183: 39.5 | M183: 21 | N183: 48.8 | O183: 106.92 | P183: 15.05 | Q183: 0.999 | R183: 0.066 | T183: 66 | U183: 60.52 | V183: 6.51 | W183: 31.74 | X183: 5.16 | Y183: 9 | Z183: 13.6 | AA183: 18 | AB183: 27.3 | AC183: 39 | AD183: 59.1 | AE183: 108.56 | AF183: 14.21 | AG183: 0.996 | AH183: 0.071
A184: GLACIER | B184: EU | C184: women | D184: 861 | E184: 49.05 | F184: 8.53 | G184: 25.13 | H184: 4.29 | I184: 487 | J184: 56.9 | K184: 261 | L184: 30.5 | M184: 108 | N184: 12.6 | O184: 87.18 | P184: 11.76 | Q184: NA | R184: NA | T184: 2758 | U184: 49.34 | V184: 8.91 | W184: 25.7 | X184: 4.4 | Y184: 1382 | Z184: 50.3 | AA184: 958 | AB184: 34.8 | AC184: 409 | AD184: 14.9 | AE184: 97.31 | AF184: 11.78 | AG184: NA | AH184: NA
C185: men | D185: 496 | E185: 50.51 | F185: 7.72 | G185: 25.78 | H185: 3.5 | I185: 225 | J185: 45.4 | K185: 212 | L185: 42.8 | M185: 58 | N185: 11.7 | O185: 97.31 | P185: 11.78 | Q185: NA | R185: NA | T185: 1845 | U185: 49.95 | V185: 8.48 | W185: 26.16 | X185: 3.4 | Y185: 702 | Z185: 38.1 | AA185: 934 | AB185: 50.7 | AC185: 207 | AD185: 11.2 | AE185: 96.77 | AF185: 9.82 | AG185: NA | AH185: NA
A186: GXE | B186: JAMAICA | C186: women | D186: 20 | E186: 38 | F186: 9.12 | G186: 32.76 | H186: 7.13 | I186: 2 | J186: 10 | K186: 0 | L186: 0 | M186: 17 | N186: 85 | O186: 93.67 | P186: 15.66 | Q186: 0.84 | R186: 0.09 | T186: 449 | U186: 40.12 | V186: 8.09 | W186: 32.3 | X186: 7.49 | Y186: 91 | Z186: 20.26726058 | AA186: 0 | AB186: 0 | AC186: 351 | AD186: 78.17 | AE186: 88.56 | AF186: 15.27 | AG186: 0.79 | AH186: 0.07
C187: men | D187: 31 | E187: 36.61 | F187: 7.79 | G187: 24.59 | H187: 6.61 | I187: 20 | J187: 64.5 | K187: 0 | L187: 0 | M187: 9 | N187: 29.03 | O187: 80.01 | P187: 16.38 | Q187: 0.82 | R187: 0.07 | T187: 109 | U187: 38.67 | V187: 8.89 | W187: 28.57 | X187: 6.09 | Y187: 42 | Z187: 38.53 | AA187: 0 | AB187: 0 | AC187: 65 | AD187: 59.63 | AE187: 89.91 | AF187: 16.38 | AG187: 0.85 | AH187: 0.07
A188: HEALTH2006 | B188: EU | C188: women | D188: 378 | E188: 49.49 | F188: 11.8 | G188: 25 | H188: 4.9 | I188: 207 | J188: 54.8 | K188: 109 | L188: 28.8 | M188: 52 | N188: 13.8 | O188: 83.71 | P188: 13.09 | Q188: 0.83 | R188: 0.07 | T188: 1202 | U188: 48.62 | V188: 13.31 | W188: 25.42 | X188: 5.05 | Y188: 635 | Z188: 52.8 | AA188: 345 | AB188: 28.7 | AC188: 184 | AD188: 15.3 | AE188: 83.08 | AF188: 12.41 | AG188: 0.81 | AH188: 0.07
C189: men | D189: 281 | E189: 50.29 | F189: 11.73 | G189: 25.74 | H189: 4.38 | I189: 129 | J189: 45.9 | K189: 117 | L189: 41.6 | M189: 35 | N189: 12.5 | O189: 93.69 | P189: 12.34 | Q189: 0.94 | R189: 0.07 | T189: 1023 | U189: 50.47 | V189: 13.03 | W189: 26.83 | X189: 4.07 | Y189: 367 | Z189: 35.9 | AA189: 464 | AB189: 45.4 | AC189: 190 | AD189: 18.6 | AE189: 95.73 | AF189: 11.95 | AG189: 0.94 | AH189: 0.07
A190: HUNT-controls | B190: EU | C190: women | D190: 84 | E190: 62.8 | F190: 12.45 | G190: 26.44 | H190: 4.53 | I190: 35 | J190: 41.7 | K190: 27 | L190: 32.1 | M190: 22 | N190: 26.2 | O190: 85.14 | P190: 11.35 | Q190: 0.831 | R190: 0.061 | T190: 235 | U190: 69.89 | V190: 13.47 | W190: 28.08 | X190: 4.51 | Y190: 57 | Z190: 24.3 | AA190: 103 | AB190: 43.8 | AC190: 75 | AD190: 31.9 | AE190: 87.29 | AF190: 10.99 | AG190: 0.824 | AH190: 0.055
C191: men | D191: 106 | E191: 58.82 | F191: 15.32 | G191: 25.46 | H191: 3.37 | I191: 49 | J191: 46.2 | K191: 50 | L191: 47.2 | M191: 7 | N191: 6.6 | O191: 90.9 | P191: 8.81 | Q191: 0.906 | R191: 0.055 | T191: 262 | U191: 65.51 | V191: 13.84 | W191: 26.96 | X191: 3.17 | Y191: 71 | Z191: 27.1 | AA191: 152 | AB191: 58 | AC191: 39 | AD191: 14.9 | AE191: 94.38 | AF191: 8.45 | AG191: 0.92 | AH191: 0.059
A192: HUNT-T2D cases | C192: women | D192: 24 | E192: 61.75 | F192: 13.39 | G192: 28.74 | H192: 4.85 | I192: 4 | J192: 16.7 | K192: 12 | L192: 50 | M192: 8 | N192: 33.3 | O192: 90.21 | P192: 12.21 | Q192: 0.856 | R192: 0.067 | T192: 214 | U192: 71.39 | V192: 11.38 | W192: 30.26 | X192: 5.18 | Y192: 33 | Z192: 15.4 | AA192: 71 | AB192: 33.2 | AC192: 110 | AD192: 51.4 | AE192: 94.37 | AF192: 11.9 | AG192: 0.861 | AH192: 0.063
C193: men | D193: 58 | E193: 62.24 | F193: 11.3 | G193: 27.5 | H193: 4.07 | I193: 18 | J193: 31 | K193: 23 | L193: 39.7 | M193: 17 | N193: 29.3 | O193: 97 | P193: 10.03 | Q193: 0.939 | R193: 0.067 | T193: 219 | U193: 68.13 | V193: 10.72 | W193: 28.28 | X193: 3.71 | Y193: 43 | Z193: 19.6 | AA193: 110 | AB193: 50.2 | AC193: 66 | AD193: 30.1 | AE193: 99.03 | AF193: 9.48 | AG193: 0.947 | AH193: 0.06
A194: IMPROVE | B194: EU | C194: women | D194: 238 | E194: 62.74 | F194: 5.01 | G194: 26.44 | H194: 4.9 | I194: 106 | J194: 44.5 | K194: 81 | L194: 34 | M194: 51 | N194: 21.4 | O194: 88.63 | P194: 13.17 | Q194: 0.87 | R194: 0.07 | T194: 1539 | U194: 64.64 | V194: 5.48 | W194: 27.21 | X194: 4.73 | Y194: 540 | Z194: 35.1 | AA194: 621 | AB194: 40.4 | AC194: 373 | AD194: 24.2 | AE194: 89.77 | AF194: 12.31 | AG194: 0.87 | AH194: 0.74
C195: men | D195: 274 | E195: 62.43 | F195: 4.85 | G195: 27.29 | H195: 3.88 | I195: 73 | J195: 26.6 | K195: 147 | L195: 53.6 | M195: 54 | N195: 19.7 | O195: 99.49 | P195: 11.73 | Q195: 0.98 | R195: 0.08 | T195: 1378 | U195: 64.36 | V195: 5.39 | W195: 27.41 | X195: 3.59 | Y195: 347 | Z195: 25.2 | AA195: 753 | AB195: 54.6 | AC195: 278 | AD195: 20.2 | AE195: 98.54 | AF195: 0.62 | AG195: 0.97 | AH195: 0.67
A196: INTER99 | B196: EU | C196: women | D196: 1075 | E196: 45.49 | F196: 7.56 | G196: 25.02 | H196: 4.76 | I196: 608 | J196: 56.6 | K196: 309 | L196: 28.7 | M196: 136 | N196: 12.7 | O196: 79.69 | P196: 12.23 | Q196: 0.8 | R196: 0.06 | T196: 1961 | U196: 46.19 | V196: 8.07 | W196: 26.16 | X196: 5.19 | Y196: 974 | Z196: 49.7 | AA196: 610 | AB196: 31.1 | AC196: 369 | AD196: 18.8 | AE196: 80.6 | AF196: 12.4 | AG196: 0.79 | AH196: 0.06
C197: men | D197: 1070 | E197: 46.97 | F197: 7.66 | G197: 26.31 | H197: 3.95 | I197: 418 | J197: 39.1 | K197: 490 | L197: 45.8 | M197: 158 | N197: 14.8 | O197: 92.34 | P197: 10.74 | Q197: 0.92 | R197: 0.06 | T197: 1837 | U197: 46.48 | V197: 7.76 | W197: 27.11 | X197: 4.04 | Y197: 578 | Z197: 31.5 | AA197: 913 | AB197: 49.7 | AC197: 345 | AD197: 18.8 | AE197: 93.79 | AF197: 11.18 | AG197: 0.92 | AH197: 0.07
A198: KORAS3 | B198: EU | C198: women | D198: 186 | E198: 37.42 | F198: 8.39 | G198: 24.02 | H198: 3.91 | I198: 123 | J198: 66.1 | K198: 46 | L198: 24.7 | M198: 17 | N198: 9.1 | O198: 76.05 | P198: 8.42 | Q198: 0.77 | R198: 0.05 | T198: 473 | U198: 42.26 | V198: 13.76 | W198: 25.64 | X198: 4.93 | Y198: 264 | Z198: 55.8 | AA198: 127 | AB198: 26.8 | AC198: 81 | AD198: 17.1 | AE198: 80.33 | AF198: 11.97 | AG198: 0.78 | AH198: 0.06
C199: men | D199: 207 | E199: 36.28 | F199: 9.1 | G199: 26.27 | H199: 3.54 | I199: 77 | J199: 37.2 | K199: 105 | L199: 50.7 | M199: 25 | N199: 12.1 | O199: 91.42 | P199: 9.21 | Q199: 0.9 | R199: 0.06 | T199: 392 | U199: 42.85 | V199: 14.33 | W199: 26.68 | X199: 3.36 | Y199: 130 | Z199: 33.2 | AA199: 200 | AB199: 51 | AC199: 62 | AD199: 15.8 | AE199: 93.53 | AF199: 9.32 | AG199: 0.9 | AH199: 0.06
A200: KORAS4 | B200: EU | C200: women | D200: 148 | E200: 35.32 | F200: 8.77 | G200: 24.33 | H200: 4.78 | I200: 88 | J200: 59.5 | K200: 43 | L200: 29.1 | M200: 17 | N200: 11.5 | O200: 78.78 | P200: 11.53 | Q200: 0.78 | R200: 0.06 | T200: 476 | U200: 43.23 | V200: 15.79 | W200: 26.45 | X200: 5.08 | Y200: 206 | Z200: 43.3 | AA200: 180 | AB200: 37.8 | AC200: 90 | AD200: 18.9 | AE200: 83.21 | AF200: 11.96 | AG200: 0.79 | AH200: 0.06
C201: men | D201: 193 | E201: 36.96 | F201: 10.9 | G201: 26.21 | H201: 3.31 | I201: 72 | J201: 37.3 | K201: 101 | L201: 52.3 | M201: 20 | N201: 10.4 | O201: 93.07 | P201: 9.49 | Q201: 0.9 | R201: 0.06 | T201: 389 | U201: 45.23 | V201: 17.01 | W201: 26.86 | X201: 3.7 | Y201: 125 | Z201: 32.1 | AA201: 194 | AB201: 49.9 | AC201: 70 | AD201: 18 | AE201: 94.98 | AF201: 10.19 | AG201: 0.91 | AH201: 0.06
... 25 more rows

Sheet SD 1. BMI All Ancestries
A1: Supplementary Data 1. BMI association results for all ancestries meta-analyses. Significant SNPs for BMI across all approaches (1-SNPadjSMK, 2-SNPjoint, 3-SNPint, 4-SNPscreen) and strata (C=Combined Men and Women, W=Women-only, M=Men-only) for combined ancestries meta-analyses. Summary statistics are presented from stage1 plus stage 2 results.
L2: SMOKERS | AB2: NON-SMOKERS | AR2: Main and Interaction Effects
F3: Approaches | J3: Alleles | L3: WOMEN | Q3: MEN | V3: PSexdiff | W3: COMBINED | AB3: WOMEN | AG3: MEN | AL3: PSexdiff | AM3: COMBINED | AR3: WOMEN | AW3: MEN | BB3: PSexdiff | BC3: COMBINED
A4: Marker | B4: Chr | C4: Pos (hg19) | D4: Nearest Gene | E4: Novel | F4: 1 | G4: 2 | H4: 3 | I4: 4 | J4: Effect | K4: Other | L4: N | M4: EAF | N4: β | O4: SE | P4: P | Q4: N | R4: EAF | S4: β | T4: SE | U4: P | W4: N | X4: EAF | Y4: β | Z4: SE | AA4: P | AB4: N | AC4: EAF | AD4: β | AE4: SE | AF4: P | AG4: N | AH4: EAF | AI4: β | AJ4: SE | AK4: P | AM4: N | AN4: EAF | AO4: β | AP4: SE | AQ4: P | AR4: βadj | AS4: SEadj | AT4: PSNPadjSMK | AU4: PSNPint | AV4: PSNPjoint | AW4: βadj | AX4: SEadj | AY4: PSNPadjSMK | AZ4: PSNPint | BA4: PSNPjoint | BC4: βadj | BD4: SEadj | BE4: PSNPadjSMK | BF4: PSNPint | BG4: PSNPjoint
A5: rs3127553 | B5: 1 | C5: 49438005 | D5: AGBL4 | F5: W,C | G5: W,C | J5: G | K5: A | L5: 26305 | M5: 0.3685 | N5: 0.0282 | O5: 0.0097 | P5: 0.0037 | Q5: 24501 | R5: 0.3665 | S5: 0.0151 | T5: 0.0103 | U5: 0.14 | V5: =2*(1-_xlfn.NORM.S.DIST(ABS((N5-S5)/SQRT(O5^2+T5^2-2*T5*O5*0.0499)),TRUE)) -> 0.3421876333 | W5: 50805 | X5: 0.3673 | Y5: 0.0222 | Z5: 0.0072 | AA5: 0.002 | AB5: 111809 | AC5: 0.3634 | AD5: 0.0274 | AE5: 0.005 | AF5: 3.9e-08 | AG5: 77772 | AH5: 0.3706 | AI5: 0.0158 | AJ5: 0.0055 | AK5: 0.0044 | AL5: =2*(1-_xlfn.NORM.S.DIST(ABS((AD5-AI5)/SQRT(AE5^2+AJ5^2-2*AE5*AJ5*0.1403)),TRUE)) -> 0.09246965846 | AM5: 189581 | AN5: 0.3666 | AO5: 0.0224 | AP5: 0.0038 | AQ5: 3.6e-09 | AR5: 0.0265 | AS5: 0.0044 | AT5: 1.415e-09 | AU5: 0.9392524562 | AV5: 4.402233224e-09 | AW5: 0.0143 | AX5: 0.0049 | AY5: 0.00355 | AZ5: 0.9505511252 | BA5: 0.005511670874 | BB5: =2*(1-_xlfn.NORM.S.DIST(ABS((AR5-AW5)/SQRT(AS5^2+AX5^2-2*AS5*AX5*0.1547)),TRUE)) -> 0.04402352733 | BC5: 0.0211 | BD5: 0.0034 | BE5: 3.539e-10 | BF5: 0.979200815 | BG5: 2.45571384e-10
A6: rs10736388 | B6: 1 | C6: 50335528 | D6: AGBL4 | F6: C | G6: C | J6: A | K6: G | L6: 20647 | M6: 0.3267 | N6: 0.0435 | O6: 0.0113 | P6: 0.00011 | Q6: 18469 | R6: 0.3342 | S6: 0.0133 | T6: 0.0123 | U6: 0.28 | V6: =2*(1-_xlfn.NORM.S.DIST(ABS((N6-S6)/SQRT(O6^2+T6^2-2*T6*O6*0.0499)),TRUE)) -> 0.06362614319 | W6: 39116 | X6: 0.3302 | Y6: 0.0295 | Z6: 0.0084 | AA6: 0.00048 | AB6: 88735 | AC6: 0.3273 | AD6: 0.0216 | AE6: 0.0057 | AF6: 0.00015 | AG6: 59234 | AH6: 0.3303 | AI6: 0.0223 | AJ6: 0.0066 | AK6: 0.00068 | AL6: =2*(1-_xlfn.NORM.S.DIST(ABS((AD6-AI6)/SQRT(AE6^2+AJ6^2-2*AE6*AJ6*0.1403)),TRUE)) -> 0.9310718462 | AM6: 147969 | AN6: 0.3286 | AO6: 0.022 | AP6: 0.0044 | AQ6: 7.2e-07 | AR6: 0.0253 | AS6: 0.0051 | AT6: 5.758e-07 | AU6: 0.07218651468 | AV6: 4.611225659e-07 | AW6: 0.0175 | AX6: 0.0057 | AY6: 0.002171 | AZ6: 0.5047565812 | BA6: 0.001849741297 | BB6: =2*(1-_xlfn.NORM.S.DIST(ABS((AR6-AW6)/SQRT(AS6^2+AX6^2-2*AS6*AX6*0.1547)),TRUE)) -> 0.2676116563 | BC6: 0.0222 | BD6: 0.0039 | BE6: 1.717e-08 | BF6: 0.4013924865 | BG6: 7.818778252e-09
A7: rs1460943 | B7: 1 | C7: 72813129 | D7: NEGR1 | G7: W,C | J7: T | K7: C | L7: 24512 | M7: 0.6115 | N7: 0.0404 | O7: 0.0098 | P7: 3.5e-05 | Q7: 22987 | R7: 0.6093 | S7: 0.0411 | T7: 0.0104 | U7: 8.2e-05 | V7: 0.9599204622 | W7: 47499 | X7: 0.6102 | Y7: 0.04 | Z7: 0.0072 | AA7: 3.1e-08 | AB7: 107274 | AC7: 0.6109 | AD7: 0.023 | AE7: 0.0048 | AF7: 1.5e-06 | AG7: 69213 | AH7: 0.6155 | AI7: 0.0318 | AJ7: 0.0058 | AK7: 3.4e-08 | AL7: 0.2080887275 | AM7: 176486 | AN7: 0.6127 | AO7: 0.0262 | AP7: 0.0038 | AQ7: 6.2e-12 | AR7: 0.0252 | AS7: 0.0043 | AT7: 5.781e-09 | AU7: 0.09779869362 | AV7: 2.108418879e-09 | AW7: 0.0332 | AX7: 0.005 | AY7: 2.551e-11 | AZ7: 0.4187649774 | BA7: 1.205243813e-10 | BB7: 0.187476072 | BC7: 0.0283 | BD7: 0.0034 | BE7: 3.308e-17 | BF7: 0.07203612559 | BG7: 9.447355372e-18
A8: rs990871 | B8: 1 | C8: 72823713 | D8: NEGR1 | F8: W,C | J8: T | K8: C | L8: 26331 | M8: 0.5999 | N8: 0.0383 | O8: 0.0094 | P8: 4.6e-05 | Q8: 24458 | R8: 0.6024 | S8: 0.036 | T8: 0.0101 | U8: 0.00038 | V8: 0.8642180507 | W8: 50789 | X8: 0.6004 | Y8: 0.0365 | Z8: 0.007 | AA8: 1.9e-07 | AB8: 111864 | AC8: 0.5955 | AD8: 0.0219 | AE8: 0.0047 | AF8: 3.5e-06 | AG8: 77767 | AH8: 0.6107 | AI8: 0.0316 | AJ8: 0.0055 | AK8: 6.6e-09 | AL8: 0.1485694217 | AM8: 189631 | AN8: 0.6018 | AO8: 0.0258 | AP8: 0.0037 | AQ8: 2.9e-12 | AR8: 0.0255 | AS8: 0.0043 | AT8: 2.725e-09 | AU8: 0.1049996343 | AV8: 4.791308929e-09 | AW8: 0.0316 | AX8: 0.0047 | AY8: 2.425e-11 | AZ8: 0.6921612674 | BA8: 1.183420013e-10 | BB8: 0.2978076702 | BC8: 0.028 | BD8: 0.0033 | BE8: 1.024e-17 | BF8: 0.1515011932 | BG8: 3.450029511e-17
A9: rs1838658 | B9: 1 | C9: 72928467 | D9: NEGR1 | G9: M | J9: T | K9: C | L9: 26250 | M9: 0.6397 | N9: 0.0209 | O9: 0.0095 | P9: 0.028 | Q9: 24464 | R9: 0.6388 | S9: 0.0385 | T9: 0.0102 | U9: 0.00017 | V9: 0.1952129968 | W9: 50715 | X9: 0.6393 | Y9: 0.0288 | Z9: 0.0071 | AA9: 5.1e-05 | AB9: 111847 | AC9: 0.6405 | AD9: 0.0175 | AE9: 0.0048 | AF9: 0.00028 | AG9: 77754 | AH9: 0.6459 | AI9: 0.0349 | AJ9: 0.0055 | AK9: 1.8e-10 | AL9: 0.01020565129 | AM9: 189601 | AN9: 0.6429 | AO9: 0.0244 | AP9: 0.0038 | AQ9: 1.2e-10 | AR9: 0.0185 | AS9: 0.0043 | AT9: 1.617e-05 | AU9: 0.7399485185 | AV9: 0.0001155219102 | AW9: 0.0348 | AX9: 0.0048 | AY9: 6.724e-13 | AZ9: 0.7478930573 | BA9: 1.455227567e-12 | BB9: 0.005967659657 | BC9: 0.0253 | BD9: 0.0033 | BE9: 1.296e-14 | BF9: 0.5618228723 | BG9: 2.979360442e-13
A10: rs10493498 | B10: 1 | C10: 72938249 | D10: NEGR1 | F10: M | J10: C | K10: A | L10: 26245 | M10: 0.6211 | N10: 0.0227 | O10: 0.0094 | P10: 0.016 | Q10: 24473 | R10: 0.6224 | S10: 0.0381 | T10: 0.0102 | U10: 0.00019 | V10: 0.2547339249 | W10: 50717 | X10: 0.6216 | Y10: 0.0292 | Z10: 0.007 | AA10: 2.9e-05 | AB10: 111849 | AC10: 0.6205 | AD10: 0.0178 | AE10: 0.0048 | AF10: 0.00021 | AG10: 77767 | AH10: 0.6296 | AI10: 0.0348 | AJ10: 0.0055 | AK10: 1.9e-10 | AL10: 0.01208235203 | AM10: 189616 | AN10: 0.6242 | AO10: 0.0246 | AP10: 0.0037 | AQ10: 3e-11 | AR10: 0.0192 | AS10: 0.0043 | AT10: 7.054e-06 | AU10: 0.6294375105 | AV10: 5.591244089e-05 | AW10: 0.0349 | AX10: 0.0048 | AY10: 2.09e-13 | AZ10: 0.7682735805 | BA10: 1.891972547e-12 | BB10: 0.008088752118 | BC10: 0.0257 | BD10: 0.0033 | BE10: 4.179e-15 | BF10: 0.5375031692 | BG10: 4.19342873e-14
A11: rs7526762 | B11: 1 | C11: 74993318 | D11: TNNI3K | F11: C | G11: C | J11: A | K11: G | L11: 26306 | M11: 0.4658 | N11: 0.0339 | O11: 0.0093 | P11: 0.00027 | Q11: 24490 | R11: 0.4626 | S11: 0.0302 | T11: 0.01 | U11: 0.0026 | V11: 0.7810543529 | W11: 50796 | X11: 0.4658 | Y11: 0.032 | Z11: 0.007 | AA11: 4.3e-06 | AB11: 111846 | AC11: 0.4727 | AD11: 0.0192 | AE11: 0.0048 | AF11: 6e-05 | AG11: 77772 | AH11: 0.4661 | AI11: 0.0126 | AJ11: 0.0054 | AK11: 0.019 | AL11: 0.3247859104 | AM11: 189618 | AN11: 0.4706 | AO11: 0.0164 | AP11: 0.0037 | AQ11: 1e-05 | AR11: 0.0219 | AS11: 0.0043 | AT11: 2.597e-07 | AU11: 0.1442276298 | AV11: 4.368829983e-07 | AW11: 0.0152 | AX11: 0.0047 | AY11: 0.001118 | AZ11: 0.1090830783 | BA11: 0.0006875182233 | BB11: 0.2528086087 | BC11: 0.019 | BD11: 0.0032 | BE11: 3.482e-09 | BF11: 0.03652315671 | BG11: 1.569971727e-09
A12: rs17381664 | B12: 1 | C12: 78048331 | D12: ZZZ3 | F12: C | G12: C | J12: C | K12: T | L12: 26230 | M12: 0.3813 | N12: 0.0147 | O12: 0.0099 | P12: 0.14 | Q12: 24602 | R12: 0.38 | S12: 0.0053 | T12: 0.0105 | U12: 0.61 | V12: 0.5039921111 | W12: 50833 | X12: 0.3805 | Y12: 0.0101 | Z12: 0.0073 | AA12: 0.17 | AB12: 112052 | AC12: 0.3724 | AD12: 0.0227 | AE12: 0.005 | AF12: 5.4e-06 | AG12: 77680 | AH12: 0.374 | AI12: 0.0207 | AJ12: 0.0056 | AK12: 0.00023 | AL12: 0.7739792541 | AM12: 189732 | AN12: 0.3735 | AO12: 0.0217 | AP12: 0.0038 | AQ12: 1.2e-08 | AR12: 0.0197 | AS12: 0.0044 | AT12: 9.33e-06 | AU12: 0.4535599511 | AV12: 1.110419591e-05 | AW12: 0.0175 | AX12: 0.0049 | AY12: 0.0003581 | AZ12: 0.1806799205 | BA12: 0.0009498709905 | BB12: 0.7164881331 | BC12: 0.0188 | BD12: 0.0034 | BE12: 2.098e-08 | BF12: 0.134888592 | BG12: 3.185164484e-08
A13: rs2968487 | B13: 1 | C13: 96887370 | D13: PTBP2 | F13: C | G13: C | J13: T | K13: C | L13: 24305 | M13: 0.2803 | N13: 0.0324 | O13: 0.0109 | P13: 0.0029 | Q13: 22496 | R13: 0.2666 | S13: 0.0513 | T13: 0.0117 | U13: 1.2e-05 | V13: 0.2253194507 | W13: 46801 | X13: 0.2736 | Y13: 0.0412 | Z13: 0.008 | AA13: 2.6e-07 | AB13: 102114 | AC13: 0.2811 | AD13: 0.0222 | AE13: 0.0055 | AF13: 5.5e-05 | AG13: 70672 | AH13: 0.2682 | AI13: 0.0171 | AJ13: 0.0064 | AK13: 0.007 | AL13: 0.5149085784 | AM13: 172786 | AN13: 0.2753 | AO13: 0.0206 | AP13: 0.0043 | AQ13: 1.9e-06 | AR13: 0.0251 | AS13: 0.0049 | AT13: 2.59e-07 | AU13: 0.3853522931 | AV13: 3.495879212e-06 | AW13: 0.0251 | AX13: 0.0056 | AY13: 7.856e-06 | AZ13: 0.007953100135 | BA13: 1.884432123e-06 | BB13: 1 | BC13: 0.0248 | BD13: 0.0038 | BE13: 4.821e-11 | BF13: 0.01601397746 | BG13: 1.807227529e-11
A14: rs7550711 | B14: 1 | C14: 110082886 | D14: GPR61 | F14: M,W,C | G14: W,C | J14: T | K14: C | L14: 20754 | M14: 0.0342 | N14: 0.1073 | O14: 0.0297 | P14: 0.0003 | Q14: 17848 | R14: 0.0377 | S14: 0.0636 | T14: 0.0328 | U14: 0.052 | V14: 0.3110236375 | W14: 39215 | X14: 0.0357 | Y14: 0.0858 | Z14: 0.0221 | AA14: 0.0001 | AB14: 99952 | AC14: 0.0312 | AD14: 0.0722 | AE14: 0.015 | AF14: 1.4e-06 | AG14: 70467 | AH14: 0.0347 | AI14: 0.0859 | AJ14: 0.0168 | AK14: 3e-07 | AL14: 0.5120084896 | AM14: 171030 | AN14: 0.034 | AO14: 0.0777 | AP14: 0.0115 | AQ14: 1.7e-11 | AR14: 0.0811 | AS14: 0.0131 | AT14: 5.867e-10 | AU14: 0.2730201754 | AV14: 1.364037972e-08 | AW14: 0.0798 | AX14: 0.0146 | AY14: 4.668e-08 | AZ14: 0.5316749758 | BA14: 3.210145943e-07 | BB14: 0.9425659368 | BC14: 0.0805 | BD14: 0.01 | BE14: 9.081e-16 | BF14: 0.7301923021 | BG14: 6.517990457e-14
A15: rs543874 | B15: 1 | C15: 177889480 | D15: SEC16B | F15: M,W,C | G15: M,W,C | J15: G | K15: A | L15: 26156 | M15: 0.206 | N15: 0.065 | O15: 0.0114 | P15: 1.1e-08 | Q15: 24596 | R15: 0.1954 | S15: 0.037 | T15: 0.0124 | U15: 0.0028 | V15: 0.08814770225 | W15: 50752 | X15: 0.2012 | Y15: 0.0527 | Z15: 0.0085 | AA15: 4.8e-10 | AB15: 112019 | AC15: 0.2001 | AD15: 0.0597 | AE15: 0.0058 | AF15: 3.9e-25 | AG15: 78083 | AH15: 0.1936 | AI15: 0.0373 | AJ15: 0.0067 | AK15: 2.2e-08 | AL15: 0.006451557083 | AM15: 190103 | AN15: 0.1976 | AO15: 0.0502 | AP15: 0.0046 | AQ15: 6.3e-28 | AR15: 0.0601 | AS15: 0.0052 | AT15: 2.663e-31 | AU15: 0.6667351401 | AV15: 8.59471127e-31 | AW15: 0.0353 | AX15: 0.0059 | AY15: 1.713e-09 | AZ15: 0.9824292728 | BA15: 2.170297733e-09 | BB15: 0.0006094440225 | BC15: 0.0497 | BD15: 0.004 | BE15: 1.379e-35 | BF15: 0.7835048037 | BG15: 6.191759379e-35
A16: rs2820292 | B16: 1 | C16: 201784287 | D16: NAV1 | G16: C | J16: C | K16: A | L16: 26310 | M16: 0.5346 | N16: 0.0152 | O16: 0.0092 | P16: 0.099 | Q16: 24499 | R16: 0.543 | S16: 0.0233 | T16: 0.01 | U16: 0.02 | V16: 0.5408672437 | W16: 50809 | X16: 0.5382 | Y16: 0.0187 | Z16: 0.0068 | AA16: 0.0061 | AB16: 111836 | AC16: 0.5245 | AD16: 0.0192 | AE16: 0.0047 | AF16: 4.5e-05 | AG16: 77774 | AH16: 0.5447 | AI16: 0.0261 | AJ16: 0.0053 | AK16: 8.1e-07 | AL16: 0.2937548921 | AM16: 189610 | AN16: 0.5334 | AO16: 0.022 | AP16: 0.0036 | AQ16: 1.1e-09 | AR16: 0.0189 | AS16: 0.0042 | AT16: 6.454e-06 | AU16: 0.6873732632 | AV16: 6.0741318e-05 | AW16: 0.0244 | AX16: 0.0047 | AY16: 1.487e-07 | AZ16: 0.7980394757 | BA16: 3.590014182e-07 | BB16: 0.3428630653 | BC16: 0.0209 | BD16: 0.0032 | BE16: 4.748e-11 | BF16: 0.6489538139 | BG16: 1.771384464e-10
A17: rs2820315 | B17: 1 | C17: 201872264 | D17: LMOD1 | F17: C | J17: T | K17: C | L17: 26121 | M17: 0.3028 | N17: 0.0235 | O17: 0.0103 | P17: 0.023 | Q17: 24415 | R17: 0.3058 | S17: 0.0348 | T17: 0.0109 | U17: 0.0015 | V17: 0.439521003 | W17: 50537 | X17: 0.304 | Y17: 0.0287 | Z17: 0.0076 | AA17: 0.00015 | AB17: 111787 | AC17: 0.2953 | AD17: 0.0197 | AE17: 0.0053 | AF17: 0.00019 | AG17: 77640 | AH17: 0.3002 | AI17: 0.025 | AJ17: 0.0058 | AK17: 1.9e-05 | AL17: 0.467045061 | AM17: 189427 | AN17: 0.2971 | AO17: 0.0216 | AP17: 0.0041 | AQ17: 1.3e-07 | AR17: 0.0223 | AS17: 0.0047 | AT17: 2.489e-06 | AU17: 0.7330893492 | AV17: 7.405390217e-05 | AW17: 0.0259 | AX17: 0.0052 | AY17: 6.458e-07 | AZ17: 0.4116487212 | BA17: 5.652052137e-07 | BB17: 0.5765922101 | BC17: 0.0237 | BD17: 0.0035 | BE17: 2.292e-11 | BF17: 0.3825364324 | BG17: 7.524140332e-10
A18: rs6755502 | B18: 2 | C18: 635721 | D18: TMEM18 | G18: M | J18: C | K18: T | L18: 25391 | M18: 0.8332 | N18: 0.0683 | O18: 0.0127 | P18: 7.9e-08 | Q18: 23740 | R18: 0.8333 | S18: 0.0743 | T18: 0.0136 | U18: 5.2e-08 | V18: 0.7408073438 | W18: 49130 | X18: 0.8333 | Y18: 0.0709 | Z18: 0.0093 | AA18: 3.3e-14 | AB18: 108264 | AC18: 0.8306 | AD18: 0.0642 | AE18: 0.0063 | AF18: 1.5e-24 | AG18: 75377 | AH18: 0.8276 | AI18: 0.0554 | AJ18: 0.0072 | AK18: 2e-14 | AL18: 0.321529096 | AM18: 183642 | AN18: 0.8296 | AO18: 0.0597 | AP18: 0.0049 | AQ18: 1.1e-33 | AR18: 0.0635 | AS18: 0.0057 | AT18: 2.954e-29 | AU18: 0.7638877022 | AV18: 1.478277088e-29 | AW18: 0.0602 | AX18: 0.0063 | AY18: 2.161e-21 | AZ18: 0.2039778153 | BA18: 4.599714637e-20 | BB18: 0.6728196349 | BC18: 0.0612 | BD18: 0.0043 | BE18: 2.455e-45 | BF18: 0.258203416 | BG18: 1.398380572e-45
A19: rs7571957 | B19: 2 | C19: 646803 | D19: TMEM18 | F19: W | J19: C | K19: T | L19: 25566 | M19: 0.828 | N19: 0.0663 | O19: 0.0125 | P19: 1.2e-07 | Q19: 23928 | R19: 0.8304 | S19: 0.0684 | T19: 0.0135 | U19: 3.9e-07 | V19: 0.9067883487 | W19: 49494 | X19: 0.8292 | Y19: 0.0669 | Z19: 0.0092 | AA19: 4e-13 | AB19: 108373 | AC19: 0.8236 | AD19: 0.0632 | AE19: 0.0062 | AF19: 2.8e-24 | AG19: 75444 | AH19: 0.8271 | AI19: 0.0555 | AJ19: 0.0072 | AK19: 1.2e-14 | AL19: 0.3825369998 | AM19: 183817 | AN19: 0.8253 | AO19: 0.0592 | AP19: 0.0049 | AQ19: 3.9e-34 | AR19: 0.0644 | AS19: 0.0056 | AT19: 1.726e-30 | AU19: 0.817505025 | AV19: 2.126644397e-29 | AW19: 0.0592 | AX19: 0.0063 | AY19: 4.92e-21 | AZ19: 0.3831209887 | BA19: 3.334623643e-19 | BB19: 0.5024966165 | BC19: 0.0614 | BD19: 0.0043 | BE19: 2.222e-45 | BF19: 0.4329160887 | BG19: 6.630799064e-44
A20: rs13386964 | B20: 2 | C20: 650828 | D20: TMEM18 | F20: C | J20: G | K20: A | L20: 25491 | M20: 0.8241 | N20: 0.0662 | O20: 0.0124 | P20: 8.4e-08 | Q20: 23774 | R20: 0.8213 | S20: 0.071 | T20: 0.0133 | U20: 9.1e-08 | V20: 0.7865469134 | W20: 49264 | X20: 0.8227 | Y20: 0.0681 | Z20: 0.0091 | AA20: 7e-14 | AB20: 108354 | AC20: 0.8188 | AD20: 0.0628 | AE20: 0.0061 | AF20: 5.9e-25 | AG20: 75422 | AH20: 0.8255 | AI20: 0.0559 | AJ20: 0.0072 | AK20: 6.1e-15 | AL20: 0.4308543453 | AM20: 183777 | AN20: 0.8216 | AO20: 0.0592 | AP20: 0.0048 | AQ20: 1.3e-34 | AR20: 0.0619 | AS20: 0.0055 | AT20: 1.74e-29 | AU20: 0.798345264 | AV20: 6.24815315e-30 | AW20: 0.06 | AX20: 0.0063 | AY20: 1.06e-21 | AZ20: 0.3015606329 | BA20: 5.279060968e-20 | BB20: 0.8049852146 | BC20: 0.0603 | BD20: 0.0042 | BE20: 7.263e-46 | BF20: 0.3586081879 | BG20: 6.43562681e-46
A21: rs2867110 | B21: 2 | C21: 651105 | D21: TMEM18 | G21: W | J21: G | K21: C | L21: 25484 | M21: 0.8243 | N21: 0.0656 | O21: 0.0124 | P21: 1.1e-07 | Q21: 23782 | R21: 0.8214 | S21: 0.0701 | T21: 0.0133 | U21: 1.3e-07 | V21: 0.7995940631 | W21: 49266 | X21: 0.8228 | Y21: 0.0673 | Z21: 0.0091 | AA21: 1.3e-13 | AB21: 108373 | AC21: 0.819 | AD21: 0.0632 | AE21: 0.0061 | AF21: 3e-25 | AG21: 75452 | AH21: 0.8256 | AI21: 0.0559 | AJ21: 0.0072 | AK21: 5.3e-15 | AL21: 0.4046213933 | AM21: 183826 | AN21: 0.8218 | AO21: 0.0594 | AP21: 0.0048 | AQ21: 8.3e-35 | AR21: 0.062 | AS21: 0.0055 | AT21: 1.565e-29 | AU21: 0.8568814661 | AV21: 4.104987216e-30 | AW21: 0.0598 | AX21: 0.0063 | AY21: 1.365e-21 | AZ21: 0.3312906877 | BA21: 7.558706865e-20 | BB21: 0.7749663472 | BC21: 0.0603 | BD21: 0.0042 | BE21: 7.504e-46 | BF21: 0.4151455609 | BG21: 7.397333442e-46
A22: rs2867113 | B22: 2 | C22: 651365 | D22: TMEM18 | G22: C | J22: G | K22: A | L22: 25486 | M22: 0.8243 | N22: 0.0662 | O22: 0.0124 | P22: 1e-07 | Q22: 23782 | R22: 0.8213 | S22: 0.0704 | T22: 0.0133 | U22: 1.2e-07 | V22: 0.8126973923 | W22: 49267 | X22: 0.8228 | Y22: 0.0678 | Z22: 0.0091 | AA22: 9e-14 | AB22: 108375 | AC22: 0.8191 | AD22: 0.0628 | AE22: 0.0062 | AF22: 2.4e-24 | AG22: 75444 | AH22: 0.8257 | AI22: 0.0559 | AJ22: 0.0072 | AK22: 5.8e-15 | AL22: 0.4339172609 | AM22: 183820 | AN22: 0.8219 | AO22: 0.0593 | AP22: 0.0048 | AQ22: 1.1e-34 | AR22: 0.0617 | AS22: 0.0055 | AT22: 3.388e-29 | AU22: 0.7989014461 | AV22: 3.405561888e-29 | AW22: 0.06 | AX22: 0.0063 | AY22: 1.145e-21 | AZ22: 0.32117683 | BA22: 6.709727146e-20 | BB22: 0.8251617395 | BC22: 0.0601 | BD22: 0.0042 | BE22: 1.202e-45 | BF22: 0.3806164378 | BG22: 6.365251259e-46
A23: rs13397165 | B23: 2 | C23: 653354 | D23: TMEM18 | F23: M | J23: G | K23: A | L23: 25553 | M23: 0.8239 | N23: 0.069 | O23: 0.0124 | P23: 3e-08 | Q23: 23927 | R23: 0.8212 | S23: 0.0687 | T23: 0.0133 | U23: 2.3e-07 | V23: 0.9864965816 | W23: 49480 | X23: 0.8225 | Y23: 0.0684 | Z23: 0.0091 | AA23: 5.5e-14 | AB23: 108390 | AC23: 0.8197 | AD23: 0.062 | AE23: 0.0062 | AF23: 9.7e-24 | AG23: 75454 | AH23: 0.8259 | AI23: 0.0567 | AJ23: 0.0072 | AK23: 2.7e-15 | AL23: 0.5478031325 | AM23: 183844 | AN23: 0.8224 | AO23: 0.0591 | AP23: 0.0048 | AQ23: 2e-34 | AR23: 0.0615 | AS23: 0.0055 | AT23: 4.846e-29 | AU23: 0.5999137086 | AV23: 3.643875531e-29 | AW23: 0.0605 | AX23: 0.0063 | AY23: 5.828e-22 | AZ23: 0.4116459104 | BA23: 5.491167389e-20 | BB23: 0.8966078513 | BC23: 0.0603 | BD23: 0.0042 | BE23: 1.052e-45 | BF23: 0.337417839 | BG23: 6.496892112e-46
A24: rs10929925 | B24: 2 | C24: 6155557 | D24: SOX11 | E24: YES | F24: C | G24: C | J24: C | K24: A | L24: 24776 | M24: 0.5567 | N24: 0.0207 | O24: 0.0095 | P24: 0.029 | Q24: 23370 | R24: 0.5426 | S24: 0.0162 | T24: 0.0102 | U24: 0.11 | V24: 0.7405029002 | W24: 48147 | X24: 0.5496 | Y24: 0.0187 | Z24: 0.007 | AA24: 0.0078 | AB24: 102778 | AC24: 0.5509 | AD24: 0.0212 | AE24: 0.0048 | AF24: 9.1e-06 | AG24: 74142 | AH24: 0.5408 | AI24: 0.0196 | AJ24: 0.0054 | AK24: 0.00033 | AL24: 0.8113319987 | AM24: 176920 | AN24: 0.5459 | AO24: 0.0204 | AP24: 0.0038 | AQ24: 8.4e-08 | AR24: 0.0221 | AS24: 0.0043 | AT24: 3.31e-07 | AU24: 0.9610691281 | AV24: 5.40936937e-06 | AW24: 0.0177 | AX24: 0.0048 | AY24: 0.0002289 | AZ24: 0.7606001714 | BA24: 0.0003903950828 | BB24: 0.4579597185 | BC24: 0.02 | BD24: 0.0033 | BE24: 1.063e-09 | BF24: 0.8206308045 | BG24: 1.556505335e-08
A25: rs11676272 | B25: 2 | C25: 25141538 | D25: ADCY3 | F25: M | J25: G | K25: A | L25: 20790 | M25: 0.4856 | N25: 0.029 | O25: 0.0106 | P25: 0.0061 | Q25: 22217 | R25: 0.4695 | S25: 0.0316 | T25: 0.0104 | U25: 0.0024 | V25: 0.8574483253 | W25: 43008 | X25: 0.4779 | Y25: 0.0307 | Z25: 0.0075 | AA25: 3.9e-05 | AB25: 79827 | AC25: 0.4947 | AD25: 0.0378 | AE25: 0.0057 | AF25: 2.9e-11 | AG25: 69354 | AH25: 0.4701 | AI25: 0.0281 | AJ25: 0.0057 | AK25: 8.7e-07 | AL25: 0.1943554045 | AM25: 149181 | AN25: 0.4826 | AO25: 0.0339 | AP25: 0.0042 | AQ25: 4.4e-16 | AR25: 0.0341 | AS25: 0.0049 | AT25: 3.619e-12 | AU25: 0.4467404122 | AV25: 6.683664521e-12 | AW25: 0.0272 | AX25: 0.0049 | AY25: 3.598e-08 | AZ25: 0.7600315168 | BA25: 5.222474755e-08 | BB25: 0.2788038608 | BC25: 0.0312 | BD25: 0.0037 | BE25: 1.433e-17 | BF25: 0.6921870296 | BG25: 1.640273823e-18
A26: rs10182181 | B26: 2 | C26: 25150296 | D26: ADCY3 | F26: W,C | G26: W,C | J26: G | K26: A | L26: 22875 | M26: 0.4877 | N26: 0.0286 | O26: 0.0101 | P26: 0.0045 | Q26: 23975 | R26: 0.4737 | S26: 0.0293 | T26: 0.01 | U26: 0.0033 | V26: 0.959702168 | W26: 46850 | X26: 0.4813 | Y26: 0.0293 | Z26: 0.0072 | AA26: 4.4e-05 | AB26: 88210 | AC26: 0.4941 | AD26: 0.036 | AE26: 0.0054 | AF26: 2.1e-11 | AG26: 75455 | AH26: 0.4735 | AI26: 0.0271 | AJ26: 0.0055 | AK26: 7.1e-07 | AL26: 0.2130143162 | AM26: 163665 | AN26: 0.4843 | AO26: 0.0325 | AP26: 0.004 | AQ26: 3.4e-16 | AR26: 0.0329 | AS26: 0.0047 | AT26: 2.257e-12 | AU26: 0.5014165525 | AV26: 4.053513804e-12 | AW26: 0.026 | AX26: 0.0048 | AY26: 4.893e-08 | AZ26: 0.8418547993 | BA26: 7.309847995e-08 | BB26: 0.2639404285 | BC26: 0.0301 | BD26: 0.0034 | BE26: 6.913e-19 | BF26: 0.6795687186 | BG26: 1.17178723e-18
A27: rs13011109 | B27: 2 | C27: 58857419 | D27: FANCL | F27: C | G27: C | J27: G | K27: C | L27: 25633 | M27: 0.6096 | N27: 0.0263 | O27: 0.0094 | P27: 0.0053 | Q27: 23870 | R27: 0.604 | S27: 0.0153 | T27: 0.0102 | U27: 0.13 | V27: 0.4159207094 | W27: 49503 | X27: 0.607 | Y27: 0.0209 | Z27: 0.007 | AA27: 0.0027 | AB27: 108429 | AC27: 0.6088 | AD27: 0.0223 | AE27: 0.0048 | AF27: 2.8e-06 | AG27: 75442 | AH27: 0.6139 | AI27: 0.0164 | AJ27: 0.0055 | AK27: 0.0031 | AL27: 0.38374109 | AM27: 183871 | AN27: 0.6111 | AO27: 0.0195 | AP27: 0.0038 | AQ27: 2.3e-07 | AR27: 0.0222 | AS27: 0.0043 | AT27: 1.825e-07 | AU27: 0.6936601683 | AV27: 4.104841595e-07 | AW27: 0.0164 | AX27: 0.0049 | AY27: 0.0008457 | AZ27: 0.9217645159 | BA27: 0.003808119296 | BB27: 0.333582708 | BC27: 0.0194 | BD27: 0.0033 | BE27: 2.476e-09 | BF27: 0.851878694 | BG27: 2.218618266e-08
A28: rs7599312 | B28: 2 | C28: 213413231 | D28: ERBB4 | F28: C | G28: C | J28: G | K28: A | L28: 22700 | M28: 0.7165 | N28: 0.0157 | O28: 0.0109 | P28: 0.15 | Q28: 23808 | R28: 0.7171 | S28: 0.0239 | T28: 0.0111 | U28: 0.031 | V28: 0.588675488 | W28: 46508 | X28: 0.7166 | Y28: 0.0201 | Z28: 0.0078 | AA28: 0.01 | AB28: 87840 | AC28: 0.7126 | AD28: 0.0296 | AE28: 0.0058 | AF28: 3e-07 | AG28: 75236 | AH28: 0.7285 | AI28: 0.022 | AJ28: 0.006 | AK28: 0.00028 | AL28: 0.3260119502 | AM28: 163076 | AN28: 0.7202 | AO28: 0.0262 | AP28: 0.0043 | AQ28: 1.2e-09 | AR28: 0.0272 | AS28: 0.0052 | AT28: 1.505e-07 | AU28: 0.2415217021 | AV28: 7.831663903e-07 | AW28: 0.0226 | AX28: 0.0053 | AY28: 2.092e-05 | AZ28: 0.8761872277 | BA28: 0.0001185404302 | BB28: 0.500418561 | BC28: 0.0252 | BD28: 0.0038 | BE28: 3.287e-11 | BF28: 0.4666532564 | BG28: 3.136534286e-10
A29: rs2943641 | B29: 2 | C29: 227093745 | D29: IRS1 | F29: C | G29: C | J29: T | K29: C | L29: 22863 | M29: 0.366 | N29: 0.0014 | O29: 0.0104 | P29: 0.9 | Q29: 24069 | R29: 0.3641 | S29: 0.0221 | T29: 0.0104 | U29: 0.035 | V29: 0.1487668888 | W29: 46932 | X29: 0.3648 | Y29: 0.0117 | Z29: 0.0074 | AA29: 0.11 | AB29: 86781 | AC29: 0.3558 | AD29: 0.02 | AE29: 0.0055 | AF29: 0.0003 | AG29: 75775 | AH29: 0.3598 | AI29: 0.0283 | AJ29: 0.0057 | AK29: 6e-07 | AL29: 0.2584418686 | AM29: 162556 | AN29: 0.3574 | AO29: 0.0238 | AP29: 0.0041 | AQ29: 7.9e-09 | AR29: 0.0143 | AS29: 0.0049 | AT29: 0.003315 | AU29: 0.1000646032 | AV29: 0.001332589951 | AW29: 0.0255 | AX29: 0.0049 | AY29: 2.342e-07 | AZ29: 0.5884634141 | BA29: 4.641818342e-07 | BB29: 0.07875946696 | BC29: 0.0193 | BD29: 0.0035 | BE29: 4.423e-08 | BF29: 0.1283938703 | BG29: 1.380529983e-08
A30: rs10510554 | B30: 3 | C30: 25099776 | D30: RARB | G30: C | J30: C | K30: T | L30: 26280 | M30: 0.562 | N30: 0.035 | O30: 0.0094 | P30: 0.00021 | Q30: 24497 | R30: 0.5601 | S30: 0.0319 | T30: 0.01 | U30: 0.0015 | V30: 0.816756583 | W30: 50776 | X30: 0.5607 | Y30: 0.0334 | Z30: 0.0069 | AA30: 1.3e-06 | AB30: 111785 | AC30: 0.5579 | AD30: 0.0102 | AE30: 0.0048 | AF30: 0.032 | AG30: 77759 | AH30: 0.5512 | AI30: 0.0184 | AJ30: 0.0054 | AK30: 0.00062 | AL30: 0.2211867345 | AM30: 189545 | AN30: 0.5551 | AO30: 0.0139 | AP30: 0.0037 | AQ30: 0.00016 | AR30: 0.0143 | AS30: 0.0043 | AT30: 0.0008054 | AU30: 0.01460066492 | AV30: 0.0001020873106 | AW30: 0.0211 | AX30: 0.0047 | AY30: 8.674e-06 | AZ30: 0.2190498829 | BA30: 1.8583014e-05 | BB30: 0.2457956278 | BC30: 0.0172 | BD30: 0.0033 | BE30: 1.336e-07 | BF30: 0.0081779062 | BG30: 7.036066e-09
A31: rs7613875 | B31: 3 | C31: 49971514 | D31: RBM6 | F31: C | J31: A | K31: C | L31: 25430 | M31: 0.5473 | N31: 0.0284 | O31: 0.0096 | P31: 0.003 | Q31: 23261 | R31: 0.534 | S31: 0.0105 | T31: 0.0103 | U31: 0.31 | V31: 0.1921762591 | W31: 48692 | X31: 0.541 | Y31: 0.0199 | Z31: 0.007 | AA31: 0.0047 | AB31: 108390 | AC31: 0.5417 | AD31: 0.0127 | AE31: 0.0048 | AF31: 0.0077 | AG31: 76347 | AH31: 0.5147 | AI31: 0.025 | AJ31: 0.0055 | AK31: 5.6e-06 | AL31: 0.06939132331 | AM31: 184737 | AN31: 0.5302 | AO31: 0.018 | AP31: 0.0037 | AQ31: 1.5e-06 | AR31: 0.0168 | AS31: 0.0044 | AT31: 0.0001388 | AU31: 0.1286215274 | AV31: 0.0003797167152 | AW31: 0.0209 | AX31: 0.0049 | AY31: 1.693e-05 | AZ31: 0.1989355164 | BA31: 1.940102793e-05 | BB31: 0.4985383926 | BC31: 0.0182 | BD31: 0.0033 | BE31: 3.261e-08 | BF31: 0.7989704619 | BG31: 1.27598982e-07
A32: rs2365389 | B32: 3 | C32: 61236462 | D32: FHIT | F32: M,C | G32: M,W,C | J32: C | K32: T | L32: 24488 | M32: 0.567 | N32: 0.0453 | O32: 0.0097 | P32: 2.9e-06 | Q32: 22945 | R32: 0.5815 | S32: 0.033 | T32: 0.0103 | U32: 0.0014 | V32: 0.3724757769 | W32: 47433 | X32: 0.5733 | Y32: 0.0396 | Z32: 0.0071 | AA32: 2.6e-08 | AB32: 107263 | AC32: 0.5547 | AD32: 0.0178 | AE32: 0.0049 | AF32: 0.00025 | AG32: 69207 | AH32: 0.5739 | AI32: 0.0359 | AJ32: 0.0057 | AK32: 2.9e-10 | AL32: 0.009468554607 | AM32: 176470 | AN32: 0.5623 | AO32: 0.0252 | AP32: 0.0039 | AQ32: 6.8e-11 | AR32: 0.0225 | AS32: 0.0044 | AT32: 2.897e-07 | AU32: 0.00855339092 | AV32: 2.503438442e-08 | AW32: 0.0319 | AX32: 0.005 | AY32: 1.771e-10 | AZ32: 0.798716546 | BA32: 1.436274187e-11 | BB32: 0.1250478851 | BC32: 0.0266 | BD32: 0.0034 | BE32: 3.752e-15 | BF32: 0.05886869911 | BG32: 1.509177964e-16
A33: rs6794880 | B33: 3 | C33: 84451512 | D33: SRRM1P2 | E33: YES | F33: C | J33: A | K33: G | L33: 20544 | M33: 0.8474 | N33: 0.0226 | O33: 0.0147 | P33: 0.13 | Q33: 18382 | R33: 0.8538 | S33: 0.0281 | T33: 0.0161 | U33: 0.082 | V33: 0.7957974542 | W33: 39000 | X33: 0.8501 | Y33: 0.025 | Z33: 0.011 | AA33: 0.023 | AB33: 88751 | AC33: 0.847 | AD33: 0.0329 | AE33: 0.0074 | AF33: 9e-06 | AG33: 59216 | AH33: 0.8534 | AI33: 0.0181 | AJ33: 0.0088 | AK33: 0.039 | AL33: 0.1655671157 | AM33: 147968 | AN33: 0.8495 | AO33: 0.0272 | AP33: 0.0059 | AQ33: 3.9e-06 | AR33: 0.0325 | AS33: 0.0066 | AT33: 8.422e-07 | AU33: 0.51552418 | AV33: 1.564999335e-05 | AW33: 0.021 | AX33: 0.0077 | AY33: 0.006408 | AZ33: 0.5727225176 | BA33: 0.02629545436 | BB33: 0.2179358203 | BC33: 0.0281 | BD33: 0.0051 | BE33: 4.322e-08 | BF33: 0.8515429157 | BG33: 1.833147729e-06
A34: rs7355953 | B34: 3 | C34: 85792137 | D34: CADM2 | F34: W,C | G34: C | J34: C | K34: T | L34: 23245 | M34: 0.2076 | N34: 0.0486 | O34: 0.0123 | P34: 7.7e-05 | Q34: 24352 | R34: 0.2152 | S34: 0.0177 | T34: 0.0123 | U34: 0.15 | V34: 0.06838794955 | W34: 47597 | X34: 0.2113 | Y34: 0.0344 | Z34: 0.0087 | AA34: 8.1e-05 | AB34: 90302 | AC34: 0.2054 | AD34: 0.0263 | AE34: 0.0066 | AF34: 6.7e-05 | AG34: 76861 | AH34: 0.2075 | AI34: 0.0231 | AJ34: 0.0066 | AK34: 0.00048 | AL34: 0.7115628103 | AM34: 167163 | AN34: 0.2063 | AO34: 0.0251 | AP34: 0.0048 | AQ34: 2.3e-07 | AR34: 0.0324 | AS34: 0.0058 | AT34: 2.069e-08 | AU34: 0.09644834765 | AV34: 1.451386216e-07 | AW34: 0.0215 | AX34: 0.0059 | AY34: 0.0002565 | AZ34: 0.6889984556 | BA34: 0.0007767472129 | BB34: 0.1518744893 | BC34: 0.0277 | BD34: 0.0042 | BE34: 4.548e-11 | BF34: 0.3198154247 | BG34: 4.648804172e-10
A35: rs12629427 | B35: 3 | C35: 89145340 | D35: EPHA3 | E35: YES | F35: W | J35: C | K35: T | L35: 26237 | M35: 0.257 | N35: 0.0248 | O35: 0.0108 | P35: 0.021 | Q35: 24496 | R35: 0.2639 | S35: -0.0003 | T35: 0.0115 | U35: 0.98 | V35: 0.1026456609 | W35: 50732 | X35: 0.26 | Y35: 0.0137 | Z35: 0.008 | AA35: 0.086 | AB35: 111724 | AC35: 0.2547 | AD35: 0.0278 | AE35: 0.0055 | AF35: 3.6e-07 | AG35: 77769 | AH35: 0.2587 | AI35: 0.0107 | AJ35: 0.0062 | AK35: 0.084 | AL35: 0.026152421 | AM35: 189494 | AN35: 0.2562 | AO35: 0.0206 | AP35: 0.0042 | AQ35: 1.3e-06 | AR35: 0.0265 | AS35: 0.0049 | AT35: 4.812e-08 | AU35: 0.796984516 | AV35: 2.028694403e-07 | AW35: 0.0068 | AX35: 0.0055 | AY35: 0.2115 | AZ35: 0.3836887353 | BA35: 0.2254753996 | BB35: 0.003648167132 | BC35: 0.018 | BD35: 0.0037 | BE35: 1.375e-06 | BF35: 0.4177820268 | BG35: 1.378281953e-06
A36: rs16851483 | B36: 3 | C36: 141275436 | D36: RASA2 | F36: C | G36: C | J36: T | K36: G | L36: 20224 | M36: 0.0674 | N36: 0.0075 | O36: 0.0214 | P36: 0.73 | Q36: 17496 | R36: 0.0738 | S36: 0.0678 | T36: 0.0227 | U36: 0.0029 | V36: 0.04737868675 | W36: 37934 | X36: 0.0707 | Y36: 0.0347 | Z36: 0.0157 | AA36: 0.027 | AB36: 88052 | AC36: 0.0713 | AD36: 0.0572 | AE36: 0.0105 | AF36: 4.9e-08 | AG36: 58420 | AH36: 0.0802 | AI36: 0.0506 | AJ36: 0.0118 | AK36: 1.8e-05 | AL36: 0.6524178557 | AM36: 146471 | AN36: 0.0752 | AO36: 0.0542 | AP36: 0.0081 | AQ36: 2.3e-11 | AR36: 0.0456 | AS36: 0.0095 | AT36: 1.735e-06 | AU36: 0.03039027637 | AV36: 3.381790647e-07 | AW36: 0.0554 | AX36: 0.0104 | AY36: 9.285e-08 | AZ36: 0.4869973518 | BA36: 1.174705376e-06 | BB36: 0.4493831383 | BC36: 0.0502 | BD36: 0.0072 | BE36: 3.254e-12 | BF36: 0.2418221205 | BG36: 1.64678945e-11
A37: rs2640017 | B37: 3 | C37: 141335121 | D37: RASA2 | F37: M | J37: G | K37: A | L37: 22517 | M37: 0.0659 | N37: 0.0105 | O37: 0.0207 | P37: 0.61 | Q37: 22985 | R37: 0.0695 | S37: 0.0686 | T37: 0.0207 | U37: 0.00091 | V37: 0.04173700776 | W37: 45897 | X37: 0.0678 | Y37: 0.0394 | Z37: 0.0147 | AA37: 0.0075 | AB37: 89588 | AC37: 0.069 | AD37: 0.0489 | AE37: 0.0107 | AF37: 5e-06 | AG37: 76293 | AH37: 0.0749 | AI37: 0.0493 | AJ37: 0.0106 | AK37: 3.6e-06 | AL37: 0.9771494712 | AM37: 165881 | AN37: 0.072 | AO37: 0.0487 | AP37: 0.0078 | AQ37: 5.1e-10 | AR37: 0.0386 | AS37: 0.0095 | AT37: 5.142e-05 | AU37: 0.08666398319 | AV37: 2.563565119e-05 | AW37: 0.0558 | AX37: 0.0094 | AY37: 2.602e-09 | AZ37: 0.3910224463 | BA37: 8.278927965e-08 | BB37: 0.1615713709 | BC37: 0.0475 | BD37: 0.0069 | BE37: 7.507e-12 | BF37: 0.5530507531 | BG37: 9.443250855e-11
A38: rs13069244 | B38: 3 | C38: 180441172 | D38: CCDC39 | E38: YES | G38: C | J38: A | K38: G | L38: 24955 | M38: 0.074 | N38: 0.0647 | O38: 0.0193 | P38: 0.00081 | Q38: 22927 | R38: 0.0817 | S38: 0.0547 | T38: 0.0208 | U38: 0.0085 | V38: 0.7176994711 | W38: 47957 | X38: 0.0799 | Y38: 0.061 | Z38: 0.0142 | AA38: 1.8e-05 | AB38: 108837 | AC38: 0.0755 | AD38: 0.0246 | AE38: 0.0097 | AF38: 0.012 | AG38: 76982 | AH38: 0.0747 | AI38: 0.0407 | AJ38: 0.0114 | AK38: 0.00035 | AL38: 0.2465215896 | AM38: 185819 | AN38: 0.075 | AO38: 0.0307 | AP38: 0.0077 | AQ38: 6.6e-05 | AR38: 0.0302 | AS38: 0.0087 | AT38: 0.0005105 | AU38: 0.05376017303 | AV38: 0.0001455602079 | AW38: 0.0427 | AX38: 0.0098 | AY38: 1.359e-05 | AZ38: 0.5412798192 | BA38: 5.375786477e-05 | BB38: 0.2998216466 | BC38: 0.0351 | BD38: 0.0066 | BE38: 1.173e-07 | BF38: 0.04630910702 | BG38: 3.475382524e-08
A39: rs4234589 | B39: 3 | C39: 185818882 | D39: ETV5 | F39: W,C | G39: W,C | J39: A | K39: G | L39: 26016 | M39: 0.8654 | N39: 0.0561 | O39: 0.0135 | P39: 3.4e-05 | Q39: 24173 | R39: 0.8693 | S39: 0.0564 | T39: 0.0148 | U39: 0.00013 | V39: 0.9877430509 | W39: 50188 | X39: 0.8673 | Y39: 0.0564 | Z39: 0.0101 | AA39: 2.1e-08 | AB39: 111286 | AC39: 0.8646 | AD39: 0.0407 | AE39: 0.0068 | AF39: 2.2e-09 | AG39: 77366 | AH39: 0.8658 | AI39: 0.023 | AJ39: 0.0079 | AK39: 0.0038 | AL39: 0.06728803505 | AM39: 188652 | AN39: 0.8652 | AO39: 0.0339 | AP39: 0.0053 | AQ39: 1.8e-10 | AR39: 0.0424 | AS39: 0.0061 | AT39: 4.079e-12 | AU39: 0.2898089121 | AV39: 2.958928741e-12 | AW39: 0.0295 | AX39: 0.007 | AY39: 2.278e-05 | AZ39: 0.03945127604 | BA39: 1.013777121e-05 | BB39: 0.1310829616 | BC39: 0.0373 | BD39: 0.0047 | BE39: 2.535e-15 | BF39: 0.03634817514 | BG39: 2.212432756e-16
A40: rs12641981 | B40: 4 | C40: 45179883 | D40: GNPDA2 | F40: M,C | G40: M,C | J40: T | K40: C | L40: 26299 | M40: 0.4145 | N40: 0.0269 | O40: 0.0095 | P40: 0.0044 | Q40: 24675 | R40: 0.4201 | S40: 0.0442 | T40: 0.0102 | U40: 1.5e-05 | V40: 0.202935818 | W40: 50973 | X40: 0.4165 | Y40: 0.0352 | Z40: 0.007 | AA40: 5.8e-07 | AB40: 111979 | AC40: 0.4105 | AD40: 0.034 | AE40: 0.0048 | AF40: 2.3e-12 | AG40: 78072 | AH40: 0.4245 | AI40: 0.0312 | AJ40: 0.0055 | AK40: 1.2e-08 | AL40: 0.6793375388 | AM40: 190051 | AN40: 0.4166 | AO40: 0.0325 | AP40: 0.0037 | AQ40: 2.9e-18 | AR40: 0.0314 | AS40: 0.0043 | AT40: 4.014e-13 | AU40: 0.4882278234 | AV40: 2.311463759e-13 | AW40: 0.0357 | AX40: 0.0048 | AY40: 6.342e-14 | AZ40: 0.2457725025 | BA40: 8.60389383e-12 | BB40: 0.4682421084 | BC40: 0.033 | BD40: 0.0033 | BE40: 9.789e-24 | BF40: 0.7174168047 | BG40: 5.690300465e-23
A41: rs10938397 | B41: 4 | C41: 45182527 | D41: GNPDA2 | F41: W | G41: W | J41: G | K41: A | L41: 26125 | M41: 0.4145 | N41: 0.029 | O41: 0.0096 | P41: 0.0024 | Q41: 24473 | R41: 0.4211 | S41: 0.0438 | T41: 0.0102 | U41: 1.8e-05 | V41: 0.2783898682 | W41: 50597 | X41: 0.4171 | Y41: 0.036 | Z41: 0.0071 | AA41: 3.4e-07 | AB41: 110902 | AC41: 0.4116 | AD41: 0.0344 | AE41: 0.0049 | AF41: 1.6e-12 | AG41: 77449 | AH41: 0.4253 | AI41: 0.03 | AJ41: 0.0055 | AK41: 4.7e-08 | AL41: 0.5196538372 | AM41: 188351 | AN41: 0.4174 | AO41: 0.0323 | AP41: 0.0037 | AQ41: 4.5e-18 | AR41: 0.032 | AS41: 0.0043 | AT41: 1.546e-13 | AU41: 0.602562889 | AV41: 2.070569739e-13 | AW41: 0.0346 | AX41: 0.0048 | AY41: 3.66e-13 | AZ41: 0.217909751 | BA41: 3.43040998e-11 | BB41: 0.6609666024 | BC41: 0.0329 | BD41: 0.0033 | BE41: 1.947e-23 | BF41: 0.6239770189 | BG41: 7.394779062e-23
A42: rs13107325 | B42: 4 | C42: 103188709 | D42: SLC39A8 | F42: M,C | G42: M,C | J42: T | K42: C | L42: 19816 | M42: 0.0774 | N42: 0.049 | O42: 0.0217 | P42: 0.024 | Q42: 21833 | R42: 0.0729 | S42: 0.0785 | T42: 0.0226 | U42: 0.00051 | V42: 0.3340748058 | W42: 41800 | X42: 0.0749 | Y42: 0.0636 | Z42: 0.0157 | AA42: 5.3e-05 | AB42: 87158 | AC42: 0.0728 | AD42: 0.0333 | AE42: 0.0115 | AF42: 0.0037 | AG42: 75893 | AH42: 0.075 | AI42: 0.0574 | AJ42: 0.0116 | AK42: 6.9e-07 | AL42: 0.1115510306 | AM42: 163051 | AN42: 0.0738 | AO42: 0.0449 | AP42: 0.0085 | AQ42: 1.2e-07 | AR42: 0.0355 | AS42: 0.0101 | AT42: 0.0004274 | AU42: 0.5060453321 | AV42: 0.001180486738 | AW42: 0.0607 | AX42: 0.0103 | AY42: 4.055e-09 | AZ42: 0.3905901722 | BA42: 1.156654375e-08 | BB42: 0.05743436743 | BC42: 0.0469 | BD42: 0.0075 | BE42: 3.168e-10 | BF42: 0.2658888545 | BG42: 2.384774926e-10
A43: rs336396 | B43: 4 | C43: 143062811 | D43: INPP4B | E43: YES | H43: C | J43: T | K43: C | L43: 18705 | M43: 0.1818 | N43: 0.0561 | O43: 0.0155 | P43: 0.00029 | Q43: 16648 | R43: 0.1808 | S43: 0.0691 | T43: 0.0169 | U43: 4.5e-05 | V43: 0.5608751885 | W43: 35428 | X43: 0.1838 | Y43: 0.063 | Z43: 0.0115 | AA43: 4.8e-08 | AB43: 83950 | AC43: 0.1853 | AD43: -0.0123 | AE43: 0.0077 | AF43: 0.11 | AG43: 50268 | AH43: 0.1806 | AI43: 0.0039 | AJ43: 0.0095 | AK43: 0.68 | AL43: 0.1537954793 | AM43: 134218 | AN43: 0.1832 | AO43: -0.0059 | AP43: 0.0062 | AQ43: 0.34 | AR43: -0.0014 | AS43: 0.0069 | AT43: 0.8415 | AU43: 4.044273721e-05 | AV43: 0.000399334058 | AW43: 0.0191 | AX43: 0.0083 | AY43: 0.0213 | AZ43: 0.000497072033 | BA43: 0.0002153524755 | BB43: 0.03914934649 | BC43: 0.0066 | BD43: 0.0055 | BE43: 0.2283 | BF43: 2.132227148e-08 | BG43: 1.934097897e-07
A44: rs10057967 | B44: 5 | C44: 74997756 | D44: POC5 | F44: W | J44: T | K44: C | L44: 20651 | M44: 0.6204 | N44: 0.0303 | O44: 0.0105 | P44: 0.0039 | Q44: 18462 | R44: 0.6086 | S44: 0.0229 | T44: 0.0116 | U44: 0.049 | V44: 0.6275698784 | W44: 39113 | X44: 0.6143 | Y44: 0.0272 | Z44: 0.0079 | AA44: 0.00057 | AB44: 88777 | AC44: 0.6186 | AD44: 0.025 | AE44: 0.0053 | AF44: 2.9e-06 | AG44: 58925 | AH44: 0.6067 | AI44: 0.0293 | AJ44: 0.0062 | AK44: 2.5e-06 | AL44: 0.5700288662 | AM44: 147702 | AN44: 0.6138 | AO44: 0.0269 | AP44: 0.0042 | AQ44: 9.6e-11 | AR44: 0.027 | AS44: 0.0048 | AT44: 2.11e-08 | AU44: 0.6396318083 | AV44: 2.292095997e-07 | AW44: 0.0246 | AX44: 0.0054 | AY44: 6.207e-06 | AZ44: 0.6147157258 | BA44: 2.014310521e-06 | BB44: 0.7180438563 | BC44: 0.0266 | BD44: 0.0036 | BE44: 2.65e-13 | BF44: 0.9716065365 | BG44: 3.297875061e-12
A45: rs2112347 | B45: 5 | C45: 75015242 | D45: POC5 | F45: C | G45: C | J45: T | K45: G | L45: 26140 | M45: 0.6154 | N45: 0.0236 | O45: 0.0095 | P45: 0.013 | Q45: 24466 | R45: 0.6101 | S45: 0.0156 | T45: 0.0102 | U45: 0.13 | V45: 0.5560104159 | W45: 50607 | X45: 0.6125 | Y45: 0.02 | Z45: 0.007 | AA45: 0.0041 | AB45: 110660 | AC45: 0.6127 | AD45: 0.0226 | AE45: 0.0048 | AF45: 2.2e-06 | AG45: 77635 | AH45: 0.6094 | AI45: 0.03 | AJ45: 0.0054 | AK45: 3.3e-08 | AL45: 0.2695824731 | AM45: 188294 | AN45: 0.6105 | AO45: 0.0258 | AP45: 0.0038 | AQ45: 6.5e-12 | AR45: 0.0233 | AS45: 0.0043 | AT45: 5e-08 | AU45: 0.9222308845 | AV45: 7.016351072e-07 | AW45: 0.0243 | AX45: 0.0048 | AY45: 4.267e-07 | AZ45: 0.1968898065 | BA45: 6.165885782e-08 | BB45: 0.8660450173 | BC45: 0.0242 | BD45: 0.0033 | BE45: 1.035e-13 | BF45: 0.4391897882 | BG45: 1.650225605e-12
A46: rs943466 | B46: 6 | C46: 33731787 | D46: LEMD2 | G46: C | J46: G | K46: A | L46: 26179 | M46: 0.7552 | N46: 0.0448 | O46: 0.0108 | P46: 3.1e-05 | Q46: 24418 | R46: 0.7486 | S46: 0.0414 | T46: 0.0115 | U46: 0.00031 | V46: 0.8250227597 | W46: 50596 | X46: 0.7518 | Y46: 0.0431 | Z46: 0.0079 | AA46: 4.8e-08 | AB46: 111533 | AC46: 0.7534 | AD46: 0.0094 | AE46: 0.0054 | AF46: 0.081 | AG46: 77554 | AH46: 0.7495 | AI46: 0.0117 | AJ46: 0.0061 | AK46: 0.054 | AL46: 0.7608966561 | AM46: 189088 | AN46: 0.7516 | AO46: 0.0103 | AP46: 0.0042 | AQ46: 0.014 | AR46: 0.0164 | AS46: 0.0049 | AT46: 0.0007261 | AU46: 0.002322373613 | AV46: 4.032029198e-05 | AW46: 0.0161 | AX46: 0.0054 | AY46: 0.002686 | AZ46: 0.01828495349 | BA46: 0.000243736 | BB46: 0.9643227825 | BC46: 0.0166 | BD46: 0.0037 | BE46: 6.903e-06 | BF46: 9.960593919e-05 | BG46: 1.701115222e-08
A47: rs998278 | B47: 6 | C47: 34765584 | D47: UHRF1BP1 | F47: W | J47: A | K47: G | L47: 20681 | M47: 0.3582 | N47: 0.026 | O47: 0.011 | P47: 0.018 | Q47: 18291 | R47: 0.3621 | S47: 0.0198 | T47: 0.012 | U47: 0.097 | V47: 0.6960205619 | W47: 38972 | X47: 0.3614 | Y47: 0.0236 | Z47: 0.0083 | AA47: 0.0043 | AB47: 88642 | AC47: 0.3628 | AD47: 0.0268 | AE47: 0.0055 | AF47: 1e-06 | AG47: 58947 | AH47: 0.3474 | AI47: 0.0124 | AJ47: 0.0064 | AK47: 0.055 | AL47: 0.06595624748 | AM47: 147589 | AN47: 0.3572 | AO47: 0.0214 | AP47: 0.0044 | AQ47: 8.7e-07 | AR47: 0.0277 | AS47: 0.0049 | AT47: 2.136e-08 | AU47: 0.9461238628 | AV47: 4.275801987e-07 | AW47: 0.0131 | AX47: 0.0057 | AY47: 0.02083 | AZ47: 0.5735386841 | BA47: 0.03923433099 | BB47: 0.03482026698 | BC47: 0.0216 | BD47: 0.0038 | BE47: 1.959e-08 | BF47: 0.8036926456 | BG47: 1.281754572e-07
A48: rs6457796 | B48: 6 | C48: 34828553 | D48: UHRF1BP1 | F48: C | G48: W,C | J48: C | K48: T | L48: 26302 | M48: 0.3127 | N48: 0.0217 | O48: 0.0103 | P48: 0.035 | Q48: 24674 | R48: 0.3047 | S48: 0.0115 | T48: 0.011 | U48: 0.29 | V48: 0.4874492486 | W48: 50975 | X48: 0.3096 | Y48: 0.0173 | Z48: 0.0075 | AA48: 0.022 | AB48: 112042 | AC48: 0.3238 | AD48: 0.0281 | AE48: 0.0051 | AF48: 3.6e-08 | AG48: 77794 | AH48: 0.29 | AI48: 0.0175 | AJ48: 0.0059 | AK48: 0.0032 | AL48: 0.143013899 | AM48: 189837 | AN48: 0.3085 | AO48: 0.0244 | AP48: 0.004 | AQ48: 6.9e-10 | AR48: 0.0252 | AS48: 0.0046 | AT48: 4.228e-08 | AU48: 0.5630444623 | AV48: 2.779903399e-08 | AW48: 0.0162 | AX48: 0.0052 | AY48: 0.001877 | AZ48: 0.6189928338 | BA48: 0.007116300825 | BB48: 0.158829462 | BC48: 0.0214 | BD48: 0.0035 | BE48: 1.147e-09 | BF48: 0.3751954611 | BG48: 5.81531744e-10
A49: rs2206277 | B49: 6 | C49: 50798526 | D49: TFAP2B | G49: W | J49: T | K49: C | L49: 26288 | M49: 0.1831 | N49: 0.0666 | O49: 0.0121 | P49: 4.1e-08 | Q49: 24604 | R49: 0.1816 | S49: 0.0486 | T49: 0.0129 | U49: 0.00017 | V49: 0.2964667496 | W49: 50893 | X49: 0.1823 | Y49: 0.0581 | Z49: 0.009 | AA49: 9.3e-11 | AB49: 112003 | AC49: 0.1826 | AD49: 0.0352 | AE49: 0.0061 | AF49: 6.7e-09 | AG49: 78067 | AH49: 0.189 | AI49: 0.0329 | AJ49: 0.0069 | AK49: 2.2e-06 | AL49: 0.7877934483 | AM49: 190070 | AN49: 0.1853 | AO49: 0.0342 | AP49: 0.0048 | AQ49: 6.9e-13 | AR49: 0.0384 | AS49: 0.0055 | AT49: 2.532e-12 | AU49: 0.01605420776 | AV49: 1.551415385e-14 | AW49: 0.0347 | AX49: 0.0061 | AY49: 1.059e-08 | AZ49: 0.2669196785 | BA49: 9.573433635e-09 | BB49: 0.6243214264 | BC49: 0.0367 | BD49: 0.0042 | BE49: 1.627e-18 | BF49: 0.0128617876 | BG49: 8.451768314e-21
A50: rs943005 | B50: 6 | C50: 50865820 | D50: TFAP2B | F50: M,W,C | G50: M,C | J50: T | K50: C | L50: 26192 | M50: 0.1686 | N50: 0.0591 | O50: 0.0123 | P50: 1.6e-06 | Q50: 24532 | R50: 0.1703 | S50: 0.0556 | T50: 0.013 | U50: 2e-05 | V50: 0.8409884853 | W50: 50724 | X50: 0.1694 | Y50: 0.0577 | Z50: 0.0091 | AA50: 1.9e-10 | AB50: 112039 | AC50: 0.1684 | AD50: 0.0371 | AE50: 0.0062 | AF50: 1.9e-09 | AG50: 76963 | AH50: 0.1763 | AI50: 0.0344 | AJ50: 0.007 | AK50: 7.8e-07 | AL50: 0.7556287473 | AM50: 189001 | AN50: 0.1719 | AO50: 0.0359 | AP50: 0.0048 | AQ50: 8.4e-14 | AR50: 0.0409 | AS50: 0.0056 | AT50: 2.115e-13 | AU50: 0.09701099086 | AV50: 1.627139878e-13 | AW50: 0.0366 | AX50: 0.0062 | AY50: 2.971e-09 | AZ50: 0.1373989665 | BA50: 6.078229094e-10 | BB50: 0.5757938534 | BC50: 0.039 | BD50: 0.0042 | BE50: 2.42e-20 | BF50: 0.02453577683 | BG50: 1.327555793e-21
A51: rs4498364 | B51: 6 | C51: 97613773 | D51: MMS22L | F51: C | G51: C | J51: C | K51: T | L51: 20626 | M51: 0.3213 | N51: 0.0225 | O51: 0.0114 | P51: 0.049 | Q51: 18251 | R51: 0.3298 | S51: 0.0197 | T51: 0.0124 | U51: 0.11 | V51: 0.8645972303 | W51: 38878 | X51: 0.325 | Y51: 0.0223 | Z51: 0.0085 | AA51: 0.0091 | AB51: 88567 | AC51: 0.3165 | AD51: 0.0191 | AE51: 0.0056 | AF51: 0.00072 | AG51: 58866 | AH51: 0.3107 | AI51: 0.0354 | AJ51: 0.0068 | AK51: 1.6e-07 | AL51: 0.04630197586 | AM51: 147433 | AN51: 0.3138 | AO51: 0.0254 | AP51: 0.0045 | AQ51: 2e-08 | AR51: 0.0189 | AS51: 0.0051 | AT51: 0.0002017 | AU51: 0.7810362783 | AV51: 0.0004246689427 | AW51: 0.0292 | AX51: 0.0059 | AY51: 6.496e-07 | AZ51: 0.2505601135 | BA51: 3.689499806e-07 | BB51: 0.1512504727 | BC51: 0.0231 | BD51: 0.004 | BE51: 7.205e-09 | BF51: 0.7322743131 | BG51: 3.864900765e-09
A52: rs13191362 | B52: 6 | C52: 163033350 | D52: PARK2 | F52: W,C | G52: W,C | J52: A | K52: G | L52: 25670 | M52: 0.8781 | N52: 0.0182 | O52: 0.015 | P52: 0.23 | Q52: 23997 | R52: 0.8801 | S52: 0.0318 | T52: 0.0157 | U52: 0.043 | V52: 0.5205168787 | W52: 49700 | X52: 0.8786 | Y52: 0.0227 | Z52: 0.011 | AA52: 0.039 | AB52: 110197 | AC52: 0.8809 | AD52: 0.0432 | AE52: 0.0074 | AF52: 6.8e-09 | AG52: 77434 | AH52: 0.8778 | AI52: 0.0222 | AJ52: 0.0084 | AK52: 0.0082 | AL52: 0.04318987205 | AM52: 187631 | AN52: 0.8796 | AO52: 0.0347 | AP52: 0.0058 | AQ52: 1.7e-09 | AR52: 0.0384 | AS52: 0.0067 | AT52: 1.092e-08 | AU52: 0.1206099236 | AV52: 1.904875295e-08 | AW52: 0.0222 | AX52: 0.0074 | AY52: 0.002728 | AZ52: 0.5770215395 | BA52: 0.003912311475 | BB52: 0.07767931719 | BC52: 0.0315 | BD52: 0.0051 | BE52: 8.621e-10 | BF52: 0.3058104838 | BG52: 2.008258562e-09
A53: rs2245368 | B53: 7 | C53: 76608143 | D53: CCDC146 | F53: C | G53: C | J53: C | K53: T | L53: 21409 | M53: 0.1899 | N53: 0.0447 | O53: 0.0151 | P53: 0.003 | Q53: 19972 | R53: 0.1988 | S53: 0.0329 | T53: 0.0156 | U53: 0.035 | V53: 0.5771284608 | W53: 41381 | X53: 0.1945 | Y53: 0.0384 | Z53: 0.0109 | AA53: 0.00044 | AB53: 91007 | AC53: 0.1952 | AD53: 0.0349 | AE53: 0.0078 | AF53: 8.1e-06 | AG53: 64697 | AH53: 0.2041 | AI53: 0.0242 | AJ53: 0.0082 | AK53: 0.0033 | AL53: 0.3079231472 | AM53: 155704 | AN53: 0.1997 | AO53: 0.0305 | AP53: 0.0059 | AQ53: 2.3e-07 | AR53: 0.0378 | AS53: 0.007 | AT53: 6.38e-08 | AU53: 0.5488590504 | AV53: 5.62132496e-07 | AW53: 0.0259 | AX53: 0.0073 | AY53: 0.0003757 | AZ53: 0.6097035786 | BA53: 0.001389606413 | BB53: 0.2006695281 | BC53: 0.0331 | BD53: 0.0052 | BE53: 2.715e-10 | BF53: 0.4983869836 | BG53: 3.176901234e-09
A54: rs9641123 | B54: 7 | C54: 93197732 | D54: CALCR | F54: C | G54: C | J54: C | K54: G | L54: 20540 | M54: 0.4154 | N54: 0.0298 | O54: 0.011 | P54: 0.0068 | Q54: 18238 | R54: 0.422 | S54: 0.042 | T54: 0.012 | U54: 0.00048 | V54: 0.4420164344 | W54: 38779 | X54: 0.4182 | Y54: 0.0346 | Z54: 0.0082 | AA54: 2.5e-05 | AB54: 88511 | AC54: 0.4144 | AD54: 0.0231 | AE54: 0.0055 | AF54: 2.7e-05 | AG54: 58827 | AH54: 0.4186 | AI54: 0.0268 | AJ54: 0.0064 | AK54: 3e-05 | AL54: 0.6366062502 | AM54: 147338 | AN54: 0.4158 | AO54: 0.024 | AP54: 0.0043 | AQ54: 3e-08 | AR54: 0.0238 | AS54: 0.005 | AT54: 2.337e-06 | AU54: 0.57143347 | AV54: 3.765662397e-06 | AW54: 0.029 | AX54: 0.0056 | AY54: 2.622e-07 | AZ54: 0.2476323486 | BA54: 3.405928283e-07 | BB54: 0.4514876865 | BC54: 0.0258 | BD54: 0.0038 | BE54: 1.402e-11 | BF54: 0.2244940442 | BG54: 2.340366218e-11
A55: rs17405819 | B55: 8 | C55: 76806584 | D55: HNF4G | G55: C | J55: T | K55: C | L55: 26158 | M55: 0.7044 | N55: 0.0307 | O55: 0.0101 | P55: 0.0024 | Q55: 24427 | R55: 0.6939 | S55: 0.0216 | T55: 0.0108 | U55: 0.046 | V55: 0.527824767 | W55: 50586 | X55: 0.6997 | Y55: 0.026 | Z55: 0.0075 | AA55: 0.00056 | AB55: 111832 | AC55: 0.7056 | AD55: 0.0197 | AE55: 0.0052 | AF55: 0.00014 | AG55: 77766 | AH55: 0.6968 | AI55: 0.0182 | AJ55: 0.0058 | AK55: 0.0017 | AL55: 0.8355571606 | AM55: 189598 | AN55: 0.7018 | AO55: 0.0192 | AP55: 0.004 | AQ55: 1.4e-06 | AR55: 0.0199 | AS55: 0.0046 | AT55: 1.605e-05 | AU55: 0.3141256862 | AV55: 7.536018753e-06 | AW55: 0.0178 | AX55: 0.0052 | AY55: 0.000551 | AZ55: 0.7741614441 | BA55: 0.0009845699722 | BB55: 0.7423286562 | BC55: 0.019 | BD55: 0.0035 | BE55: 7.316e-08 | BF55: 0.3957067067 | BG55: 2.439496962e-08
A56: rs960923 | B56: 8 | C56: 77228925 | D56: MRPL9P1 | F56: C | J56: G | K56: A | L56: 26320 | M56: 0.5391 | N56: 0.0151 | O56: 0.0092 | P56: 0.1 | Q56: 24501 | R56: 0.5377 | S56: 0.0258 | T56: 0.0099 | U56: 0.009 | V56: 0.4166814915 | W56: 50821 | X56: 0.5378 | Y56: 0.0205 | Z56: 0.0068 | AA56: 0.0027 | AB56: 111857 | AC56: 0.5317 | AD56: 0.018 | AE56: 0.0046 | AF56: 0.0001 | AG56: 77785 | AH56: 0.5391 | AI56: 0.0159 | AJ56: 0.0053 | AK56: 0.0026 | AL56: 0.7470960402 | AM56: 189642 | AN56: 0.5347 | AO56: 0.0174 | AP56: 0.0036 | AQ56: 1.6e-06 | AR56: 0.0178 | AS56: 0.0042 | AT56: 2.102e-05 | AU56: 0.7696087382 | AV56: 0.000123053097 | AW56: 0.018 | AX56: 0.0046 | AY56: 0.0001094 | AZ56: 0.3617545817 | BA56: 0.0003723128952 | BB56: 0.972151825 | BC56: 0.0181 | BD56: 0.0032 | BE56: 1.32e-08 | BF56: 0.6689225598 | BG56: 8.988081391e-08
A57: rs10968576 | B57: 9 | C57: 28414339 | D57: LINGO2 | F57: C | J57: G | K57: A | L57: 26370 | M57: 0.3066 | N57: 0.0333 | O57: 0.0102 | P57: 0.0011 | Q57: 24681 | R57: 0.3047 | S57: 0.0202 | T57: 0.0108 | U57: 0.063 | V57: 0.3656442613 | W57: 51051 | X57: 0.3055 | Y57: 0.0269 | Z57: 0.0075 | AA57: 0.00032 | AB57: 112094 | AC57: 0.3025 | AD57: 0.0254 | AE57: 0.0051 | AF57: 6.1e-07 | AG57: 78076 | AH57: 0.3043 | AI57: 0.024 | AJ57: 0.0058 | AK57: 3.6e-05 | AL57: 0.845103103 | AM57: 190170 | AN57: 0.3034 | AO57: 0.0246 | AP57: 0.004 | AQ57: 5.1e-10 | AR57: 0.0279 | AS57: 0.0046 | AT57: 9.346e-10 | AU57: 0.471745516 | AV57: 1.9924708e-08 | AW57: 0.0228 | AX57: 0.0051 | AY57: 7.385e-06 | AZ57: 0.7484430506 | BA57: 3.328581312e-05 | BB57: 0.4195083014 | BC57: 0.0256 | BD57: 0.0035 | BE57: 2.802e-13 | BF57: 0.7739071984 | BG57: 9.852076322e-12
A58: rs10968577 | B58: 9 | C58: 28415512 | D58: LINGO2 | F58: W | G58: W,C | J58: T | K58: C | L58: 24724 | M58: 0.3114 | N58: 0.0346 | O58: 0.0105 | P58: 0.00095 | Q58: 22975 | R58: 0.3063 | S58: 0.0215 | T58: 0.0112 | U58: 0.054 | V58: 0.3813718606 | W58: 47699 | X58: 0.3087 | Y58: 0.0282 | Z58: 0.0077 | AA58: 0.00025 | AB58: 101740 | AC58: 0.311 | AD58: 0.0263 | AE58: 0.0053 | AF58: 6.1e-07 | AG58: 71874 | AH58: 0.3066 | AI58: 0.0244 | AJ58: 0.006 | AK58: 4.3e-05 | AL58: 0.7980990463 | AM58: 173614 | AN58: 0.3092 | AO58: 0.0253 | AP58: 0.0041 | AQ58: 5.3e-10 | AR58: 0.029 | AS58: 0.0047 | AT58: 7.707e-10 | AU58: 0.4634119091 | AV58: 1.972596983e-08 | AW58: 0.0231 | AX58: 0.0052 | AY58: 1.075e-05 | AZ58: 0.8133415315 | BA58: 4.061377601e-05 | BB58: 0.360136356 | BC58: 0.0264 | BD58: 0.0036 | BE58: 3.121e-13 | BF58: 0.7241590168 | BG58: 6.590950934e-12
A59: rs1928295 | B59: 9 | C59: 120378483 | D59: TLR4 | F59: C | G59: C | J59: T | K59: C | L59: 23682 | M59: 0.5523 | N59: 0.0194 | O59: 0.0097 | P59: 0.045 | Q59: 24555 | R59: 0.5519 | S59: 0.0047 | T59: 0.0098 | U59: 0.63 | V59: 0.2740771392 | W59: 48237 | X59: 0.5521 | Y59: 0.0118 | Z59: 0.007 | AA59: 0.09 | AB59: 89894 | AC59: 0.5553 | AD59: 0.0242 | AE59: 0.0051 | AF59: 2.3e-06 | AG59: 76689 | AH59: 0.5575 | AI59: 0.0199 | AJ59: 0.0054 | AK59: 0.00019 | AL59: 0.5324377925 | AM59: 166583 | AN59: 0.5564 | AO59: 0.0221 | AP59: 0.0038 | AQ59: 7.2e-09 | AR59: 0.0222 | AS59: 0.0045 | AT59: 7.168e-07 | AU59: 0.6487207484 | AV59: 1.746358665e-06 | AW59: 0.0154 | AX59: 0.0046 | AY59: 0.0009066 | AZ59: 0.1596977622 | BA59: 0.001002459208 | BB59: 0.2504237245 | BC59: 0.0191 | BD59: 0.0033 | BE59: 9.977e-09 | BF59: 0.1695225375 | BG59: 1.092163746e-08
A60: rs4506565 | B60: 10 | C60: 114756041 | D60: TCF7L2 | F60: C | J60: A | K60: T | L60: 26200 | M60: 0.6804 | N60: -0.0032 | O60: 0.01 | P60: 0.75 | Q60: 24460 | R60: 0.6888 | S60: 0.0091 | T60: 0.0107 | U60: 0.4 | V60: 0.3889238503 | W60: 50661 | X60: 0.684 | Y60: 0.0025 | Z60: 0.0073 | AA60: 0.73 | AB60: 111570 | AC60: 0.6717 | AD60: 0.0197 | AE60: 0.005 | AF60: 8.8e-05 | AG60: 77453 | AH60: 0.6844 | AI60: 0.03 | AJ60: 0.0058 | AK60: 2e-07 | AL60: 0.1472332682 | AM60: 189023 | AN60: 0.6771 | AO60: 0.0239 | AP60: 0.0039 | AQ60: 1.2e-09 | AR60: 0.0165 | AS60: 0.0045 | AT60: 0.0002555 | AU60: 0.03335603018 | AV60: 0.0004044428973 | AW60: 0.0247 | AX60: 0.0051 | AY60: 1.055e-06 | AZ60: 0.0755870706 | BA60: 1.079967587e-06 | BB60: 0.1900680273 | BC60: 0.0196 | BD60: 0.0034 | BE60: 1.142e-08 | BF60: 0.006047522219 | BG60: 6.600697955e-09
A61: rs7903146 | B61: 10 | C61: 114758349 | D61: TCF7L2 | G61: M,C | J61: T | K61: C | L61: 23533 | M61: 0.2865 | N61: 0.0103 | O61: 0.0109 | P61: 0.35 | Q61: 24507 | R61: 0.285 | S61: -0.0087 | T61: 0.011 | U61: 0.43 | V61: 0.2081255272 | W61: 48040 | X61: 0.286 | Y61: 0.001 | Z61: 0.0078 | AA61: 0.9 | AB61: 90186 | AC61: 0.2909 | AD61: -0.0197 | AE61: 0.0057 | AF61: 0.00055 | AG61: 78079 | AH61: 0.2911 | AI61: -0.0341 | AJ61: 0.0059 | AK61: 6.8e-09 | AL61: 0.05835217673 | AM61: 168264 | AN61: 0.291 | AO61: -0.0264 | AP61: 0.0043 | AQ61: 6.5e-10 | AR61: -0.0137 | AS61: 0.0051 | AT61: 0.007448 | AU61: 0.01120241717 | AV61: 0.001630412522 | AW61: -0.0273 | AX61: 0.0052 | AY61: 1.241e-07 | AZ61: 0.03527871661 | BA61: 4.078264024e-08 | BB61: 0.04226763121 | BC61: -0.0195 | BD61: 0.0037 | BE61: 1.318e-07 | BF61: 0.00107645729 | BG61: 6.476001486e-09
A62: rs925947 | B62: 11 | C62: 27667367 | D62: BDNF-AS | F62: W | J62: G | K62: T | L62: 25374 | M62: 0.7902 | N62: 0.052 | O62: 0.0117 | P62: 9.4e-06 | Q62: 23298 | R62: 0.7925 | S62: 0.0536 | T62: 0.0125 | U62: 2e-05 | V62: 0.9236255471 | W62: 48673 | X62: 0.7915 | Y62: 0.053 | Z62: 0.0087 | AA62: 9.6e-10 | AB62: 108961 | AC62: 0.7871 | AD62: 0.039 | AE62: 0.0059 | AF62: 3e-11 | AG62: 74139 | AH62: 0.7848 | AI62: 0.0326 | AJ62: 0.0067 | AK62: 1e-06 | AL62: 0.4397188458 | AM62: 183100 | AN62: 0.7861 | AO62: 0.0369 | AP62: 0.0046 | AQ62: 8e-16 | AR62: 0.0418 | AS62: 0.0053 | AT62: 5.286e-15 | AU62: 0.3026168731 | AV62: 1.669422467e-14 | AW62: 0.0362 | AX62: 0.0059 | AY62: 6.949e-10 | AZ62: 0.125564678 | BA62: 7.352193228e-10 | BB62: 0.4427301427 | BC62: 0.0395 | BD62: 0.0041 | BE62: 2.595e-22 | BF62: 0.08251360238 | BG62: 9.293877884e-23
A63: rs6265 | B63: 11 | C63: 27679916 | D63: BDNF | F63: C | G63: W,C | J63: C | K63: T | L63: 23195 | M63: 0.8078 | N63: 0.0642 | O63: 0.0128 | P63: 5.7e-07 | Q63: 24555 | R63: 0.8123 | S63: 0.0576 | T63: 0.0128 | U63: 7e-06 | V63: 0.7083641375 | W63: 47750 | X63: 0.8103 | Y63: 0.0613 | Z63: 0.0092 | AA63: 2.5e-11 | AB63: 91691 | AC63: 0.8021 | AD63: 0.0433 | AE63: 0.0067 | AF63: 1e-10 | AG63: 77643 | AH63: 0.8087 | AI63: 0.0377 | AJ63: 0.0069 | AK63: 3.8e-08 | AL63: 0.5300335609 | AM63: 169334 | AN63: 0.8053 | AO63: 0.0413 | AP63: 0.005 | AQ63: 1.3e-16 | AR63: 0.0451 | AS63: 0.0059 | AT63: 2.536e-14 | AU63: 0.132476148 | AV63: 2.936946664e-15 | AW63: 0.0405 | AX63: 0.0059 | AY63: 1.01e-11 | AZ63: 0.1568001671 | BA63: 1.319238941e-11 | BB63: 0.5487509762 | BC63: 0.043 | BD63: 0.0044 | BE63: 8.132e-23 | BF63: 0.04244421107 | BG63: 3.499965559e-25
A64: rs2049045 | B64: 11 | C64: 27694241 | D64: BDNF | F64: M | G64: M | J64: G | K64: C | L64: 25381 | M64: 0.8138 | N64: 0.0562 | O64: 0.0125 | P64: 7.1e-06 | Q64: 24354 | R64: 0.8073 | S64: 0.0639 | T64: 0.0132 | U64: 1.4e-06 | V64: 0.663910711 | W64: 49735 | X64: 0.811 | Y64: 0.0603 | Z64: 0.0092 | AA64: 5.8e-11 | AB64: 110120 | AC64: 0.8141 | AD64: 0.0388 | AE64: 0.0062 | AF64: 5e-10 | AG64: 77257 | AH64: 0.8116 | AI64: 0.0383 | AJ64: 0.0071 | AK64: 6.4e-08 | AL64: 0.9544122077 | AM64: 187377 | AN64: 0.8132 | AO64: 0.0391 | AP64: 0.0048 | AQ64: 6e-16 | AR64: 0.0403 | AS64: 0.0057 | AT64: 1.211e-12 | AU64: 0.1952490606 | AV64: 1.277509481e-13 | AW64: 0.0424 | AX64: 0.0061 | AY64: 4.955e-12 | AZ64: 0.07721467896 | BA64: 3.912698808e-12 | BB64: 0.7844452061 | BC64: 0.0413 | BD64: 0.0043 | BE64: 4.153e-22 | BF64: 0.03021676782 | BG64: 1.831259849e-24
A65: rs7124681 | B65: 11 | C65: 47529947 | D65: CELF1 | F65: C | G65: C | J65: A | K65: C | L65: 26304 | M65: 0.3951 | N65: 0.0277 | O65: 0.0094 | P65: 0.0031 | Q65: 24680 | R65: 0.3986 | S65: 0.0263 | T65: 0.0099 | U65: 0.008 | V65: 0.916212433 | W65: 50984 | X65: 0.3965 | Y65: 0.0269 | Z65: 0.0069 | AA65: 8.8e-05 | AB65: 112088 | AC65: 0.3951 | AD65: 0.0199 | AE65: 0.0048 | AF65: 2.9e-05 | AG65: 78074 | AH65: 0.3929 | AI65: 0.0245 | AJ65: 0.0054 | AK65: 5.5e-06 | AL65: 0.4925330574 | AM65: 190161 | AN65: 0.3945 | AO65: 0.0218 | AP65: 0.0036 | AQ65: 2.3e-09 | AR65: 0.0204 | AS65: 0.0042 | AT65: 1.495e-06 | AU65: 0.4424331189 | AV65: 2.410184607e-06 | AW65: 0.0246 | AX65: 0.0047 | AY65: 1.417e-07 | AZ65: 0.8687994181 | BA65: 9.945026425e-07 | BB65: 0.4688650286 | BC65: 0.0222 | BD65: 0.0032 | BE65: 4.074e-12 | BF65: 0.4869603171 | BG65: 5.456435275e-12
A66: rs12286929 | B66: 11 | C66: 115022404 | D66: CADM1 | F66: C | G66: C | J66: G | K66: A | L66: 26071 | M66: 0.5256 | N66: 0.0129 | O66: 0.0092 | P66: 0.16 | Q66: 24071 | R66: 0.5148 | S66: 0.0118 | T66: 0.01 | U66: 0.24 | V66: 0.9338169574 | W66: 50143 | X66: 0.5206 | Y66: 0.0119 | Z66: 0.0068 | AA66: 0.081 | AB66: 110541 | AC66: 0.5249 | AD66: 0.02 | AE66: 0.0046 | AF66: 1.6e-05 | AG66: 77169 | AH66: 0.5147 | AI66: 0.02 | AJ66: 0.0053 | AK66: 0.00017 | AL66: 1 | AM66: 187710 | AN66: 0.5206 | AO66: 0.02 | AP66: 0.0036 | AQ66: 3.5e-08 | AR66: 0.0175 | AS66: 0.0042 | AT66: 3.147e-05 | AU66: 0.4733324528 | AV66: 2.939042308e-05 | AW66: 0.0173 | AX66: 0.0047 | AY66: 0.0002102 | AZ66: 0.4536293389 | BA66: 0.0004031622304 | BB66: 0.972485013 | BC66: 0.0175 | BD66: 0.0032 | BE66: 4.04e-08 | BF66: 0.2638453502 | BG66: 4.294486448e-08
A67: rs10875980 | B67: 12 | C67: 50244767 | D67: BCDIN3D | F67: W | J67: T | K67: A | L67: 25526 | M67: 0.4402 | N67: 0.0363 | O67: 0.0095 | P67: 0.00013 | Q67: 23867 | R67: 0.4442 | S67: 0.0197 | T67: 0.0102 | U67: 0.054 | V67: 0.2218159136 | W67: 49394 | X67: 0.4421 | Y67: 0.0286 | Z67: 0.007 | AA67: 4.5e-05 | AB67: 108061 | AC67: 0.4384 | AD67: 0.0259 | AE67: 0.0048 | AF67: 6.5e-08 | AG67: 75190 | AH67: 0.4495 | AI67: 0.0211 | AJ67: 0.0055 | AK67: 0.00011 | AL67: 0.4785543418 | AM67: 183251 | AN67: 0.443 | AO67: 0.0239 | AP67: 0.0038 | AQ67: 2.6e-10 | AR67: 0.0269 | AS67: 0.0043 | AT67: 3.478e-10 | AU67: 0.3099679139 | AV67: 3.21594305e-10 | AW67: 0.0216 | AX67: 0.0048 | AY67: 7.566e-06 | AZ67: 0.9005265666 | BA67: 9.86489532e-05 | BB67: 0.3713077332 | BC67: 0.025 | BD67: 0.0033 | BE67: 1.813e-14 | BF67: 0.5307562199 | BG67: 6.100288008e-13
A68: rs7138803 | B68: 12 | C68: 50247468 | D68: BCDIN3D | F68: M,C | G68: W,C | J68: A | K68: G | L68: 23512 | M68: 0.368 | N68: 0.0438 | O68: 0.0104 | P68: 2.7e-05 | Q68: 24500 | R68: 0.3824 | S68: 0.0287 | T68: 0.0104 | U68: 0.0059 | V68: 0.2922125565 | W68: 48012 | X68: 0.375 | Y68: 0.0364 | Z68: 0.0075 | AA68: 1e-06 | AB68: 90109 | AC68: 0.3581 | AD68: 0.0286 | AE68: 0.0056 | AF68: 2.7e-07 | AG68: 77802 | AH68: 0.3777 | AI68: 0.0257 | AJ68: 0.0056 | AK68: 3.9e-06 | AL68: 0.6928936199 | AM68: 167911 | AN68: 0.3678 | AO68: 0.0269 | AP68: 0.0041 | AQ68: 4.1e-11 | AR68: 0.0301 | AS68: 0.0049 | AT68: 7.043e-10 | AU68: 0.1805307813 | AV68: 3.052218618e-10 | AW68: 0.027 | AX68: 0.0049 | AY68: 2.825e-08 | AZ68: 0.7927250426 | BA68: 5.927398598e-07 | BB68: 0.6265632045 | BC68: 0.029 | BD68: 0.0036 | BE68: 4.477e-16 | BF68: 0.2376149393 | BG68: 3.449239241e-15
A69: rs11065987 | B69: 12 | C69: 112072424 | D69: PPTC7 | F69: C | J69: A | K69: G | L69: 25572 | M69: 0.5839 | N69: 0.0078 | O69: 0.0098 | P69: 0.43 | Q69: 24063 | R69: 0.5886 | S69: 0.023 | T69: 0.0106 | U69: 0.031 | V69: 0.2800853776 | W69: 49634 | X69: 0.587 | Y69: 0.015 | Z69: 0.0073 | AA69: 0.041 | AB69: 108406 | AC69: 0.5887 | AD69: 0.0189 | AE69: 0.0049 | AF69: 0.00013 | AG69: 76607 | AH69: 0.59 | AI69: 0.0224 | AJ69: 0.0057 | AK69: 8.6e-05 | AL69: 0.6158580762 | AM69: 185012 | AN69: 0.5895 | AO69: 0.02 | AP69: 0.0039 | AQ69: 2.3e-07 | AR69: 0.0165 | AS69: 0.0045 | AT69: 0.0002312 | AU69: 0.2926098711 | AV69: 0.0004283720202 | AW69: 0.023 | AX69: 0.005 | AY69: 4.922e-06 | AZ69: 0.9588654278 | BA69: 4.208575963e-05 | BB69: 0.2935070495 | BC69: 0.0193 | BD69: 0.0035 | BE69: 3.218e-08 | BF69: 0.5212626003 | BG69: 2.357876608e-07
A70: rs12429545 | B70: 13 | C70: 54102206 | D70: OLFM4 | F70: C | G70: C | J70: A | K70: G | L70: 23199 | M70: 0.1345 | N70: 0.0502 | O70: 0.0149 | P70: 0.00075 | Q70: 24113 | R70: 0.1417 | S70: 0.0054 | T70: 0.015 | U70: 0.72 | V70: =2*(1-_xlfn.NORM.S.DIST(ABS((N70-S70)/SQRT(O70^2+T70^2-2*T70*O70*0.0499)),TRUE)) -> 0.02971455699 | W70: 47346 | X70: 0.138 | Y70: 0.0279 | Z70: 0.0106 | AA70: 0.0087 | AB70: 91707 | AC70: 0.1339 | AD70: 0.0293 | AE70: 0.0078 | AF70: 0.00019 | AG70: 76487 | AH70: 0.1437 | AI70: 0.0333 | AJ70: 0.0078 | AK70: 2.1e-05 | AL70: =2*(1-_xlfn.NORM.S.DIST(ABS((AD70-AI70)/SQRT(AE70^2+AJ70^2-2*AE70*AJ70*0.1403)),TRUE)) -> 0.6957305682 | AM70: 168194 | AN70: 0.1389 | AO70: 0.0313 | AP70: 0.0058 | AQ70: 6.4e-08 | AR70: 0.0329 | AS70: 0.0069 | AT70: 1.91e-06 | AU70: 0.1962348679 | AV70: 2.958526791e-06 | AW70: 0.0257 | AX70: 0.0069 | AY70: 0.0001893 | AZ70: 0.08797480005 | BA70: 0.0001032904453 | BB70: =2*(1-_xlfn.NORM.S.DIST(ABS((AR70-AW70)/SQRT(AS70^2+AX70^2-2*AS70*AX70*0.1547)),TRUE)) -> 0.4222446284 | BC70: 0.0296 | BD70: 0.005 | BE70: 4.191e-09 | BF70: 0.7649400296 | BG70: 1.484955557e-08
A71: rs7141420 | B71: 14 | C71: 79899454 | D71: NRXN3 | F71: W,C | G71: W,C | J71: T | K71: C | L71: 26037 | M71: 0.5275 | N71: 0.0366 | O71: 0.0092 | P71: 6.5e-05 | Q71: 24362 | R71: 0.5277 | S71: -0.0023 | T71: 0.0099 | U71: 0.82 | V71: 0.003149719597 | W71: 50400 | X71: 0.5277 | Y71: 0.0181 | Z71: 0.0068 | AA71: 0.0078 | AB71: 110310 | AC71: 0.53 | AD71: 0.0263 | AE71: 0.0046 | AF71: 1.2e-08 | AG71: 77079 | AH71: 0.5304 | AI71: 0.0206 | AJ71: 0.0053 | AK71: 0.0001 | AL71: 0.381422694 | AM71: 187389 | AN71: 0.5303 | AO71: 0.0237 | AP71: 0.0036 | AQ71: 4.4e-11 | AR71: 0.0278 | AS71: 0.0042 | AT71: 2.584e-11 | AU71: 0.2982224477 | AV71: 2.917930366e-11 | AW71: 0.0144 | AX71: 0.0046 | AY71: 0.001994 | AZ71: 0.03488955955 | BA71: 0.0005102729253 | BB71: 0.0193383708 | BC71: 0.022 | BD71: 0.0032 | BE71: 4.542e-12 | BF71: 0.4398255434 | BG71: 1.122772934e-11
A72: rs8025790 | B72: 15 | C72: 68076399 | D72: MAP2K5 | F72: C | G72: C | J72: G | K72: T | L72: 26222 | M72: 0.7521 | N72: 0.0234 | O72: 0.0108 | P72: 0.031 | Q72: 24473 | R72: 0.7614 | S72: 0.0139 | T72: 0.0116 | U72: 0.23 | V72: 0.5386248951 | W72: 50696 | X72: 0.7559 | Y72: 0.0182 | Z72: 0.008 | AA72: 0.022 | AB72: 111811 | AC72: 0.7385 | AD72: 0.0338 | AE72: 0.0053 | AF72: 1.9e-10 | AG72: 77765 | AH72: 0.7522 | AI72: 0.0251 | AJ72: 0.0062 | AK72: 5.6e-05 | AL72: 0.2504621909 | AM72: 189576 | AN72: 0.7435 | AO72: 0.0303 | AP72: 0.0042 | AQ72: 6.5e-13 | AR72: 0.0324 | AS72: 0.0049 | AT72: 3.009e-11 | AU72: 0.3693743598 | AV72: 1.409560635e-10 | AW72: 0.0225 | AX72: 0.0054 | AY72: 3.568e-05 | AZ72: 0.3783888872 | BA72: 0.0001346742628 | BB72: 0.1399226376 | BC72: 0.0284 | BD72: 0.0037 | BE72: 2.728e-14 | BF72: 0.155340781 | BG72: 3.754047252e-13
A73: rs16951275 | B73: 15 | C73: 68077168 | D73: MAP2K5 | F73: W | G73: W | J73: T | K73: C | L73: 26222 | M73: 0.7519 | N73: 0.0237 | O73: 0.0108 | P73: 0.029 | Q73: 24471 | R73: 0.7559 | S73: 0.0157 | T73: 0.0116 | U73: 0.18 | V73: 0.6045941498 | W73: 50693 | X73: 0.7534 | Y73: 0.0193 | Z73: 0.008 | AA73: 0.016 | AB73: 111811 | AC73: 0.7386 | AD73: 0.0341 | AE73: 0.0053 | AF73: 1.3e-10 | AG73: 77761 | AH73: 0.7523 | AI73: 0.0241 | AJ73: 0.0062 | AK73: 0.00011 | AL73: 0.1865176595 | AM73: 189572 | AN73: 0.7436 | AO73: 0.0301 | AP73: 0.0042 | AQ73: 9.5e-13 | AR73: 0.0322 | AS73: 0.0048 | AT73: 2.026e-11 | AU73: 0.3693743598 | AV73: 9.23229446e-11 | AW73: 0.0222 | AX73: 0.0054 | AY73: 4.72e-05 | AZ73: 0.5088358149 | BA73: 0.0002095241012 | BB73: 0.1324587147 | BC73: 0.0281 | BD73: 0.0037 | BE73: 5.07e-14 | BF73: 0.2047062478 | BG73: 3.83041261e-13
A74: rs12902602 | B74: 15 | C74: 78967401 | D74: CHRNB4 | G74: C | H74: C | J74: A | K74: G | L74: 26162 | M74: 0.6095 | N74: 0.0358 | O74: 0.0096 | P74: 0.00019 | Q74: 24462 | R74: 0.615 | S74: 0.0592 | T74: 0.0102 | U74: 5.9e-09 | V74: 0.08656500434 | W74: 50624 | X74: 0.6125 | Y74: 0.0472 | Z74: 0.007 | AA74: 1.8e-11 | AB74: 111854 | AC74: 0.6155 | AD74: -0.0057 | AE74: 0.0049 | AF74: 0.25 | AG74: 77657 | AH74: 0.6221 | AI74: 0.0021 | AJ74: 0.0056 | AK74: 0.7 | AL74: 0.2585945792 | AM74: 189511 | AN74: 0.6185 | AO74: -0.0023 | AP74: 0.0038 | AQ74: 0.55 | AR74: 0.0031 | AS74: 0.0044 | AT74: 0.4837 | AU74: 6.2857627e-05 | AV74: 0.0004856923787 | AW74: 0.0158 | AX74: 0.0048 | AY74: 0.00108 | AZ74: 3.796667677e-07 | BA74: 4.515949467e-08 | BB74: 0.03395272748 | BC74: 0.0088 | BD74: 0.0034 | BE74: 0.008644 | BF74: 4.057776541e-11 | BG74: 1.115851689e-10
A75: rs3813565 | B75: 15 | C75: 79019610 | D75: ADAMTS7 | H75: M | J75: G | K75: T | L75: 26120 | M75: 0.6177 | N75: 0.0312 | O75: 0.0098 | P75: 0.0014 | Q75: 24329 | R75: 0.6209 | S75: 0.0662 | T75: 0.0103 | U75: 1.4e-10 | V75: 0.01155213167 | W75: 50449 | X75: 0.6197 | Y75: 0.0479 | Z75: 0.0071 | AA75: 2e-11 | AB75: 110948 | AC75: 0.622 | AD75: -0.0061 | AE75: 0.005 | AF75: 0.22 | AG75: 76977 | AH75: 0.6253 | AI75: 0.0036 | AJ75: 0.0056 | AK75: 0.53 | AL75: 0.1636824319 | AM75: 187925 | AN75: 0.6234 | AO75: -0.0021 | AP75: 0.0039 | AQ75: 0.59 | AR75: 0.0021 | AS75: 0.0045 | AT75: 0.6389 | AU75: 0.0004255993047 | AV75: 0.002991176832 | AW75: 0.0185 | AX75: 0.0049 | AY75: 0.0001613 | AZ75: 3.287809164e-08 | BA75: 8.71345338e-10 | BB75: 0.007354849115 | BC75: 0.0095 | BD75: 0.0033 | BE75: 0.004533 | BF75: 5.39424512e-11 | BG75: 1.131327727e-10
A76: rs1809420 | B76: 15 | C76: 79056769 | D76: ADAMTS7 | F76: M | I76: M | J76: T | K76: C | L76: 16003 | M76: 0.5908 | N76: 0.0363 | O76: 0.0125 | P76: 0.0037 | Q76: 13819 | R76: 0.5886 | S76: 0.0739 | T76: 0.0139 | U76: 9.8e-08 | V76: 0.03909400705 | W76: 29822 | X76: 0.5902 | Y76: 0.0536 | Z76: 0.0094 | AA76: 1.1e-08 | AB76: 75538 | AC76: 0.5892 | AD76: -0.0058 | AE76: 0.0061 | AF76: 0.34 | AG76: 43262 | AH76: 0.5946 | AI76: 0.0234 | AJ76: 0.0075 | AK76: 0.002 | AL76: 0.001145837972 | AM76: 118799 | AN76: 0.5915 | AO76: 0.0056 | AP76: 0.0049 | AQ76: 0.25 | AR76: 0.0026 | AS76: 0.0056 | AT76: 0.6421 | AU76: 0.001674953109 | AV76: 0.009385052411 | AW76: 0.0363 | AX76: 0.0067 | AY76: 4.862e-08 | AZ76: 0.0009390989411 | BA76: 5.602601803e-09 | BB76: 2.770531256e-05 | BC76: 0.0159 | BD76: 0.0044 | BE76: 0.0002989 | BF76: 1.560662125e-06 | BG76: 4.528947608e-08
A77: rs7171916 | B77: 15 | C77: 79067951 | D77: ADAMTS7 | G77: M | J77: C | K77: G | L77: 19746 | M77: 0.5917 | N77: 0.026 | O77: 0.0114 | P77: 0.022 | Q77: 17496 | R77: 0.6015 | S77: 0.0757 | T77: 0.0126 | U77: 1.7e-09 | V77: 0.002696420039 | W77: 37242 | X77: 0.5966 | Y77: 0.0491 | Z77: 0.0085 | AA77: 7.7e-09 | AB77: 84810 | AC77: 0.592 | AD77: -0.0058 | AE77: 0.0059 | AF77: 0.33 | AG77: 56277 | AH77: 0.5998 | AI77: 0.0197 | AJ77: 0.0068 | AK77: 0.0037 | AL77: 0.002270465098 | AM77: 141086 | AN77: 0.5954 | AO77: 0.0048 | AP77: 0.0046 | AQ77: 0.3 | AR77: 0.0013 | AS77: 0.0053 | AT77: 0.8085 | AU77: 0.01000541703 | AV77: 0.04577602802 | AW77: 0.032 | AX77: 0.006 | AY77: 8.509e-08 | AZ77: 5.192833516e-05 | BA77: 2.18523959e-10 | BB77: 3.072002447e-05 | BC77: 0.0143 | BD77: 0.0041 | BE77: 0.0004447 | BF77: 1.123626656e-06 | BG77: 3.295147972e-08
A78: rs879620 | B78: 16 | C78: 4015729 | D78: ADCY9 | F78: C | G78: C | J78: T | K78: C | L78: 20354 | M78: 0.5902 | N78: 0.025 | O78: 0.0111 | P78: 0.024 | Q78: 18318 | R78: 0.5742 | S78: 0.0292 | T78: 0.0121 | U78: 0.016 | V78: 0.7930212452 | W78: 38672 | X78: 0.5816 | Y78: 0.0276 | Z78: 0.0083 | AA78: 0.00085 | AB78: 87150 | AC78: 0.5887 | AD78: 0.023 | AE78: 0.0055 | AF78: 3.4e-05 | AG78: 58960 | AH78: 0.5693 | AI78: 0.0248 | AJ78: 0.0064 | AK78: 0.00011 | AL78: 0.8182160136 | AM78: 146111 | AN78: 0.5796 | AO78: 0.0237 | AP78: 0.0044 | AQ78: 6.7e-08 | AR78: 0.0229 | AS78: 0.0051 | AT78: 6.542e-06 | AU78: 0.8668343829 | AV78: 1.262133709e-05 | AW78: 0.0254 | AX78: 0.0056 | AY78: 6.843e-06 | AZ78: 0.7395472889 | BA78: 2.984075555e-05 | BB78: 0.7197035404 | BC78: 0.0246 | BD78: 0.0039 | BE78: 1.962e-10 | BF78: 0.6594674237 | BG78: 1.989722485e-09
A79: rs2531982 | B79: 16 | C79: 4033097 | D79: ADCY9 | F79: M | J79: G | K79: A | L79: 20864 | M79: 0.2479 | N79: -0.0008 | O79: 0.0131 | P79: 0.95 | Q79: 19528 | R79: 0.2458 | S79: 0.039 | T79: 0.014 | U79: 0.0052 | V79: 0.03321211162 | W79: 40392 | X79: 0.2468 | Y79: 0.0191 | Z79: 0.0096 | AA79: 0.047 | AB79: 93706 | AC79: 0.2447 | AD79: 0.0082 | AE79: 0.0065 | AF79: 0.2 | AG79: 64717 | AH79: 0.247 | AI79: 0.0341 | AJ79: 0.0072 | AK79: 1.9e-06 | AL79: 0.003995388761 | AM79: 158423 | AN79: 0.2457 | AO79: 0.0193 | AP79: 0.0049 | AQ79: 9.5e-05 | AR79: 0.0069 | AS79: 0.0058 | AT79: 0.2371 | AU79: 0.5226867846 | AV79: 0.4504066948 | AW79: 0.035 | AX79: 0.0064 | AY79: 4.084e-08 | AZ79: 0.7476542552 | BA79: 2.780468342e-07 | BB79: 0.0004046407775 | BC79: 0.0194 | BD79: 0.0044 | BE79: 1.013e-05 | BF79: 0.9843075875 | BG79: 5.91048732e-05
A80: rs12446632 | B80: 16 | C80: 19935389 | D80: GPRC5B | F80: M | J80: G | K80: A | L80: 22682 | M80: 0.8671 | N80: 0.0507 | O80: 0.0148 | P80: 0.00062 | Q80: 24050 | R80: 0.8598 | S80: 0.0504 | T80: 0.0149 | U80: 0.00071 | V80: 0.9883072426 | W80: 46766 | X80: 0.8634 | Y80: 0.0501 | Z80: 0.0106 | AA80: 2.3e-06 | AB80: 85599 | AC80: 0.8661 | AD80: 0.0235 | AE80: 0.0079 | AF80: 0.0027 | AG80: 77364 | AH80: 0.8682 | AI80: 0.0375 | AJ80: 0.0081 | AK80: 3.2e-06 | AL80: 0.1820541257 | AM80: 162963 | AN80: 0.8672 | AO80: 0.0297 | AP80: 0.0058 | AQ80: 3.5e-07 | AR80: 0.025 | AS80: 0.007 | AT80: 0.0003247 | AU80: 0.09163214732 | AV80: 3.390330649e-05 | AW80: 0.0423 | AX80: 0.007 | AY80: 1.59e-09 | AZ80: 0.4312136519 | BA80: 7.265390917e-08 | BB80: 0.05733325669 | BC80: 0.0328 | BD80: 0.0051 | BE80: 1.334e-10 | BF80: 0.07281314887 | BG80: 2.852526032e-11
A81: rs11639988 | B81: 16 | C81: 19944363 | D81: GPRC5B | F81: C | G81: C | J81: A | K81: G | L81: 25281 | M81: 0.8481 | N81: 0.0424 | O81: 0.0134 | P81: 0.0016 | Q81: 23599 | R81: 0.8541 | S81: 0.0517 | T81: 0.0146 | U81: 0.0004 | V81: 0.6302252423 | W81: 48913 | X81: 0.8499 | Y81: 0.0463 | Z81: 0.01 | AA81: 3.5e-06 | AB81: 109129 | AC81: 0.8426 | AD81: 0.0297 | AE81: 0.0066 | AF81: 6.4e-06 | AG81: 76520 | AH81: 0.8571 | AI81: 0.0318 | AJ81: 0.008 | AK81: 6.8e-05 | AL81: 0.827382509 | AM81: 185650 | AN81: 0.8482 | AO81: 0.0301 | AP81: 0.0053 | AQ81: 1.4e-08 | AR81: 0.0286 | AS81: 0.006 | AT81: 1.79e-06 | AU81: 0.3772772418 | AV81: 2.683390075e-07 | AW81: 0.0378 | AX81: 0.0069 | AY81: 5.055e-08 | AZ81: 0.2160416294 | BA81: 7.015367489e-07 | BB81: 0.2742297571 | BC81: 0.0321 | BD81: 0.0046 | BE81: 3.691e-12 | BF81: 0.1286909722 | BG81: 2.193849193e-12
A82: rs2650492 | B82: 16 | C82: 28333411 | D82: SBK1 | F82: C | J82: A | K82: G | L82: 22402 | M82: 0.2956 | N82: 0.0326 | O82: 0.0117 | P82: 0.0052 | Q82: 23604 | R82: 0.3074 | S82: 0.0119 | T82: 0.0117 | U82: 0.31 | V82: 0.1993283895 | W82: 46006 | X82: 0.3011 | Y82: 0.0229 | Z82: 0.0084 | AA82: 0.0063 | AB82: 86507 | AC82: 0.2896 | AD82: 0.0155 | AE82: 0.0063 | AF82: 0.013 | AG82: 73611 | AH82: 0.2897 | AI82: 0.0272 | AJ82: 0.0063 | AK82: 1.8e-05 | AL82: 0.1566861647 | AM82: 160118 | AN82: 0.2898 | AO82: 0.0215 | AP82: 0.0046 | AQ82: 2.9e-06 | AR82: 0.0198 | AS82: 0.0056 | AT82: 0.0004214 | AU82: 0.1805307813 | AV82: 0.0009993715663 | AW82: 0.0238 | AX82: 0.0056 | AY82: 2.205e-05 | AZ82: 0.2335591577 | BA82: 5.341217102e-05 | BB82: 0.5827631945 | BC82: 0.0225 | BD82: 0.004 | BE82: 2.599e-08 | BF82: 0.8765550188 | BG82: 4.389901659e-07
A83: rs8049439 | B83: 16 | C83: 28837515 | D83: ATXN2L | F83: M | G83: M | J83: C | K83: T | L83: 23760 | M83: 0.4067 | N83: 0.0264 | O83: 0.0098 | P83: 0.007 | Q83: 24639 | R83: 0.4088 | S83: 0.0265 | T83: 0.01 | U83: 0.0081 | V83: 0.9941537573 | W83: 48399 | X83: 0.4077 | Y83: 0.0272 | Z83: 0.0071 | AA83: 0.00012 | AB83: 90219 | AC83: 0.4077 | AD83: 0.0226 | AE83: 0.0051 | AF83: 1.1e-05 | AG83: 76980 | AH83: 0.3946 | AI83: 0.0368 | AJ83: 0.0054 | AK83: 1.1e-11 | AL83: 0.03924529987 | AM83: 167198 | AN83: 0.4017 | AO83: 0.0294 | AP83: 0.0039 | AQ83: 2.5e-14 | AR83: 0.0248 | AS83: 0.0046 | AT83: 9.544e-08 | AU83: 0.7205991821 | AV83: 1.445551766e-06 | AW83: 0.032 | AX83: 0.0047 | AY83: 8.765e-12 | AZ83: 0.3483851897 | BA83: 2.456949736e-12 | BB83: 0.2337471912 | BC83: 0.0288 | BD83: 0.0034 | BE83: 4.638e-17 | BF83: 0.7728694349 | BG83: 2.971104479e-16
A84: rs4788099 | B84: 16 | C84: 28855727 | D84: ATP2A1 | F84: C | J84: G | K84: A | L84: 26405 | M84: 0.3865 | N84: 0.0274 | O84: 0.0094 | P84: 0.0034 | Q84: 24648 | R84: 0.3884 | S84: 0.0281 | T84: 0.01 | U84: 0.0052 | V84: 0.9582708848 | W84: 51053 | X84: 0.3869 | Y84: 0.0286 | Z84: 0.007 | AA84: 4e-05 | AB84: 112088 | AC84: 0.381 | AD84: 0.025 | AE84: 0.0048 | AF84: 1.4e-07 | AG84: 78084 | AH84: 0.3832 | AI84: 0.0356 | AJ84: 0.0054 | AK84: 5.7e-11 | AL84: 0.1137773255 | AM84: 190171 | AN84: 0.3823 | AO84: 0.0297 | AP84: 0.0037 | AQ84: 4.7e-16 | AR84: 0.0264 | AS84: 0.0042 | AT84: 4.198e-10 | AU84: 0.813172191 | AV84: 1.838610805e-08 | AW84: 0.0321 | AX84: 0.0048 | AY84: 2.035e-11 | AZ84: 0.4947267433 | BA84: 7.041579952e-12 | BB84: 0.3314276803 | BC84: 0.0291 | BD84: 0.0032 | BE84: 1.255e-19 | BF84: 0.8827798669 | BG84: 2.419158168e-18
A85: rs4788102 | B85: 16 | C85: 28873398 | D85: SH2B1 | G85: W,C | J85: A | K85: G | L85: 26402 | M85: 0.3857 | N85: 0.027 | O85: 0.0094 | P85: 0.0039 | Q85: 24645 | R85: 0.3948 | S85: 0.0285 | T85: 0.0101 | U85: 0.0048 | V85: 0.9111988692 | W85: 51047 | X85: 0.3896 | Y85: 0.0287 | Z85: 0.007 | AA85: 3.7e-05 | AB85: 110418 | AC85: 0.3802 | AD85: 0.0254 | AE85: 0.0048 | AF85: 9.5e-08 | AG85: 78080 | AH85: 0.3826 | AI85: 0.036 | AJ85: 0.0054 | AK85: 3.6e-11 | AL85: 0.1137773255 | AM85: 188497 | AN85: 0.3809 | AO85: 0.03 | AP85: 0.0037 | AQ85: 9e-16 | AR85: 0.0269 | AS85: 0.0043 | AT85: 4.603e-10 | AU85: 0.874805787 | AV85: 1.342646852e-08 | AW85: 0.0325 | AX85: 0.0048 | AY85: 1.159e-11 | AZ85: 0.4981346633 | BA85: 4.168563796e-12 | BB85: 0.3448469205 | BC85: 0.0297 | BD85: 0.0033 | BE85: 1.882e-19 | BF85: 0.861665407 | BG85: 1.18628091e-18
A86: rs8055982 | B86: 16 | C86: 28881202 | D86: SH2B1 | F86: W | J86: C | K86: A | L86: 26340 | M86: 0.3864 | N86: 0.0277 | O86: 0.0094 | P86: 0.0033 | Q86: 24468 | R86: 0.389 | S86: 0.0294 | T86: 0.0101 | U86: 0.0037 | V86: 0.8994179329 | W86: 50808 | X86: 0.3872 | Y86: 0.0293 | Z86: 0.007 | AA86: 2.5e-05 | AB86: 111863 | AC86: 0.3807 | AD86: 0.0251 | AE86: 0.0048 | AF86: 1.4e-07 | AG86: 77770 | AH86: 0.3835 | AI86: 0.0358 | AJ86: 0.0054 | AK86: 4.5e-11 | AL86: 0.1104084696 | AM86: 189632 | AN86: 0.3815 | AO86: 0.0297 | AP86: 0.0037 | AQ86: 1.7e-15 | AR86: 0.027 | AS86: 0.0042 | AT86: 1.789e-10 | AU86: 0.7979274132 | AV86: 1.50192637e-08 | AW86: 0.0325 | AX86: 0.0048 | AY86: 1.161e-11 | AZ86: 0.5632157867 | BA86: 4.130436686e-12 | BB86: 0.3486744446 | BC86: 0.0297 | BD86: 0.0033 | BE86: 2.056e-19 | BF86: 0.9572404806 | BG86: 1.599751311e-18
A87: rs11649149 | B87: 16 | C87: 30008644 | D87: HIRIP3 | F87: C | G87: C | J87: T | K87: C | L87: 20531 | M87: 0.5112 | N87: 0.0234 | O87: 0.0104 | P87: 0.025 | Q87: 18061 | R87: 0.5061 | S87: 0.0285 | T87: 0.0114 | U87: 0.012 | V87: 0.7345862125 | W87: 38593 | X87: 0.5089 | Y87: 0.0261 | Z87: 0.0078 | AA87: 0.00078 | AB87: 88138 | AC87: 0.5146 | AD87: 0.0189 | AE87: 0.0053 | AF87: 0.00035 | AG87: 58576 | AH87: 0.5158 | AI87: 0.0246 | AJ87: 0.0061 | AK87: 6.3e-05 | AL87: 0.4471665417 | AM87: 146714 | AN87: 0.5149 | AO87: 0.0209 | AP87: 0.0042 | AQ87: 5.2e-07 | AR87: 0.0199 | AS87: 0.0048 | AT87: 2.825e-05 | AU87: 0.6886647255 | AV87: 0.0001378199318 | AW87: 0.026 | AX87: 0.0054 | AY87: 1.263e-06 | AZ87: 0.7550096093 | BA87: 1.292063347e-05 | BB87: 0.358759883 | BC87: 0.022 | BD87: 0.0037 | BE87: 1.593e-09 | BF87: 0.5330387486 | BG87: 1.554372823e-08
A88: rs12597511 | B88: 16 | C88: 31145219 | D88: PRSS8 | F88: C | J88: C | K88: T | L88: 24226 | M88: 0.6405 | N88: 0.0156 | O88: 0.0101 | P88: 0.12 | Q88: 22822 | R88: 0.6414 | S88: 0.0267 | T88: 0.0108 | U88: 0.014 | V88: 0.4412501485 | W88: 47048 | X88: 0.6414 | Y88: 0.0218 | Z88: 0.0074 | AA88: 0.0034 | AB88: 104060 | AC88: 0.6446 | AD88: 0.0187 | AE88: 0.0051 | AF88: 0.00027 | AG88: 71884 | AH88: 0.6419 | AI88: 0.0221 | AJ88: 0.0058 | AK88: 0.00015 | AL88: 0.6351643491 | AM88: 175944 | AN88: 0.6434 | AO88: 0.0195 | AP88: 0.004 | AQ88: 1e-06 | AR88: 0.0176 | AS88: 0.0046 | AT88: 0.0001263 | AU88: 0.7758834114 | AV88: 0.0003652069221 | AW88: 0.0219 | AX88: 0.0051 | AY88: 1.849e-05 | AZ88: 0.6978626174 | BA88: 3.312225283e-05 | BB88: 0.4960972343 | BC88: 0.019 | BD88: 0.0034 | BE88: 3.341e-08 | BF88: 0.7714995035 | BG88: 9.012112319e-08
A89: rs9930333 | B89: 16 | C89: 53799977 | D89: FTO | F89: W | G89: W | J89: G | K89: T | L89: 24935 | M89: 0.4273 | N89: 0.0933 | O89: 0.0097 | P89: 8.7e-22 | Q89: 23209 | R89: 0.4363 | S89: 0.0862 | T89: 0.0103 | U89: 5.8e-17 | V89: 0.6066892233 | W89: 48144 | X89: 0.4315 | Y89: 0.0892 | Z89: 0.0072 | AA89: 1.8e-35 | AB89: 104259 | AC89: 0.4327 | AD89: 0.0693 | AE89: 0.0049 | AF89: 5.754e-45 | AG89: 72316 | AH89: 0.433 | AI89: 0.0702 | AJ89: 0.0055 | AK89: 7.2e-37 | AL89: 0.8952195743 | AM89: 176576 | AN89: 0.4327 | AO89: 0.0694 | AP89: 0.0039 | AQ89: 2.499e-72 | AR89: 0.0739 | AS89: 0.0045 | AT89: 2.151e-61 | AU89: 0.02174715453 | AV89: 2.994943494e-64 | AW89: 0.0739 | AX89: 0.0049 | AY89: 1.073e-51 | AZ89: 0.1563429682 | BA89: 2.604189243e-51 | BB89: 1 | BC89: 0.0742 | BD89: 0.0033 | BE89: 3.05e-110 | BF89: 0.01021368954 | BG89: 8.127468763e-103
A90: rs1558902 | B90: 16 | C90: 53803574 | D90: FTO | F90: M,C | G90: M,C | J90: A | K90: T | L90: 25686 | M90: 0.3992 | N90: 0.0938 | O90: 0.0097 | P90: 3.7e-22 | Q90: 24420 | R90: 0.4073 | S90: 0.0948 | T90: 0.0101 | U90: 8.7e-21 | V90: 0.9415991779 | W90: 50106 | X90: 0.4025 | Y90: 0.0936 | Z90: 0.0072 | AA90: 7.8e-39 | AB90: 107859 | AC90: 0.4034 | AD90: 0.0685 | AE90: 0.0049 | AF90: 3.835e-44 | AG90: 77448 | AH90: 0.4019 | AI90: 0.0771 | AJ90: 0.0055 | AK90: 2.771e-45 | AL90: 0.2082142534 | AM90: 185308 | AN90: 0.4023 | AO90: 0.072 | AP90: 0.0038 | AQ90: 1.422e-79 | AR90: 0.0707 | AS90: 0.0044 | AT90: 5.101e-59 | AU90: 0.01556090891 | AV90: 1.809263733e-63 | AW90: 0.0806 | AX90: 0.0047 | AY90: 6.753e-65 | AZ90: 0.1112290036 | BA90: 1.577381167e-62 | BB90: 0.09449020177 | BC90: 0.075 | BD90: 0.0034 | BE90: 3.04e-110 | BF90: 0.004867813804 | BG90: 2.216436338e-115
A91: rs889398 | B91: 16 | C91: 69556715 | D91: NFAT5 | F91: C | G91: C | J91: C | K91: T | L91: 26371 | M91: 0.5863 | N91: 0.0076 | O91: 0.0094 | P91: 0.42 | Q91: 24674 | R91: 0.5877 | S91: 0.001 | T91: 0.0099 | U91: 0.92 | V91: 0.6199151195 | W91: 51044 | X91: 0.5875 | Y91: 0.005 | Z91: 0.0069 | AA91: 0.46 | AB91: 112061 | AC91: 0.5916 | AD91: 0.023 | AE91: 0.0048 | AF91: 1.4e-06 | AG91: 78074 | AH91: 0.5901 | AI91: 0.0209 | AJ91: 0.0054 | AK91: 0.00012 | AL91: 0.7540495032 | AM91: 190136 | AN91: 0.5905 | AO91: 0.0221 | AP91: 0.0036 | AQ91: 1.4e-09 | AR91: 0.0195 | AS91: 0.0042 | AT91: 4.264e-06 | AU91: 0.1293961605 | AV91: 7.453107873e-06 | AW91: 0.0164 | AX91: 0.0047 | AY91: 0.0004641 | AZ91: 0.06782055684 | BA91: 0.0005558650983 | BB91: 0.5929110734 | BC91: 0.018 | BD91: 0.0033 | BE91: 4.662e-08 | BF91: 0.019763785 | BG91: 5.041670913e-09
A92: rs12939549 | B92: 17 | C92: 78611724 | D92: RPTOR | F92: C | G92: C | J92: A | K92: G | L92: 26238 | M92: 0.5674 | N92: 0.0156 | O92: 0.0093 | P92: 0.092 | Q92: 24354 | R92: 0.5774 | S92: 0.0178 | T92: 0.01 | U92: 0.074 | V92: 0.8687355869 | W92: 50592 | X92: 0.5721 | Y92: 0.0172 | Z92: 0.0068 | AA92: 0.011 | AB92: 111732 | AC92: 0.5675 | AD92: 0.015 | AE92: 0.0047 | AF92: 0.0014 | AG92: 77686 | AH92: 0.5784 | AI92: 0.0253 | AJ92: 0.0054 | AK92: 2.8e-06 | AL92: 0.1210159869 | AM92: 189418 | AN92: 0.5721 | AO92: 0.0194 | AP92: 0.0036 | AQ92: 8.2e-08 | AR92: 0.0146 | AS92: 0.0042 | AT92: 0.0004704 | AU92: 0.9522897246 | AV92: 0.001503935381 | AW92: 0.0233 | AX92: 0.0047 | AY92: 5.843e-07 | AZ92: 0.4947267433 | BA92: 3.510752662e-06 | BB92: 0.1335130039 | BC92: 0.0186 | BD92: 0.0032 | BE92: 4.414e-09 | BF92: 0.7615260928 | BG92: 2.017092419e-08
A93: rs1788785 | B93: 18 | C93: 21142340 | D93: NPC1 | F93: W,C | J93: T | K93: C | L93: 26126 | M93: 0.3406 | N93: 0.0222 | O93: 0.01 | P93: 0.026 | Q93: 24468 | R93: 0.3411 | S93: 0.0107 | T93: 0.0104 | U93: 0.31 | V93: 0.4135158447 | W93: 50594 | X93: 0.3405 | Y93: 0.0166 | Z93: 0.0073 | AA93: 0.023 | AB93: 111871 | AC93: 0.3338 | AD93: 0.0253 | AE93: 0.005 | AF93: 4.1e-07 | AG93: 77788 | AH93: 0.3403 | AI93: 0.0125 | AJ93: 0.0056 | AK93: 0.025 | AL93: 0.066075336 | AM93: 189659 | AN93: 0.3362 | AO93: 0.0196 | AP93: 0.0039 | AQ93: 5e-07 | AR93: 0.0254 | AS93: 0.0044 | AT93: 1.028e-08 | AU93: 0.7733169299 | AV93: 2.344555076e-07 | AW93: 0.0114 | AX93: 0.0049 | AY93: 0.0213 | AZ93: 0.8747214175 | BA93: 0.0487771618 | BB93: 0.02083315268 | BC93: 0.0189 | BD93: 0.0034 | BE93: 1.982e-08 | BF93: 0.7003558022 | BG93: 2.469673838e-07
A94: rs7243357 | B94: 18 | C94: 56883319 | D94: GRP | F94: C | J94: T | K94: G | L94: 26197 | M94: 0.8249 | N94: 0.0006 | O94: 0.0124 | P94: 0.96 | Q94: 24558 | R94: 0.8079 | S94: 0.0349 | T94: 0.0131 | U94: 0.0076 | V94: 0.05108576745 | W94: 50754 | X94: 0.8167 | Y94: 0.018 | Z94: 0.009 | AA94: 0.046 | AB94: 112000 | AC94: 0.8255 | AD94: 0.0234 | AE94: 0.0062 | AF94: 0.00017 | AG94: 78096 | AH94: 0.8112 | AI94: 0.0298 | AJ94: 0.0069 | AK94: 1.5e-05 | AL94: 0.4570252542 | AM94: 190097 | AN94: 0.8193 | AO94: 0.026 | AP94: 0.0048 | AQ94: 5.7e-08 | AR94: 0.0182 | AS94: 0.0055 | AT94: 0.001001 | AU94: 0.08755258331 | AV94: 0.0008059900778 | AW94: 0.0297 | AX94: 0.0061 | AY94: 1.036e-06 | AZ94: 0.7216735943 | BA94: 2.561377501e-06 | BB94: 0.1279716637 | BC94: 0.0232 | BD94: 0.0042 | BE94: 3.547e-08 | BF94: 0.4050361806 | BG94: 5.757721682e-08
A95: rs6567160 | B95: 18 | C95: 57829135 | D95: GRP | F95: M,W,C | G95: M,W,C | J95: C | K95: T | L95: 26297 | M95: 0.2325 | N95: 0.056 | O95: 0.0108 | P95: 2.1e-07 | Q95: 24626 | R95: 0.2489 | S95: 0.0666 | T95: 0.0114 | U95: 5.4e-09 | V95: 0.488635154 | W95: 50923 | X95: 0.2405 | Y95: 0.0611 | Z95: 0.008 | AA95: 1.6e-14 | AB95: 112000 | AC95: 0.2338 | AD95: 0.0548 | AE95: 0.0055 | AF95: 1.7e-23 | AG95: 78063 | AH95: 0.251 | AI95: 0.0634 | AJ95: 0.0061 | AK95: 4.3e-25 | AL95: 0.2589868319 | AM95: 190063 | AN95: 0.2415 | AO95: 0.0582 | AP95: 0.0042 | AQ95: 9.04e-43 | AR95: 0.0542 | AS95: 0.0049 | AT95: 1.244e-28 | AU95: 0.9180418146 | AV95: 4.02403491e-28 | AW95: 0.0635 | AX95: 0.0054 | AY95: 1.105e-31 | AZ95: 0.7979250653 | BA95: 1.354207147e-31 | BB95: 0.1655577169 | BC95: 0.0579 | BD95: 0.0037 | BE95: 3.191e-54 | BF95: 0.7334420404 | BG95: 4.333055312e-55
A96: rs757318 | B96: 19 | C96: 18820308 | D96: CRTC1 | F96: C | J96: C | K96: A | L96: 23423 | M96: 0.4964 | N96: 0.0222 | O96: 0.01 | P96: 0.026 | Q96: 24541 | R96: 0.4957 | S96: 0.0166 | T96: 0.0101 | U96: 0.1 | V96: 0.6860519256 | W96: 47964 | X96: 0.4955 | Y96: 0.0196 | Z96: 0.0072 | AA96: 0.0062 | AB96: 91658 | AC96: 0.4816 | AD96: 0.0209 | AE96: 0.0053 | AF96: 7.5e-05 | AG96: 76740 | AH96: 0.4986 | AI96: 0.018 | AJ96: 0.0054 | AK96: 0.0008 | AL96: 0.6793413769 | AM96: 168398 | AN96: 0.4896 | AO96: 0.0198 | AP96: 0.0039 | AQ96: 3.8e-07 | AR96: 0.0221 | AS96: 0.0047 | AT96: 2.375e-06 | AU96: 0.9048890416 | AV96: 3.573475193e-05 | AW96: 0.0173 | AX96: 0.0048 | AY96: 0.0003375 | AZ96: 0.899373224 | BA96: 0.001001549025 | BB96: 0.4370813836 | BC96: 0.0199 | BD96: 0.0035 | BE96: 8.763e-09 | BF96: 0.9793015734 | BG96: 6.220559571e-08
A97: rs29943 | B97: 19 | C97: 34308210 | D97: FBXO17 | F97: C | G97: C | J97: C | K97: T | L97: 26314 | M97: 0.6744 | N97: 0.0362 | O97: 0.0102 | P97: 0.00037 | Q97: 24466 | R97: 0.6738 | S97: 0.0162 | T97: 0.0107 | U97: 0.13 | V97: 0.1651494138 | W97: 50780 | X97: 0.6742 | Y97: 0.0273 | Z97: 0.0074 | AA97: 0.00025 | AB97: 111708 | AC97: 0.6782 | AD97: 0.0174 | AE97: 0.0051 | AF97: 0.00059 | AG97: 77760 | AH97: 0.6701 | AI97: 0.0222 | AJ97: 0.0057 | AK97: 0.00011 | AL97: 0.4987192207 | AM97: 189467 | AN97: 0.6748 | AO97: 0.0197 | AP97: 0.0039 | AQ97: 5.1e-07 | AR97: 0.02 | AS97: 0.0045 | AT97: 1.056e-05 | AU97: 0.08679250495 | AV97: 5.461214852e-06 | AW97: 0.0201 | AX97: 0.005 | AY97: 6.038e-05 | AZ97: 0.6087003093 | BA97: 0.0001615632528 | BB97: 0.9871060203 | BC97: 0.0203 | BD97: 0.0035 | BE97: 4.927e-09 | BF97: 0.3349621293 | BG97: 3.191471895e-09
A98: rs11672660 | B98: 19 | C98: 46180184 | D98: GIPR | F98: C | G98: C | J98: C | K98: T | L98: 22562 | M98: 0.7923 | N98: 0.0224 | O98: 0.0127 | P98: 0.078 | Q98: 23741 | R98: 0.7919 | S98: 0.0339 | T98: 0.0131 | U98: 0.0095 | V98: 0.5178763019 | W98: 46303 | X98: 0.7924 | Y98: 0.0281 | Z98: 0.0092 | AA98: 0.0023 | AB98: 85570 | AC98: 0.8006 | AD98: 0.0243 | AE98: 0.0069 | AF98: 0.00043 | AG98: 74289 | AH98: 0.7963 | AI98: 0.0279 | AJ98: 0.007 | AK98: 6.4e-05 | AL98: 0.6928313207 | AM98: 159858 | AN98: 0.7985 | AO98: 0.0259 | AP98: 0.0051 | AQ98: 3.1e-07 | AR98: 0.0256 | AS98: 0.006 | AT98: 2.293e-05 | AU98: 0.8911685251 | AV98: 0.0004278309734 | AW98: 0.0299 | AX98: 0.0061 | AY98: 1.128e-06 | AZ98: 0.6760340162 | BA98: 1.248131233e-05 | BB98: 0.5846511803 | BC98: 0.0279 | BD98: 0.0044 | BE98: 3.438e-10 | BF98: 0.8240515305 | BG98: 2.365354298e-08
A99: rs3810291 | B99: 19 | C99: 47569003 | D99: ZC3H4 | F99: C | G99: C | J99: A | K99: G | L99: 25444 | M99: 0.6352 | N99: 0.0495 | O99: 0.0105 | P99: 2.4e-06 | Q99: 23737 | R99: 0.6363 | S99: 0.024 | T99: 0.0111 | U99: 0.031 | V99: 0.08687637612 | W99: 49181 | X99: 0.6348 | Y99: 0.0371 | Z99: 0.0077 | AA99: 1.4e-06 | AB99: 107501 | AC99: 0.6163 | AD99: 0.0269 | AE99: 0.0053 | AF99: 3.8e-07 | AG99: 76771 | AH99: 0.6252 | AI99: 0.0218 | AJ99: 0.0059 | AK99: 0.00023 | AL99: 0.4881739248 | AM99: 184272 | AN99: 0.6204 | AO99: 0.0247 | AP99: 0.0041 | AQ99: 1.5e-09 | AR99: 0.0292 | AS99: 0.0048 | AT99: 1.059e-09 | AU99: 0.04587586158 | AV99: 3.803739439e-11 | AW99: 0.0221 | AX99: 0.0053 | AY99: 2.806e-05 | AZ99: 0.8563488099 | BA99: 0.0001047774505 | BB99: 0.2803669461 | BC99: 0.0259 | BD99: 0.0036 | BE99: 1.223e-12 | BF99: 0.1313047155 | BG99: 1.19665395e-13
A100: rs2303108 | B100: 19 | C100: 47589895 | D100: ZC3H4 | F100: W | G100: W | J100: C | K100: T | L100: 23192 | M100: 0.6972 | N100: 0.052 | O100: 0.0106 | P100: 9e-07 | Q100: 24398 | R100: 0.6877 | S100: 0.0256 | T100: 0.0106 | U100: 0.016 | V100: 0.07080104635 | W100: 47590 | X100: 0.6915 | Y100: 0.0386 | Z100: 0.0076 | AA100: 3.5e-07 | AB100: 87998 | AC100: 0.6785 | AD100: 0.0281 | AE100: 0.0055 | AF100: 3.9e-07 | AG100: 77499 | AH100: 0.675 | AI100: 0.0185 | AJ100: 0.0057 | AK100: 0.0013 | AL100: 0.1911847755 | AM100: 165497 | AN100: 0.6766 | AO100: 0.0236 | AP100: 0.0041 | AQ100: 1.2e-08 | AR100: 0.0312 | AS100: 0.005 | AT100: 3.541e-10 | AU100: 0.03744522454 | AV100: 1.27670073e-11 | AW100: 0.0197 | AX100: 0.005 | AY100: 8.977e-05 | AZ100: 0.5416415307 | BA100: 0.0002792660721 | BB100: 0.07690776211 | BC100: 0.0256 | BD100: 0.0037 | BE100: 2.14e-12 | BF100: 0.06505832454 | BG100: 1.599071995e-13
M104: =-LOG10(5E-20) -> 19.30103

Sheet SD 2. WC All Ancestries
A1: Supplementary Data 2. Significant SNPs for WCadjBMI across all approaches (1-SNPadjSMK, 2-SNPjoint, 3-SNPint, 4-SNPscreen) and strata (C=Combined Men and Women, W=Women-only, M=Men-only) for combined ancestries meta-analyses. Summary statistics are presented from stage1 plus stage 2 results.
L2: SMOKERS | AB2: NON-SMOKERS | AR2: Main and Interaction Effects
F3: Approaches | J3: Alleles | L3: WOMEN | Q3: MEN | V3: Psexdiff | W3: COMBINED | AB3: WOMEN | AG3: MEN | AL3: Psexdiff | AM3: COMBINED | AR3: WOMEN | AW3: MEN | BB3: PSexdiff | BC3: COMBINED
A4: Marker | B4: Chr | C4: Pos (hg19) | D4: Nearest Gene | E4: Novel | F4: 1 | G4: 2 | H4: 3 | I4: 4 | J4: Effect | K4: Other | L4: N | M4: EAF | N4: β | O4: SE | P4: P | Q4: N | R4: EAF | S4: β | T4: SE | U4: P | W4: N | X4: EAF | Y4: β | Z4: SE | AA4: P | AB4: N | AC4: EAF | AD4: β | AE4: SE | AF4: P | AG4: N | AH4: EAF | AI4: β | AJ4: SE | AK4: P | AM4: N | AN4: EAF | AO4: β | AP4: SE | AQ4: P | AR4: βadj | AS4: SEadj | AT4: PSNPadjSMK | AU4: PSNPint | AV4: PSNPjoint | AW4: βadj | AX4: SEadj | AY4: PSNPadjSMK | AZ4: PSNPint | BA4: PSNPjoint | BC4: βadj | BD4: SEadj | BE4: PSNPadjSMK | BF4: PSNPint | BG4: PSNPjoint
A5: rs17396340 | B5: 1 | C5: 10286176 | D5: KIF1B | E5: Yes | F5: C,M | G5: C,M | J5: A | K5: G | L5: 21592 | M5: 0.1302 | N5: 0.0093 | O5: 0.0151 | P5: 0.54 | Q5: 20596 | R5: 0.1401 | S5: 0.0226 | T5: 0.0153 | U5: 0.14 | V5: =2*(1-_xlfn.NORM.S.DIST(ABS((N5-S5)/SQRT(O5^2+T5^2-2*O5*T5*0.0386)),TRUE)) -> 0.5280391147 | W5: 42263 | X5: 0.1368 | Y5: 0.0159 | Z5: 0.0109 | AA5: 0.14 | AB5: 96341 | AC5: 0.13 | AD5: 0.0242 | AE5: 0.0073 | AF5: 0.00095 | AG5: 67881 | AH5: 0.1414 | AI5: 0.05 | AJ5: 0.0084 | AK5: 2.3e-09 | AL5: =2*(1-_xlfn.NORM.S.DIST(ABS((AD5-AI5)/SQRT(AE5^2+AJ5^2-2*AE5*AJ5*0.0864)),TRUE)) -> 0.01533633676 | AM5: 164222 | AN5: 0.135 | AO5: 0.0352 | AP5: 0.0056 | AQ5: 4.7e-10 | AR5: 0.0183 | AS5: 0.0067 | AT5: 0.0062 | AU5: 0.36 | AV5: 0.0034 | AW5: 0.0412 | AX5: 0.0072 | AY5: 1.3e-08 | AZ5: 0.11 | BA5: 6.8e-09 | BB5: =2*(1-_xlfn.NORM.S.DIST(ABS((AR5-AW5)/SQRT(AS5^2+AX5^2-2*AS5*AX5*0.1023)),TRUE)) -> 0.01400581823 | BC5: 0.0283 | BD5: 0.0051 | BE5: 3e-08 | BF5: 0.098 | BG5: 9.1e-10
A6: rs9435732 | B6: 1 | C6: 17308158 | D6: MFAP2 | F6: C | G6: C | J6: C | K6: T | L6: 22086 | M6: 0.7333 | N6: 0.0485 | O6: 0.0113 | P6: 1.7e-05 | Q6: 20804 | R6: 0.7344 | S6: 0.0507 | T6: 0.0116 | U6: 1.3e-05 | V6: =2*(1-_xlfn.NORM.S.DIST(ABS((N6-S6)/SQRT(O6^2+T6^2-2*O6*T6*0.0386)),TRUE)) -> 0.8898049114 | W6: 42889 | X6: 0.7339 | Y6: 0.0496 | Z6: 0.0082 | AA6: 1.4e-09 | AB6: 95615 | AC6: 0.7335 | AD6: 0.0239 | AE6: 0.0056 | AF6: 1.8e-05 | AG6: 67933 | AH6: 0.7334 | AI6: 0.0385 | AJ6: 0.0065 | AK6: 3.1e-09 | AL6: =2*(1-_xlfn.NORM.S.DIST(ABS((AD6-AI6)/SQRT(AE6^2+AJ6^2-2*AE6*AJ6*0.0864)),TRUE)) -> 0.0751695361 | AM6: 163548 | AN6: 0.7335 | AO6: 0.0301 | AP6: 0.0043 | AQ6: 3.7e-12 | AR6: 0.027 | AS6: 0.005 | AT6: 5.1e-08 | AU6: 0.044 | AV6: 1.1e-08 | AW6: 0.038 | AX6: 0.0056 | AY6: 1e-11 | AZ6: 0.34 | BA6: 1.7e-12 | BB6: =2*(1-_xlfn.NORM.S.DIST(ABS((AR6-AW6)/SQRT(AS6^2+AX6^2-2*AS6*AX6*0.1023)),TRUE)) -> 0.1221268482 | BC6: 0.0318 | BD6: 0.0039 | BE6: 2.5e-16 | BF6: 0.027 | BG6: 2.6e-19
A7: rs3738814 | B7: 1 | C7: 17331676 | D7: ATP13A2 | F7: M | G7: M | J7: A | K7: G | L7: 19996 | M7: 0.5455 | N7: 0.0371 | O7: 0.0105 | P7: 0.0004 | Q7: 20722 | R7: 0.551 | S7: 0.052 | T7: 0.0104 | U7: 5.7e-07 | V7: 0.3038335438 | W7: 40718 | X7: 0.5475 | Y7: 0.0439 | Z7: 0.0075 | AA7: 4.5e-09 | AB7: 78118 | AC7: 0.5345 | AD7: 0.0198 | AE7: 0.0055 | AF7: 0.0003 | AG7: 68055 | AH7: 0.5427 | AI7: 0.0334 | AJ7: 0.0058 | AK7: 7.5e-09 | AL7: 0.07507898568 | AM7: 146172 | AN7: 0.5376 | AO7: 0.0265 | AP7: 0.0041 | AQ7: 8.8e-11 | AR7: 0.0226 | AS7: 0.0049 | AT7: 3.7e-06 | AU7: 0.13 | AV7: 3e-06 | AW7: 0.034 | AX7: 0.0049 | AY7: 3.9e-12 | AZ7: 0.11 | BA7: 2.4e-13 | BB7: 0.0825084041 | BC7: 0.0283 | BD7: 0.0036 | BE7: 8e-15 | BF7: 0.032 | BG7: 3.1e-17
A8: rs2076600 | B8: 1 | C8: 17337391 | D8: ATP13A2 | F8: W | G8: W | J8: G | K8: A | L8: 17155 | M8: 0.7263 | N8: 0.057 | O8: 0.0131 | P8: 1.3e-05 | Q8: 15198 | R8: 0.7214 | S8: 0.0464 | T8: 0.0136 | U8: 0.00065 | V8: 0.5669834624 | W8: 32352 | X8: 0.7231 | Y8: 0.0517 | Z8: 0.0097 | AA8: 9e-08 | AB8: 75133 | AC8: 0.7239 | AD8: 0.0291 | AE8: 0.0063 | AF8: 3.3e-06 | AG8: 50606 | AH8: 0.7305 | AI8: 0.0399 | AJ8: 0.0077 | AK8: 2e-07 | AL8: 0.2565178351 | AM8: 125739 | AN8: 0.7262 | AO8: 0.0336 | AP8: 0.005 | AQ8: 1.6e-11 | AR8: 0.0317 | AS8: 0.0058 | AT8: 4.8e-08 | AU8: 0.048 | AV8: 1.8e-09 | AW8: 0.037 | AX8: 0.0066 | AY8: 2.5e-08 | AZ8: 0.67 | BA8: 4.4e-09 | BB8: 0.5245478354 | BC8: 0.0342 | BD8: 0.0045 | BE8: 4.8e-14 | BF8: 0.082 | BG8: 1.1e-16
A9: rs7513580 | B9: 1 | C9: 118849909 | D9: SPAG17 | F9: C,M,W | G9: C,M,W | J9: G | K9: A | L9: 21654 | M9: 0.7019 | N9: 0.0319 | O9: 0.0114 | P9: 0.005 | Q9: 20158 | R9: 0.6952 | S9: 0.0453 | T9: 0.0117 | U9: 0.00011 | V9: 0.4028192488 | W9: 41812 | X9: 0.6985 | Y9: 0.0377 | Z9: 0.0083 | AA9: 5.7e-06 | AB9: 93428 | AC9: 0.6978 | AD9: 0.0343 | AE9: 0.0056 | AF9: 1.2e-09 | AG9: 65219 | AH9: 0.6946 | AI9: 0.0432 | AJ9: 0.0066 | AK9: 5.1e-11 | AL9: 0.2823407261 | AM9: 158646 | AN9: 0.6965 | AO9: 0.0376 | AP9: 0.0044 | AQ9: 9.4e-18 | AR9: 0.0337 | AS9: 0.0051 | AT9: 4.3e-11 | AU9: 0.85 | AV9: 1.4e-10 | AW9: 0.0397 | AX9: 0.0057 | AY9: 2.9e-12 | AZ9: 0.87 | BA9: 2.8e-13 | BB9: 0.4078592883 | BC9: 0.0359 | BD9: 0.0039 | BE9: 7.6e-20 | BF9: 0.99 | BG9: 4.6e-21
A10: rs984222 | B10: 1 | C10: 119503843 | D10: TBX15 | G10: C,W | J10: G | K10: C | L10: 22070 | M10: 0.6024 | N10: 0.0367 | O10: 0.0101 | P10: 0.00026 | Q10: 20813 | R10: 0.6062 | S10: 0.0302 | T10: 0.0105 | U10: 0.0041 | V10: 0.6491022673 | W10: 42884 | X10: 0.6036 | Y10: 0.0328 | Z10: 0.0073 | AA10: 8.1e-06 | AB10: 96432 | AC10: 0.5924 | AD10: 0.0408 | AE10: 0.0049 | AF10: 1.6e-16 | AG10: 68023 | AH10: 0.6 | AI10: 0.0363 | AJ10: 0.0058 | AK10: 5.2e-10 | AL10: 0.5354882261 | AM10: 164455 | AN10: 0.5949 | AO10: 0.0388 | AP10: 0.0039 | AQ10: 2.9e-23 | AR10: 0.0389 | AS10: 0.0044 | AT10: 1.5e-18 | AU10: 0.71 | AV10: 1.2e-18 | AW10: 0.0335 | AX10: 0.0051 | AY10: 3.2e-11 | AZ10: 0.6 | BA10: 5e-11 | BB10: 0.3977632209 | BC10: 0.0364 | BD10: 0.0035 | BE10: 6.4e-26 | BF10: 0.45 | BG10: 1.3e-26
A11: rs984225 | B11: 1 | C11: 119504284 | D11: TBX15 | F11: C,W,M | G11: M | J11: A | K11: G | L11: 22240 | M11: 0.603 | N11: 0.0366 | O11: 0.01 | P11: 0.00027 | Q11: 20953 | R11: 0.6151 | S11: 0.0295 | T11: 0.0105 | U11: 0.0049 | V11: 0.6175143172 | W11: 43194 | X11: 0.6084 | Y11: 0.0325 | Z11: 0.0073 | AA11: 9.7e-06 | AB11: 96623 | AC11: 0.5934 | AD11: 0.0407 | AE11: 0.0049 | AF11: 1.8e-16 | AG11: 68291 | AH11: 0.6011 | AI11: 0.0365 | AJ11: 0.0058 | AK11: 4.2e-10 | AL11: 0.5630345798 | AM11: 164914 | AN11: 0.596 | AO11: 0.0388 | AP11: 0.0039 | AQ11: 2.5e-23 | AR11: 0.0392 | AS11: 0.0044 | AT11: 8.8e-19 | AU11: 0.7 | AV11: 1.3e-18 | AW11: 0.0336 | AX11: 0.0051 | AY11: 2.9e-11 | AZ11: 0.55 | BA11: 4.9e-11 | BB11: 0.3805180724 | BC11: 0.0366 | BD11: 0.0035 | BE11: 3.3e-26 | BF11: 0.42 | BG11: 1.6e-26
A12: rs11205277 | B12: 1 | C12: 149892872 | D12: SF3B4 | F12: C,M | G12: M | J12: G | K12: A | L12: 17731 | M12: 0.4068 | N12: 0.0168 | O12: 0.0122 | P12: 0.17 | Q12: 19048 | R12: 0.4032 | S12: 0.0444 | T12: 0.0116 | U12: 0.00012 | V12: 0.09451691844 | W12: 36779 | X12: 0.4048 | Y12: 0.0304 | Z12: 0.0084 | AA12: 0.00032 | AB12: 71637 | AC12: 0.4014 | AD12: 0.0329 | AE12: 0.0063 | AF12: 1.9e-07 | AG12: 63789 | AH12: 0.4083 | AI12: 0.0325 | AJ12: 0.0063 | AK12: 3e-07 | AL12: 0.9625366344 | AM12: 135426 | AN12: 0.4043 | AO12: 0.032 | AP12: 0.0046 | AQ12: 4.5e-12 | AR12: 0.0284 | AS12: 0.0056 | AT12: 4.3e-07 | AU12: 0.23 | AV12: 4.6e-07 | AW12: 0.0354 | AX12: 0.0055 | AY12: 1.8e-10 | AZ12: 0.35 | BA12: 1.1e-09 | BB12: 0.3465791828 | BC12: 0.0311 | BD12: 0.0041 | BE12: 2.8e-14 | BF12: 0.86 | BG12: 4.4e-14
A13: rs11205303 | B13: 1 | C13: 149906413 | D13: MTMR11 | G13: C | J13: C | K13: T | L13: 17863 | M13: 0.3777 | N13: 0.029 | O13: 0.0126 | P13: 0.021 | Q13: 19208 | R13: 0.3832 | S13: 0.0415 | T13: 0.012 | U13: 0.00054 | V13: 0.4637700895 | W13: 37071 | X13: 0.3806 | Y13: 0.0344 | Z13: 0.0089 | AA13: 0.0001 | AB13: 71830 | AC13: 0.373 | AD13: 0.0328 | AE13: 0.0066 | AF13: 5.7e-07 | AG13: 64198 | AH13: 0.3808 | AI13: 0.0338 | AJ13: 0.0066 | AK13: 3.7e-07 | AL13: 0.9107528338 | AM13: 136027 | AN13: 0.3767 | AO13: 0.0325 | AP13: 0.0047 | AQ13: 7.3e-12 | AR13: 0.0298 | AS13: 0.0058 | AT13: 3.1e-07 | AU13: 0.78 | AV13: 3.1e-07 | AW13: 0.0353 | AX13: 0.0058 | AY13: 8.5e-10 | AZ13: 0.56 | BA13: 5.1e-09 | BB13: 0.479126628 | BC13: 0.0319 | BD13: 0.0043 | BE13: 1.2e-13 | BF13: 0.84 | BG13: 2.4e-14
A14: rs1894633 | B14: 1 | C14: 172331059 | D14: DNM3 | F14: C,W | J14: G | K14: A | L14: 22235 | M14: 0.3493 | N14: 0.019 | O14: 0.0104 | P14: 0.068 | Q14: 20959 | R14: 0.3391 | S14: 0.0184 | T14: 0.0108 | U14: 0.09 | V14: 0.9674452517 | W14: 43194 | X14: 0.3448 | Y14: 0.0191 | Z14: 0.0076 | AA14: 0.012 | AB14: 96624 | AC14: 0.3536 | AD14: 0.0275 | AE14: 0.0051 | AF14: 8.9e-08 | AG14: 68298 | AH14: 0.3369 | AI14: 0.0115 | AJ14: 0.0061 | AK14: 0.06 | AL14: 0.03540196245 | AM14: 164921 | AN14: 0.3466 | AO14: 0.0208 | AP14: 0.004 | AQ14: 2.2e-07 | AR14: 0.0255 | AS14: 0.0046 | AT14: 3.4e-08 | AU14: 0.45 | AV14: 9.2e-08 | AW14: 0.013 | AX14: 0.0052 | AY14: 0.012 | AZ14: 0.57 | BA14: 0.04 | BB14: 0.05750058224 | BC14: 0.0203 | BD14: 0.0036 | BE14: 1.3e-08 | BF14: 0.84 | BG14: 5.7e-08
A15: rs3814333 | B15: 1 | C15: 184007119 | D15: GLT25D2 | F15: C | J15: T | K15: C | L15: 22095 | M15: 0.3207 | N15: 0.0272 | O15: 0.0108 | P15: 0.012 | Q15: 20706 | R15: 0.3233 | S15: 0.0376 | T15: 0.0112 | U15: 0.00083 | V15: 0.4954259187 | W15: 42800 | X15: 0.3214 | Y15: 0.0312 | Z15: 0.008 | AA15: 9.1e-05 | AB15: 95944 | AC15: 0.3141 | AD15: 0.0326 | AE15: 0.0054 | AF15: 1.2e-09 | AG15: 67660 | AH15: 0.3165 | AI15: 0.027 | AJ15: 0.0063 | AK15: 2e-05 | AL15: 0.480378331 | AM15: 163603 | AN15: 0.315 | AO15: 0.0302 | AP15: 0.0042 | AQ15: 7.5e-13 | AR15: 0.0298 | AS15: 0.0048 | AT15: 6.9e-10 | AU15: 0.64 | AV15: 5.1e-10 | AW15: 0.0282 | AX15: 0.0055 | AY15: 2.4e-07 | AZ15: 0.39 | BA15: 3.7e-07 | BB15: 0.8171527038 | BC15: 0.0287 | BD15: 0.0038 | BE15: 2.4e-14 | BF15: 0.91 | BG15: 3e-15
A16: rs2274432 | B16: 1 | C16: 184020945 | D16: C1orf19 | F16: W | G16: C,W | J16: A | K16: G | L16: 21593 | M16: 0.3514 | N16: 0.034 | O16: 0.0107 | P16: 0.0014 | Q16: 20527 | R16: 0.3708 | S16: 0.0316 | T16: 0.011 | U16: 0.0041 | V16: 0.873272375 | W16: 42120 | X16: 0.3605 | Y16: 0.0323 | Z16: 0.0078 | AA16: 3.2e-05 | AB16: 92011 | AC16: 0.3423 | AD16: 0.0317 | AE16: 0.0054 | AF16: 3.6e-09 | AG16: 66967 | AH16: 0.3532 | AI16: 0.0275 | AJ16: 0.0062 | AK16: 8.2e-06 | AL16: 0.5932034428 | AM16: 158978 | AN16: 0.3469 | AO16: 0.03 | AP16: 0.0042 | AQ16: 6.5e-13 | AR16: 0.0296 | AS16: 0.0047 | AT16: 4.5e-10 | AU16: 0.84 | AV16: 2.1e-10 | AW16: 0.0265 | AX16: 0.0053 | AY16: 4.9e-07 | AZ16: 0.74 | BA16: 8.6e-07 | BB16: 0.6443014872 | BC16: 0.0283 | BD16: 0.0037 | BE16: 2.5e-14 | BF16: 0.78 | BG16: 1.6e-15
A17: rs12048049 | B17: 1 | C17: 218597297 | D17: TGFB2 | F17: M | J17: G | K17: C | L17: 22183 | M17: 0.3134 | N17: 0.006 | O17: 0.0108 | P17: 0.58 | Q17: 20816 | R17: 0.2977 | S17: 0.0378 | T17: 0.0112 | U17: 0.00075 | V17: 0.03711996852 | W17: 42999 | X17: 0.3064 | Y17: 0.0219 | Z17: 0.0079 | AA17: 0.0054 | AB17: 96442 | AC17: 0.3189 | AD17: 0.0218 | AE17: 0.0053 | AF17: 3.5e-05 | AG17: 68016 | AH17: 0.3006 | AI17: 0.0286 | AJ17: 0.0062 | AK17: 3.9e-06 | AL17: 0.383366386 | AM17: 164458 | AN17: 0.3113 | AO17: 0.0243 | AP17: 0.0041 | AQ17: 2.1e-09 | AR17: 0.0193 | AS17: 0.0048 | AT17: 5e-05 | AU17: 0.18 | AV17: 0.00018 | AW17: 0.0303 | AX17: 0.0053 | AY17: 1.2e-08 | AZ17: 0.46 | BA17: 8.1e-08 | BB17: 0.1045497073 | BC17: 0.0239 | BD17: 0.0037 | BE17: 1.2e-10 | BF17: 0.78 | BG17: 5.1e-10
A18: rs991967 | B18: 1 | C18: 218615451 | D18: TGFB2 | F18: C,W | G18: C | J18: C | K18: A | L18: 22182 | M18: 0.3073 | N18: 0.0135 | O18: 0.0107 | P18: 0.21 | Q18: 20766 | R18: 0.2964 | S18: 0.0355 | T18: 0.0111 | U18: 0.0014 | V18: 0.1455884213 | W18: 42947 | X18: 0.3029 | Y18: 0.0245 | Z18: 0.0079 | AA18: 0.0019 | AB18: 96385 | AC18: 0.3112 | AD18: 0.0284 | AE18: 0.0053 | AF18: 7e-08 | AG18: 67999 | AH18: 0.3012 | AI18: 0.0292 | AJ18: 0.0062 | AK18: 2.3e-06 | AL18: 0.9183168224 | AM18: 164384 | AN18: 0.3066 | AO18: 0.0287 | AP18: 0.0041 | AQ18: 1.9e-12 | AR18: 0.026 | AS18: 0.0048 | AT18: 4.7e-08 | AU18: 0.2 | AV18: 2.6e-07 | AW18: 0.029 | AX18: 0.0054 | AY18: 7.9e-08 | AZ18: 0.61 | BA18: 9.2e-08 | BB18: 0.661330945 | BC18: 0.0274 | BD18: 0.0037 | BE18: 1.6e-13 | BF18: 0.62 | BG18: 1.9e-13
A19: rs2820446 | B19: 1 | C19: 219748818 | D19: ZC3H11B | F19: M | G19: M | J19: G | K19: C | L19: 22028 | M19: 0.2863 | N19: -0.0288 | O19: 0.0112 | P19: 0.01 | Q19: 20744 | R19: 0.2804 | S19: 0.0469 | T19: 0.0117 | U19: 5.8e-05 | V19: 1.873319512e-06 | W19: 42772 | X19: 0.2829 | Y19: 0.0069 | Z19: 0.0083 | AA19: 0.41 | AB19: 96397 | AC19: 0.2762 | AD19: -0.0199 | AE19: 0.0055 | AF19: 0.00032 | AG19: 67910 | AH19: 0.2813 | AI19: 0.0295 | AJ19: 0.0064 | AK19: 4.4e-06 | AL19: 9.280445301e-10 | AM19: 164308 | AN19: 0.2781 | AO19: 0.0012 | AP19: 0.0043 | AQ19: 0.78 | AR19: -0.021 | AS19: 0.005 | AT19: 2.3e-05 | AU19: 0.46 | AV19: 5.3e-05 | AW19: 0.033 | AX19: 0.0055 | AY19: 2.3e-09 | AZ19: 0.18 | BA19: 7.9e-09 | BB19: 1.776356839e-14 | BC19: 0.0028 | BD19: 0.0038 | BE19: 0.47 | BF19: 0.52 | BG19: 0.68
A20: rs11118350 | B20: 1 | C20: 219751388 | D20: ZC3H11B | F20: W | J20: G | K20: A | L20: 22099 | M20: 0.2809 | N20: 0.0379 | O20: 0.0112 | P20: 0.00075 | Q20: 20935 | R20: 0.2619 | S20: 0.0002 | T20: 0.0117 | U20: 0.99 | V20: 0.01760272829 | W20: 43034 | X20: 0.2729 | Y20: 0.0207 | Z20: 0.0083 | AA20: 0.013 | AB20: 96574 | AC20: 0.2917 | AD20: 0.0255 | AE20: 0.0055 | AF20: 3.1e-06 | AG20: 68288 | AH20: 0.2588 | AI20: 0.001 | AJ20: 0.0066 | AK20: 0.88 | AL20: 0.002871023418 | AM20: 164862 | AN20: 0.2782 | AO20: 0.0155 | AP20: 0.0043 | AQ20: 0.00029 | AR20: 0.0274 | AS20: 0.005 | AT20: 3.1e-08 | AU20: 0.31 | AV20: 7e-08 | AW20: -0.0005 | AX20: 0.0057 | AY20: 0.93 | AZ20: 0.95 | BA20: 0.99 | BB20: 0.0001036919682 | BC20: 0.0158 | BD20: 0.0039 | BE20: 5.6e-05 | BF20: 0.56 | BG20: 6.7e-05
A21: rs11695471 | B21: 2 | C21: 25457708 | D21: DNMT3A | F21: C | G21: C | J21: T | K21: A | L21: 16035 | M21: 0.6591 | N21: 0.0284 | O21: 0.0128 | P21: 0.027 | Q21: 14090 | R21: 0.6531 | S21: 0.0484 | T21: 0.0131 | U21: 0.00022 | V21: 0.2654150847 | W21: 30125 | X21: 0.6564 | Y21: 0.0371 | Z21: 0.0093 | AA21: 7.1e-05 | AB21: 70291 | AC21: 0.6619 | AD21: 0.0257 | AE21: 0.0063 | AF21: 4.5e-05 | AG21: 47438 | AH21: 0.6647 | AI21: 0.0375 | AJ21: 0.0076 | AK21: 7.8e-07 | AL21: 0.2114602379 | AM21: 117728 | AN21: 0.6632 | AO21: 0.03 | AP21: 0.005 | AQ21: 2e-09 | AR21: 0.0259 | AS21: 0.0057 | AT21: 4.5e-06 | AU21: 0.85 | AV21: 2.1e-05 | AW21: 0.0367 | AX21: 0.0065 | AY21: 1.4e-08 | AZ21: 0.46 | BA21: 5.6e-09 | BB21: 0.187549984 | BC21: 0.0299 | BD21: 0.0044 | BE21: 1.6e-11 | BF21: 0.48 | BG21: 5.3e-12
A22: rs11694842 | B22: 2 | C22: 25482970 | D22: DNMT3A | F22: M | J22: A | K22: G | L22: 16565 | M22: 0.6702 | N22: 0.0275 | O22: 0.0123 | P22: 0.026 | Q22: 14605 | R22: 0.6733 | S22: 0.0435 | T22: 0.0126 | U22: 0.00056 | V22: 0.3540708343 | W22: 31169 | X22: 0.6723 | Y22: 0.0342 | Z22: 0.009 | AA22: 0.00014 | AB22: 71812 | AC22: 0.6706 | AD22: 0.0235 | AE22: 0.0061 | AF22: 0.00011 | AG22: 48325 | AH22: 0.6726 | AI22: 0.0374 | AJ22: 0.0073 | AK22: 3.2e-07 | AL22: 0.1266325899 | AM22: 120138 | AN22: 0.6716 | AO22: 0.0286 | AP22: 0.0048 | AQ22: 2.5e-09 | AR22: 0.0241 | AS22: 0.0054 | AT22: 9.4e-06 | AU22: 0.76 | AV22: 4.9e-05 | AW22: 0.0359 | AX22: 0.0062 | AY22: 6.3e-09 | AZ22: 0.67 | BA22: 5.2e-09 | BB22: 0.1300408535 | BC22: 0.0286 | BD22: 0.0043 | BE22: 4.1e-11 | BF22: 0.56 | BG22: 1.4e-11
A23: rs12991495 | B23: 2 | C23: 25486770 | D23: DNMT3A | G23: M | J23: T | K23: C | L23: 21338 | M23: 0.6935 | N23: 0.0196 | O23: 0.0118 | P23: 0.096 | Q23: 20272 | R23: 0.6899 | S23: 0.0609 | T23: 0.0117 | U23: 2.1e-07 | V23: 0.01125168242 | W23: 41610 | X23: 0.6921 | Y23: 0.039 | Z23: 0.0084 | AA23: 3.8e-06 | AB23: 92774 | AC23: 0.6995 | AD23: 0.0228 | AE23: 0.0058 | AF23: 9.4e-05 | AG23: 65632 | AH23: 0.6938 | AI23: 0.0279 | AJ23: 0.0067 | AK23: 3.1e-05 | AL23: 0.5472976493 | AM23: 158406 | AN23: 0.6973 | AO23: 0.0245 | AP23: 0.0046 | AQ23: 7.5e-08 | AR23: 0.0212 | AS23: 0.0052 | AT23: 4.8e-05 | AU23: 0.8 | AV23: 0.00011 | AW23: 0.0319 | AX23: 0.0057 | AY23: 2.2e-08 | AZ23: 0.012 | BA23: 2.3e-10 | BB23: 0.143373369 | BC23: 0.0253 | BD23: 0.004 | BE23: 3e-10 | BF23: 0.11 | BG23: 1.4e-11
A24: rs3791679 | B24: 2 | C24: 56096892 | D24: EFEMP1 | F24: C,M | G24: C,M | J24: A | K24: G | L24: 19096 | M24: 0.7569 | N24: 0.045 | O24: 0.0127 | P24: 0.0004 | Q24: 20328 | R24: 0.759 | S24: 0.0469 | T24: 0.0122 | U24: 0.00012 | V24: 0.9123832698 | W24: 39424 | X24: 0.7582 | Y24: 0.0468 | Z24: 0.0089 | AA24: 1.5e-07 | AB24: 75216 | AC24: 0.7542 | AD24: 0.0271 | AE24: 0.0067 | AF24: 4.8e-05 | AG24: 64779 | AH24: 0.7572 | AI24: 0.0422 | AJ24: 0.0069 | AK24: 9.3e-10 | AL24: 0.1004756371 | AM24: 139994 | AN24: 0.7556 | AO24: 0.0344 | AP24: 0.0049 | AQ24: 2.1e-12 | AR24: 0.0294 | AS24: 0.0059 | AT24: 5.5e-07 | AU24: 0.2 | AV24: 5.3e-07 | AW24: 0.0409 | AX24: 0.0058 | AY24: 2.4e-12 | AZ24: 0.73 | BA24: 4.7e-12 | BB24: 0.1423652378 | BC24: 0.0354 | BD24: 0.0044 | BE24: 5e-16 | BF24: 0.2 | BG24: 2e-17
A25: rs1128249 | B25: 2 | C25: 165528624 | D25: COBLL1 | F25: W | J25: G | K25: T | L25: 21579 | M25: 0.5732 | N25: 0.0354 | O25: 0.0104 | P25: 0.0007 | Q25: 20300 | R25: 0.5948 | S25: -0.0138 | T25: 0.0107 | U25: 0.2 | V25: 0.000771624488 | W25: 41878 | X25: 0.5836 | Y25: 0.0105 | Z25: 0.0076 | AA25: 0.17 | AB25: 93063 | AC25: 0.5663 | AD25: 0.0361 | AE25: 0.0051 | AF25: 1.6e-12 | AG25: 65736 | AH25: 0.5988 | AI25: -0.0175 | AJ25: 0.006 | AK25: 0.0035 | AL25: 1.10422782e-12 | AM25: 158799 | AN25: 0.5802 | AO25: 0.0137 | AP25: 0.004 | AQ25: 0.00053 | AR25: 0.0354 | AS25: 0.0046 | AT25: 1.1e-14 | AU25: 0.95 | AV25: 4e-14 | AW25: -0.016 | AX25: 0.0051 | AY25: 0.0018 | AZ25: 0.76 | BA25: 0.0062 | BB25: 2.886579864e-15 | BC25: 0.0127 | BD25: 0.0036 | BE25: 0.0004 | BF25: 0.7 | BG25: 0.0011
A26: rs6717858 | B26: 2 | C26: 165539661 | D26: COBLL1 | G26: W | J26: T | K26: C | L26: 21568 | M26: 0.57 | N26: 0.032 | O26: 0.0103 | P26: 0.002 | Q26: 20332 | R26: 0.5798 | S26: -0.0198 | T26: 0.0106 | U26: 0.063 | V26: 0.0003510878892 | W26: 41900 | X26: 0.5741 | Y26: 0.0058 | Z26: 0.0075 | AA26: 0.44 | AB26: 93050 | AC26: 0.5659 | AD26: 0.0373 | AE26: 0.005 | AF26: 1.1e-13 | AG26: 65738 | AH26: 0.5931 | AI26: -0.0173 | AJ26: 0.0059 | AK26: 0.0035 | AL26: 1.563194019e-13 | AM26: 158788 | AN26: 0.577 | AO26: 0.0145 | AP26: 0.004 | AQ26: 0.00026 | AR26: 0.0353 | AS26: 0.0046 | AT26: 1.2e-14 | AU26: 0.63 | AV26: 6.6e-15 | AW26: -0.0175 | AX26: 0.0051 | AY26: 0.00063 | AZ26: 0.83 | BA26: 0.0024 | BB26: 4.440892099e-16 | BC26: 0.0122 | BD26: 0.0035 | BE26: 0.00053 | BF26: 0.28 | BG26: 0.001
A27: rs2580821 | B27: 2 | C27: 232804155 | D27: DIS3L2 | F27: C,M | G27: M | J27: C | K27: A | L27: 20313 | M27: 0.9183 | N27: 0.0214 | O27: 0.0196 | P27: 0.27 | Q27: 19357 | R27: 0.9098 | S27: 0.0631 | T27: 0.0196 | U27: 0.0012 | V27: 0.1249535707 | W27: 39745 | X27: 0.9125 | Y27: 0.0424 | Z27: 0.0141 | AA27: 0.0026 | AB27: 93127 | AC27: 0.9151 | AD27: 0.0293 | AE27: 0.0091 | AF27: 0.0014 | AG27: 65824 | AH27: 0.9132 | AI27: 0.0672 | AJ27: 0.0107 | AK27: 3.5e-10 | AL27: 0.004784683052 | AM27: 158951 | AN27: 0.9146 | AO27: 0.0457 | AP27: 0.0072 | AQ27: 1.9e-10 | AR27: 0.0276 | AS27: 0.0082 | AT27: 0.00081 | AU27: 0.71 | AV27: 0.0031 | AW27: 0.0624 | AX27: 0.0092 | AY27: 1.5e-11 | AZ27: 0.85 | BA27: 1.5e-11 | BB27: 0.002889968335 | BC27: 0.0433 | BD27: 0.0065 | BE27: 2e-11 | BF27: 0.83 | BG27: 1.9e-11
A28: rs3100601 | B28: 2 | C28: 232871232 | D28: DIS3L2 | G28: C | J28: T | K28: C | L28: 20100 | M28: 0.9168 | N28: 0.0231 | O28: 0.0196 | P28: 0.24 | Q28: 19101 | R28: 0.9096 | S28: 0.064 | T28: 0.0198 | U28: 0.0012 | V28: 0.1343374929 | W28: 39276 | X28: 0.9116 | Y28: 0.0436 | Z28: 0.0142 | AA28: 0.0022 | AB28: 92983 | AC28: 0.9141 | AD28: 0.03 | AE28: 0.0092 | AF28: 0.0012 | AG28: 65243 | AH28: 0.9121 | AI28: 0.0655 | AJ28: 0.0108 | AK28: 1.5e-09 | AL28: 0.008888618682 | AM28: 158225 | AN28: 0.9135 | AO28: 0.0456 | AP28: 0.0072 | AQ28: 2.8e-10 | AR28: 0.0275 | AS28: 0.0083 | AT28: 0.00096 | AU28: 0.74 | AV28: 0.0025 | AW28: 0.0608 | AX28: 0.0093 | AY28: 5.2e-11 | AZ28: 0.95 | BA28: 5.6e-11 | BB28: 0.004824488259 | BC28: 0.0427 | BD28: 0.0065 | BE28: 5e-11 | BF28: 0.9 | BG28: 1.8e-11
A29: rs6743226 | B29: 2 | C29: 242236972 | D29: HDLBP | E29: Yes | F29: C,M | G29: C,M | J29: C | K29: T | L29: 21508 | M29: 0.5288 | N29: -0.0002 | O29: 0.01 | P29: 0.98 | Q29: 20335 | R29: 0.5389 | S29: 0.037 | T29: 0.0103 | U29: 0.00032 | V29: 0.00822319876 | W29: 41843 | X29: 0.5334 | Y29: 0.0182 | Z29: 0.0073 | AA29: 0.013 | AB29: 93072 | AC29: 0.5257 | AD29: 0.0185 | AE29: 0.005 | AF29: 0.00021 | AG29: 65752 | AH29: 0.5431 | AI29: 0.0275 | AJ29: 0.0058 | AK29: 2e-06 | AL29: 0.2190807324 | AM29: 158823 | AN29: 0.5333 | AO29: 0.0229 | AP29: 0.0038 | AQ29: 2.6e-09 | AR29: 0.0148 | AS29: 0.0045 | AT29: 0.00094 | AU29: 0.085 | AV29: 0.0011 | AW29: 0.0311 | AX29: 0.005 | AY29: 4.6e-10 | AZ29: 0.41 | BA29: 2.1e-08 | BB29: 0.01056770025 | BC29: 0.0224 | BD29: 0.0035 | BE29: 1.2e-10 | BF29: 0.55 | BG29: 5.8e-10
A30: rs4378999 | B30: 3 | C30: 51208646 | D30: DOCK3 | E30: Yes | F30: C | J30: T | K30: A | L30: 16611 | M30: 0.1286 | N30: 0.0369 | O30: 0.0189 | P30: 0.05 | Q30: 14805 | R30: 0.121 | S30: 0.0305 | T30: 0.0199 | U30: 0.13 | V30: 0.8120177139 | W30: 31449 | X30: 0.1261 | Y30: 0.0347 | Z30: 0.014 | AA30: 0.013 | AB30: 74801 | AC30: 0.1312 | AD30: 0.0309 | AE30: 0.0091 | AF30: 0.00073 | AG30: 50316 | AH30: 0.125 | AI30: 0.0443 | AJ30: 0.0112 | AK30: 8.1e-05 | AL30: 0.3317925744 | AM30: 125117 | AN30: 0.1285 | AO30: 0.0352 | AP30: 0.0073 | AQ30: 1.3e-06 | AR30: 0.0323 | AS30: 0.0082 | AT30: 8e-05 | AU30: 0.77 | AV30: 0.00047 | AW30: 0.0424 | AX30: 0.0096 | AY30: 9.7e-06 | AZ30: 0.53 | BA30: 0.00012 | BB30: 0.3988159026 | BC30: 0.0358 | BD30: 0.0065 | BE30: 4.1e-08 | BF30: 0.97 | BG30: 4.1e-07
A31: rs13083798 | B31: 3 | C31: 52649748 | D31: PBRM1 | G31: C | J31: A | K31: G | L31: 22021 | M31: 0.4921 | N31: 0.0355 | O31: 0.01 | P31: 0.00037 | Q31: 20423 | R31: 0.5014 | S31: 0.0251 | T31: 0.0104 | U31: 0.016 | V31: 0.4622481688 | W31: 42444 | X31: 0.4971 | Y31: 0.0305 | Z31: 0.0073 | AA31: 2.7e-05 | AB31: 96383 | AC31: 0.4923 | AD31: 0.0215 | AE31: 0.0049 | AF31: 9.8e-06 | AG31: 67906 | AH31: 0.5101 | AI31: 0.0134 | AJ31: 0.0058 | AK31: 0.022 | AL31: 0.2646918827 | AM31: 164288 | AN31: 0.5001 | AO31: 0.0184 | AP31: 0.0038 | AQ31: 1.7e-06 | AR31: 0.0225 | AS31: 0.0044 | AT31: 4e-07 | AU31: 0.2 | AV31: 1.2e-07 | AW31: 0.018 | AX31: 0.005 | AY31: 0.00032 | AZ31: 0.31 | BA31: 0.0038 | BB31: 0.4759870851 | BC31: 0.02 | BD31: 0.0035 | BE31: 8.3e-09 | BF31: 0.12 | BG31: 1.3e-09
A32: rs2300149 | B32: 3 | C32: 52822921 | D32: ITIH1 | F32: C | J32: C | K32: T | L32: 21772 | M32: 0.6118 | N32: 0.0208 | O32: 0.0104 | P32: 0.045 | Q32: 20386 | R32: 0.6142 | S32: 0.0255 | T32: 0.0107 | U32: 0.017 | V32: 0.7480277885 | W32: 42157 | X32: 0.6134 | Y32: 0.0233 | Z32: 0.0076 | AA32: 0.0022 | AB32: 93894 | AC32: 0.6192 | AD32: 0.025 | AE32: 0.0051 | AF32: 1.2e-06 | AG32: 65882 | AH32: 0.6223 | AI32: 0.012 | AJ32: 0.0061 | AK32: 0.047 | AL32: 0.08739890544 | AM32: 159775 | AN32: 0.6207 | AO32: 0.0201 | AP32: 0.004 | AQ32: 5.5e-07 | AR32: 0.0236 | AS32: 0.0046 | AT32: 3.1e-07 | AU32: 0.71 | AV32: 8.2e-07 | AW32: 0.0164 | AX32: 0.0052 | AY32: 0.0017 | AZ32: 0.26 | BA32: 0.0084 | BB32: 0.2739093514 | BC32: 0.0206 | BD32: 0.0036 | BE32: 6.6e-09 | BF32: 0.7 | BG32: 3e-08
A33: rs6772129 | B33: 3 | C33: 64700425 | D33: ADAMTS9 | G33: W | J33: A | K33: G | L33: 22201 | M33: 0.6652 | N33: 0.0457 | O33: 0.0108 | P33: 2.4e-05 | Q33: 20923 | R33: 0.6647 | S33: 0.0137 | T33: 0.0112 | U33: 0.22 | V33: 0.03594475372 | W33: 43124 | X33: 0.6638 | Y33: 0.0297 | Z33: 0.0079 | AA33: 0.00017 | AB33: 96581 | AC33: 0.6478 | AD33: 0.0324 | AE33: 0.0053 | AF33: 8.9e-10 | AG33: 68273 | AH33: 0.6436 | AI33: -0.0153 | AJ33: 0.0062 | AK33: 0.014 | AL33: 9.668295053e-10 | AM33: 164854 | AN33: 0.6451 | AO33: 0.0123 | AP33: 0.0041 | AQ33: 0.0029 | AR33: 0.0354 | AS33: 0.0048 | AT33: 2.8e-13 | AU33: 0.25 | AV33: 9.9e-13 | AW33: -0.0106 | AX33: 0.0054 | AY33: 0.048 | AZ33: 0.019 | BA33: 0.023 | BB33: 1.85287341e-11 | BC33: 0.0151 | BD33: 0.0037 | BE33: 4.4e-05 | BF33: 0.04 | BG33: 9.5e-06
A34: rs4132228 | B34: 3 | C34: 64708114 | D34: ADAMTS9 | F34: W | J34: C | K34: T | L34: 20074 | M34: 0.6713 | N34: 0.0431 | O34: 0.0112 | P34: 0.00012 | Q34: 20960 | R34: 0.6739 | S34: 0.0121 | T34: 0.0111 | U34: 0.28 | V34: 0.04496271361 | W34: 41034 | X34: 0.671 | Y34: 0.0268 | Z34: 0.0081 | AA34: 0.0009 | AB34: 78590 | AC34: 0.6461 | AD34: 0.0358 | AE34: 0.0058 | AF34: 8.8e-10 | AG34: 68286 | AH34: 0.6547 | AI34: -0.0168 | AJ34: 0.0062 | AK34: 0.0065 | AL34: 9.100209475e-11 | AM34: 146875 | AN34: 0.6502 | AO34: 0.0112 | AP34: 0.0043 | AQ34: 0.0092 | AR34: 0.038 | AS34: 0.0052 | AT34: 2.2e-13 | AU34: 0.55 | AV34: 3.3e-12 | AW34: -0.0131 | AX34: 0.0053 | AY34: 0.014 | AZ34: 0.019 | BA34: 0.014 | BB34: 3.7658765e-13 | BC34: 0.0133 | BD34: 0.0039 | BE34: 0.00061 | BF34: 0.074 | BG34: 0.00014
A35: rs6772896 | B35: 3 | C35: 134203347 | D35: ANAPC13 | F35: C,M | G35: C | J35: T | K35: C | L35: 22147 | M35: 0.6793 | N35: 0.0195 | O35: 0.0105 | P35: 0.063 | Q35: 20816 | R35: 0.6761 | S35: 0.0177 | T35: 0.0109 | U35: 0.11 | V35: 0.9034580816 | W35: 42964 | X35: 0.6776 | Y35: 0.0187 | Z35: 0.0077 | AA35: 0.016 | AB35: 96408 | AC35: 0.678 | AD35: 0.0253 | AE35: 0.0051 | AF35: 8.6e-07 | AG35: 68022 | AH35: 0.6816 | AI35: 0.0321 | AJ35: 0.0062 | AK35: 1.9e-07 | AL35: 0.3759467732 | AM35: 164430 | AN35: 0.6797 | AO35: 0.0283 | AP35: 0.004 | AQ35: 1.8e-12 | AR35: 0.0231 | AS35: 0.0046 | AT35: 5.8e-07 | AU35: 0.61 | AV35: 8.1e-07 | AW35: 0.0299 | AX35: 0.0053 | AY35: 1.6e-08 | AZ35: 0.24 | BA35: 4e-07 | BB35: 0.3067327561 | BC35: 0.026 | BD35: 0.0037 | BE35: 1.2e-12 | BF35: 0.25 | BG35: 7.1e-13
A36: rs6440003 | B36: 3 | C36: 141094209 | D36: ZBTB38 | F36: C | G36: C,M | J36: A | K36: G | L36: 22086 | M36: 0.4561 | N36: 0.0264 | O36: 0.0101 | P36: 0.0093 | Q36: 20954 | R36: 0.449 | S36: 0.0438 | T36: 0.0103 | U36: 1.9e-05 | V36: 0.218639452 | W36: 43039 | X36: 0.4529 | Y36: 0.0355 | Z36: 0.0073 | AA36: 1.1e-06 | AB36: 96615 | AC36: 0.4626 | AD36: 0.0172 | AE36: 0.005 | AF36: 0.00057 | AG36: 68294 | AH36: 0.4412 | AI36: 0.0382 | AJ36: 0.0058 | AK36: 3.6e-11 | AL36: 0.004135835467 | AM36: 164908 | AN36: 0.4538 | AO36: 0.0257 | AP36: 0.0039 | AQ36: 4e-11 | AR36: 0.0185 | AS36: 0.0045 | AT36: 4.2e-05 | AU36: 0.4 | AV36: 8.9e-05 | AW36: 0.0382 | AX36: 0.005 | AY36: 3.2e-14 | AZ36: 0.63 | BA36: 4.5e-14 | BB36: 0.002001748642 | BC36: 0.0269 | BD36: 0.0034 | BE36: 5.1e-15 | BF36: 0.21 | BG36: 2.7e-15
A37: rs1344672 | B37: 3 | C37: 141125705 | D37: ZBTB38 | F37: M | J37: G | K37: C | L37: 22119 | M37: 0.4571 | N37: 0.0244 | O37: 0.0101 | P37: 0.016 | Q37: 20803 | R37: 0.4408 | S37: 0.0419 | T37: 0.0104 | U37: 5.3e-05 | V37: 0.2182816885 | W37: 42921 | X37: 0.4495 | Y37: 0.0335 | Z37: 0.0074 | AA37: 5.4e-06 | AB37: 96364 | AC37: 0.463 | AD37: 0.0176 | AE37: 0.005 | AF37: 0.00041 | AG37: 67985 | AH37: 0.44 | AI37: 0.039 | AJ37: 0.0059 | AK37: 2.8e-11 | AL37: 0.003813995924 | AM37: 164349 | AN37: 0.4537 | AO37: 0.0263 | AP37: 0.0039 | AQ37: 1.5e-11 | AR37: 0.0187 | AS37: 0.0045 | AT37: 3.7e-05 | AU37: 0.53 | AV37: 0.00011 | AW37: 0.0388 | AX37: 0.005 | AY37: 1.5e-14 | AZ37: 0.8 | BA37: 9.7e-14 | BB37: 0.001617605898 | BC37: 0.0272 | BD37: 0.0035 | BE37: 1.3e-14 | BF37: 0.37 | BG37: 4.7e-15
A38: rs17451107 | B38: 3 | C38: 156797609 | D38: LEKR1 | F38: C | J38: T | K38: C | L38: 22190 | M38: 0.6065 | N38: 0.0315 | O38: 0.0104 | P38: 0.0026 | Q38: 20939 | R38: 0.6119 | S38: -0.004 | T38: 0.0108 | U38: 0.71 | V38: 0.01574607056 | W38: 43129 | X38: 0.6092 | Y38: 0.0137 | Z38: 0.0076 | AA38: 0.07 | AB38: 96519 | AC38: 0.6098 | AD38: 0.0324 | AE38: 0.0051 | AF38: 2.6e-10 | AG38: 68233 | AH38: 0.6228 | AI38: 0.0247 | AJ38: 0.0061 | AK38: 4.9e-05 | AL38: 0.3113371351 | AM38: 164751 | AN38: 0.6152 | AO38: 0.0293 | AP38: 0.004 | AQ38: 2.8e-13 | AR38: 0.0322 | AS38: 0.0046 | AT38: 2.9e-12 | AU38: 0.94 | AV38: 1.8e-11 | AW38: 0.0187 | AX38: 0.0052 | AY38: 0.00032 | AZ38: 0.017 | BA38: 0.00026 | BB38: 0.04022362354 | BC38: 0.0263 | BD38: 0.0037 | BE38: 5.6e-13 | BF38: 0.056 | BG38: 4.4e-13
A39: rs900399 | B39: 3 | C39: 156798732 | D39: LEKR1 | F39: W | G39: C,W | J39: A | K39: G | L39: 18078 | M39: 0.6049 | N39: 0.0314 | O39: 0.0114 | P39: 0.0059 | Q39: 19175 | R39: 0.6148 | S39: -0.0055 | T39: 0.011 | U39: 0.62 | V39: 0.01752221556 | W39: 37253 | X39: 0.6106 | Y39: 0.0117 | Z39: 0.008 | AA39: 0.14 | AB39: 70582 | AC39: 0.6146 | AD39: 0.0398 | AE39: 0.0059 | AF39: 1.3e-11 | AG39: 63191 | AH39: 0.6186 | AI39: 0.0251 | AJ39: 0.0062 | AK39: 4.9e-05 | AL39: 0.07236047386 | AM39: 133773 | AN39: 0.6171 | AO39: 0.0329 | AP39: 0.0044 | AQ39: 6.3e-14 | AR39: 0.0377 | AS39: 0.0053 | AT39: 9.2e-13 | AU39: 0.5 | AV39: 3e-12 | AW39: 0.0186 | AX39: 0.0054 | AY39: 0.00052 | AZ39: 0.012 | BA39: 0.00024 | BB39: 0.007715919298 | BC39: 0.0284 | BD39: 0.0039 | BE39: 5.8e-13 | BF39: 0.015 | BG39: 2.5e-13
A40: rs12493901 | B40: 3 | C40: 171922055 | D40: FNDC3B | F40: C,M | G40: C,M | J40: G | K40: A | L40: 22085 | M40: 0.5279 | N40: 0.0338 | O40: 0.0103 | P40: 0.001 | Q40: 20731 | R40: 0.5227 | S40: 0.0464 | T40: 0.0105 | U40: 9.4e-06 | V40: 0.3822968551 | W40: 42816 | X40: 0.5255 | Y40: 0.0399 | Z40: 0.0074 | AA40: 6.8e-08 | AB40: 96173 | AC40: 0.5313 | AD40: 0.0169 | AE40: 0.005 | AF40: 0.00079 | AG40: 68022 | AH40: 0.5242 | AI40: 0.0249 | AJ40: 0.0058 | AK40: 1.9e-05 | AL40: 0.2746470942 | AM40: 164194 | AN40: 0.5286 | AO40: 0.0203 | AP40: 0.0039 | AQ40: 2.1e-07 | AR40: 0.0214 | AS40: 0.0046 | AT40: 2.8e-06 | AU40: 0.13 | AV40: 1.5e-05 | AW40: 0.0275 | AX40: 0.0049 | AY40: 2.5e-08 | AZ40: 0.065 | BA40: 5.7e-09 | BB40: 0.3381468845 | BC40: 0.0239 | BD40: 0.0035 | BE40: 1.4e-11 | BF40: 0.014 | BG40: 6.4e-13
A41: rs6830062 | B41: 4 | C41: 18017730 | D41: LCORL | F41: C,M | G41: C,M | J41: T | K41: C | L41: 19584 | M41: 0.8066 | N41: 0.0429 | O41: 0.0141 | P41: 0.0024 | Q41: 20657 | R41: 0.8145 | S41: 0.0367 | T41: 0.014 | U41: 0.009 | V41: 0.7503081332 | W41: 40241 | X41: 0.8082 | Y41: 0.0399 | Z41: 0.0102 | AA41: 9e-05 | AB41: 78344 | AC41: 0.7842 | AD41: 0.0163 | AE41: 0.0071 | AF41: 0.022 | AG41: 66876 | AH41: 0.8182 | AI41: 0.0439 | AJ41: 0.0078 | AK41: 1.6e-08 | AL41: 0.006198352998 | AM41: 145220 | AN41: 0.7979 | AO41: 0.0289 | AP41: 0.0054 | AQ41: 9.4e-08 | AR41: 0.0224 | AS41: 0.0064 | AT41: 0.00048 | AU41: 0.083 | AV41: 0.0007 | AW41: 0.0411 | AX41: 0.0068 | AY41: 1.3e-09 | AZ41: 0.64 | BA41: 4.3e-09 | BB41: 0.0345704379 | BC41: 0.0313 | BD41: 0.0048 | BE41: 1.1e-10 | BF41: 0.32 | BG41: 2.9e-10
A42: rs7697556 | B42: 4 | C42: 73515313 | D42: ADAMTS3 | E42: Yes | F42: C | G42: C | J42: T | K42: C | L42: 22157 | M42: 0.4897 | N42: 0.0036 | O42: 0.0101 | P42: 0.72 | Q42: 19978 | R42: 0.4855 | S42: 0.0046 | T42: 0.0105 | U42: 0.66 | V42: 0.944192473 | W42: 42135 | X42: 0.4885 | Y42: 0.0036 | Z42: 0.0074 | AA42: 0.63 | AB42: 95862 | AC42: 0.4969 | AD42: 0.0244 | AE42: 0.0049 | AF42: 8.2e-07 | AG42: 68020 | AH42: 0.4922 | AI42: 0.027 | AJ42: 0.0058 | AK42: 3.5e-06 | AL42: 0.7203283368 | AM42: 163882 | AN42: 0.4954 | AO42: 0.0252 | AP42: 0.0039 | AQ42: 7.3e-11 | AR42: 0.0207 | AS42: 0.0045 | AT42: 4.3e-06 | AU42: 0.056 | AV42: 3.9e-06 | AW42: 0.0209 | AX42: 0.0049 | AY42: 2.2e-05 | AZ42: 0.054 | BA42: 1.8e-05 | BB42: 0.9746932446 | BC42: 0.0205 | BD42: 0.0035 | BE42: 5.2e-09 | BF42: 0.0067 | BG42: 7.6e-10
A43: rs2197271 | B43: 4 | C43: 82160348 | D43: PRKG2 | F43: C | G43: C | J43: G | K43: C | L43: 20194 | M43: 0.2741 | N43: 0.0189 | O43: 0.0118 | P43: 0.11 | Q43: 19063 | R43: 0.2622 | S43: 0.0279 | T43: 0.0123 | U43: 0.023 | V43: 0.5902304085 | W43: 39258 | X43: 0.2688 | Y43: 0.0224 | Z43: 0.0087 | AA43: 0.01 | AB43: 90652 | AC43: 0.293 | AD43: 0.0237 | AE43: 0.0057 | AF43: 3.2e-05 | AG43: 59359 | AH43: 0.2603 | AI43: 0.0319 | AJ43: 0.007 | AK43: 6.1e-06 | AL43: 0.3424072623 | AM43: 150011 | AN43: 0.2813 | AO43: 0.0268 | AP43: 0.0046 | AQ43: 7.5e-09 | AR43: 0.022 | AS43: 0.0052 | AT43: 1.9e-05 | AU43: 0.71 | AV43: 4.9e-05 | AW43: 0.0293 | AX43: 0.0061 | AY43: 1.4e-06 | AZ43: 0.77 | BA43: 2.4e-06 | BB43: 0.3367907611 | BC43: 0.0248 | BD43: 0.0041 | BE43: 1.2e-09 | BF43: 0.64 | BG43: 1.6e-09
A44: rs7689420 | B44: 4 | C44: 145568352 | D44: HHIP | F44: C,M | J44: C | K44: T | L44: 22065 | M44: 0.8133 | N44: 0.0181 | O44: 0.0132 | P44: 0.17 | Q44: 20874 | R44: 0.827 | S44: 0.0303 | T44: 0.0138 | U44: 0.029 | V44: 0.5146959233 | W44: 42939 | X44: 0.8195 | Y44: 0.0237 | Z44: 0.0097 | AA44: 0.015 | AB44: 96552 | AC44: 0.8098 | AD44: 0.0172 | AE44: 0.0064 | AF44: 0.007 | AG44: 68287 | AH44: 0.8294 | AI44: 0.0382 | AJ44: 0.0078 | AK44: 1e-06 | AL44: 0.02958770108 | AM44: 164840 | AN44: 0.8172 | AO44: 0.0254 | AP44: 0.0051 | AQ44: 6.8e-07 | AR44: 0.0179 | AS44: 0.0058 | AT44: 0.002 | AU44: 0.95 | AV44: 0.011 | AW44: 0.0383 | AX44: 0.0067 | AY44: 8.5e-09 | AZ44: 0.61 | BA44: 5.6e-07 | BB44: 0.01517228595 | BC44: 0.0262 | BD44: 0.0045 | BE44: 6.2e-09 | BF44: 0.87 | BG44: 2.1e-07
A45: rs2062708 | B45: 5 | C45: 32753672 | D45: NPR3 | F45: C | J45: C | K45: T | L45: 21993 | M45: 0.1664 | N45: 0.0468 | O45: 0.0135 | P45: 0.00054 | Q45: 20703 | R45: 0.1745 | S45: 0.0124 | T45: 0.0141 | U45: 0.38 | V45: 0.07230055435 | W45: 42696 | X45: 0.1705 | Y45: 0.0303 | Z45: 0.0099 | AA45: 0.0021 | AB45: 96305 | AC45: 0.1638 | AD45: 0.0303 | AE45: 0.0066 | AF45: 4.7e-06 | AG45: 67985 | AH45: 0.1703 | AI45: 0.0344 | AJ45: 0.0078 | AK45: 1.1e-05 | AL45: 0.6748221489 | AM45: 164289 | AN45: 0.1665 | AO45: 0.0314 | AP45: 0.0052 | AQ45: 1.3e-09 | AR45: 0.0332 | AS45: 0.0059 | AT45: 2.3e-08 | AU45: 0.26 | AV45: 6.5e-08 | AW45: 0.0254 | AX45: 0.0067 | AY45: 0.00016 | AZ45: 0.16 | BA45: 4.1e-05 | BB45: 0.3566722108 | BC45: 0.0295 | BD45: 0.0046 | BE45: 2.1e-10 | BF45: 0.92 | BG45: 1.1e-10
A46: rs3811964 | B46: 5 | C46: 32770099 | D46: NPR3 | F46: W | G46: C,W | J46: T | K46: G | L46: 22043 | M46: 0.2856 | N46: 0.0502 | O46: 0.011 | P46: 5.6e-06 | Q46: 20789 | R46: 0.2776 | S46: 0.0139 | T46: 0.0116 | U46: 0.23 | V46: 0.02057070717 | W46: 42832 | X46: 0.2822 | Y46: 0.033 | Z46: 0.0081 | AA46: 4.1e-05 | AB46: 96370 | AC46: 0.2939 | AD46: 0.0257 | AE46: 0.0054 | AF46: 1.6e-06 | AG46: 67931 | AH46: 0.2763 | AI46: 0.0228 | AJ46: 0.0065 | AK46: 0.00042 | AL46: 0.7197816026 | AM46: 164301 | AN46: 0.2871 | AO46: 0.0241 | AP46: 0.0042 | AQ46: 1.3e-08 | AR46: 0.0289 | AS46: 0.0048 | AT46: 2.5e-09 | AU46: 0.039 | AV46: 3.6e-10 | AW46: 0.0175 | AX46: 0.0055 | AY46: 0.0015 | AZ46: 0.49 | BA46: 0.001 | BB46: 0.09948372466 | BC46: 0.0238 | BD46: 0.0038 | BE46: 3.4e-10 | BF46: 0.31 | BG46: 1.8e-11
A47: rs459193 | B47: 5 | C47: 55806751 | D47: MAP3K1 | F47: C,M | G47: M | J47: A | K47: G | L47: 22099 | M47: 0.2764 | N47: 0.0249 | O47: 0.0113 | P47: 0.027 | Q47: 20778 | R47: 0.2768 | S47: 0.0141 | T47: 0.0116 | U47: 0.23 | V47: 0.496403287 | W47: 42877 | X47: 0.2777 | Y47: 0.0199 | Z47: 0.0082 | AA47: 0.015 | AB47: 96366 | AC47: 0.2852 | AD47: 0.0111 | AE47: 0.0055 | AF47: 0.043 | AG47: 68014 | AH47: 0.2756 | AI47: 0.0411 | AJ47: 0.0065 | AK47: 2.1e-10 | AL47: 0.0002298200901 | AM47: 164381 | AN47: 0.2817 | AO47: 0.0236 | AP47: 0.0043 | AQ47: 4.4e-08 | AR47: 0.0134 | AS47: 0.005 | AT47: 0.0071 | AU47: 0.26 | AV47: 0.012 | AW47: 0.0362 | AX47: 0.0056 | AY47: 8.9e-11 | AZ47: 0.036 | BA47: 9.9e-10 | BB47: 0.001354171141 | BC47: 0.0231 | BD47: 0.0039 | BE47: 2.4e-09 | BF47: 0.67 | BG47: 1.5e-08
A48: rs455660 | B48: 5 | C48: 55816888 | D48: MAP3K1 | G48: C | J48: T | K48: C | L48: 21217 | M48: 0.2059 | N48: 0.0278 | O48: 0.0125 | P48: 0.027 | Q48: 19409 | R48: 0.2034 | S48: 0.002 | T48: 0.0132 | U48: 0.88 | V48: 0.1477970616 | W48: 40625 | X48: 0.205 | Y48: 0.0158 | Z48: 0.0092 | AA48: 0.085 | AB48: 92608 | AC48: 0.2118 | AD48: 0.0191 | AE48: 0.0061 | AF48: 0.0017 | AG48: 64098 | AH48: 0.2089 | AI48: 0.0404 | AJ48: 0.0073 | AK48: 2.6e-08 | AL48: 0.01924623685 | AM48: 156705 | AN48: 0.2111 | AO48: 0.0278 | AP48: 0.0048 | AQ48: 7.1e-09 | AR48: 0.0193 | AS48: 0.0055 | AT48: 0.00046 | AU48: 0.52 | AV48: 0.00063 | AW48: 0.033 | AX48: 0.0063 | AY48: 1.8e-07 | AZ48: 0.0087 | BA48: 2.2e-07 | BB48: 0.08397247413 | BC48: 0.0249 | BD48: 0.0043 | BE48: 7.1e-09 | BF48: 0.22 | BG48: 1.2e-08
A49: rs10041657 | B49: 5 | C49: 108152428 | D49: FER | G49: C | J49: A | K49: G | L49: 22092 | M49: 0.2282 | N49: 0.0296 | O49: 0.0118 | P49: 0.012 | Q49: 20795 | R49: 0.229 | S49: 0.0546 | T49: 0.0123 | U49: 9.8e-06 | V49: 0.1346955225 | W49: 42887 | X49: 0.2287 | Y49: 0.0414 | Z49: 0.0086 | AA49: 1.7e-06 | AB49: 96411 | AC49: 0.232 | AD49: 0.0168 | AE49: 0.0057 | AF49: 0.0035 | AG49: 68022 | AH49: 0.2202 | AI49: 0.0164 | AJ49: 0.0069 | AK49: 0.018 | AL49: 0.9627369059 | AM49: 164433 | AN49: 0.2272 | AO49: 0.0166 | AP49: 0.0045 | AQ49: 0.00026 | AR49: 0.019 | AS49: 0.0051 | AT49: 0.00022 | AU49: 0.31 | AV49: 0.00056 | AW49: 0.0246 | AX49: 0.0059 | AY49: 3.4e-05 | AZ49: 0.0052 | BA49: 3.1e-06 | BB49: 0.4487959807 | BC49: 0.021 | BD49: 0.004 | BE49: 1.7e-07 | BF49: 0.0073 | BG49: 1e-08
A50: rs11955347 | B50: 5 | C50: 131567924 | D50: P4HA2 | F50: C | J50: A | K50: G | L50: 16924 | M50: 0.4463 | N50: 0.0214 | O50: 0.0114 | P50: 0.062 | Q50: 15199 | R50: 0.4312 | S50: 0.0178 | T50: 0.0121 | U50: 0.14 | V50: 0.8252123458 | W50: 32122 | X50: 0.4388 | Y50: 0.0198 | Z50: 0.0085 | AA50: 0.02 | AB50: 73640 | AC50: 0.4413 | AD50: 0.026 | AE50: 0.0056 | AF50: 3.6e-06 | AG50: 50608 | AH50: 0.42 | AI50: 0.0272 | AJ50: 0.0069 | AK50: 8.3e-05 | AL50: 0.8877637126 | AM50: 124249 | AN50: 0.4316 | AO50: 0.0268 | AP50: 0.0046 | AQ50: 3.8e-09 | AR50: 0.0237 | AS50: 0.005 | AT50: 2.5e-06 | AU50: 0.71 | AV50: 3.6e-06 | AW50: 0.0227 | AX50: 0.0059 | AY50: 0.00013 | AZ50: 0.49 | BA50: 0.00014 | BB50: 0.8915303334 | BC50: 0.0231 | BD50: 0.0041 | BE50: 1.4e-08 | BF50: 0.45 | BG50: 2.8e-09
A51: rs7727544 | B51: 5 | C51: 131590534 | D51: PDLIM4 | G51: C | J51: T | K51: C | L51: 22139 | M51: 0.5328 | N51: 0.0183 | O51: 0.0101 | P51: 0.071 | Q51: 20501 | R51: 0.5211 | S51: 0.0184 | T51: 0.0106 | U51: 0.082 | V51: 0.9944423356 | W51: 42640 | X51: 0.5259 | Y51: 0.0178 | Z51: 0.0074 | AA51: 0.016 | AB51: 95703 | AC51: 0.5245 | AD51: 0.0218 | AE51: 0.0049 | AF51: 9.6e-06 | AG51: 65755 | AH51: 0.5139 | AI51: 0.0239 | AJ51: 0.0059 | AK51: 5.7e-05 | AL51: 0.774694528 | AM51: 161458 | AN51: 0.5197 | AO51: 0.0227 | AP51: 0.0039 | AQ51: 4.2e-09 | AR51: 0.019 | AS51: 0.0045 | AT51: 2.2e-05 | AU51: 0.75 | AV51: 9.8e-06 | AW51: 0.0201 | AX51: 0.0051 | AY51: 8.8e-05 | AZ51: 0.64 | BA51: 6.1e-05 | BB51: 0.8645220045 | BC51: 0.0192 | BD51: 0.0035 | BE51: 3.9e-08 | BF51: 0.54 | BG51: 2.4e-09
A52: rs640180 | B52: 5 | C52: 176513247 | D52: FGFR4 | F52: M | J52: G | K52: C | L52: 16809 | M52: 0.7717 | N52: 0.0303 | O52: 0.0137 | P52: 0.027 | Q52: 15034 | R52: 0.7702 | S52: 0.0507 | T52: 0.0146 | U52: 0.00051 | V52: 0.2987446534 | W52: 31843 | X52: 0.7709 | Y52: 0.0375 | Z52: 0.0102 | AA52: 0.00023 | AB52: 73402 | AC52: 0.7756 | AD52: 0.0113 | AE52: 0.0068 | AF52: 0.096 | AG52: 50338 | AH52: 0.7837 | AI52: 0.044 | AJ52: 0.0083 | AK52: 1.3e-07 | AL52: 0.001445155264 | AM52: 123740 | AN52: 0.7791 | AO52: 0.0238 | AP52: 0.0054 | AQ52: 1.1e-05 | AR52: 0.0148 | AS52: 0.0061 | AT52: 0.015 | AU52: 0.2 | AV52: 0.022 | AW52: 0.047 | AX52: 0.0071 | AY52: 4.5e-11 | AZ52: 0.68 | BA52: 1.9e-09 | BB52: 0.0002852640125 | BC52: 0.0279 | BD52: 0.0049 | BE52: 1.5e-08 | BF52: 0.21 | BG52: 7e-08
